Workbook

Sheet Info

Sheet Trial (hidden)

Sheet Instructions (hidden)
A1: Excel Skills | Basic Fixed Asset Register Template
A2: Instructions
A3: www.excel-skills.com
A5: This basic asset register template enables users to compile an assets register which incorporates an unlimited number of asset classes and categories; facilitates recording additions & disposals; automatically calculates monthly and year-to-date depreciation charges and includes a comprehensive automated journal report. The template accommodates depreciation calculations based on the straight-line, diminishing value and double diminishing value calculation methods on a monthly or daily basis.
A7: Note: This template only enables users to enter additions & disposals - if you require a solution which enables you to also enter revaluation & impairment transactions, we suggest that you refer to our IFRS Fixed Asset Register template which accommodates these transactions but only on a straight-line depreciation basis.
A9: The following sheets are included in this template:
A10: Set-up - the input cells on this sheet enable you to customize the template for your business. You can enter your business name, select a year end period, specify whether depreciation needs to be calculated on a monthly or daily basis, specify how to treat depreciation calculations on additions & disposals, maintain the default fixed asset classes and maintain the default fixed asset categories. A complete list of user input error codes are also included on this sheet for information purposes.
A11: Assets - this sheet enables users to create a unique asset code for all fixed assets and the columns with the light blue column headings contain all the comprehensive, automated calculations that form part of the fixed asset register. User input is limited to entering an asset identification number, asset description, asset type, asset category and depreciation basis. The period for which the fixed asset register is compiled is determined by the review date that is specified at the top of the sheet.
A12: Transact - all asset transactions need to be recorded on this sheet. Asset transactions are limited to acquisitions & disposals. User input is limited to entering the transaction date, transaction type, asset number, supplier, document number, transaction amount, asset lifetime, residual value and proceeds on disposal. The columns with light blue column headings contain the formulas that form the basis of all the calculations that are required in order to produce a comprehensive, accurate fixed asset register.
A13: Category - this sheet contains a fixed assets summary which is based on the fixed asset categories that are created on the Set-up sheet. No user input is required on this sheet and 30 fixed asset categories are accommodated. Additional fixed asset categories can be added by simply copying the formulas in the last row into the required number of additional rows.
A14: Class - this sheet contains a fixed assets summary which is based on the asset classes that are created on the Set-up sheet. No user input is required on this sheet and a maximum of 30 asset classes are accommodated.
A15: Journals - this sheet contains an automated journal report for all fixed asset transactions. The journal report can be compiled on a monthly or year-to-date basis and is based on the account numbers that are specified in the asset category set-up on the Set-up sheet. The journal report accommodates 30 asset categories but additional categories can be added by simply copying the formulas in the last row into the required number of additional rows.
A17: Template Set-up
A19: The template can be customized for your business by editing the business details, asset categories and asset classes on the Set-up sheet. The business name that is entered in cell C5 is used as a heading on all the other sheets and the year-end month that is selected in cell C7 is used in order to calculate all year-to-date balances.
A21: The depreciation calculation period basis needs to be selected in cell D9. The template accommodates monthly or daily depreciation calculations. If you select the monthly option, all depreciation calculations will be based on calendar months. If you select the daily option, all depreciation calculations will be based on daily depreciation calculations. The main difference between the two bases is therefore that an asset will start to be depreciated from the date of acquisition if you select the daily basis.
A23: Example: If an asset is purchased on the 15th of a month, the default monthly depreciation basis will depreciate the asset from the 1st of the month and calculate a full month's depreciation for the month of acquisition. You can however change the setting in cell D11 so that the asset is only depreciated from the second month which will mean that no depreciation is calculated in the month of acquisition.
A25: If the asset in the above example is depreciated on the daily basis, the depreciation will commence on the 15th of the month and be based on the remaining days that are left in the calendar month for the acquisition month. Changing the setting in cell D11 will only result in depreciation being calculated from the 16th of the acquisition month. This is because the aim with daily depreciation calculations is usually to depreciate assets based on the precise days that the asset is held.
A27: Note: When deciding between monthly & daily depreciation calculations, we suggest that you also consider what is acceptable based on the tax treatment of depreciation calculations. We do not recommend using the daily basis if your tax deductions are calculated on a monthly basis and vice versa.
A29: The period in which depreciation commences setting in cell D11 determines whether assets are depreciated in the month of acquisition (when the monthly basis is selected). If you select an option of 1, depreciation will only be calculated from the month after the acquisition. For daily depreciation calculations, selecting a setting of 1 will only mean that depreciation will be calculated from the day after the acquisition date. This setting is therefore intended mainly to be used in order to delay depreciation calculations when the monthly basis is selected.
A31: The Yes or No setting in cell D13 can be used to specify whether assets should be depreciated in the period of disposal. If monthly depreciation calculations are used and you select the Yes option, the assets will be depreciated in the month of disposal. If the No option is selected, the asset will not be depreciated in the month of disposal.
A33: If you use daily depreciation calculations, selecting the Yes option will result in the asset being depreciated on the day of disposal. If you select the No option, the asset will not be depreciated on the day of disposal.
A35: Asset Classes
A37: The template includes 6 default fixed asset classes which can be customized in the cell range from cell A17 to cell B22. The default asset class codes in column A and the default asset class descriptions in column B can be amended and you can add additional asset classes by simply inserting a new row between the first and last class codes, entering a new code for the asset class in column A and entering a description for the new class in column B.
A39: Note: All new asset classes must be inserted above the "ZZ" asset class code and a maximum of 30 asset classes can be accommodated in the template.
A41: The asset classes created on the Set-up sheet should be representative of the asset classes that are included on the financial statements. Some businesses however require more asset classes than what is disclosed on the financial statements in order to accommodate separate allocation in the business accounts. We have therefore created separate asset categories for this purpose.
A43: Asset Categories
A45: The template includes 11 asset categories which can be customized in the cell range from cell A27 to cell G37. Each asset category contains a unique code in column A, is linked to an asset class in column B, contains a description in column C and contains an account number in each of the columns from column D to G.
A47: The asset category codes can be in any format but we suggest using a combination of letters and numbers as illustrated with the default category codes. Each category that is created will be included separately on the Category sheet and needs to be linked to one of the asset class codes in cells A17 to A22 by selecting the appropriate asset class code from the list box in column B. The asset categories are therefore in fact sub classes of the main asset classes that are included on the financial statements.
A49: The account numbers that need to be entered in columns D to G are included in the automated journal report on the Journal sheet. All fixed asset journals are therefore based on the asset categories that are created which means that a separate asset category is required for each fixed asset account group or depreciation cost centre. The accounts that need to be entered in each column are better described as follows:
A50: ■ Cost - the general ledger accounts that are entered in this column reflect the cost of each asset category. These accounts should therefore be balance sheet accounts.
A51: ■ Accum Depr - the accounts in this column reflect the accumulated depreciation that has been written off against each asset category. These accounts should therefore be balance sheet accounts.
A52: ■ Depr - the total depreciation charges for each asset category is allocated to the accounts in this column. These accounts should therefore be income statement accounts.
A53: ■ Profit - if assets are sold, the profits or losses on the disposal of assets are allocated to the accounts that are specified in this column. You can again use a single account for all asset categories or enter separate accounts for each asset category. These accounts should be income statement accounts.
A55: Note: All new asset categories must be inserted above the "ZZ" asset category code. The template accommodates 30 asset categories on the Category sheet but you can add additional asset categories by copying the formulas in the last row into the appropriate number of additional rows. An unlimited number of asset categories are therefore accommodated.
A57: Input Error Codes
A59: The input error codes at the bottom of the Set-up sheet are included for information purposes only and provide users with a reason for the error codes that may be encountered when entering transactions on the Assets and Transact sheets. These error codes are covered in more detail in the Error Codes section of these instructions.
A61: Note: We do not recommend adding or deleting any text or values on the Set-up sheet. The sheet contains some hidden content which may inadvertently be overwritten or deleted if you make changes outside of the template design and which may affect the template calculations.
A63: Asset Set-up
A65: Each individual fixed asset must be added to the Assets sheet by assigning an asset number to the fixed asset. The Assets sheet is in actual fact a comprehensive fixed asset register which contains all the individual assets that form part of the fixed assets register. All fixed asset transactions need to be recorded on the Transact sheet and the Category and Class sheets contains automated summaries of all the appropriate asset groups.
A67: A unique asset number must be created for each fixed asset on the Assets sheet. You can use any asset numbering convention but we strongly recommend using a combination of letters and numbers as illustrated in our example data. We have used an asset numbering convention which starts with two letters followed by a hyphen and five numbers. The letters can be used to distinguish between different asset categories or classes.
A69: Note: All fixed assets must be added to the Assets sheet by assigning a unique asset code to the particular asset. The acquisition of the asset then needs to be recorded on the Transact sheet after which the appropriate values will be reflected on the Assets sheet. Users therefore need to create asset codes for all their assets and record acquisition transactions for all assets on the Transact sheet.
A71: All the columns on the Assets sheet with yellow column headings require user input while the columns with light blue column headings contain formulas which are automatically copied for each new asset that is added to the sheet. The following user input is required on the Assets sheet:
A72: Asset Number - enter a unique asset number for each fixed asset in this column. Duplicate asset numbers may result in inaccurate calculations and it is therefore imperative that each fixed asset has a unique asset number. Similar assets or asset components can be distinguished by adding a "-1" and "-2" at the end of the asset number.
A73: Asset ID Number - enter an asset identification number in this column. This number should preferably be applied to the asset in order to facilitate physical verification of assets and assist in identifying each fixed asset that is included in the fixed asset register.
A74: Description - enter a comprehensive description of the asset in this column. The asset description should enable users to easily identify the asset and should assist users in distinguishing between similar assets.
A75: Asset Type - select an asset type from the list box. This column assists in identifying leased assets and the list boxes in this column therefore include an owned and leased option.
A76: Category - select an asset category from the list box in this column. All the asset categories that are created on the Set-up sheet are available for selection. Each asset needs to be linked to an asset category which is linked to an asset class in the Asset Category section on the Set-up sheet.
A77: Depreciation Basis - select a depreciation basis from the list box in this column. Select the SL option for the straight-line (primary cost) depreciation method, "DV" for the diminishing (reducing) value depreciation method and "DDV" for the double diminishing value depreciation method. A separate depreciation method can therefore be selected on an individual asset basis.
A79: Note: We have not included a detailed explanation of each depreciation basis in these instructions because you can easily Google it and find a list of comprehensive explanations. The premise is that the straight-line method is calculated based on the cost of an asset over equal monthly or daily instalments while the diminishing value option is based on the bookvalue of the asset - the annual depreciation amount will differ each year (which is not the case with the straight-line basis). The double diminishing value method uses the same principle as diminishing value but uses double the depreciation percentage.
A81: Note: All the columns on the Assets sheet have been included in an Excel table. This feature is extremely useful when entering data in a table format because the formulas that are included in calculated columns (the columns with light blue column headings) are automatically copied when new rows are inserted into the table or when data is entered into the first blank row below the table. You can therefore add a new asset by simply entering an asset number in column A - the table will then automatically be extended to include the new asset.
A83: All the columns with light blue column headings contain calculations which are based on the review date that is entered in cell E2. The date that is entered in this cell therefore determines which transactions are included in the asset balance and depreciation calculations. It is therefore imperative that you enter the correct date in this cell when reviewing the fixed asset register.
A85: The cell range from cell H2 to cell K2 displays the appropriate year-to-date (YTD) and month-to-date (MTD) from and to dates which are in effect based on the review date that is specified in cell E2. Note that all the template calculations are based on calendar months - even if you enter a review date that does not fall on a month end, the template calculations will still include all the transactions and depreciation calculations for the entire month.
A87: The YTD periods are determined based on the year-end period that is selected in cell C7 on the Set-up sheet. All the YTD asset balances and depreciation calculations will therefore be calculated automatically based on the review date and the year-end period that has been specified.
A89: Note: The review date makes it easy to roll the template forward or back for any subsequent or previous month and all the template calculations are updated automatically. You can therefore simply enter a new date in cell E2 and all the calculations on all the sheets in the template are automatically updated.
A91: The Assets sheet contains 39 calculated columns which all have light blue column headings. The calculations in these columns are all based on the transactions that are entered on the Transact sheet and some of the calculations are for information purposes only while others form an integral part of the fixed asset register. We'll now briefly cover the purpose of each calculated column:
A92: The following columns are included for information purposes only:
A93: Error Code - if there is a problem with the input in any of the user input columns, an error code will be displayed in this column. Refer to the Set-up sheet for a description of each error code and to the Error Code section of these instructions for more information about the reason for the error code that is displayed.
A94: Class - this column contains the asset class that the asset is linked to. The asset class is determined by the asset category that is selected in column E and each asset category is linked to a single asset class in the Asset Category section on the Set-up sheet.
A95: Acquisition Date - the asset acquisition date is displayed in this column. After creating an asset number, an acquisition transaction needs to be recorded on the Transact sheet in order to record the acquisition of the asset. If an acquisition transaction has not been recorded for the particular asset, this column will contain an "Add!" message.
A96: Historical Cost - the historical cost of all assets is displayed in this column. The historical cost is defined as the transaction amount of the acquisition transaction that is recorded on the Transact sheet for the particular asset.
A97: Lifetime in Years - the lifetime that has been recorded on the Transact sheet for the particular asset.
A98: Residual Value - the residual value that has been recorded on the Transact sheet for particular asset.
A99: Disposal Date - if an asset has been disposed of, the date of disposal as per the Transact sheet will be displayed in this column. Note that a disposal transaction has to be recorded on the Transact sheet for all asset disposals.
A100: Proceeds on Disposal - if an asset has been disposed of, the proceeds on disposal as per the Transact sheet will be displayed in this column.
A101: Assets at Cost:
A102: Opening Balance - the opening cost or gross carrying value of the asset at the beginning of the current financial period is included in this column.
A103: Additions - if an asset has been acquired during the current financial period, the cost of the asset is included in this column. The cost of the asset is entered as the transaction amount when recording an acquisition type transaction on the Transact sheet.
A104: Disposals: Cost - if an asset has been disposed of during the current financial period, the cost of the asset is included as a negative value. This effectively means that the cost of the asset is removed from the fixed asset register on the date of disposal.
A105: Closing Balance - the closing cost or gross carrying value of the asset at the end of the current financial period is included in this column.
A106: Accumulated Depreciation:
A107: Accum Depr: Opening - the opening accumulated depreciation balance of the asset at the beginning of the current financial period is included in this column.
A108: YTD Depreciation - the year-to-date depreciation which is calculated based on the depreciation basis which has been selected in column F.
A109: Accum Depr: Disposals - if an asset has been disposed of during the current financial period, the accumulated depreciation as at the date of the disposal is included in this column as a negative value. This effectively means that the accumulated depreciation of the asset is removed from the fixed asset register.
A110: Accum Depr Closing - the closing accumulated depreciation balance of the asset at the end of the current financial period is included in this column.
A111: Carrying Value or Bookvalue:
A112: Closing Carrying Value - the difference between the closing cost (or gross carrying value) of an asset and the closing accumulated depreciation balance is included in this column. The amounts in this column reflect the "book value" of an asset at the end of the financial period.
A113: Income Statement Items:
A114: Profit / (Loss) on Disposal - if an asset has been disposed of during the current financial period, the profit or loss on disposal as at the date of the disposal is included in this column. The profit or loss on disposal is calculated as the difference between the proceeds on disposal which is recorded on the Transact sheet and the net carrying value (book value) of the asset.
A115: Current Month:
A116: MTD Depreciation - this column includes the depreciation charge for the current month. The appropriate month is determined by the review date that is specified in cell E2. Note that this column will only contain a value if the historical cost of an asset has not been fully depreciated.
A117: Other Calculated Columns:
A118: The calculations in columns Z to AS have been included on the Assets sheet in order to facilitate the automated depreciation calculations. These calculations are quite complex and we will therefore not cover the methodology of each column's calculations in these instructions. The columns will also not form part of the printed cell range but should be copied for all new assets that are added to the Assets sheet.
A120: All the column headings on the Assets sheet contain a filter selection arrow. These selection arrows indicate that the Filter feature has been activated on the sheet. The Filter feature can be used to filter the data on the sheet in order to display only certain asset records on the sheet.
A122: We have also included totals above all the column headings that contain amounts. These totals have been calculated by using the SUBTOTAL function which means that if the data on the sheet is filtered, the totals that are calculated will only include the filtered records. The Filter feature can therefore be used to obtain totals based on the filter criteria that are specified by the user and also enables users to view the detailed fixed asset records that make up the summary totals on the Category and Class sheets.
A124: Example: If you want to obtain the fixed asset register totals for all leased assets, you can simply click the selection arrow next to the Asset Type column heading and select the Leased option. The sheet will be filtered and only the leased assets will be visible on the sheet. The totals will also only include the leased assets.
A126: Example: If you want to view the detailed asset records that make up one of the category or class totals on the Category or Class sheets, simply click the filter selection arrow next to the Category or Class column headings (column E or column H) and select the appropriate category or class. The sheet will be filtered and only the asset records for the selected category or class will be visible on the sheet. The totals will also only include the appropriate amounts for the selected category or class.
A128: Note: After reviewing the filtered data, you need to clear the filter to display all the asset records on the sheet. A filter can be cleared by simply clicking the selection arrow next to the column heading again and clicking the "Select All" option.
A130: Recording Asset Transactions
A132: All asset transactions must be recorded on the Transact sheet. There are 2 types of transactions that can be recorded namely acquisitions and disposals. An asset transaction can be recorded by entering data into the user input columns - column headings of all user input columns contain yellow cell backgrounds while the column headings with light blue cell backgrounds indicate that these columns contain formulas which are automatically copied for all new transactions added to the sheet.
A134: Note: Recording an asset number on the Assets sheet will have no effect in terms of recording the cost of an asset in the fixed asset register. An acquisition transaction needs to be recorded on the Transact sheet for each fixed asset that is acquired before the appropriate asset values will be included in the fixed asset register on the Assets sheet and the summaries on the Category and Class sheets.
A136: Note: All the columns on the Transact sheet have been included in an Excel table. This feature is extremely useful when entering data in a table format because the formulas that are included in calculated columns (the columns with light blue column headings) are automatically copied when new rows are inserted into the table or when data is entered into the first blank row below the table. You can therefore add a new transaction by simply entering a transaction date in column A - the table will then automatically be extended to include the new transaction.
A138: The following user input is required in the user input columns on the Transact sheet (the columns with yellow column headings):
A139: Transaction Date - enter the date of the transaction.
A140: Transaction Type - select the transaction type from the list box. The ACQ option should be selected for all asset acquisitions and the DIS option should be selected for all asset disposals.
A141: Asset Number - select the appropriate asset number of the asset to which the transaction relates from the list box in this column. All the asset numbers that have been added to the Assets sheet will be available for selection. You therefore need to create an asset number for the appropriate fixed asset on the Assets sheet before you will be able to record any transactions for the particular fixed asset.
A142: Supplier - enter the name of the supplier from which the asset has been acquired. If a disposal transaction is recorded, you can enter the name of the customer in this column.
A143: Document Number - enter the document number of a supporting document which will enable you to trace the transaction back to its supporting documentation. For acquisitions, this should be the supplier invoice number and for disposals, the customer invoice number.
A144: Amount - enter the transaction amount in this column. For acquisitions, the supplier invoice amount should be entered exclusive of any sales tax. For disposals, a nil amount should be entered.
A145: Lifetime in Years - enter the estimated lifetime of the asset in years for all acquisition transactions in this column. For disposals, enter a nil value in this column. Note that if an asset should not be depreciated, a nil lifetime needs to be specified in this column.
A146: Residual Value - if the asset that is being acquired has a residual value, this residual value should be entered in this column. The residual value affects the depreciation calculations in that the residual value is deducted from the cost of an asset to calculate the total amount that will be depreciated over the lifetime of the asset. A nil value should be entered for all disposal transactions.
A147: Proceeds on Sale - if a disposal transaction is being recorded, enter the proceeds on the disposal of the asset in this column. The proceeds should equal the total amount that is received for the asset. If an asset is being scrapped, enter nil in this column. A nil value should also be entered for all acquisition transactions.
A149: The Transact sheet also includes 7 calculated columns - the column headings of all the calculated columns contain light blue cell backgrounds. All of these columns contain formulas which are automatically copied for all new transactions added to the sheet.
A150: Error Code - if there is a problem with the input in any of the user input columns, an error code will be displayed in this column. Refer to the Set-up sheet for a description of each error code and to the Error Code section of these instructions for more information about the reason for the error code that is displayed.
A151: Category - the asset category is looked up on the Assets sheet based on the asset number that is specified in column C. This column is included for information purposes only.
A152: Transaction Date ID - the formula in this column is based on the transaction date which is entered in column A.
A153: Transaction Amount - the formula in this column is based on the amount which is entered in column F.
A154: Historical Cost -the formula is based on the amount which is entered in column F for all acquisition type transactions.
A155: Current Lifetime - the formula in this column is based on the asset lifetime which is entered in column G.
A156: Current Residual - the formula in this column is based on the residual value which is entered in column H.
A158: Note: Only one acquisition transaction can be recorded for each asset because an asset can only be acquired once. If an asset is scrapped (which is recorded as a disposal) and subsequently needs to be added back to the fixed asset register, a new asset number should be used for this purpose. The recording of duplicate asset acquisitions will result in an input error in the Error Code column and may also result in inaccurate template calculations.
A160: Note: All the depreciation calculations that form part of the fixed asset register are automated and you therefore do not need to record any transactions in order to record any monthly or annual depreciation amounts. Also note that all the automated calculations in this template are based on the review date that is specified on the Assets sheet. You can therefore roll the template forward for subsequent periods or back to previous periods by simply changing the review date on the Assets sheet.
A162: All the column headings on the Transact sheet contain a filter selection arrow. These selection arrows indicate that the Filter feature has been activated on the sheet. The Filter feature can be used to filter the data on the sheet in order to display only certain asset records on the sheet.
A164: Error Codes
A166: The following error codes may result from inaccurate input on the Assets and Transact sheets and will be displayed in the Error Code columns on the appropriate sheet. The heading of the affected input column will also be highlighted in orange in order to indicate that an error is present in the appropriate column:
A168: ■ E1 - this error code means that a duplicate asset number has been created on the Assets sheet. If you delete the row that contains the duplicate asset number, the error is resolved.
A169: ■ E2 - this error code means that the asset category that needs to be selected in column E on the Assets sheet is blank or does not exist. Select a valid asset category from the list box in order to resolve the error. Note that all the asset categories that are included on the Set-up sheet are included in the list box.
A170: ■ E3 - this error code means that the asset number that needs to be selected in column C on the Transact sheet is blank or does not exist. Select a valid asset number from the list box in order to resolve the error. Note that all the asset numbers that are recorded on the Assets sheet are included in the list box.
A171: ■ E4 - this error code means that the transaction type that needs to be selected in column B on the Transact sheet is blank or does not exist. Select a valid transaction type from the list box in order to resolve the error. Note that this error may also be displayed in you attempt to record a transaction for an asset that has been disposed of previously. Once a disposal is recorded for an asset (even if the asset has only been scrapped and not actually disposed of), any subsequent transactions need to be recorded by using a new asset number.
A172: ■ E5 - this error code means that more than one acquisition transaction has been recorded for the same asset. An asset can only be acquired once. If you therefore need to bring the asset back into the fixed asset register after perhaps recording a disposal transaction, a new asset number must be used.
A173: ■ E6 - this error code means that an invalid transaction amount has been recorded for the selected transaction type. All transaction amounts should be recorded as positive amounts and a nil amount needs to be entered for all disposal transactions.
A174: ■ E7 - this error code means that an invalid lifetime has been recorded for the selected transaction type. All asset lifetimes should be recorded as positive values and a nil value needs to be entered for all disposal transactions. Note that you can also enter a nil value for asset acquisition type transactions but this means that the asset will not be depreciated.
A175: ■ E8 - this error code means that an invalid residual value has been recorded for the selected transaction type. All residual values should be recorded as positive values and a nil residual value needs to be entered for all disposal transactions. Note that the residual value of an asset can also not be greater than the transaction amount that is entered in column F.
A176: ■ E9 - this error code means that an invalid proceeds on disposal amount has been recorded for the selected transaction type. All proceeds on disposal amounts should be recorded as positive values and you only need to record an amount in this column if a disposal type transaction is recorded. Note that the proceeds on the disposal of an asset can never be less than nil (even if a loss is made on the disposal of an asset) because the proceeds equal the amount that is received after selling the asset. A nil value may however need to be entered if an asset is scrapped without any compensation being received.
A177: ■ E10 - this error code means that a disposal type transaction has been recorded for the appropriate asset on the Transact sheet before an acquisition transaction has been recorded. The first step after adding an asset number to the Assets sheet should be to record an acquisition transaction for the asset on the Transact sheet even if the asset has been donated to the business (use a transaction amount of nil).
A179: Note: Input errors may result in inaccurate template calculations and it is therefore imperative that all errors are resolved before reviewing the fixed asset register balances and processing any general ledger journal entries.
A181: Asset Category Summary
A183: The Category sheet contains a fixed asset register summary for all the asset categories that are created on the Set-up sheet. Individual assets are linked to a fixed asset category by selecting a category in column E on the Assets sheet. No user input is required on the Category sheet.
A185: Note: Only the first 30 asset categories are included on the Category sheet by default but you can add additional asset categories (if required) to the sheet by simply copying the formulas in the last row that contains data into the appropriate number of additional rows.
A187: Note: If you want to view the detailed fixed asset records that make up the totals on the Category sheet, you can apply a filter to the Category column on the Assets sheet by clicking the selection arrow next to the column heading and selecting the asset category. The totals above the column headings will equal the amounts reflected on the Category sheet.
A189: Note: The Category sheet is compiled based on the review date that is specified in cell E2 on the Assets sheet. If you therefore want to amend the reporting period for which the asset category summary is compiled, simply enter a new review date on the Assets sheet.
A191: Asset Class Summary
A193: The Class sheet contains a fixed asset register summary for all the asset classes that are created on the Set-up sheet. Individual assets are linked to a fixed asset class by selecting an asset category in column E on the Assets sheet. Each asset category is linked to a separate asset class by selecting the appropriate asset class in the asset category set-up on the Set-up sheet. No user input is required on the Class sheet.
A195: Note: The template accommodates a maximum of 30 asset classes on the Class sheet. This should be more than sufficient for any business because the asset classes are used for financial statement reporting purposes.
A197: Note: If you want to view the detailed fixed asset records that make up the totals on the Class sheet, you can apply a filter to the Class column on the Assets sheet by clicking the selection arrow next to the column heading and selecting the appropriate asset class. The totals above the column headings will equal the amounts that are reflected on the Class sheet.
A199: Note: The Class sheet is compiled based on the review date specified in cell E2 on the Assets sheet. If you want to amend the reporting period for which the asset class summary is compiled, simply enter a new review date on the Assets sheet.
A201: Fixed Asset Journals
A203: The Journals sheet contains an automated report of the recommended journal entries that need to be processed to account for all fixed asset transactions in a general ledger. The general ledger journal entries are compiled on an asset category basis because each asset category is linked to a general ledger account for each of the transaction types that are included in the template.
A205: Note: Only the first 30 asset categories are included on the Journals sheet by default but you can add additional asset categories (if required) to the sheet by simply copying the formulas in the last row that contains data into the appropriate number of additional rows.
A207: Note: The Journals sheet is compiled based on the review date that is specified in cell E2 on the Assets sheet. If you therefore want to amend the reporting period for which the automated journal report is compiled, simply enter a new review date on the Assets sheet.
A209: The general ledger journal entries on the Journal sheet can be compiled on a month-to-date (MTD) or a year-to-date (YTD) basis by selecting the period from the list box in cell E2. All the journal entry amount calculations are automatically updated.
A211: Each general ledger journal entry consists of four columns which contains two sets of accounts and amounts. The account numbers that are included on the Journal sheet are determined based on the general ledger accounts that are linked to each asset category on the Set-up sheet. In terms of the journal entry amounts, a positive value refers to a debit entry and a negative value refers to a credit entry.
A213: There are 5 general ledger journal entries on the Journals sheet - the purpose of each of these journal entries can be summarized as follows:
A214: ■ Depreciation - this is the total depreciation charge for the period which is typically allocated to the income statement and to accumulated depreciation accounts.
A215: ■ Additions - this journal records fixed asset additions in the general ledger. Note that in most accounting systems, additions will be recorded through cashbook (bank) or trade creditors accounting systems.
A216: ■ Disposals - Proceeds - this journal records the proceeds on the disposal of an asset in the general ledger. Note that in most accounting systems, the proceeds on disposal will be recorded through cashbook (bank) or trade debtors accounting systems.
A217: ■ Disposals - Cost - this journal allocates the cost of a disposed asset to the appropriate profit or loss on disposal account that is specified for the asset category on the Set-up sheet.
A218: ■ Disposals - Accumulated Depreciation - this journal allocates the accumulated depreciation of a disposed asset to the appropriate profit or loss on disposal account that is specified for the asset category on the Set-up sheet.
A220: Note: If you want to analyse the values that have been included on the Journals sheet, we recommend that you refer to the Category sheet or that you apply the Filter feature to the asset records on the Assets sheet in order to analyse the journal amounts for a specific asset category.
A222: Help & Customization
A224: If you experience any difficulty while using this template and you are not able to find the appropriate guidance in these instructions, please e-mail us at support@excel-skills.com for assistance. This template has been designed with flexibility in mind to ensure that it can be used in most business environments. If however you need an Excel based template that is customized specifically for your business requirements, please e-mail our Support function and provide a brief explanation of your requirements.
A226: © Copyright
A228: This template remains the intellectual property of www.excel-skills.com and is protected by international copyright laws. Any publication or distribution of this template outside the scope of the permitted use of the template is expressly prohibited. In terms of the permitted use of this template, only the distribution of the template to persons within the same organisation as the registered user or persons outside the organisation who can reasonably be expected to require access to the template as a direct result of the use of the template by the registered user is allowed. Subsequent distribution of the template by parties outside of the organisation is however expressly prohibited and represents an infringement of international copyright laws.

Sheet Set-up (hidden)
A1: =$C$5 -> Example (Pty) Ltd
A2: Template Set-up
A4: Business Details
A5: Business Name | C5: Example (Pty) Ltd
A7: Year-End Month | C7: 2016-02-01
A9: Depreciation calculation period basis | D9: Monthly | E9: =IF(ISBLANK($D$9),"Monthly",$D$9) -> Monthly
A11: Period in which depreciation commences | D11: 0 | E11: =IF(ISBLANK(D11),0,D11) -> 0
A13: Are assets depreciated in period of disposal? | D13: No | E13: =IF(ISBLANK(D13),0,IF(D13="No",1,0)) -> 1
A15: Asset Classes
A16: Code | B16: Description
A17: LB | B17: Land & Buildings
A18: PM | B18: Plant & Equipment
A19: CE | B19: Computer Equipment
A20: OE | B20: Office Equipment
A21: FF | B21: Furniture & Fixtures
A22: MV | B22: Motor Vehicles
A23: ZZ | B23: End of list
A25: Asset Categories
A26: Code | B26: Class | C26: Description | D26: Cost | E26: Acc Depr | F26: Depr | G26: Profit
A27: LBU01 | B27: LB | C27: Land & Buildings | D27: BS-101 | E27: BS-151 | F27: IS-401 | G27: IS-408
A28: PPM01 | B28: PM | C28: Main Production Plant | D28: BS-102 | E28: BS-152 | F28: IS-402 | G28: IS-408
A29: PPS02 | B29: PM | C29: Secondary Plant | D29: BS-103 | E29: BS-153 | F29: IS-403 | G29: IS-408
A30: EQP01 | B30: PM | C30: Primary Equipment | D30: BS-104 | E30: BS-154 | F30: IS-404 | G30: IS-408
A31: EQS01 | B31: PM | C31: Secondary Equipment | D31: BS-105 | E31: BS-155 | F31: IS-405 | G31: IS-408
A32: SMA01 | B32: PM | C32: Small Assets | D32: BS-106 | E32: BS-156 | F32: IS-406 | G32: IS-408
A33: CHW01 | B33: CE | C33: Computer Hardware | D33: BS-111 | E33: BS-161 | F33: IS-411 | G33: IS-408
A34: CSW01 | B34: CE | C34: Computer Software | D34: BS-112 | E34: BS-162 | F34: IS-412 | G34: IS-408
A35: OFE01 | B35: OE | C35: Office Equipment | D35: BS-121 | E35: BS-171 | F35: IS-421 | G35: IS-408
A36: FFX01 | B36: FF | C36: Furniture & Fixtures | D36: BS-131 | E36: BS-181 | F36: IS-431 | G36: IS-408
A37: MVH01 | B37: MV | C37: Motor Vehicles | D37: BS-142 | E37: BS-192 | F37: IS-442 | G37: IS-408
A38: ZZ | B38: End of list
A40: Input Error Codes
A41: Code | B41: Reason
A42: E1 | B42: Duplicate asset number.
A43: E2 | B43: Asset category does not exist.
A44: E3 | B44: Asset number does not exist.
A45: E4 | B45: Transaction type is blank or invalid.
A46: E5 | B46: Duplicate asset additions recorded.
A47: E6 | B47: Invalid transaction amount for the selected transaction type.
A48: E7 | B48: Invalid asset lifetime for the selected transaction type.
A49: E8 | B49: Invalid residual value for the selected transaction type.
A50: E9 | B50: Invalid proceeds from disposal of asset.
A51: E10 | B51: Asset acquisition not recorded.
A53: =DATE(YEAR(TODAY()),1,1) -> 2021-01-01
A54: =DATE(YEAR(TODAY()),2,1) -> 2021-02-01
A55: =DATE(YEAR(TODAY()),3,1) -> 2021-03-01
A56: =DATE(YEAR(TODAY()),4,1) -> 2021-04-01
A57: =DATE(YEAR(TODAY()),5,1) -> 2021-05-01
A58: =DATE(YEAR(TODAY()),6,1) -> 2021-06-01
A59: =DATE(YEAR(TODAY()),7,1) -> 2021-07-01
A60: =DATE(YEAR(TODAY()),8,1) -> 2021-08-01
A61: =DATE(YEAR(TODAY()),9,1) -> 2021-09-01
A62: =DATE(YEAR(TODAY()),10,1) -> 2021-10-01
A63: =DATE(YEAR(TODAY()),11,1) -> 2021-11-01
A64: =DATE(YEAR(TODAY()),12,1) -> 2021-12-01

Sheet Assets (hidden)
A1: ='Set-up'!$C$5 -> Example (Pty) Ltd | H1: YTD From | I1: YTD To | J1: MTD From | K1: MTD To
A2: Asset Set-up | D2: Review Date | E2: 2021-02-28 | H2: =IF(OR(ISBLANK($E$2)=TRUE,ISNUMBER($E$2)=FALSE),IF(MONTH(TODAY())<=MONTH('Set-up'!$C$7),DATE(YEAR(TODAY())-1,MONTH('Set-up'!$C$7)+1,1),DATE(YEAR(TODAY()),MONTH('Set-up'!$C$7)+1,1)),IF(MONTH($E$2)<=MONTH('Set-up'!$C$7),DATE(YEAR($E$2)-1,MONTH('Set-up'!$C$7)+1,1),DATE(YEAR($E$2),MONTH('Set-up'!$C$7)+1,1))) -> 2020-03-01 | I2: =IF(OR(ISBLANK($E$2)=TRUE,ISNUMBER($E$2)=FALSE),DATE(YEAR(TODAY()),MONTH(TODAY())+1,0),DATE(YEAR($E$2),MONTH($E$2)+1,0)) -> 2021-02-28 | J2: =DATE(YEAR(I2),MONTH(I2),0)+1 -> 2021-02-01 | K2: =I2 -> 2021-02-28 | O2: =SUBTOTAL(109,AssetCOB) -> 7105670 | P2: =SUBTOTAL(109,AssetCAdd) -> 375919 | Q2: =SUBTOTAL(109,AssetCDis) -> -660450 | R2: =SUM(O2:Q2) -> 6821139 | S2: =SUBTOTAL(109,AssetDOB) -> 5134713.325 | T2: =SUBTOTAL(109,AssetDDep) -> 482567.2708 | U2: =SUBTOTAL(109,AssetDDis) -> -660450 | V2: =SUM(S2:U2) -> 4956830.596 | W2: =SUM(R2,-V2) -> 1864308.404 | X2: =SUBTOTAL(109,AssetPLoss) -> 150000 | Y2: =SUBTOTAL(109,AssetMDep) -> 13821.88079
A3: © www.excel-skills.com | O3: Assets at Cost | S3: Accumulated Depreciation | Y3: Current Month
A4: Asset Number | B4: Asset ID Number | C4: Description | D4: Asset Type | E4: Category | F4: Depreciation Basis | G4: Error Code | H4: Class | I4: Acquisition Date | J4: Historical Cost | K4: Lifetime in Years | L4: Residual Value | M4: Disposal Date | N4: Proceeds on Disposal | O4: Opening Balance | P4: Additions | Q4: Disposals: Cost | R4: Closing Balance | S4: Accum Depr: Opening | T4: YTD Depreciation | U4: Accum Depr: Disposals | V4: Accum Depr: Closing | W4: Closing Carrying Value | X4: Profit / (Loss) on Disposal | Y4: MTD Depreciation | Z4: CYP | AA4: PYP | AB4: PMP | AC4: DISP | AD4: DVR | AE4: DTYPE | AF4: DTADJ | AG4: LIFE | AH4: CYM | AI4: PYM | AJ4: PMM | AK4: DISM | AL4: CYNBD | AM4: PYNBD | AN4: PMNBD | AO4: DINBD | AP4: CYFYD | AQ4: PYFYD | AR4: PMFYD | AS4: DIFYD
A5: LB-00001 | B5: 99843 | C5: Factory Land & Buildings | D5: Owned | E5: LBU01 | F5: SL | G5: =IF(COUNTIF(AssetCode,$A5)>1,"E1",IF(ISNA(VLOOKUP($E5,CatAll,1,0))=TRUE,"E2",IF($I5="Add!","E10","-"))) -> - | H5: =IF(ISNA(VLOOKUP($E5,CatAll,2,0))=TRUE,"error!",VLOOKUP($E5,CatAll,2,0)) -> LB | I5: =IF(SUMIFS(TransIDDate,TransAsset,$A5,TransType,"ACQ")=0,"Add!",SUMIFS(TransIDDate,TransAsset,$A5,TransType,"ACQ")) -> 2015-07-20 | J5: =SUMIFS(TransAmount,TransAsset,$A5,TransIDDate,$I5) -> 1500000 | K5: =SUMIFS(TransLife,TransAsset,$A5,TransIDDate,$I5) -> 0 | L5: =SUMIFS(TransRes,TransAsset,$A5,TransIDDate,$I5) -> 0 | M5: =IF(SUMIFS(TransIDDate,TransAsset,$A5,TransType,"DIS")=0,"-",IF(SUMIFS(TransIDDate,TransAsset,$A5,TransType,"DIS")<=$I$2,SUMIFS(TransIDDate,TransAsset,$A5,TransType,"DIS"),"-")) -> - | N5: =IF($M5<=$I$2,SUMIFS(TransProceeds,TransAsset,$A5,TransType,"DIS"),0) -> 0 | O5: =IF(AND($M5<>"-",$M5<$H$2),0,SUMIFS(TransAmount,TransAsset,$A5,TransIDDate,"<"&$H$2,TransType,"ACQ")) -> 1500000 | P5: =SUMIFS(TransAmount,TransAsset,$A5,TransIDDate,">="&$H$2,TransIDDate,"<"&($I$2+1),TransType,"ACQ") -> 0 | Q5: =-SUMIFS(TransHCost,TransAsset,$A5,TransIDDate,">="&$H$2,TransIDDate,"<"&($I$2+1),TransType,"DIS") -> 0 | R5: =IF(ROUND(SUM(O5:Q5),2)=0,0,SUM(O5:Q5)) -> 1500000 | S5: =IF(AND($M5<>"-",$M5<$H$2),0,IF($K5=0,0,IF(LEFT($AE5,1)="D",(($J5-$L5)*(1-((1-$AD5)^$AI5)))+(($J5-$L5)*(((1-$AD5)^$AI5)-((1-$AD5)^($AI5+1)))*IF('Set-up'!$E$9="Monthly",($AA5-($AI5*12))/12,$AM5/$AQ5)),($J5-$L5)/$AG5*$AA5))) -> 0 | T5: =IF($K5=0,0,IF(LEFT($AE5,1)="D",((($J5-$L5)*(1-((1-$AD5)^$AH5)))+(($J5-$L5)*(((1-$AD5)^$AH5)-((1-$AD5)^($AH5+1)))*IF('Set-up'!$E$9="Monthly",($Z5-($AH5*12))/12,$AL5/$AP5)))-(($J5-$L5)*(1-((1-$AD5)^$AI5)))-(($J5-$L5)*(((1-$AD5)^$AI5)-((1-$AD5)^($AI5+1)))*IF('Set-up'!$E$9="Monthly",($AA5-($AI5*12))/12,$AM5/$AQ5)),(($J5-$L5)/$AG5*$Z5)-(($J5-$L5)/$AG5*$AA5))) -> 0 | U5: =-IF(AND($M5>=$H$2,$M5<=$I$2),IF(LEFT($AE5,1)="D",(($J5-$L5)*(1-((1-$AD5)^$AK5)))+(($J5-$L5)*(((1-$AD5)^$AK5)-((1-$AD5)^($AK5+1)))*IF('Set-up'!$E$9="Monthly",($AC5-($AK5*12))/12,$AO5/$AS5)),IF($K5=0,0,($J5-$L5)/$AG5*$AC5)),0) -> 0 | V5: =IF(ROUND(SUM(S5:U5),2)=0,0,SUM(S5:U5)) -> 0 | W5: =IF(ROUND(SUM(R5,-V5),2)=0,0,SUM(R5,-V5)) -> 1500000 | X5: =IF(AND($M5>=$H$2,$M5<=$I$2),N5+(Q5-U5),0) -> 0 | Y5: =IF($K5=0,0,IF(LEFT($AE5,1)="D",((($J5-$L5)*(1-((1-$AD5)^$AH5)))+(($J5-$L5)*(((1-$AD5)^$AH5)-((1-$AD5)^($AH5+1)))*IF('Set-up'!$E$9="Monthly",($Z5-($AH5*12))/12,$AL5/$AP5)))-(($J5-$L5)*(1-((1-$AD5)^$AJ5)))-(($J5-$L5)*(((1-$AD5)^$AJ5)-((1-$AD5)^($AJ5+1)))*IF('Set-up'!$E$9="Monthly",($AB5-($AJ5*12))/12,$AN5/$AR5)),(($J5-$L5)/$AG5*$Z5)-(($J5-$L5)/$AG5*$AB5))) -> 0 | Z5: =IF('Set-up'!$E$9="Daily",MIN(MAX(((IF($M5="-",$I$2,MIN($I$2,$M5-'Set-up'!$E$13))-(($I5+'Set-up'!$E$11)))+1),0),IF(LEFT($AE5,1)="D",MaxPeriod,$AG5)),MIN(MAX(((IF($M5="-",((YEAR($I$2)*12)+MONTH($I$2)),MIN(((YEAR($I$2)*12)+MONTH($I$2)),((YEAR($M5)*12)+MONTH($M5)-'Set-up'!$E$13)))-(((YEAR($I5)*12)+MONTH($I5)+'Set-up'!$E$11)))+1),0),IF(LEFT($AE5,1)="D",MaxPeriod,$AG5))) -> 0 | AA5: =IF('Set-up'!$E$9="Daily",MIN(MAX(((IF($M5="-",$H$2-1,MIN($H$2-1,$M5-'Set-up'!$E$13))-($I5+'Set-up'!$E$11))+1),0),IF(LEFT($AE5,1)="D",MaxPeriod,$AG5)),MIN(MAX(((IF($M5="-",((YEAR($H$2)*12)+MONTH($H$2)-1),MIN(((YEAR($H$2)*12)+MONTH($H$2)-1),((YEAR($M5)*12)+MONTH($M5)-'Set-up'!$E$13)))-(((YEAR($I5)*12)+MONTH($I5)+'Set-up'!$E$11)))+1),0),IF(LEFT($AE5,1)="D",MaxPeriod,$AG5))) -> 0 | AB5: =IF('Set-up'!$E$9="Daily",MIN(MAX(((IF($M5="-",$J$2-1,MIN($J$2-1,$M5-'Set-up'!$E$13))-($I5+'Set-up'!$E$11))+1),0),IF(LEFT($AE5,1)="D",MaxPeriod,$AG5)),MIN(MAX(((IF($M5="-",((YEAR($J$2)*12)+MONTH($J$2)-1),MIN(((YEAR($J$2)*12)+MONTH($J$2)-1),((YEAR($M5)*12)+MONTH($M5)-'Set-up'!$E$13)))-(((YEAR($I5)*12)+MONTH($I5)+'Set-up'!$E$11)))+1),0),IF(LEFT($AE5,1)="D",MaxPeriod,$AG5))) -> 0 | AC5: =IF('Set-up'!$E$9="Daily",MIN(MAX(((IF($M5="-",0,$M5-'Set-up'!$E$13)-($I5+'Set-up'!$E$11))+1),0),IF(LEFT($AE5,1)="D",MaxPeriod,$AG5)),MIN(MAX(((IF($M5="-",0,((YEAR($M5)*12)+MONTH($M5)-'Set-up'!$E$13))-(((YEAR($I5)*12)+MONTH($I5)+'Set-up'!$E$11)))+1),0),IF(LEFT($AE5,1)="D",MaxPeriod,$AG5))) -> 0 | AD5: =IF($K5=0,0,IF($F5="DV",1/$K5,IF($F5="DDV",MIN(1/$K5*2,1),0))) -> 0 | AE5: =IF(AD5=1,"SL",F5) -> SL | AF5: =IF(AND($F5="DDV",$AE5="SL",$K5>1),2,1) -> 1 | AG5: =IF('Set-up'!$E$9="Daily",(DATE(YEAR($I5)+$K5+(1-$AF5),MONTH($I5),DAY($I5))+'Set-up'!$E$11)-($I5+'Set-up'!$E$11),$K5*12) -> 0 | AH5: =ROUNDDOWN(MIN(MAX(((IF($M5="-",((YEAR($I$2)*12)+MONTH($I$2)),MIN(((YEAR($I$2)*12)+MONTH($I$2)),((YEAR($M5)*12)+MONTH($M5)-'Set-up'!$E$13)))-(((YEAR($I5)*12)+MONTH($I5)+'Set-up'!$E$11)))),0),IF(LEFT($AE5,1)="D",MaxPeriod,$AG5))/12,0) -> 0 | AI5: =ROUNDDOWN(MIN(MAX(((IF($M5="-",((YEAR($H$2)*12)+MONTH($H$2)-1),MIN(((YEAR($H$2)*12)+MONTH($H$2)-1),((YEAR($M5)*12)+MONTH($M5)-'Set-up'!$E$13)))-(((YEAR($I5)*12)+MONTH($I5)+'Set-up'!$E$11)))),0),IF(LEFT($AE5,1)="D",MaxPeriod,$AG5))/12,0) -> 0 | AJ5: =ROUNDDOWN(MIN(MAX(((IF($M5="-",((YEAR($J$2)*12)+MONTH($J$2)-1),MIN(((YEAR($J$2)*12)+MONTH($J$2)-1),((YEAR($M5)*12)+MONTH($M5)-'Set-up'!$E$13)))-(((YEAR($I5)*12)+MONTH($I5)+'Set-up'!$E$11)))),0),IF(LEFT($AE5,1)="D",MaxPeriod,$AG5))/12,0) -> 0 | AK5: =ROUNDDOWN(MIN(MAX(((IF($M5="-",0,((YEAR($M5)*12)+MONTH($M5)-'Set-up'!$E$13))-(((YEAR($I5)*12)+MONTH($I5)+'Set-up'!$E$11)))),0),IF(LEFT($AE5,1)="D",MaxPeriod,$AG5))/12,0) -> 0 | AL5: =IF('Set-up'!$E$9="Daily",MIN(MAX(((IF($M5="-",$I$2,MIN($I$2,$M5-'Set-up'!$E$13))-((DATE(YEAR($I5)+$AH5,MONTH($I5),DAY($I5))+'Set-up'!$E$11)))+1),0),IF(LEFT($AE5,1)="D",MaxPeriod,$AG5)),0) -> 0 | AM5: =IF('Set-up'!$E$9="Daily",MIN(MAX(((IF($M5="-",$H$2-1,MIN($H$2-1,$M5-'Set-up'!$E$13))-(DATE(YEAR($I5)+$AI5,MONTH($I5),DAY($I5))+'Set-up'!$E$11))+1),0),IF(LEFT($AE5,1)="D",MaxPeriod,$AG5)),0) -> 0 | AN5: =IF('Set-up'!$E$9="Daily",MIN(MAX(((IF($M5="-",$J$2-1,MIN($J$2-1,$M5-'Set-up'!$E$13))-(DATE(YEAR($I5)+$AJ5,MONTH($I5),DAY($I5))+'Set-up'!$E$11))+1),0),IF(LEFT($AE5,1)="D",MaxPeriod,$AG5)),0) -> 0 | AO5: =IF('Set-up'!$E$9="Daily",MIN(MAX(((IF($M5="-",0,$M5-'Set-up'!$E$13)-(DATE(YEAR($I5)+$AK5,MONTH($I5),DAY($I5))+'Set-up'!$E$11))+1),0),IF(LEFT($AE5,1)="D",MaxPeriod,$AG5)),0) -> 0 | AP5: =IF('Set-up'!$E$9="Daily",DATE(YEAR($I5)+$AH5+1,MONTH($I5),DAY($I5))-DATE(YEAR($I5)+$AH5,MONTH($I5),DAY($I5)),0) -> 0 | AQ5: =IF('Set-up'!$E$9="Daily",DATE(YEAR($I5)+$AI5+1,MONTH($I5),DAY($I5))-DATE(YEAR($I5)+$AI5,MONTH($I5),DAY($I5)),0) -> 0 | AR5: =IF('Set-up'!$E$9="Daily",DATE(YEAR($I5)+$AJ5+1,MONTH($I5),DAY($I5))-DATE(YEAR($I5)+$AJ5,MONTH($I5),DAY($I5)),0) -> 0 | AS5: =IF('Set-up'!$E$9="Daily",DATE(YEAR($I5)+$AK5+1,MONTH($I5),DAY($I5))-DATE(YEAR($I5)+$AK5,MONTH($I5),DAY($I5)),0) -> 0
A6: PP-00001 | B6: 87978921 | C6: Aquino V40 X 1 (Melda control) | D6: Owned | E6: PPM01 | F6: SL | G6: =IF(COUNTIF(AssetCode,$A6)>1,"E1",IF(ISNA(VLOOKUP($E6,CatAll,1,0))=TRUE,"E2",IF($I6="Add!","E10","-"))) -> - | H6: PM | I6: =IF(SUMIFS(TransIDDate,TransAsset,$A6,TransType,"ACQ")=0,"Add!",SUMIFS(TransIDDate,TransAsset,$A6,TransType,"ACQ")) -> 2015-07-20 | J6: 80000 | K6: 5 | L6: 0 | M6: =IF(SUMIFS(TransIDDate,TransAsset,$A6,TransType,"DIS")=0,"-",IF(SUMIFS(TransIDDate,TransAsset,$A6,TransType,"DIS")<=$I$2,SUMIFS(TransIDDate,TransAsset,$A6,TransType,"DIS"),"-")) -> - | N6: =IF($M6<=$I$2,SUMIFS(TransProceeds,TransAsset,$A6,TransType,"DIS"),0) -> 0 | O6: =IF(AND($M6<>"-",$M6<$H$2),0,SUMIFS(TransAmount,TransAsset,$A6,TransIDDate,"<"&$H$2,TransType,"ACQ")) -> 80000 | P6: 0 | Q6: 0 | R6: =IF(ROUND(SUM(O6:Q6),2)=0,0,SUM(O6:Q6)) -> 80000 | S6: =IF(AND($M6<>"-",$M6<$H$2),0,IF($K6=0,0,IF(LEFT($AE6,1)="D",(($J6-$L6)*(1-((1-$AD6)^$AI6)))+(($J6-$L6)*(((1-$AD6)^$AI6)-((1-$AD6)^($AI6+1)))*IF('Set-up'!$E$9="Monthly",($AA6-($AI6*12))/12,$AM6/$AQ6)),($J6-$L6)/$AG6*$AA6))) -> 74666.66667 | T6: =IF($K6=0,0,IF(LEFT($AE6,1)="D",((($J6-$L6)*(1-((1-$AD6)^$AH6)))+(($J6-$L6)*(((1-$AD6)^$AH6)-((1-$AD6)^($AH6+1)))*IF('Set-up'!$E$9="Monthly",($Z6-($AH6*12))/12,$AL6/$AP6)))-(($J6-$L6)*(1-((1-$AD6)^$AI6)))-(($J6-$L6)*(((1-$AD6)^$AI6)-((1-$AD6)^($AI6+1)))*IF('Set-up'!$E$9="Monthly",($AA6-($AI6*12))/12,$AM6/$AQ6)),(($J6-$L6)/$AG6*$Z6)-(($J6-$L6)/$AG6*$AA6))) -> 5333.333333 | U6: =-IF(AND($M6>=$H$2,$M6<=$I$2),IF(LEFT($AE6,1)="D",(($J6-$L6)*(1-((1-$AD6)^$AK6)))+(($J6-$L6)*(((1-$AD6)^$AK6)-((1-$AD6)^($AK6+1)))*IF('Set-up'!$E$9="Monthly",($AC6-($AK6*12))/12,$AO6/$AS6)),IF($K6=0,0,($J6-$L6)/$AG6*$AC6)),0) -> 0 | V6: =IF(ROUND(SUM(S6:U6),2)=0,0,SUM(S6:U6)) -> 80000 | W6: =IF(ROUND(SUM(R6,-V6),2)=0,0,SUM(R6,-V6)) -> 0 | X6: =IF(AND($M6>=$H$2,$M6<=$I$2),N6+(Q6-U6),0) -> 0 | Y6: =IF($K6=0,0,IF(LEFT($AE6,1)="D",((($J6-$L6)*(1-((1-$AD6)^$AH6)))+(($J6-$L6)*(((1-$AD6)^$AH6)-((1-$AD6)^($AH6+1)))*IF('Set-up'!$E$9="Monthly",($Z6-($AH6*12))/12,$AL6/$AP6)))-(($J6-$L6)*(1-((1-$AD6)^$AJ6)))-(($J6-$L6)*(((1-$AD6)^$AJ6)-((1-$AD6)^($AJ6+1)))*IF('Set-up'!$E$9="Monthly",($AB6-($AJ6*12))/12,$AN6/$AR6)),(($J6-$L6)/$AG6*$Z6)-(($J6-$L6)/$AG6*$AB6))) -> 0 | Z6: =IF('Set-up'!$E$9="Daily",MIN(MAX(((IF($M6="-",$I$2,MIN($I$2,$M6-'Set-up'!$E$13))-(($I6+'Set-up'!$E$11)))+1),0),IF(LEFT($AE6,1)="D",MaxPeriod,$AG6)),MIN(MAX(((IF($M6="-",((YEAR($I$2)*12)+MONTH($I$2)),MIN(((YEAR($I$2)*12)+MONTH($I$2)),((YEAR($M6)*12)+MONTH($M6)-'Set-up'!$E$13)))-(((YEAR($I6)*12)+MONTH($I6)+'Set-up'!$E$11)))+1),0),IF(LEFT($AE6,1)="D",MaxPeriod,$AG6))) -> 60 | AA6: =IF('Set-up'!$E$9="Daily",MIN(MAX(((IF($M6="-",$H$2-1,MIN($H$2-1,$M6-'Set-up'!$E$13))-($I6+'Set-up'!$E$11))+1),0),IF(LEFT($AE6,1)="D",MaxPeriod,$AG6)),MIN(MAX(((IF($M6="-",((YEAR($H$2)*12)+MONTH($H$2)-1),MIN(((YEAR($H$2)*12)+MONTH($H$2)-1),((YEAR($M6)*12)+MONTH($M6)-'Set-up'!$E$13)))-(((YEAR($I6)*12)+MONTH($I6)+'Set-up'!$E$11)))+1),0),IF(LEFT($AE6,1)="D",MaxPeriod,$AG6))) -> 56 | AB6: =IF('Set-up'!$E$9="Daily",MIN(MAX(((IF($M6="-",$J$2-1,MIN($J$2-1,$M6-'Set-up'!$E$13))-($I6+'Set-up'!$E$11))+1),0),IF(LEFT($AE6,1)="D",MaxPeriod,$AG6)),MIN(MAX(((IF($M6="-",((YEAR($J$2)*12)+MONTH($J$2)-1),MIN(((YEAR($J$2)*12)+MONTH($J$2)-1),((YEAR($M6)*12)+MONTH($M6)-'Set-up'!$E$13)))-(((YEAR($I6)*12)+MONTH($I6)+'Set-up'!$E$11)))+1),0),IF(LEFT($AE6,1)="D",MaxPeriod,$AG6))) -> 60 | AC6: =IF('Set-up'!$E$9="Daily",MIN(MAX(((IF($M6="-",0,$M6-'Set-up'!$E$13)-($I6+'Set-up'!$E$11))+1),0),IF(LEFT($AE6,1)="D",MaxPeriod,$AG6)),MIN(MAX(((IF($M6="-",0,((YEAR($M6)*12)+MONTH($M6)-'Set-up'!$E$13))-(((YEAR($I6)*12)+MONTH($I6)+'Set-up'!$E$11)))+1),0),IF(LEFT($AE6,1)="D",MaxPeriod,$AG6))) -> 0 | AD6: 0 | AE6: =IF(AD6=1,"SL",F6) -> SL | AF6: =IF(AND($F6="DDV",$AE6="SL",$K6>1),2,1) -> 1 | AG6: =IF('Set-up'!$E$9="Daily",(DATE(YEAR($I6)+$K6+(1-$AF6),MONTH($I6),DAY($I6))+'Set-up'!$E$11)-($I6+'Set-up'!$E$11),$K6*12) -> 60 | AH6: =ROUNDDOWN(MIN(MAX(((IF($M6="-",((YEAR($I$2)*12)+MONTH($I$2)),MIN(((YEAR($I$2)*12)+MONTH($I$2)),((YEAR($M6)*12)+MONTH($M6)-'Set-up'!$E$13)))-(((YEAR($I6)*12)+MONTH($I6)+'Set-up'!$E$11)))),0),IF(LEFT($AE6,1)="D",MaxPeriod,$AG6))/12,0) -> 5 | AI6: =ROUNDDOWN(MIN(MAX(((IF($M6="-",((YEAR($H$2)*12)+MONTH($H$2)-1),MIN(((YEAR($H$2)*12)+MONTH($H$2)-1),((YEAR($M6)*12)+MONTH($M6)-'Set-up'!$E$13)))-(((YEAR($I6)*12)+MONTH($I6)+'Set-up'!$E$11)))),0),IF(LEFT($AE6,1)="D",MaxPeriod,$AG6))/12,0) -> 4 | AJ6: =ROUNDDOWN(MIN(MAX(((IF($M6="-",((YEAR($J$2)*12)+MONTH($J$2)-1),MIN(((YEAR($J$2)*12)+MONTH($J$2)-1),((YEAR($M6)*12)+MONTH($M6)-'Set-up'!$E$13)))-(((YEAR($I6)*12)+MONTH($I6)+'Set-up'!$E$11)))),0),IF(LEFT($AE6,1)="D",MaxPeriod,$AG6))/12,0) -> 5 | AK6: =ROUNDDOWN(MIN(MAX(((IF($M6="-",0,((YEAR($M6)*12)+MONTH($M6)-'Set-up'!$E$13))-(((YEAR($I6)*12)+MONTH($I6)+'Set-up'!$E$11)))),0),IF(LEFT($AE6,1)="D",MaxPeriod,$AG6))/12,0) -> 0 | AL6: =IF('Set-up'!$E$9="Daily",MIN(MAX(((IF($M6="-",$I$2,MIN($I$2,$M6-'Set-up'!$E$13))-((DATE(YEAR($I6)+$AH6,MONTH($I6),DAY($I6))+'Set-up'!$E$11)))+1),0),IF(LEFT($AE6,1)="D",MaxPeriod,$AG6)),0) -> 0 | AM6: =IF('Set-up'!$E$9="Daily",MIN(MAX(((IF($M6="-",$H$2-1,MIN($H$2-1,$M6-'Set-up'!$E$13))-(DATE(YEAR($I6)+$AI6,MONTH($I6),DAY($I6))+'Set-up'!$E$11))+1),0),IF(LEFT($AE6,1)="D",MaxPeriod,$AG6)),0) -> 0 | AN6: =IF('Set-up'!$E$9="Daily",MIN(MAX(((IF($M6="-",$J$2-1,MIN($J$2-1,$M6-'Set-up'!$E$13))-(DATE(YEAR($I6)+$AJ6,MONTH($I6),DAY($I6))+'Set-up'!$E$11))+1),0),IF(LEFT($AE6,1)="D",MaxPeriod,$AG6)),0) -> 0 | AO6: =IF('Set-up'!$E$9="Daily",MIN(MAX(((IF($M6="-",0,$M6-'Set-up'!$E$13)-(DATE(YEAR($I6)+$AK6,MONTH($I6),DAY($I6))+'Set-up'!$E$11))+1),0),IF(LEFT($AE6,1)="D",MaxPeriod,$AG6)),0) -> 0 | AP6: =IF('Set-up'!$E$9="Daily",DATE(YEAR($I6)+$AH6+1,MONTH($I6),DAY($I6))-DATE(YEAR($I6)+$AH6,MONTH($I6),DAY($I6)),0) -> 0 | AQ6: =IF('Set-up'!$E$9="Daily",DATE(YEAR($I6)+$AI6+1,MONTH($I6),DAY($I6))-DATE(YEAR($I6)+$AI6,MONTH($I6),DAY($I6)),0) -> 0 | AR6: =IF('Set-up'!$E$9="Daily",DATE(YEAR($I6)+$AJ6+1,MONTH($I6),DAY($I6))-DATE(YEAR($I6)+$AJ6,MONTH($I6),DAY($I6)),0) -> 0 | AS6: =IF('Set-up'!$E$9="Daily",DATE(YEAR($I6)+$AK6+1,MONTH($I6),DAY($I6))-DATE(YEAR($I6)+$AK6,MONTH($I6),DAY($I6)),0) -> 0
A7: PP-00002 | B7: 87879827 | C7: Aquino LTC-10 x 1 | D7: Owned | E7: PPM01 | F7: SL | G7: =IF(COUNTIF(AssetCode,$A7)>1,"E1",IF(ISNA(VLOOKUP($E7,CatAll,1,0))=TRUE,"E2",IF($I7="Add!","E10","-"))) -> - | H7: PM | I7: =IF(SUMIFS(TransIDDate,TransAsset,$A7,TransType,"ACQ")=0,"Add!",SUMIFS(TransIDDate,TransAsset,$A7,TransType,"ACQ")) -> 2015-07-20 | J7: 200000 | K7: 5 | L7: 0 | M7: =IF(SUMIFS(TransIDDate,TransAsset,$A7,TransType,"DIS")=0,"-",IF(SUMIFS(TransIDDate,TransAsset,$A7,TransType,"DIS")<=$I$2,SUMIFS(TransIDDate,TransAsset,$A7,TransType,"DIS"),"-")) -> - | N7: =IF($M7<=$I$2,SUMIFS(TransProceeds,TransAsset,$A7,TransType,"DIS"),0) -> 0 | O7: =IF(AND($M7<>"-",$M7<$H$2),0,SUMIFS(TransAmount,TransAsset,$A7,TransIDDate,"<"&$H$2,TransType,"ACQ")) -> 200000 | P7: 0 | Q7: 0 | R7: 200000 | S7: =IF(AND($M7<>"-",$M7<$H$2),0,IF($K7=0,0,IF(LEFT($AE7,1)="D",(($J7-$L7)*(1-((1-$AD7)^$AI7)))+(($J7-$L7)*(((1-$AD7)^$AI7)-((1-$AD7)^($AI7+1)))*IF('Set-up'!$E$9="Monthly",($AA7-($AI7*12))/12,$AM7/$AQ7)),($J7-$L7)/$AG7*$AA7))) -> 186666.6667 | T7: =IF($K7=0,0,IF(LEFT($AE7,1)="D",((($J7-$L7)*(1-((1-$AD7)^$AH7)))+(($J7-$L7)*(((1-$AD7)^$AH7)-((1-$AD7)^($AH7+1)))*IF('Set-up'!$E$9="Monthly",($Z7-($AH7*12))/12,$AL7/$AP7)))-(($J7-$L7)*(1-((1-$AD7)^$AI7)))-(($J7-$L7)*(((1-$AD7)^$AI7)-((1-$AD7)^($AI7+1)))*IF('Set-up'!$E$9="Monthly",($AA7-($AI7*12))/12,$AM7/$AQ7)),(($J7-$L7)/$AG7*$Z7)-(($J7-$L7)/$AG7*$AA7))) -> 13333.33333 | U7: =-IF(AND($M7>=$H$2,$M7<=$I$2),IF(LEFT($AE7,1)="D",(($J7-$L7)*(1-((1-$AD7)^$AK7)))+(($J7-$L7)*(((1-$AD7)^$AK7)-((1-$AD7)^($AK7+1)))*IF('Set-up'!$E$9="Monthly",($AC7-($AK7*12))/12,$AO7/$AS7)),IF($K7=0,0,($J7-$L7)/$AG7*$AC7)),0) -> 0 | V7: 200000 | W7: 0 | X7: 0 | Y7: =IF($K7=0,0,IF(LEFT($AE7,1)="D",((($J7-$L7)*(1-((1-$AD7)^$AH7)))+(($J7-$L7)*(((1-$AD7)^$AH7)-((1-$AD7)^($AH7+1)))*IF('Set-up'!$E$9="Monthly",($Z7-($AH7*12))/12,$AL7/$AP7)))-(($J7-$L7)*(1-((1-$AD7)^$AJ7)))-(($J7-$L7)*(((1-$AD7)^$AJ7)-((1-$AD7)^($AJ7+1)))*IF('Set-up'!$E$9="Monthly",($AB7-($AJ7*12))/12,$AN7/$AR7)),(($J7-$L7)/$AG7*$Z7)-(($J7-$L7)/$AG7*$AB7))) -> 0 | Z7: =IF('Set-up'!$E$9="Daily",MIN(MAX(((IF($M7="-",$I$2,MIN($I$2,$M7-'Set-up'!$E$13))-(($I7+'Set-up'!$E$11)))+1),0),IF(LEFT($AE7,1)="D",MaxPeriod,$AG7)),MIN(MAX(((IF($M7="-",((YEAR($I$2)*12)+MONTH($I$2)),MIN(((YEAR($I$2)*12)+MONTH($I$2)),((YEAR($M7)*12)+MONTH($M7)-'Set-up'!$E$13)))-(((YEAR($I7)*12)+MONTH($I7)+'Set-up'!$E$11)))+1),0),IF(LEFT($AE7,1)="D",MaxPeriod,$AG7))) -> 60 | AA7: =IF('Set-up'!$E$9="Daily",MIN(MAX(((IF($M7="-",$H$2-1,MIN($H$2-1,$M7-'Set-up'!$E$13))-($I7+'Set-up'!$E$11))+1),0),IF(LEFT($AE7,1)="D",MaxPeriod,$AG7)),MIN(MAX(((IF($M7="-",((YEAR($H$2)*12)+MONTH($H$2)-1),MIN(((YEAR($H$2)*12)+MONTH($H$2)-1),((YEAR($M7)*12)+MONTH($M7)-'Set-up'!$E$13)))-(((YEAR($I7)*12)+MONTH($I7)+'Set-up'!$E$11)))+1),0),IF(LEFT($AE7,1)="D",MaxPeriod,$AG7))) -> 56 | AB7: =IF('Set-up'!$E$9="Daily",MIN(MAX(((IF($M7="-",$J$2-1,MIN($J$2-1,$M7-'Set-up'!$E$13))-($I7+'Set-up'!$E$11))+1),0),IF(LEFT($AE7,1)="D",MaxPeriod,$AG7)),MIN(MAX(((IF($M7="-",((YEAR($J$2)*12)+MONTH($J$2)-1),MIN(((YEAR($J$2)*12)+MONTH($J$2)-1),((YEAR($M7)*12)+MONTH($M7)-'Set-up'!$E$13)))-(((YEAR($I7)*12)+MONTH($I7)+'Set-up'!$E$11)))+1),0),IF(LEFT($AE7,1)="D",MaxPeriod,$AG7))) -> 60 | AC7: =IF('Set-up'!$E$9="Daily",MIN(MAX(((IF($M7="-",0,$M7-'Set-up'!$E$13)-($I7+'Set-up'!$E$11))+1),0),IF(LEFT($AE7,1)="D",MaxPeriod,$AG7)),MIN(MAX(((IF($M7="-",0,((YEAR($M7)*12)+MONTH($M7)-'Set-up'!$E$13))-(((YEAR($I7)*12)+MONTH($I7)+'Set-up'!$E$11)))+1),0),IF(LEFT($AE7,1)="D",MaxPeriod,$AG7))) -> 0 | AD7: 0 | AE7: SL | AF7: 1 | AG7: =IF('Set-up'!$E$9="Daily",(DATE(YEAR($I7)+$K7+(1-$AF7),MONTH($I7),DAY($I7))+'Set-up'!$E$11)-($I7+'Set-up'!$E$11),$K7*12) -> 60 | AH7: =ROUNDDOWN(MIN(MAX(((IF($M7="-",((YEAR($I$2)*12)+MONTH($I$2)),MIN(((YEAR($I$2)*12)+MONTH($I$2)),((YEAR($M7)*12)+MONTH($M7)-'Set-up'!$E$13)))-(((YEAR($I7)*12)+MONTH($I7)+'Set-up'!$E$11)))),0),IF(LEFT($AE7,1)="D",MaxPeriod,$AG7))/12,0) -> 5 | AI7: =ROUNDDOWN(MIN(MAX(((IF($M7="-",((YEAR($H$2)*12)+MONTH($H$2)-1),MIN(((YEAR($H$2)*12)+MONTH($H$2)-1),((YEAR($M7)*12)+MONTH($M7)-'Set-up'!$E$13)))-(((YEAR($I7)*12)+MONTH($I7)+'Set-up'!$E$11)))),0),IF(LEFT($AE7,1)="D",MaxPeriod,$AG7))/12,0) -> 4 | AJ7: =ROUNDDOWN(MIN(MAX(((IF($M7="-",((YEAR($J$2)*12)+MONTH($J$2)-1),MIN(((YEAR($J$2)*12)+MONTH($J$2)-1),((YEAR($M7)*12)+MONTH($M7)-'Set-up'!$E$13)))-(((YEAR($I7)*12)+MONTH($I7)+'Set-up'!$E$11)))),0),IF(LEFT($AE7,1)="D",MaxPeriod,$AG7))/12,0) -> 5 | AK7: =ROUNDDOWN(MIN(MAX(((IF($M7="-",0,((YEAR($M7)*12)+MONTH($M7)-'Set-up'!$E$13))-(((YEAR($I7)*12)+MONTH($I7)+'Set-up'!$E$11)))),0),IF(LEFT($AE7,1)="D",MaxPeriod,$AG7))/12,0) -> 0 | AL7: =IF('Set-up'!$E$9="Daily",MIN(MAX(((IF($M7="-",$I$2,MIN($I$2,$M7-'Set-up'!$E$13))-((DATE(YEAR($I7)+$AH7,MONTH($I7),DAY($I7))+'Set-up'!$E$11)))+1),0),IF(LEFT($AE7,1)="D",MaxPeriod,$AG7)),0) -> 0 | AM7: =IF('Set-up'!$E$9="Daily",MIN(MAX(((IF($M7="-",$H$2-1,MIN($H$2-1,$M7-'Set-up'!$E$13))-(DATE(YEAR($I7)+$AI7,MONTH($I7),DAY($I7))+'Set-up'!$E$11))+1),0),IF(LEFT($AE7,1)="D",MaxPeriod,$AG7)),0) -> 0 | AN7: =IF('Set-up'!$E$9="Daily",MIN(MAX(((IF($M7="-",$J$2-1,MIN($J$2-1,$M7-'Set-up'!$E$13))-(DATE(YEAR($I7)+$AJ7,MONTH($I7),DAY($I7))+'Set-up'!$E$11))+1),0),IF(LEFT($AE7,1)="D",MaxPeriod,$AG7)),0) -> 0 | AO7: =IF('Set-up'!$E$9="Daily",MIN(MAX(((IF($M7="-",0,$M7-'Set-up'!$E$13)-(DATE(YEAR($I7)+$AK7,MONTH($I7),DAY($I7))+'Set-up'!$E$11))+1),0),IF(LEFT($AE7,1)="D",MaxPeriod,$AG7)),0) -> 0 | AP7: =IF('Set-up'!$E$9="Daily",DATE(YEAR($I7)+$AH7+1,MONTH($I7),DAY($I7))-DATE(YEAR($I7)+$AH7,MONTH($I7),DAY($I7)),0) -> 0 | AQ7: =IF('Set-up'!$E$9="Daily",DATE(YEAR($I7)+$AI7+1,MONTH($I7),DAY($I7))-DATE(YEAR($I7)+$AI7,MONTH($I7),DAY($I7)),0) -> 0 | AR7: =IF('Set-up'!$E$9="Daily",DATE(YEAR($I7)+$AJ7+1,MONTH($I7),DAY($I7))-DATE(YEAR($I7)+$AJ7,MONTH($I7),DAY($I7)),0) -> 0 | AS7: =IF('Set-up'!$E$9="Daily",DATE(YEAR($I7)+$AK7+1,MONTH($I7),DAY($I7))-DATE(YEAR($I7)+$AK7,MONTH($I7),DAY($I7)),0) -> 0
A8: PP-00003 | B8: 98099812 | C8: V25 Machining centre x 1 | D8: Owned | E8: PPM01 | F8: SL | G8: =IF(COUNTIF(AssetCode,$A8)>1,"E1",IF(ISNA(VLOOKUP($E8,CatAll,1,0))=TRUE,"E2",IF($I8="Add!","E10","-"))) -> - | H8: PM | I8: =IF(SUMIFS(TransIDDate,TransAsset,$A8,TransType,"ACQ")=0,"Add!",SUMIFS(TransIDDate,TransAsset,$A8,TransType,"ACQ")) -> 2015-07-20 | J8: 250000 | K8: 5 | L8: 0 | M8: =IF(SUMIFS(TransIDDate,TransAsset,$A8,TransType,"DIS")=0,"-",IF(SUMIFS(TransIDDate,TransAsset,$A8,TransType,"DIS")<=$I$2,SUMIFS(TransIDDate,TransAsset,$A8,TransType,"DIS"),"-")) -> - | N8: =IF($M8<=$I$2,SUMIFS(TransProceeds,TransAsset,$A8,TransType,"DIS"),0) -> 0 | O8: =IF(AND($M8<>"-",$M8<$H$2),0,SUMIFS(TransAmount,TransAsset,$A8,TransIDDate,"<"&$H$2,TransType,"ACQ")) -> 250000 | P8: 0 | Q8: 0 | R8: 250000 | S8: =IF(AND($M8<>"-",$M8<$H$2),0,IF($K8=0,0,IF(LEFT($AE8,1)="D",(($J8-$L8)*(1-((1-$AD8)^$AI8)))+(($J8-$L8)*(((1-$AD8)^$AI8)-((1-$AD8)^($AI8+1)))*IF('Set-up'!$E$9="Monthly",($AA8-($AI8*12))/12,$AM8/$AQ8)),($J8-$L8)/$AG8*$AA8))) -> 233333.3333 | T8: =IF($K8=0,0,IF(LEFT($AE8,1)="D",((($J8-$L8)*(1-((1-$AD8)^$AH8)))+(($J8-$L8)*(((1-$AD8)^$AH8)-((1-$AD8)^($AH8+1)))*IF('Set-up'!$E$9="Monthly",($Z8-($AH8*12))/12,$AL8/$AP8)))-(($J8-$L8)*(1-((1-$AD8)^$AI8)))-(($J8-$L8)*(((1-$AD8)^$AI8)-((1-$AD8)^($AI8+1)))*IF('Set-up'!$E$9="Monthly",($AA8-($AI8*12))/12,$AM8/$AQ8)),(($J8-$L8)/$AG8*$Z8)-(($J8-$L8)/$AG8*$AA8))) -> 16666.66667 | U8: =-IF(AND($M8>=$H$2,$M8<=$I$2),IF(LEFT($AE8,1)="D",(($J8-$L8)*(1-((1-$AD8)^$AK8)))+(($J8-$L8)*(((1-$AD8)^$AK8)-((1-$AD8)^($AK8+1)))*IF('Set-up'!$E$9="Monthly",($AC8-($AK8*12))/12,$AO8/$AS8)),IF($K8=0,0,($J8-$L8)/$AG8*$AC8)),0) -> 0 | V8: 250000 | W8: 0 | X8: 0 | Y8: =IF($K8=0,0,IF(LEFT($AE8,1)="D",((($J8-$L8)*(1-((1-$AD8)^$AH8)))+(($J8-$L8)*(((1-$AD8)^$AH8)-((1-$AD8)^($AH8+1)))*IF('Set-up'!$E$9="Monthly",($Z8-($AH8*12))/12,$AL8/$AP8)))-(($J8-$L8)*(1-((1-$AD8)^$AJ8)))-(($J8-$L8)*(((1-$AD8)^$AJ8)-((1-$AD8)^($AJ8+1)))*IF('Set-up'!$E$9="Monthly",($AB8-($AJ8*12))/12,$AN8/$AR8)),(($J8-$L8)/$AG8*$Z8)-(($J8-$L8)/$AG8*$AB8))) -> 0 | Z8: =IF('Set-up'!$E$9="Daily",MIN(MAX(((IF($M8="-",$I$2,MIN($I$2,$M8-'Set-up'!$E$13))-(($I8+'Set-up'!$E$11)))+1),0),IF(LEFT($AE8,1)="D",MaxPeriod,$AG8)),MIN(MAX(((IF($M8="-",((YEAR($I$2)*12)+MONTH($I$2)),MIN(((YEAR($I$2)*12)+MONTH($I$2)),((YEAR($M8)*12)+MONTH($M8)-'Set-up'!$E$13)))-(((YEAR($I8)*12)+MONTH($I8)+'Set-up'!$E$11)))+1),0),IF(LEFT($AE8,1)="D",MaxPeriod,$AG8))) -> 60 | AA8: =IF('Set-up'!$E$9="Daily",MIN(MAX(((IF($M8="-",$H$2-1,MIN($H$2-1,$M8-'Set-up'!$E$13))-($I8+'Set-up'!$E$11))+1),0),IF(LEFT($AE8,1)="D",MaxPeriod,$AG8)),MIN(MAX(((IF($M8="-",((YEAR($H$2)*12)+MONTH($H$2)-1),MIN(((YEAR($H$2)*12)+MONTH($H$2)-1),((YEAR($M8)*12)+MONTH($M8)-'Set-up'!$E$13)))-(((YEAR($I8)*12)+MONTH($I8)+'Set-up'!$E$11)))+1),0),IF(LEFT($AE8,1)="D",MaxPeriod,$AG8))) -> 56 | AB8: =IF('Set-up'!$E$9="Daily",MIN(MAX(((IF($M8="-",$J$2-1,MIN($J$2-1,$M8-'Set-up'!$E$13))-($I8+'Set-up'!$E$11))+1),0),IF(LEFT($AE8,1)="D",MaxPeriod,$AG8)),MIN(MAX(((IF($M8="-",((YEAR($J$2)*12)+MONTH($J$2)-1),MIN(((YEAR($J$2)*12)+MONTH($J$2)-1),((YEAR($M8)*12)+MONTH($M8)-'Set-up'!$E$13)))-(((YEAR($I8)*12)+MONTH($I8)+'Set-up'!$E$11)))+1),0),IF(LEFT($AE8,1)="D",MaxPeriod,$AG8))) -> 60 | AC8: =IF('Set-up'!$E$9="Daily",MIN(MAX(((IF($M8="-",0,$M8-'Set-up'!$E$13)-($I8+'Set-up'!$E$11))+1),0),IF(LEFT($AE8,1)="D",MaxPeriod,$AG8)),MIN(MAX(((IF($M8="-",0,((YEAR($M8)*12)+MONTH($M8)-'Set-up'!$E$13))-(((YEAR($I8)*12)+MONTH($I8)+'Set-up'!$E$11)))+1),0),IF(LEFT($AE8,1)="D",MaxPeriod,$AG8))) -> 0 | AD8: 0 | AE8: SL | AF8: 1 | AG8: =IF('Set-up'!$E$9="Daily",(DATE(YEAR($I8)+$K8+(1-$AF8),MONTH($I8),DAY($I8))+'Set-up'!$E$11)-($I8+'Set-up'!$E$11),$K8*12) -> 60 | AH8: =ROUNDDOWN(MIN(MAX(((IF($M8="-",((YEAR($I$2)*12)+MONTH($I$2)),MIN(((YEAR($I$2)*12)+MONTH($I$2)),((YEAR($M8)*12)+MONTH($M8)-'Set-up'!$E$13)))-(((YEAR($I8)*12)+MONTH($I8)+'Set-up'!$E$11)))),0),IF(LEFT($AE8,1)="D",MaxPeriod,$AG8))/12,0) -> 5 | AI8: =ROUNDDOWN(MIN(MAX(((IF($M8="-",((YEAR($H$2)*12)+MONTH($H$2)-1),MIN(((YEAR($H$2)*12)+MONTH($H$2)-1),((YEAR($M8)*12)+MONTH($M8)-'Set-up'!$E$13)))-(((YEAR($I8)*12)+MONTH($I8)+'Set-up'!$E$11)))),0),IF(LEFT($AE8,1)="D",MaxPeriod,$AG8))/12,0) -> 4 | AJ8: =ROUNDDOWN(MIN(MAX(((IF($M8="-",((YEAR($J$2)*12)+MONTH($J$2)-1),MIN(((YEAR($J$2)*12)+MONTH($J$2)-1),((YEAR($M8)*12)+MONTH($M8)-'Set-up'!$E$13)))-(((YEAR($I8)*12)+MONTH($I8)+'Set-up'!$E$11)))),0),IF(LEFT($AE8,1)="D",MaxPeriod,$AG8))/12,0) -> 5 | AK8: =ROUNDDOWN(MIN(MAX(((IF($M8="-",0,((YEAR($M8)*12)+MONTH($M8)-'Set-up'!$E$13))-(((YEAR($I8)*12)+MONTH($I8)+'Set-up'!$E$11)))),0),IF(LEFT($AE8,1)="D",MaxPeriod,$AG8))/12,0) -> 0 | AL8: =IF('Set-up'!$E$9="Daily",MIN(MAX(((IF($M8="-",$I$2,MIN($I$2,$M8-'Set-up'!$E$13))-((DATE(YEAR($I8)+$AH8,MONTH($I8),DAY($I8))+'Set-up'!$E$11)))+1),0),IF(LEFT($AE8,1)="D",MaxPeriod,$AG8)),0) -> 0 | AM8: =IF('Set-up'!$E$9="Daily",MIN(MAX(((IF($M8="-",$H$2-1,MIN($H$2-1,$M8-'Set-up'!$E$13))-(DATE(YEAR($I8)+$AI8,MONTH($I8),DAY($I8))+'Set-up'!$E$11))+1),0),IF(LEFT($AE8,1)="D",MaxPeriod,$AG8)),0) -> 0 | AN8: =IF('Set-up'!$E$9="Daily",MIN(MAX(((IF($M8="-",$J$2-1,MIN($J$2-1,$M8-'Set-up'!$E$13))-(DATE(YEAR($I8)+$AJ8,MONTH($I8),DAY($I8))+'Set-up'!$E$11))+1),0),IF(LEFT($AE8,1)="D",MaxPeriod,$AG8)),0) -> 0 | AO8: =IF('Set-up'!$E$9="Daily",MIN(MAX(((IF($M8="-",0,$M8-'Set-up'!$E$13)-(DATE(YEAR($I8)+$AK8,MONTH($I8),DAY($I8))+'Set-up'!$E$11))+1),0),IF(LEFT($AE8,1)="D",MaxPeriod,$AG8)),0) -> 0 | AP8: =IF('Set-up'!$E$9="Daily",DATE(YEAR($I8)+$AH8+1,MONTH($I8),DAY($I8))-DATE(YEAR($I8)+$AH8,MONTH($I8),DAY($I8)),0) -> 0 | AQ8: =IF('Set-up'!$E$9="Daily",DATE(YEAR($I8)+$AI8+1,MONTH($I8),DAY($I8))-DATE(YEAR($I8)+$AI8,MONTH($I8),DAY($I8)),0) -> 0 | AR8: =IF('Set-up'!$E$9="Daily",DATE(YEAR($I8)+$AJ8+1,MONTH($I8),DAY($I8))-DATE(YEAR($I8)+$AJ8,MONTH($I8),DAY($I8)),0) -> 0 | AS8: =IF('Set-up'!$E$9="Daily",DATE(YEAR($I8)+$AK8+1,MONTH($I8),DAY($I8))-DATE(YEAR($I8)+$AK8,MONTH($I8),DAY($I8)),0) -> 0
A9: PP-00004 | B9: 89098801 | C9: Supertech Grinder Mod G30A-50 x1 | D9: Owned | E9: PPM01 | F9: SL | G9: =IF(COUNTIF(AssetCode,$A9)>1,"E1",IF(ISNA(VLOOKUP($E9,CatAll,1,0))=TRUE,"E2",IF($I9="Add!","E10","-"))) -> - | H9: PM | I9: =IF(SUMIFS(TransIDDate,TransAsset,$A9,TransType,"ACQ")=0,"Add!",SUMIFS(TransIDDate,TransAsset,$A9,TransType,"ACQ")) -> 2015-07-20 | J9: 915000 | K9: 5 | L9: 0 | M9: =IF(SUMIFS(TransIDDate,TransAsset,$A9,TransType,"DIS")=0,"-",IF(SUMIFS(TransIDDate,TransAsset,$A9,TransType,"DIS")<=$I$2,SUMIFS(TransIDDate,TransAsset,$A9,TransType,"DIS"),"-")) -> - | N9: =IF($M9<=$I$2,SUMIFS(TransProceeds,TransAsset,$A9,TransType,"DIS"),0) -> 0 | O9: =IF(AND($M9<>"-",$M9<$H$2),0,SUMIFS(TransAmount,TransAsset,$A9,TransIDDate,"<"&$H$2,TransType,"ACQ")) -> 915000 | P9: 0 | Q9: 0 | R9: 915000 | S9: =IF(AND($M9<>"-",$M9<$H$2),0,IF($K9=0,0,IF(LEFT($AE9,1)="D",(($J9-$L9)*(1-((1-$AD9)^$AI9)))+(($J9-$L9)*(((1-$AD9)^$AI9)-((1-$AD9)^($AI9+1)))*IF('Set-up'!$E$9="Monthly",($AA9-($AI9*12))/12,$AM9/$AQ9)),($J9-$L9)/$AG9*$AA9))) -> 854000 | T9: =IF($K9=0,0,IF(LEFT($AE9,1)="D",((($J9-$L9)*(1-((1-$AD9)^$AH9)))+(($J9-$L9)*(((1-$AD9)^$AH9)-((1-$AD9)^($AH9+1)))*IF('Set-up'!$E$9="Monthly",($Z9-($AH9*12))/12,$AL9/$AP9)))-(($J9-$L9)*(1-((1-$AD9)^$AI9)))-(($J9-$L9)*(((1-$AD9)^$AI9)-((1-$AD9)^($AI9+1)))*IF('Set-up'!$E$9="Monthly",($AA9-($AI9*12))/12,$AM9/$AQ9)),(($J9-$L9)/$AG9*$Z9)-(($J9-$L9)/$AG9*$AA9))) -> 61000 | U9: =-IF(AND($M9>=$H$2,$M9<=$I$2),IF(LEFT($AE9,1)="D",(($J9-$L9)*(1-((1-$AD9)^$AK9)))+(($J9-$L9)*(((1-$AD9)^$AK9)-((1-$AD9)^($AK9+1)))*IF('Set-up'!$E$9="Monthly",($AC9-($AK9*12))/12,$AO9/$AS9)),IF($K9=0,0,($J9-$L9)/$AG9*$AC9)),0) -> 0 | V9: 915000 | W9: 0 | X9: 0 | Y9: =IF($K9=0,0,IF(LEFT($AE9,1)="D",((($J9-$L9)*(1-((1-$AD9)^$AH9)))+(($J9-$L9)*(((1-$AD9)^$AH9)-((1-$AD9)^($AH9+1)))*IF('Set-up'!$E$9="Monthly",($Z9-($AH9*12))/12,$AL9/$AP9)))-(($J9-$L9)*(1-((1-$AD9)^$AJ9)))-(($J9-$L9)*(((1-$AD9)^$AJ9)-((1-$AD9)^($AJ9+1)))*IF('Set-up'!$E$9="Monthly",($AB9-($AJ9*12))/12,$AN9/$AR9)),(($J9-$L9)/$AG9*$Z9)-(($J9-$L9)/$AG9*$AB9))) -> 0 | Z9: =IF('Set-up'!$E$9="Daily",MIN(MAX(((IF($M9="-",$I$2,MIN($I$2,$M9-'Set-up'!$E$13))-(($I9+'Set-up'!$E$11)))+1),0),IF(LEFT($AE9,1)="D",MaxPeriod,$AG9)),MIN(MAX(((IF($M9="-",((YEAR($I$2)*12)+MONTH($I$2)),MIN(((YEAR($I$2)*12)+MONTH($I$2)),((YEAR($M9)*12)+MONTH($M9)-'Set-up'!$E$13)))-(((YEAR($I9)*12)+MONTH($I9)+'Set-up'!$E$11)))+1),0),IF(LEFT($AE9,1)="D",MaxPeriod,$AG9))) -> 60 | AA9: =IF('Set-up'!$E$9="Daily",MIN(MAX(((IF($M9="-",$H$2-1,MIN($H$2-1,$M9-'Set-up'!$E$13))-($I9+'Set-up'!$E$11))+1),0),IF(LEFT($AE9,1)="D",MaxPeriod,$AG9)),MIN(MAX(((IF($M9="-",((YEAR($H$2)*12)+MONTH($H$2)-1),MIN(((YEAR($H$2)*12)+MONTH($H$2)-1),((YEAR($M9)*12)+MONTH($M9)-'Set-up'!$E$13)))-(((YEAR($I9)*12)+MONTH($I9)+'Set-up'!$E$11)))+1),0),IF(LEFT($AE9,1)="D",MaxPeriod,$AG9))) -> 56 | AB9: =IF('Set-up'!$E$9="Daily",MIN(MAX(((IF($M9="-",$J$2-1,MIN($J$2-1,$M9-'Set-up'!$E$13))-($I9+'Set-up'!$E$11))+1),0),IF(LEFT($AE9,1)="D",MaxPeriod,$AG9)),MIN(MAX(((IF($M9="-",((YEAR($J$2)*12)+MONTH($J$2)-1),MIN(((YEAR($J$2)*12)+MONTH($J$2)-1),((YEAR($M9)*12)+MONTH($M9)-'Set-up'!$E$13)))-(((YEAR($I9)*12)+MONTH($I9)+'Set-up'!$E$11)))+1),0),IF(LEFT($AE9,1)="D",MaxPeriod,$AG9))) -> 60 | AC9: =IF('Set-up'!$E$9="Daily",MIN(MAX(((IF($M9="-",0,$M9-'Set-up'!$E$13)-($I9+'Set-up'!$E$11))+1),0),IF(LEFT($AE9,1)="D",MaxPeriod,$AG9)),MIN(MAX(((IF($M9="-",0,((YEAR($M9)*12)+MONTH($M9)-'Set-up'!$E$13))-(((YEAR($I9)*12)+MONTH($I9)+'Set-up'!$E$11)))+1),0),IF(LEFT($AE9,1)="D",MaxPeriod,$AG9))) -> 0 | AD9: 0 | AE9: SL | AF9: 1 | AG9: =IF('Set-up'!$E$9="Daily",(DATE(YEAR($I9)+$K9+(1-$AF9),MONTH($I9),DAY($I9))+'Set-up'!$E$11)-($I9+'Set-up'!$E$11),$K9*12) -> 60 | AH9: =ROUNDDOWN(MIN(MAX(((IF($M9="-",((YEAR($I$2)*12)+MONTH($I$2)),MIN(((YEAR($I$2)*12)+MONTH($I$2)),((YEAR($M9)*12)+MONTH($M9)-'Set-up'!$E$13)))-(((YEAR($I9)*12)+MONTH($I9)+'Set-up'!$E$11)))),0),IF(LEFT($AE9,1)="D",MaxPeriod,$AG9))/12,0) -> 5 | AI9: =ROUNDDOWN(MIN(MAX(((IF($M9="-",((YEAR($H$2)*12)+MONTH($H$2)-1),MIN(((YEAR($H$2)*12)+MONTH($H$2)-1),((YEAR($M9)*12)+MONTH($M9)-'Set-up'!$E$13)))-(((YEAR($I9)*12)+MONTH($I9)+'Set-up'!$E$11)))),0),IF(LEFT($AE9,1)="D",MaxPeriod,$AG9))/12,0) -> 4 | AJ9: =ROUNDDOWN(MIN(MAX(((IF($M9="-",((YEAR($J$2)*12)+MONTH($J$2)-1),MIN(((YEAR($J$2)*12)+MONTH($J$2)-1),((YEAR($M9)*12)+MONTH($M9)-'Set-up'!$E$13)))-(((YEAR($I9)*12)+MONTH($I9)+'Set-up'!$E$11)))),0),IF(LEFT($AE9,1)="D",MaxPeriod,$AG9))/12,0) -> 5 | AK9: =ROUNDDOWN(MIN(MAX(((IF($M9="-",0,((YEAR($M9)*12)+MONTH($M9)-'Set-up'!$E$13))-(((YEAR($I9)*12)+MONTH($I9)+'Set-up'!$E$11)))),0),IF(LEFT($AE9,1)="D",MaxPeriod,$AG9))/12,0) -> 0 | AL9: =IF('Set-up'!$E$9="Daily",MIN(MAX(((IF($M9="-",$I$2,MIN($I$2,$M9-'Set-up'!$E$13))-((DATE(YEAR($I9)+$AH9,MONTH($I9),DAY($I9))+'Set-up'!$E$11)))+1),0),IF(LEFT($AE9,1)="D",MaxPeriod,$AG9)),0) -> 0 | AM9: =IF('Set-up'!$E$9="Daily",MIN(MAX(((IF($M9="-",$H$2-1,MIN($H$2-1,$M9-'Set-up'!$E$13))-(DATE(YEAR($I9)+$AI9,MONTH($I9),DAY($I9))+'Set-up'!$E$11))+1),0),IF(LEFT($AE9,1)="D",MaxPeriod,$AG9)),0) -> 0 | AN9: =IF('Set-up'!$E$9="Daily",MIN(MAX(((IF($M9="-",$J$2-1,MIN($J$2-1,$M9-'Set-up'!$E$13))-(DATE(YEAR($I9)+$AJ9,MONTH($I9),DAY($I9))+'Set-up'!$E$11))+1),0),IF(LEFT($AE9,1)="D",MaxPeriod,$AG9)),0) -> 0 | AO9: =IF('Set-up'!$E$9="Daily",MIN(MAX(((IF($M9="-",0,$M9-'Set-up'!$E$13)-(DATE(YEAR($I9)+$AK9,MONTH($I9),DAY($I9))+'Set-up'!$E$11))+1),0),IF(LEFT($AE9,1)="D",MaxPeriod,$AG9)),0) -> 0 | AP9: =IF('Set-up'!$E$9="Daily",DATE(YEAR($I9)+$AH9+1,MONTH($I9),DAY($I9))-DATE(YEAR($I9)+$AH9,MONTH($I9),DAY($I9)),0) -> 0 | AQ9: =IF('Set-up'!$E$9="Daily",DATE(YEAR($I9)+$AI9+1,MONTH($I9),DAY($I9))-DATE(YEAR($I9)+$AI9,MONTH($I9),DAY($I9)),0) -> 0 | AR9: =IF('Set-up'!$E$9="Daily",DATE(YEAR($I9)+$AJ9+1,MONTH($I9),DAY($I9))-DATE(YEAR($I9)+$AJ9,MONTH($I9),DAY($I9)),0) -> 0 | AS9: =IF('Set-up'!$E$9="Daily",DATE(YEAR($I9)+$AK9+1,MONTH($I9),DAY($I9))-DATE(YEAR($I9)+$AK9,MONTH($I9),DAY($I9)),0) -> 0
A10: PP-00005 | B10: 90393132 | C10: Aquino V40 Cnc Mill | D10: Owned | E10: PPM01 | F10: SL | G10: =IF(COUNTIF(AssetCode,$A10)>1,"E1",IF(ISNA(VLOOKUP($E10,CatAll,1,0))=TRUE,"E2",IF($I10="Add!","E10","-"))) -> - | H10: PM | I10: =IF(SUMIFS(TransIDDate,TransAsset,$A10,TransType,"ACQ")=0,"Add!",SUMIFS(TransIDDate,TransAsset,$A10,TransType,"ACQ")) -> 2015-07-20 | J10: 500000 | K10: 5 | L10: 0 | M10: =IF(SUMIFS(TransIDDate,TransAsset,$A10,TransType,"DIS")=0,"-",IF(SUMIFS(TransIDDate,TransAsset,$A10,TransType,"DIS")<=$I$2,SUMIFS(TransIDDate,TransAsset,$A10,TransType,"DIS"),"-")) -> - | N10: =IF($M10<=$I$2,SUMIFS(TransProceeds,TransAsset,$A10,TransType,"DIS"),0) -> 0 | O10: =IF(AND($M10<>"-",$M10<$H$2),0,SUMIFS(TransAmount,TransAsset,$A10,TransIDDate,"<"&$H$2,TransType,"ACQ")) -> 500000 | P10: 0 | Q10: 0 | R10: 500000 | S10: =IF(AND($M10<>"-",$M10<$H$2),0,IF($K10=0,0,IF(LEFT($AE10,1)="D",(($J10-$L10)*(1-((1-$AD10)^$AI10)))+(($J10-$L10)*(((1-$AD10)^$AI10)-((1-$AD10)^($AI10+1)))*IF('Set-up'!$E$9="Monthly",($AA10-($AI10*12))/12,$AM10/$AQ10)),($J10-$L10)/$AG10*$AA10))) -> 466666.6667 | T10: =IF($K10=0,0,IF(LEFT($AE10,1)="D",((($J10-$L10)*(1-((1-$AD10)^$AH10)))+(($J10-$L10)*(((1-$AD10)^$AH10)-((1-$AD10)^($AH10+1)))*IF('Set-up'!$E$9="Monthly",($Z10-($AH10*12))/12,$AL10/$AP10)))-(($J10-$L10)*(1-((1-$AD10)^$AI10)))-(($J10-$L10)*(((1-$AD10)^$AI10)-((1-$AD10)^($AI10+1)))*IF('Set-up'!$E$9="Monthly",($AA10-($AI10*12))/12,$AM10/$AQ10)),(($J10-$L10)/$AG10*$Z10)-(($J10-$L10)/$AG10*$AA10))) -> 33333.33333 | U10: =-IF(AND($M10>=$H$2,$M10<=$I$2),IF(LEFT($AE10,1)="D",(($J10-$L10)*(1-((1-$AD10)^$AK10)))+(($J10-$L10)*(((1-$AD10)^$AK10)-((1-$AD10)^($AK10+1)))*IF('Set-up'!$E$9="Monthly",($AC10-($AK10*12))/12,$AO10/$AS10)),IF($K10=0,0,($J10-$L10)/$AG10*$AC10)),0) -> 0 | V10: 500000 | W10: 0 | X10: 0 | Y10: =IF($K10=0,0,IF(LEFT($AE10,1)="D",((($J10-$L10)*(1-((1-$AD10)^$AH10)))+(($J10-$L10)*(((1-$AD10)^$AH10)-((1-$AD10)^($AH10+1)))*IF('Set-up'!$E$9="Monthly",($Z10-($AH10*12))/12,$AL10/$AP10)))-(($J10-$L10)*(1-((1-$AD10)^$AJ10)))-(($J10-$L10)*(((1-$AD10)^$AJ10)-((1-$AD10)^($AJ10+1)))*IF('Set-up'!$E$9="Monthly",($AB10-($AJ10*12))/12,$AN10/$AR10)),(($J10-$L10)/$AG10*$Z10)-(($J10-$L10)/$AG10*$AB10))) -> 0 | Z10: =IF('Set-up'!$E$9="Daily",MIN(MAX(((IF($M10="-",$I$2,MIN($I$2,$M10-'Set-up'!$E$13))-(($I10+'Set-up'!$E$11)))+1),0),IF(LEFT($AE10,1)="D",MaxPeriod,$AG10)),MIN(MAX(((IF($M10="-",((YEAR($I$2)*12)+MONTH($I$2)),MIN(((YEAR($I$2)*12)+MONTH($I$2)),((YEAR($M10)*12)+MONTH($M10)-'Set-up'!$E$13)))-(((YEAR($I10)*12)+MONTH($I10)+'Set-up'!$E$11)))+1),0),IF(LEFT($AE10,1)="D",MaxPeriod,$AG10))) -> 60 | AA10: =IF('Set-up'!$E$9="Daily",MIN(MAX(((IF($M10="-",$H$2-1,MIN($H$2-1,$M10-'Set-up'!$E$13))-($I10+'Set-up'!$E$11))+1),0),IF(LEFT($AE10,1)="D",MaxPeriod,$AG10)),MIN(MAX(((IF($M10="-",((YEAR($H$2)*12)+MONTH($H$2)-1),MIN(((YEAR($H$2)*12)+MONTH($H$2)-1),((YEAR($M10)*12)+MONTH($M10)-'Set-up'!$E$13)))-(((YEAR($I10)*12)+MONTH($I10)+'Set-up'!$E$11)))+1),0),IF(LEFT($AE10,1)="D",MaxPeriod,$AG10))) -> 56 | AB10: =IF('Set-up'!$E$9="Daily",MIN(MAX(((IF($M10="-",$J$2-1,MIN($J$2-1,$M10-'Set-up'!$E$13))-($I10+'Set-up'!$E$11))+1),0),IF(LEFT($AE10,1)="D",MaxPeriod,$AG10)),MIN(MAX(((IF($M10="-",((YEAR($J$2)*12)+MONTH($J$2)-1),MIN(((YEAR($J$2)*12)+MONTH($J$2)-1),((YEAR($M10)*12)+MONTH($M10)-'Set-up'!$E$13)))-(((YEAR($I10)*12)+MONTH($I10)+'Set-up'!$E$11)))+1),0),IF(LEFT($AE10,1)="D",MaxPeriod,$AG10))) -> 60 | AC10: =IF('Set-up'!$E$9="Daily",MIN(MAX(((IF($M10="-",0,$M10-'Set-up'!$E$13)-($I10+'Set-up'!$E$11))+1),0),IF(LEFT($AE10,1)="D",MaxPeriod,$AG10)),MIN(MAX(((IF($M10="-",0,((YEAR($M10)*12)+MONTH($M10)-'Set-up'!$E$13))-(((YEAR($I10)*12)+MONTH($I10)+'Set-up'!$E$11)))+1),0),IF(LEFT($AE10,1)="D",MaxPeriod,$AG10))) -> 0 | AD10: 0 | AE10: SL | AF10: 1 | AG10: =IF('Set-up'!$E$9="Daily",(DATE(YEAR($I10)+$K10+(1-$AF10),MONTH($I10),DAY($I10))+'Set-up'!$E$11)-($I10+'Set-up'!$E$11),$K10*12) -> 60 | AH10: =ROUNDDOWN(MIN(MAX(((IF($M10="-",((YEAR($I$2)*12)+MONTH($I$2)),MIN(((YEAR($I$2)*12)+MONTH($I$2)),((YEAR($M10)*12)+MONTH($M10)-'Set-up'!$E$13)))-(((YEAR($I10)*12)+MONTH($I10)+'Set-up'!$E$11)))),0),IF(LEFT($AE10,1)="D",MaxPeriod,$AG10))/12,0) -> 5 | AI10: =ROUNDDOWN(MIN(MAX(((IF($M10="-",((YEAR($H$2)*12)+MONTH($H$2)-1),MIN(((YEAR($H$2)*12)+MONTH($H$2)-1),((YEAR($M10)*12)+MONTH($M10)-'Set-up'!$E$13)))-(((YEAR($I10)*12)+MONTH($I10)+'Set-up'!$E$11)))),0),IF(LEFT($AE10,1)="D",MaxPeriod,$AG10))/12,0) -> 4 | AJ10: =ROUNDDOWN(MIN(MAX(((IF($M10="-",((YEAR($J$2)*12)+MONTH($J$2)-1),MIN(((YEAR($J$2)*12)+MONTH($J$2)-1),((YEAR($M10)*12)+MONTH($M10)-'Set-up'!$E$13)))-(((YEAR($I10)*12)+MONTH($I10)+'Set-up'!$E$11)))),0),IF(LEFT($AE10,1)="D",MaxPeriod,$AG10))/12,0) -> 5 | AK10: =ROUNDDOWN(MIN(MAX(((IF($M10="-",0,((YEAR($M10)*12)+MONTH($M10)-'Set-up'!$E$13))-(((YEAR($I10)*12)+MONTH($I10)+'Set-up'!$E$11)))),0),IF(LEFT($AE10,1)="D",MaxPeriod,$AG10))/12,0) -> 0 | AL10: =IF('Set-up'!$E$9="Daily",MIN(MAX(((IF($M10="-",$I$2,MIN($I$2,$M10-'Set-up'!$E$13))-((DATE(YEAR($I10)+$AH10,MONTH($I10),DAY($I10))+'Set-up'!$E$11)))+1),0),IF(LEFT($AE10,1)="D",MaxPeriod,$AG10)),0) -> 0 | AM10: =IF('Set-up'!$E$9="Daily",MIN(MAX(((IF($M10="-",$H$2-1,MIN($H$2-1,$M10-'Set-up'!$E$13))-(DATE(YEAR($I10)+$AI10,MONTH($I10),DAY($I10))+'Set-up'!$E$11))+1),0),IF(LEFT($AE10,1)="D",MaxPeriod,$AG10)),0) -> 0 | AN10: =IF('Set-up'!$E$9="Daily",MIN(MAX(((IF($M10="-",$J$2-1,MIN($J$2-1,$M10-'Set-up'!$E$13))-(DATE(YEAR($I10)+$AJ10,MONTH($I10),DAY($I10))+'Set-up'!$E$11))+1),0),IF(LEFT($AE10,1)="D",MaxPeriod,$AG10)),0) -> 0 | AO10: =IF('Set-up'!$E$9="Daily",MIN(MAX(((IF($M10="-",0,$M10-'Set-up'!$E$13)-(DATE(YEAR($I10)+$AK10,MONTH($I10),DAY($I10))+'Set-up'!$E$11))+1),0),IF(LEFT($AE10,1)="D",MaxPeriod,$AG10)),0) -> 0 | AP10: =IF('Set-up'!$E$9="Daily",DATE(YEAR($I10)+$AH10+1,MONTH($I10),DAY($I10))-DATE(YEAR($I10)+$AH10,MONTH($I10),DAY($I10)),0) -> 0 | AQ10: =IF('Set-up'!$E$9="Daily",DATE(YEAR($I10)+$AI10+1,MONTH($I10),DAY($I10))-DATE(YEAR($I10)+$AI10,MONTH($I10),DAY($I10)),0) -> 0 | AR10: =IF('Set-up'!$E$9="Daily",DATE(YEAR($I10)+$AJ10+1,MONTH($I10),DAY($I10))-DATE(YEAR($I10)+$AJ10,MONTH($I10),DAY($I10)),0) -> 0 | AS10: =IF('Set-up'!$E$9="Daily",DATE(YEAR($I10)+$AK10+1,MONTH($I10),DAY($I10))-DATE(YEAR($I10)+$AK10,MONTH($I10),DAY($I10)),0) -> 0
A11: PP-00006 | B11: 90937839 | C11: LTC-20B Cnc Turning Centre | D11: Owned | E11: PPM01 | F11: SL | G11: =IF(COUNTIF(AssetCode,$A11)>1,"E1",IF(ISNA(VLOOKUP($E11,CatAll,1,0))=TRUE,"E2",IF($I11="Add!","E10","-"))) -> - | H11: PM | I11: =IF(SUMIFS(TransIDDate,TransAsset,$A11,TransType,"ACQ")=0,"Add!",SUMIFS(TransIDDate,TransAsset,$A11,TransType,"ACQ")) -> 2015-07-20 | J11: 400000 | K11: 5 | L11: 0 | M11: =IF(SUMIFS(TransIDDate,TransAsset,$A11,TransType,"DIS")=0,"-",IF(SUMIFS(TransIDDate,TransAsset,$A11,TransType,"DIS")<=$I$2,SUMIFS(TransIDDate,TransAsset,$A11,TransType,"DIS"),"-")) -> - | N11: =IF($M11<=$I$2,SUMIFS(TransProceeds,TransAsset,$A11,TransType,"DIS"),0) -> 0 | O11: =IF(AND($M11<>"-",$M11<$H$2),0,SUMIFS(TransAmount,TransAsset,$A11,TransIDDate,"<"&$H$2,TransType,"ACQ")) -> 400000 | P11: 0 | Q11: 0 | R11: 400000 | S11: =IF(AND($M11<>"-",$M11<$H$2),0,IF($K11=0,0,IF(LEFT($AE11,1)="D",(($J11-$L11)*(1-((1-$AD11)^$AI11)))+(($J11-$L11)*(((1-$AD11)^$AI11)-((1-$AD11)^($AI11+1)))*IF('Set-up'!$E$9="Monthly",($AA11-($AI11*12))/12,$AM11/$AQ11)),($J11-$L11)/$AG11*$AA11))) -> 373333.3333 | T11: =IF($K11=0,0,IF(LEFT($AE11,1)="D",((($J11-$L11)*(1-((1-$AD11)^$AH11)))+(($J11-$L11)*(((1-$AD11)^$AH11)-((1-$AD11)^($AH11+1)))*IF('Set-up'!$E$9="Monthly",($Z11-($AH11*12))/12,$AL11/$AP11)))-(($J11-$L11)*(1-((1-$AD11)^$AI11)))-(($J11-$L11)*(((1-$AD11)^$AI11)-((1-$AD11)^($AI11+1)))*IF('Set-up'!$E$9="Monthly",($AA11-($AI11*12))/12,$AM11/$AQ11)),(($J11-$L11)/$AG11*$Z11)-(($J11-$L11)/$AG11*$AA11))) -> 26666.66667 | U11: =-IF(AND($M11>=$H$2,$M11<=$I$2),IF(LEFT($AE11,1)="D",(($J11-$L11)*(1-((1-$AD11)^$AK11)))+(($J11-$L11)*(((1-$AD11)^$AK11)-((1-$AD11)^($AK11+1)))*IF('Set-up'!$E$9="Monthly",($AC11-($AK11*12))/12,$AO11/$AS11)),IF($K11=0,0,($J11-$L11)/$AG11*$AC11)),0) -> 0 | V11: 400000 | W11: 0 | X11: 0 | Y11: =IF($K11=0,0,IF(LEFT($AE11,1)="D",((($J11-$L11)*(1-((1-$AD11)^$AH11)))+(($J11-$L11)*(((1-$AD11)^$AH11)-((1-$AD11)^($AH11+1)))*IF('Set-up'!$E$9="Monthly",($Z11-($AH11*12))/12,$AL11/$AP11)))-(($J11-$L11)*(1-((1-$AD11)^$AJ11)))-(($J11-$L11)*(((1-$AD11)^$AJ11)-((1-$AD11)^($AJ11+1)))*IF('Set-up'!$E$9="Monthly",($AB11-($AJ11*12))/12,$AN11/$AR11)),(($J11-$L11)/$AG11*$Z11)-(($J11-$L11)/$AG11*$AB11))) -> 0 | Z11: =IF('Set-up'!$E$9="Daily",MIN(MAX(((IF($M11="-",$I$2,MIN($I$2,$M11-'Set-up'!$E$13))-(($I11+'Set-up'!$E$11)))+1),0),IF(LEFT($AE11,1)="D",MaxPeriod,$AG11)),MIN(MAX(((IF($M11="-",((YEAR($I$2)*12)+MONTH($I$2)),MIN(((YEAR($I$2)*12)+MONTH($I$2)),((YEAR($M11)*12)+MONTH($M11)-'Set-up'!$E$13)))-(((YEAR($I11)*12)+MONTH($I11)+'Set-up'!$E$11)))+1),0),IF(LEFT($AE11,1)="D",MaxPeriod,$AG11))) -> 60 | AA11: =IF('Set-up'!$E$9="Daily",MIN(MAX(((IF($M11="-",$H$2-1,MIN($H$2-1,$M11-'Set-up'!$E$13))-($I11+'Set-up'!$E$11))+1),0),IF(LEFT($AE11,1)="D",MaxPeriod,$AG11)),MIN(MAX(((IF($M11="-",((YEAR($H$2)*12)+MONTH($H$2)-1),MIN(((YEAR($H$2)*12)+MONTH($H$2)-1),((YEAR($M11)*12)+MONTH($M11)-'Set-up'!$E$13)))-(((YEAR($I11)*12)+MONTH($I11)+'Set-up'!$E$11)))+1),0),IF(LEFT($AE11,1)="D",MaxPeriod,$AG11))) -> 56 | AB11: =IF('Set-up'!$E$9="Daily",MIN(MAX(((IF($M11="-",$J$2-1,MIN($J$2-1,$M11-'Set-up'!$E$13))-($I11+'Set-up'!$E$11))+1),0),IF(LEFT($AE11,1)="D",MaxPeriod,$AG11)),MIN(MAX(((IF($M11="-",((YEAR($J$2)*12)+MONTH($J$2)-1),MIN(((YEAR($J$2)*12)+MONTH($J$2)-1),((YEAR($M11)*12)+MONTH($M11)-'Set-up'!$E$13)))-(((YEAR($I11)*12)+MONTH($I11)+'Set-up'!$E$11)))+1),0),IF(LEFT($AE11,1)="D",MaxPeriod,$AG11))) -> 60 | AC11: =IF('Set-up'!$E$9="Daily",MIN(MAX(((IF($M11="-",0,$M11-'Set-up'!$E$13)-($I11+'Set-up'!$E$11))+1),0),IF(LEFT($AE11,1)="D",MaxPeriod,$AG11)),MIN(MAX(((IF($M11="-",0,((YEAR($M11)*12)+MONTH($M11)-'Set-up'!$E$13))-(((YEAR($I11)*12)+MONTH($I11)+'Set-up'!$E$11)))+1),0),IF(LEFT($AE11,1)="D",MaxPeriod,$AG11))) -> 0 | AD11: 0 | AE11: SL | AF11: 1 | AG11: =IF('Set-up'!$E$9="Daily",(DATE(YEAR($I11)+$K11+(1-$AF11),MONTH($I11),DAY($I11))+'Set-up'!$E$11)-($I11+'Set-up'!$E$11),$K11*12) -> 60 | AH11: =ROUNDDOWN(MIN(MAX(((IF($M11="-",((YEAR($I$2)*12)+MONTH($I$2)),MIN(((YEAR($I$2)*12)+MONTH($I$2)),((YEAR($M11)*12)+MONTH($M11)-'Set-up'!$E$13)))-(((YEAR($I11)*12)+MONTH($I11)+'Set-up'!$E$11)))),0),IF(LEFT($AE11,1)="D",MaxPeriod,$AG11))/12,0) -> 5 | AI11: =ROUNDDOWN(MIN(MAX(((IF($M11="-",((YEAR($H$2)*12)+MONTH($H$2)-1),MIN(((YEAR($H$2)*12)+MONTH($H$2)-1),((YEAR($M11)*12)+MONTH($M11)-'Set-up'!$E$13)))-(((YEAR($I11)*12)+MONTH($I11)+'Set-up'!$E$11)))),0),IF(LEFT($AE11,1)="D",MaxPeriod,$AG11))/12,0) -> 4 | AJ11: =ROUNDDOWN(MIN(MAX(((IF($M11="-",((YEAR($J$2)*12)+MONTH($J$2)-1),MIN(((YEAR($J$2)*12)+MONTH($J$2)-1),((YEAR($M11)*12)+MONTH($M11)-'Set-up'!$E$13)))-(((YEAR($I11)*12)+MONTH($I11)+'Set-up'!$E$11)))),0),IF(LEFT($AE11,1)="D",MaxPeriod,$AG11))/12,0) -> 5 | AK11: =ROUNDDOWN(MIN(MAX(((IF($M11="-",0,((YEAR($M11)*12)+MONTH($M11)-'Set-up'!$E$13))-(((YEAR($I11)*12)+MONTH($I11)+'Set-up'!$E$11)))),0),IF(LEFT($AE11,1)="D",MaxPeriod,$AG11))/12,0) -> 0 | AL11: =IF('Set-up'!$E$9="Daily",MIN(MAX(((IF($M11="-",$I$2,MIN($I$2,$M11-'Set-up'!$E$13))-((DATE(YEAR($I11)+$AH11,MONTH($I11),DAY($I11))+'Set-up'!$E$11)))+1),0),IF(LEFT($AE11,1)="D",MaxPeriod,$AG11)),0) -> 0 | AM11: =IF('Set-up'!$E$9="Daily",MIN(MAX(((IF($M11="-",$H$2-1,MIN($H$2-1,$M11-'Set-up'!$E$13))-(DATE(YEAR($I11)+$AI11,MONTH($I11),DAY($I11))+'Set-up'!$E$11))+1),0),IF(LEFT($AE11,1)="D",MaxPeriod,$AG11)),0) -> 0 | AN11: =IF('Set-up'!$E$9="Daily",MIN(MAX(((IF($M11="-",$J$2-1,MIN($J$2-1,$M11-'Set-up'!$E$13))-(DATE(YEAR($I11)+$AJ11,MONTH($I11),DAY($I11))+'Set-up'!$E$11))+1),0),IF(LEFT($AE11,1)="D",MaxPeriod,$AG11)),0) -> 0 | AO11: =IF('Set-up'!$E$9="Daily",MIN(MAX(((IF($M11="-",0,$M11-'Set-up'!$E$13)-(DATE(YEAR($I11)+$AK11,MONTH($I11),DAY($I11))+'Set-up'!$E$11))+1),0),IF(LEFT($AE11,1)="D",MaxPeriod,$AG11)),0) -> 0 | AP11: =IF('Set-up'!$E$9="Daily",DATE(YEAR($I11)+$AH11+1,MONTH($I11),DAY($I11))-DATE(YEAR($I11)+$AH11,MONTH($I11),DAY($I11)),0) -> 0 | AQ11: =IF('Set-up'!$E$9="Daily",DATE(YEAR($I11)+$AI11+1,MONTH($I11),DAY($I11))-DATE(YEAR($I11)+$AI11,MONTH($I11),DAY($I11)),0) -> 0 | AR11: =IF('Set-up'!$E$9="Daily",DATE(YEAR($I11)+$AJ11+1,MONTH($I11),DAY($I11))-DATE(YEAR($I11)+$AJ11,MONTH($I11),DAY($I11)),0) -> 0 | AS11: =IF('Set-up'!$E$9="Daily",DATE(YEAR($I11)+$AK11+1,MONTH($I11),DAY($I11))-DATE(YEAR($I11)+$AK11,MONTH($I11),DAY($I11)),0) -> 0
A12: PP-00007 | B12: 13800981 | C12: Leaderway 450 M/centre | D12: Owned | E12: PPM01 | F12: SL | G12: =IF(COUNTIF(AssetCode,$A12)>1,"E1",IF(ISNA(VLOOKUP($E12,CatAll,1,0))=TRUE,"E2",IF($I12="Add!","E10","-"))) -> - | H12: PM | I12: =IF(SUMIFS(TransIDDate,TransAsset,$A12,TransType,"ACQ")=0,"Add!",SUMIFS(TransIDDate,TransAsset,$A12,TransType,"ACQ")) -> 2015-07-20 | J12: 260000 | K12: 5 | L12: 0 | M12: =IF(SUMIFS(TransIDDate,TransAsset,$A12,TransType,"DIS")=0,"-",IF(SUMIFS(TransIDDate,TransAsset,$A12,TransType,"DIS")<=$I$2,SUMIFS(TransIDDate,TransAsset,$A12,TransType,"DIS"),"-")) -> - | N12: =IF($M12<=$I$2,SUMIFS(TransProceeds,TransAsset,$A12,TransType,"DIS"),0) -> 0 | O12: =IF(AND($M12<>"-",$M12<$H$2),0,SUMIFS(TransAmount,TransAsset,$A12,TransIDDate,"<"&$H$2,TransType,"ACQ")) -> 260000 | P12: 0 | Q12: 0 | R12: 260000 | S12: =IF(AND($M12<>"-",$M12<$H$2),0,IF($K12=0,0,IF(LEFT($AE12,1)="D",(($J12-$L12)*(1-((1-$AD12)^$AI12)))+(($J12-$L12)*(((1-$AD12)^$AI12)-((1-$AD12)^($AI12+1)))*IF('Set-up'!$E$9="Monthly",($AA12-($AI12*12))/12,$AM12/$AQ12)),($J12-$L12)/$AG12*$AA12))) -> 242666.6667 | T12: =IF($K12=0,0,IF(LEFT($AE12,1)="D",((($J12-$L12)*(1-((1-$AD12)^$AH12)))+(($J12-$L12)*(((1-$AD12)^$AH12)-((1-$AD12)^($AH12+1)))*IF('Set-up'!$E$9="Monthly",($Z12-($AH12*12))/12,$AL12/$AP12)))-(($J12-$L12)*(1-((1-$AD12)^$AI12)))-(($J12-$L12)*(((1-$AD12)^$AI12)-((1-$AD12)^($AI12+1)))*IF('Set-up'!$E$9="Monthly",($AA12-($AI12*12))/12,$AM12/$AQ12)),(($J12-$L12)/$AG12*$Z12)-(($J12-$L12)/$AG12*$AA12))) -> 17333.33333 | U12: =-IF(AND($M12>=$H$2,$M12<=$I$2),IF(LEFT($AE12,1)="D",(($J12-$L12)*(1-((1-$AD12)^$AK12)))+(($J12-$L12)*(((1-$AD12)^$AK12)-((1-$AD12)^($AK12+1)))*IF('Set-up'!$E$9="Monthly",($AC12-($AK12*12))/12,$AO12/$AS12)),IF($K12=0,0,($J12-$L12)/$AG12*$AC12)),0) -> 0 | V12: 260000 | W12: 0 | X12: 0 | Y12: =IF($K12=0,0,IF(LEFT($AE12,1)="D",((($J12-$L12)*(1-((1-$AD12)^$AH12)))+(($J12-$L12)*(((1-$AD12)^$AH12)-((1-$AD12)^($AH12+1)))*IF('Set-up'!$E$9="Monthly",($Z12-($AH12*12))/12,$AL12/$AP12)))-(($J12-$L12)*(1-((1-$AD12)^$AJ12)))-(($J12-$L12)*(((1-$AD12)^$AJ12)-((1-$AD12)^($AJ12+1)))*IF('Set-up'!$E$9="Monthly",($AB12-($AJ12*12))/12,$AN12/$AR12)),(($J12-$L12)/$AG12*$Z12)-(($J12-$L12)/$AG12*$AB12))) -> 0 | Z12: =IF('Set-up'!$E$9="Daily",MIN(MAX(((IF($M12="-",$I$2,MIN($I$2,$M12-'Set-up'!$E$13))-(($I12+'Set-up'!$E$11)))+1),0),IF(LEFT($AE12,1)="D",MaxPeriod,$AG12)),MIN(MAX(((IF($M12="-",((YEAR($I$2)*12)+MONTH($I$2)),MIN(((YEAR($I$2)*12)+MONTH($I$2)),((YEAR($M12)*12)+MONTH($M12)-'Set-up'!$E$13)))-(((YEAR($I12)*12)+MONTH($I12)+'Set-up'!$E$11)))+1),0),IF(LEFT($AE12,1)="D",MaxPeriod,$AG12))) -> 60 | AA12: =IF('Set-up'!$E$9="Daily",MIN(MAX(((IF($M12="-",$H$2-1,MIN($H$2-1,$M12-'Set-up'!$E$13))-($I12+'Set-up'!$E$11))+1),0),IF(LEFT($AE12,1)="D",MaxPeriod,$AG12)),MIN(MAX(((IF($M12="-",((YEAR($H$2)*12)+MONTH($H$2)-1),MIN(((YEAR($H$2)*12)+MONTH($H$2)-1),((YEAR($M12)*12)+MONTH($M12)-'Set-up'!$E$13)))-(((YEAR($I12)*12)+MONTH($I12)+'Set-up'!$E$11)))+1),0),IF(LEFT($AE12,1)="D",MaxPeriod,$AG12))) -> 56 | AB12: =IF('Set-up'!$E$9="Daily",MIN(MAX(((IF($M12="-",$J$2-1,MIN($J$2-1,$M12-'Set-up'!$E$13))-($I12+'Set-up'!$E$11))+1),0),IF(LEFT($AE12,1)="D",MaxPeriod,$AG12)),MIN(MAX(((IF($M12="-",((YEAR($J$2)*12)+MONTH($J$2)-1),MIN(((YEAR($J$2)*12)+MONTH($J$2)-1),((YEAR($M12)*12)+MONTH($M12)-'Set-up'!$E$13)))-(((YEAR($I12)*12)+MONTH($I12)+'Set-up'!$E$11)))+1),0),IF(LEFT($AE12,1)="D",MaxPeriod,$AG12))) -> 60 | AC12: =IF('Set-up'!$E$9="Daily",MIN(MAX(((IF($M12="-",0,$M12-'Set-up'!$E$13)-($I12+'Set-up'!$E$11))+1),0),IF(LEFT($AE12,1)="D",MaxPeriod,$AG12)),MIN(MAX(((IF($M12="-",0,((YEAR($M12)*12)+MONTH($M12)-'Set-up'!$E$13))-(((YEAR($I12)*12)+MONTH($I12)+'Set-up'!$E$11)))+1),0),IF(LEFT($AE12,1)="D",MaxPeriod,$AG12))) -> 0 | AD12: 0 | AE12: SL | AF12: 1 | AG12: =IF('Set-up'!$E$9="Daily",(DATE(YEAR($I12)+$K12+(1-$AF12),MONTH($I12),DAY($I12))+'Set-up'!$E$11)-($I12+'Set-up'!$E$11),$K12*12) -> 60 | AH12: =ROUNDDOWN(MIN(MAX(((IF($M12="-",((YEAR($I$2)*12)+MONTH($I$2)),MIN(((YEAR($I$2)*12)+MONTH($I$2)),((YEAR($M12)*12)+MONTH($M12)-'Set-up'!$E$13)))-(((YEAR($I12)*12)+MONTH($I12)+'Set-up'!$E$11)))),0),IF(LEFT($AE12,1)="D",MaxPeriod,$AG12))/12,0) -> 5 | AI12: =ROUNDDOWN(MIN(MAX(((IF($M12="-",((YEAR($H$2)*12)+MONTH($H$2)-1),MIN(((YEAR($H$2)*12)+MONTH($H$2)-1),((YEAR($M12)*12)+MONTH($M12)-'Set-up'!$E$13)))-(((YEAR($I12)*12)+MONTH($I12)+'Set-up'!$E$11)))),0),IF(LEFT($AE12,1)="D",MaxPeriod,$AG12))/12,0) -> 4 | AJ12: =ROUNDDOWN(MIN(MAX(((IF($M12="-",((YEAR($J$2)*12)+MONTH($J$2)-1),MIN(((YEAR($J$2)*12)+MONTH($J$2)-1),((YEAR($M12)*12)+MONTH($M12)-'Set-up'!$E$13)))-(((YEAR($I12)*12)+MONTH($I12)+'Set-up'!$E$11)))),0),IF(LEFT($AE12,1)="D",MaxPeriod,$AG12))/12,0) -> 5 | AK12: =ROUNDDOWN(MIN(MAX(((IF($M12="-",0,((YEAR($M12)*12)+MONTH($M12)-'Set-up'!$E$13))-(((YEAR($I12)*12)+MONTH($I12)+'Set-up'!$E$11)))),0),IF(LEFT($AE12,1)="D",MaxPeriod,$AG12))/12,0) -> 0 | AL12: =IF('Set-up'!$E$9="Daily",MIN(MAX(((IF($M12="-",$I$2,MIN($I$2,$M12-'Set-up'!$E$13))-((DATE(YEAR($I12)+$AH12,MONTH($I12),DAY($I12))+'Set-up'!$E$11)))+1),0),IF(LEFT($AE12,1)="D",MaxPeriod,$AG12)),0) -> 0 | AM12: =IF('Set-up'!$E$9="Daily",MIN(MAX(((IF($M12="-",$H$2-1,MIN($H$2-1,$M12-'Set-up'!$E$13))-(DATE(YEAR($I12)+$AI12,MONTH($I12),DAY($I12))+'Set-up'!$E$11))+1),0),IF(LEFT($AE12,1)="D",MaxPeriod,$AG12)),0) -> 0 | AN12: =IF('Set-up'!$E$9="Daily",MIN(MAX(((IF($M12="-",$J$2-1,MIN($J$2-1,$M12-'Set-up'!$E$13))-(DATE(YEAR($I12)+$AJ12,MONTH($I12),DAY($I12))+'Set-up'!$E$11))+1),0),IF(LEFT($AE12,1)="D",MaxPeriod,$AG12)),0) -> 0 | AO12: =IF('Set-up'!$E$9="Daily",MIN(MAX(((IF($M12="-",0,$M12-'Set-up'!$E$13)-(DATE(YEAR($I12)+$AK12,MONTH($I12),DAY($I12))+'Set-up'!$E$11))+1),0),IF(LEFT($AE12,1)="D",MaxPeriod,$AG12)),0) -> 0 | AP12: =IF('Set-up'!$E$9="Daily",DATE(YEAR($I12)+$AH12+1,MONTH($I12),DAY($I12))-DATE(YEAR($I12)+$AH12,MONTH($I12),DAY($I12)),0) -> 0 | AQ12: =IF('Set-up'!$E$9="Daily",DATE(YEAR($I12)+$AI12+1,MONTH($I12),DAY($I12))-DATE(YEAR($I12)+$AI12,MONTH($I12),DAY($I12)),0) -> 0 | AR12: =IF('Set-up'!$E$9="Daily",DATE(YEAR($I12)+$AJ12+1,MONTH($I12),DAY($I12))-DATE(YEAR($I12)+$AJ12,MONTH($I12),DAY($I12)),0) -> 0 | AS12: =IF('Set-up'!$E$9="Daily",DATE(YEAR($I12)+$AK12+1,MONTH($I12),DAY($I12))-DATE(YEAR($I12)+$AK12,MONTH($I12),DAY($I12)),0) -> 0
A13: PP-00008 | B13: 38838389 | C13: Leaderway V650 CNC | D13: Owned | E13: PPM01 | F13: SL | G13: =IF(COUNTIF(AssetCode,$A13)>1,"E1",IF(ISNA(VLOOKUP($E13,CatAll,1,0))=TRUE,"E2",IF($I13="Add!","E10","-"))) -> - | H13: PM | I13: =IF(SUMIFS(TransIDDate,TransAsset,$A13,TransType,"ACQ")=0,"Add!",SUMIFS(TransIDDate,TransAsset,$A13,TransType,"ACQ")) -> 2015-07-20 | J13: 295000 | K13: 5 | L13: 0 | M13: =IF(SUMIFS(TransIDDate,TransAsset,$A13,TransType,"DIS")=0,"-",IF(SUMIFS(TransIDDate,TransAsset,$A13,TransType,"DIS")<=$I$2,SUMIFS(TransIDDate,TransAsset,$A13,TransType,"DIS"),"-")) -> - | N13: =IF($M13<=$I$2,SUMIFS(TransProceeds,TransAsset,$A13,TransType,"DIS"),0) -> 0 | O13: =IF(AND($M13<>"-",$M13<$H$2),0,SUMIFS(TransAmount,TransAsset,$A13,TransIDDate,"<"&$H$2,TransType,"ACQ")) -> 295000 | P13: 0 | Q13: 0 | R13: 295000 | S13: =IF(AND($M13<>"-",$M13<$H$2),0,IF($K13=0,0,IF(LEFT($AE13,1)="D",(($J13-$L13)*(1-((1-$AD13)^$AI13)))+(($J13-$L13)*(((1-$AD13)^$AI13)-((1-$AD13)^($AI13+1)))*IF('Set-up'!$E$9="Monthly",($AA13-($AI13*12))/12,$AM13/$AQ13)),($J13-$L13)/$AG13*$AA13))) -> 275333.3333 | T13: =IF($K13=0,0,IF(LEFT($AE13,1)="D",((($J13-$L13)*(1-((1-$AD13)^$AH13)))+(($J13-$L13)*(((1-$AD13)^$AH13)-((1-$AD13)^($AH13+1)))*IF('Set-up'!$E$9="Monthly",($Z13-($AH13*12))/12,$AL13/$AP13)))-(($J13-$L13)*(1-((1-$AD13)^$AI13)))-(($J13-$L13)*(((1-$AD13)^$AI13)-((1-$AD13)^($AI13+1)))*IF('Set-up'!$E$9="Monthly",($AA13-($AI13*12))/12,$AM13/$AQ13)),(($J13-$L13)/$AG13*$Z13)-(($J13-$L13)/$AG13*$AA13))) -> 19666.66667 | U13: =-IF(AND($M13>=$H$2,$M13<=$I$2),IF(LEFT($AE13,1)="D",(($J13-$L13)*(1-((1-$AD13)^$AK13)))+(($J13-$L13)*(((1-$AD13)^$AK13)-((1-$AD13)^($AK13+1)))*IF('Set-up'!$E$9="Monthly",($AC13-($AK13*12))/12,$AO13/$AS13)),IF($K13=0,0,($J13-$L13)/$AG13*$AC13)),0) -> 0 | V13: 295000 | W13: 0 | X13: 0 | Y13: =IF($K13=0,0,IF(LEFT($AE13,1)="D",((($J13-$L13)*(1-((1-$AD13)^$AH13)))+(($J13-$L13)*(((1-$AD13)^$AH13)-((1-$AD13)^($AH13+1)))*IF('Set-up'!$E$9="Monthly",($Z13-($AH13*12))/12,$AL13/$AP13)))-(($J13-$L13)*(1-((1-$AD13)^$AJ13)))-(($J13-$L13)*(((1-$AD13)^$AJ13)-((1-$AD13)^($AJ13+1)))*IF('Set-up'!$E$9="Monthly",($AB13-($AJ13*12))/12,$AN13/$AR13)),(($J13-$L13)/$AG13*$Z13)-(($J13-$L13)/$AG13*$AB13))) -> 0 | Z13: =IF('Set-up'!$E$9="Daily",MIN(MAX(((IF($M13="-",$I$2,MIN($I$2,$M13-'Set-up'!$E$13))-(($I13+'Set-up'!$E$11)))+1),0),IF(LEFT($AE13,1)="D",MaxPeriod,$AG13)),MIN(MAX(((IF($M13="-",((YEAR($I$2)*12)+MONTH($I$2)),MIN(((YEAR($I$2)*12)+MONTH($I$2)),((YEAR($M13)*12)+MONTH($M13)-'Set-up'!$E$13)))-(((YEAR($I13)*12)+MONTH($I13)+'Set-up'!$E$11)))+1),0),IF(LEFT($AE13,1)="D",MaxPeriod,$AG13))) -> 60 | AA13: =IF('Set-up'!$E$9="Daily",MIN(MAX(((IF($M13="-",$H$2-1,MIN($H$2-1,$M13-'Set-up'!$E$13))-($I13+'Set-up'!$E$11))+1),0),IF(LEFT($AE13,1)="D",MaxPeriod,$AG13)),MIN(MAX(((IF($M13="-",((YEAR($H$2)*12)+MONTH($H$2)-1),MIN(((YEAR($H$2)*12)+MONTH($H$2)-1),((YEAR($M13)*12)+MONTH($M13)-'Set-up'!$E$13)))-(((YEAR($I13)*12)+MONTH($I13)+'Set-up'!$E$11)))+1),0),IF(LEFT($AE13,1)="D",MaxPeriod,$AG13))) -> 56 | AB13: =IF('Set-up'!$E$9="Daily",MIN(MAX(((IF($M13="-",$J$2-1,MIN($J$2-1,$M13-'Set-up'!$E$13))-($I13+'Set-up'!$E$11))+1),0),IF(LEFT($AE13,1)="D",MaxPeriod,$AG13)),MIN(MAX(((IF($M13="-",((YEAR($J$2)*12)+MONTH($J$2)-1),MIN(((YEAR($J$2)*12)+MONTH($J$2)-1),((YEAR($M13)*12)+MONTH($M13)-'Set-up'!$E$13)))-(((YEAR($I13)*12)+MONTH($I13)+'Set-up'!$E$11)))+1),0),IF(LEFT($AE13,1)="D",MaxPeriod,$AG13))) -> 60 | AC13: =IF('Set-up'!$E$9="Daily",MIN(MAX(((IF($M13="-",0,$M13-'Set-up'!$E$13)-($I13+'Set-up'!$E$11))+1),0),IF(LEFT($AE13,1)="D",MaxPeriod,$AG13)),MIN(MAX(((IF($M13="-",0,((YEAR($M13)*12)+MONTH($M13)-'Set-up'!$E$13))-(((YEAR($I13)*12)+MONTH($I13)+'Set-up'!$E$11)))+1),0),IF(LEFT($AE13,1)="D",MaxPeriod,$AG13))) -> 0 | AD13: 0 | AE13: SL | AF13: 1 | AG13: =IF('Set-up'!$E$9="Daily",(DATE(YEAR($I13)+$K13+(1-$AF13),MONTH($I13),DAY($I13))+'Set-up'!$E$11)-($I13+'Set-up'!$E$11),$K13*12) -> 60 | AH13: =ROUNDDOWN(MIN(MAX(((IF($M13="-",((YEAR($I$2)*12)+MONTH($I$2)),MIN(((YEAR($I$2)*12)+MONTH($I$2)),((YEAR($M13)*12)+MONTH($M13)-'Set-up'!$E$13)))-(((YEAR($I13)*12)+MONTH($I13)+'Set-up'!$E$11)))),0),IF(LEFT($AE13,1)="D",MaxPeriod,$AG13))/12,0) -> 5 | AI13: =ROUNDDOWN(MIN(MAX(((IF($M13="-",((YEAR($H$2)*12)+MONTH($H$2)-1),MIN(((YEAR($H$2)*12)+MONTH($H$2)-1),((YEAR($M13)*12)+MONTH($M13)-'Set-up'!$E$13)))-(((YEAR($I13)*12)+MONTH($I13)+'Set-up'!$E$11)))),0),IF(LEFT($AE13,1)="D",MaxPeriod,$AG13))/12,0) -> 4 | AJ13: =ROUNDDOWN(MIN(MAX(((IF($M13="-",((YEAR($J$2)*12)+MONTH($J$2)-1),MIN(((YEAR($J$2)*12)+MONTH($J$2)-1),((YEAR($M13)*12)+MONTH($M13)-'Set-up'!$E$13)))-(((YEAR($I13)*12)+MONTH($I13)+'Set-up'!$E$11)))),0),IF(LEFT($AE13,1)="D",MaxPeriod,$AG13))/12,0) -> 5 | AK13: =ROUNDDOWN(MIN(MAX(((IF($M13="-",0,((YEAR($M13)*12)+MONTH($M13)-'Set-up'!$E$13))-(((YEAR($I13)*12)+MONTH($I13)+'Set-up'!$E$11)))),0),IF(LEFT($AE13,1)="D",MaxPeriod,$AG13))/12,0) -> 0 | AL13: =IF('Set-up'!$E$9="Daily",MIN(MAX(((IF($M13="-",$I$2,MIN($I$2,$M13-'Set-up'!$E$13))-((DATE(YEAR($I13)+$AH13,MONTH($I13),DAY($I13))+'Set-up'!$E$11)))+1),0),IF(LEFT($AE13,1)="D",MaxPeriod,$AG13)),0) -> 0 | AM13: =IF('Set-up'!$E$9="Daily",MIN(MAX(((IF($M13="-",$H$2-1,MIN($H$2-1,$M13-'Set-up'!$E$13))-(DATE(YEAR($I13)+$AI13,MONTH($I13),DAY($I13))+'Set-up'!$E$11))+1),0),IF(LEFT($AE13,1)="D",MaxPeriod,$AG13)),0) -> 0 | AN13: =IF('Set-up'!$E$9="Daily",MIN(MAX(((IF($M13="-",$J$2-1,MIN($J$2-1,$M13-'Set-up'!$E$13))-(DATE(YEAR($I13)+$AJ13,MONTH($I13),DAY($I13))+'Set-up'!$E$11))+1),0),IF(LEFT($AE13,1)="D",MaxPeriod,$AG13)),0) -> 0 | AO13: =IF('Set-up'!$E$9="Daily",MIN(MAX(((IF($M13="-",0,$M13-'Set-up'!$E$13)-(DATE(YEAR($I13)+$AK13,MONTH($I13),DAY($I13))+'Set-up'!$E$11))+1),0),IF(LEFT($AE13,1)="D",MaxPeriod,$AG13)),0) -> 0 | AP13: =IF('Set-up'!$E$9="Daily",DATE(YEAR($I13)+$AH13+1,MONTH($I13),DAY($I13))-DATE(YEAR($I13)+$AH13,MONTH($I13),DAY($I13)),0) -> 0 | AQ13: =IF('Set-up'!$E$9="Daily",DATE(YEAR($I13)+$AI13+1,MONTH($I13),DAY($I13))-DATE(YEAR($I13)+$AI13,MONTH($I13),DAY($I13)),0) -> 0 | AR13: =IF('Set-up'!$E$9="Daily",DATE(YEAR($I13)+$AJ13+1,MONTH($I13),DAY($I13))-DATE(YEAR($I13)+$AJ13,MONTH($I13),DAY($I13)),0) -> 0 | AS13: =IF('Set-up'!$E$9="Daily",DATE(YEAR($I13)+$AK13+1,MONTH($I13),DAY($I13))-DATE(YEAR($I13)+$AK13,MONTH($I13),DAY($I13)),0) -> 0
A14: PP-00009 | B14: 13763761 | C14: Supertec Cnc Angular Wheel Grinder | D14: Owned | E14: PPM01 | F14: SL | G14: =IF(COUNTIF(AssetCode,$A14)>1,"E1",IF(ISNA(VLOOKUP($E14,CatAll,1,0))=TRUE,"E2",IF($I14="Add!","E10","-"))) -> - | H14: PM | I14: =IF(SUMIFS(TransIDDate,TransAsset,$A14,TransType,"ACQ")=0,"Add!",SUMIFS(TransIDDate,TransAsset,$A14,TransType,"ACQ")) -> 2015-07-20 | J14: 750000 | K14: 5 | L14: 0 | M14: =IF(SUMIFS(TransIDDate,TransAsset,$A14,TransType,"DIS")=0,"-",IF(SUMIFS(TransIDDate,TransAsset,$A14,TransType,"DIS")<=$I$2,SUMIFS(TransIDDate,TransAsset,$A14,TransType,"DIS"),"-")) -> - | N14: =IF($M14<=$I$2,SUMIFS(TransProceeds,TransAsset,$A14,TransType,"DIS"),0) -> 0 | O14: =IF(AND($M14<>"-",$M14<$H$2),0,SUMIFS(TransAmount,TransAsset,$A14,TransIDDate,"<"&$H$2,TransType,"ACQ")) -> 750000 | P14: 0 | Q14: 0 | R14: 750000 | S14: =IF(AND($M14<>"-",$M14<$H$2),0,IF($K14=0,0,IF(LEFT($AE14,1)="D",(($J14-$L14)*(1-((1-$AD14)^$AI14)))+(($J14-$L14)*(((1-$AD14)^$AI14)-((1-$AD14)^($AI14+1)))*IF('Set-up'!$E$9="Monthly",($AA14-($AI14*12))/12,$AM14/$AQ14)),($J14-$L14)/$AG14*$AA14))) -> 700000 | T14: =IF($K14=0,0,IF(LEFT($AE14,1)="D",((($J14-$L14)*(1-((1-$AD14)^$AH14)))+(($J14-$L14)*(((1-$AD14)^$AH14)-((1-$AD14)^($AH14+1)))*IF('Set-up'!$E$9="Monthly",($Z14-($AH14*12))/12,$AL14/$AP14)))-(($J14-$L14)*(1-((1-$AD14)^$AI14)))-(($J14-$L14)*(((1-$AD14)^$AI14)-((1-$AD14)^($AI14+1)))*IF('Set-up'!$E$9="Monthly",($AA14-($AI14*12))/12,$AM14/$AQ14)),(($J14-$L14)/$AG14*$Z14)-(($J14-$L14)/$AG14*$AA14))) -> 50000 | U14: =-IF(AND($M14>=$H$2,$M14<=$I$2),IF(LEFT($AE14,1)="D",(($J14-$L14)*(1-((1-$AD14)^$AK14)))+(($J14-$L14)*(((1-$AD14)^$AK14)-((1-$AD14)^($AK14+1)))*IF('Set-up'!$E$9="Monthly",($AC14-($AK14*12))/12,$AO14/$AS14)),IF($K14=0,0,($J14-$L14)/$AG14*$AC14)),0) -> 0 | V14: 750000 | W14: 0 | X14: 0 | Y14: =IF($K14=0,0,IF(LEFT($AE14,1)="D",((($J14-$L14)*(1-((1-$AD14)^$AH14)))+(($J14-$L14)*(((1-$AD14)^$AH14)-((1-$AD14)^($AH14+1)))*IF('Set-up'!$E$9="Monthly",($Z14-($AH14*12))/12,$AL14/$AP14)))-(($J14-$L14)*(1-((1-$AD14)^$AJ14)))-(($J14-$L14)*(((1-$AD14)^$AJ14)-((1-$AD14)^($AJ14+1)))*IF('Set-up'!$E$9="Monthly",($AB14-($AJ14*12))/12,$AN14/$AR14)),(($J14-$L14)/$AG14*$Z14)-(($J14-$L14)/$AG14*$AB14))) -> 0 | Z14: =IF('Set-up'!$E$9="Daily",MIN(MAX(((IF($M14="-",$I$2,MIN($I$2,$M14-'Set-up'!$E$13))-(($I14+'Set-up'!$E$11)))+1),0),IF(LEFT($AE14,1)="D",MaxPeriod,$AG14)),MIN(MAX(((IF($M14="-",((YEAR($I$2)*12)+MONTH($I$2)),MIN(((YEAR($I$2)*12)+MONTH($I$2)),((YEAR($M14)*12)+MONTH($M14)-'Set-up'!$E$13)))-(((YEAR($I14)*12)+MONTH($I14)+'Set-up'!$E$11)))+1),0),IF(LEFT($AE14,1)="D",MaxPeriod,$AG14))) -> 60 | AA14: =IF('Set-up'!$E$9="Daily",MIN(MAX(((IF($M14="-",$H$2-1,MIN($H$2-1,$M14-'Set-up'!$E$13))-($I14+'Set-up'!$E$11))+1),0),IF(LEFT($AE14,1)="D",MaxPeriod,$AG14)),MIN(MAX(((IF($M14="-",((YEAR($H$2)*12)+MONTH($H$2)-1),MIN(((YEAR($H$2)*12)+MONTH($H$2)-1),((YEAR($M14)*12)+MONTH($M14)-'Set-up'!$E$13)))-(((YEAR($I14)*12)+MONTH($I14)+'Set-up'!$E$11)))+1),0),IF(LEFT($AE14,1)="D",MaxPeriod,$AG14))) -> 56 | AB14: =IF('Set-up'!$E$9="Daily",MIN(MAX(((IF($M14="-",$J$2-1,MIN($J$2-1,$M14-'Set-up'!$E$13))-($I14+'Set-up'!$E$11))+1),0),IF(LEFT($AE14,1)="D",MaxPeriod,$AG14)),MIN(MAX(((IF($M14="-",((YEAR($J$2)*12)+MONTH($J$2)-1),MIN(((YEAR($J$2)*12)+MONTH($J$2)-1),((YEAR($M14)*12)+MONTH($M14)-'Set-up'!$E$13)))-(((YEAR($I14)*12)+MONTH($I14)+'Set-up'!$E$11)))+1),0),IF(LEFT($AE14,1)="D",MaxPeriod,$AG14))) -> 60 | AC14: =IF('Set-up'!$E$9="Daily",MIN(MAX(((IF($M14="-",0,$M14-'Set-up'!$E$13)-($I14+'Set-up'!$E$11))+1),0),IF(LEFT($AE14,1)="D",MaxPeriod,$AG14)),MIN(MAX(((IF($M14="-",0,((YEAR($M14)*12)+MONTH($M14)-'Set-up'!$E$13))-(((YEAR($I14)*12)+MONTH($I14)+'Set-up'!$E$11)))+1),0),IF(LEFT($AE14,1)="D",MaxPeriod,$AG14))) -> 0 | AD14: 0 | AE14: SL | AF14: 1 | AG14: =IF('Set-up'!$E$9="Daily",(DATE(YEAR($I14)+$K14+(1-$AF14),MONTH($I14),DAY($I14))+'Set-up'!$E$11)-($I14+'Set-up'!$E$11),$K14*12) -> 60 | AH14: =ROUNDDOWN(MIN(MAX(((IF($M14="-",((YEAR($I$2)*12)+MONTH($I$2)),MIN(((YEAR($I$2)*12)+MONTH($I$2)),((YEAR($M14)*12)+MONTH($M14)-'Set-up'!$E$13)))-(((YEAR($I14)*12)+MONTH($I14)+'Set-up'!$E$11)))),0),IF(LEFT($AE14,1)="D",MaxPeriod,$AG14))/12,0) -> 5 | AI14: =ROUNDDOWN(MIN(MAX(((IF($M14="-",((YEAR($H$2)*12)+MONTH($H$2)-1),MIN(((YEAR($H$2)*12)+MONTH($H$2)-1),((YEAR($M14)*12)+MONTH($M14)-'Set-up'!$E$13)))-(((YEAR($I14)*12)+MONTH($I14)+'Set-up'!$E$11)))),0),IF(LEFT($AE14,1)="D",MaxPeriod,$AG14))/12,0) -> 4 | AJ14: =ROUNDDOWN(MIN(MAX(((IF($M14="-",((YEAR($J$2)*12)+MONTH($J$2)-1),MIN(((YEAR($J$2)*12)+MONTH($J$2)-1),((YEAR($M14)*12)+MONTH($M14)-'Set-up'!$E$13)))-(((YEAR($I14)*12)+MONTH($I14)+'Set-up'!$E$11)))),0),IF(LEFT($AE14,1)="D",MaxPeriod,$AG14))/12,0) -> 5 | AK14: =ROUNDDOWN(MIN(MAX(((IF($M14="-",0,((YEAR($M14)*12)+MONTH($M14)-'Set-up'!$E$13))-(((YEAR($I14)*12)+MONTH($I14)+'Set-up'!$E$11)))),0),IF(LEFT($AE14,1)="D",MaxPeriod,$AG14))/12,0) -> 0 | AL14: =IF('Set-up'!$E$9="Daily",MIN(MAX(((IF($M14="-",$I$2,MIN($I$2,$M14-'Set-up'!$E$13))-((DATE(YEAR($I14)+$AH14,MONTH($I14),DAY($I14))+'Set-up'!$E$11)))+1),0),IF(LEFT($AE14,1)="D",MaxPeriod,$AG14)),0) -> 0 | AM14: =IF('Set-up'!$E$9="Daily",MIN(MAX(((IF($M14="-",$H$2-1,MIN($H$2-1,$M14-'Set-up'!$E$13))-(DATE(YEAR($I14)+$AI14,MONTH($I14),DAY($I14))+'Set-up'!$E$11))+1),0),IF(LEFT($AE14,1)="D",MaxPeriod,$AG14)),0) -> 0 | AN14: =IF('Set-up'!$E$9="Daily",MIN(MAX(((IF($M14="-",$J$2-1,MIN($J$2-1,$M14-'Set-up'!$E$13))-(DATE(YEAR($I14)+$AJ14,MONTH($I14),DAY($I14))+'Set-up'!$E$11))+1),0),IF(LEFT($AE14,1)="D",MaxPeriod,$AG14)),0) -> 0 | AO14: =IF('Set-up'!$E$9="Daily",MIN(MAX(((IF($M14="-",0,$M14-'Set-up'!$E$13)-(DATE(YEAR($I14)+$AK14,MONTH($I14),DAY($I14))+'Set-up'!$E$11))+1),0),IF(LEFT($AE14,1)="D",MaxPeriod,$AG14)),0) -> 0 | AP14: =IF('Set-up'!$E$9="Daily",DATE(YEAR($I14)+$AH14+1,MONTH($I14),DAY($I14))-DATE(YEAR($I14)+$AH14,MONTH($I14),DAY($I14)),0) -> 0 | AQ14: =IF('Set-up'!$E$9="Daily",DATE(YEAR($I14)+$AI14+1,MONTH($I14),DAY($I14))-DATE(YEAR($I14)+$AI14,MONTH($I14),DAY($I14)),0) -> 0 | AR14: =IF('Set-up'!$E$9="Daily",DATE(YEAR($I14)+$AJ14+1,MONTH($I14),DAY($I14))-DATE(YEAR($I14)+$AJ14,MONTH($I14),DAY($I14)),0) -> 0 | AS14: =IF('Set-up'!$E$9="Daily",DATE(YEAR($I14)+$AK14+1,MONTH($I14),DAY($I14))-DATE(YEAR($I14)+$AK14,MONTH($I14),DAY($I14)),0) -> 0
A15: PP-00010 | B15: 31837864 | C15: Aquino T7 CNC Machine | D15: Owned | E15: PPM01 | F15: SL | G15: =IF(COUNTIF(AssetCode,$A15)>1,"E1",IF(ISNA(VLOOKUP($E15,CatAll,1,0))=TRUE,"E2",IF($I15="Add!","E10","-"))) -> - | H15: PM | I15: =IF(SUMIFS(TransIDDate,TransAsset,$A15,TransType,"ACQ")=0,"Add!",SUMIFS(TransIDDate,TransAsset,$A15,TransType,"ACQ")) -> 2015-07-20 | J15: 422200 | K15: 5 | L15: 0 | M15: =IF(SUMIFS(TransIDDate,TransAsset,$A15,TransType,"DIS")=0,"-",IF(SUMIFS(TransIDDate,TransAsset,$A15,TransType,"DIS")<=$I$2,SUMIFS(TransIDDate,TransAsset,$A15,TransType,"DIS"),"-")) -> - | N15: =IF($M15<=$I$2,SUMIFS(TransProceeds,TransAsset,$A15,TransType,"DIS"),0) -> 0 | O15: =IF(AND($M15<>"-",$M15<$H$2),0,SUMIFS(TransAmount,TransAsset,$A15,TransIDDate,"<"&$H$2,TransType,"ACQ")) -> 422200 | P15: 0 | Q15: 0 | R15: 422200 | S15: =IF(AND($M15<>"-",$M15<$H$2),0,IF($K15=0,0,IF(LEFT($AE15,1)="D",(($J15-$L15)*(1-((1-$AD15)^$AI15)))+(($J15-$L15)*(((1-$AD15)^$AI15)-((1-$AD15)^($AI15+1)))*IF('Set-up'!$E$9="Monthly",($AA15-($AI15*12))/12,$AM15/$AQ15)),($J15-$L15)/$AG15*$AA15))) -> 394053.3333 | T15: =IF($K15=0,0,IF(LEFT($AE15,1)="D",((($J15-$L15)*(1-((1-$AD15)^$AH15)))+(($J15-$L15)*(((1-$AD15)^$AH15)-((1-$AD15)^($AH15+1)))*IF('Set-up'!$E$9="Monthly",($Z15-($AH15*12))/12,$AL15/$AP15)))-(($J15-$L15)*(1-((1-$AD15)^$AI15)))-(($J15-$L15)*(((1-$AD15)^$AI15)-((1-$AD15)^($AI15+1)))*IF('Set-up'!$E$9="Monthly",($AA15-($AI15*12))/12,$AM15/$AQ15)),(($J15-$L15)/$AG15*$Z15)-(($J15-$L15)/$AG15*$AA15))) -> 28146.66667 | U15: =-IF(AND($M15>=$H$2,$M15<=$I$2),IF(LEFT($AE15,1)="D",(($J15-$L15)*(1-((1-$AD15)^$AK15)))+(($J15-$L15)*(((1-$AD15)^$AK15)-((1-$AD15)^($AK15+1)))*IF('Set-up'!$E$9="Monthly",($AC15-($AK15*12))/12,$AO15/$AS15)),IF($K15=0,0,($J15-$L15)/$AG15*$AC15)),0) -> 0 | V15: 422200 | W15: 0 | X15: 0 | Y15: =IF($K15=0,0,IF(LEFT($AE15,1)="D",((($J15-$L15)*(1-((1-$AD15)^$AH15)))+(($J15-$L15)*(((1-$AD15)^$AH15)-((1-$AD15)^($AH15+1)))*IF('Set-up'!$E$9="Monthly",($Z15-($AH15*12))/12,$AL15/$AP15)))-(($J15-$L15)*(1-((1-$AD15)^$AJ15)))-(($J15-$L15)*(((1-$AD15)^$AJ15)-((1-$AD15)^($AJ15+1)))*IF('Set-up'!$E$9="Monthly",($AB15-($AJ15*12))/12,$AN15/$AR15)),(($J15-$L15)/$AG15*$Z15)-(($J15-$L15)/$AG15*$AB15))) -> 0 | Z15: =IF('Set-up'!$E$9="Daily",MIN(MAX(((IF($M15="-",$I$2,MIN($I$2,$M15-'Set-up'!$E$13))-(($I15+'Set-up'!$E$11)))+1),0),IF(LEFT($AE15,1)="D",MaxPeriod,$AG15)),MIN(MAX(((IF($M15="-",((YEAR($I$2)*12)+MONTH($I$2)),MIN(((YEAR($I$2)*12)+MONTH($I$2)),((YEAR($M15)*12)+MONTH($M15)-'Set-up'!$E$13)))-(((YEAR($I15)*12)+MONTH($I15)+'Set-up'!$E$11)))+1),0),IF(LEFT($AE15,1)="D",MaxPeriod,$AG15))) -> 60 | AA15: =IF('Set-up'!$E$9="Daily",MIN(MAX(((IF($M15="-",$H$2-1,MIN($H$2-1,$M15-'Set-up'!$E$13))-($I15+'Set-up'!$E$11))+1),0),IF(LEFT($AE15,1)="D",MaxPeriod,$AG15)),MIN(MAX(((IF($M15="-",((YEAR($H$2)*12)+MONTH($H$2)-1),MIN(((YEAR($H$2)*12)+MONTH($H$2)-1),((YEAR($M15)*12)+MONTH($M15)-'Set-up'!$E$13)))-(((YEAR($I15)*12)+MONTH($I15)+'Set-up'!$E$11)))+1),0),IF(LEFT($AE15,1)="D",MaxPeriod,$AG15))) -> 56 | AB15: =IF('Set-up'!$E$9="Daily",MIN(MAX(((IF($M15="-",$J$2-1,MIN($J$2-1,$M15-'Set-up'!$E$13))-($I15+'Set-up'!$E$11))+1),0),IF(LEFT($AE15,1)="D",MaxPeriod,$AG15)),MIN(MAX(((IF($M15="-",((YEAR($J$2)*12)+MONTH($J$2)-1),MIN(((YEAR($J$2)*12)+MONTH($J$2)-1),((YEAR($M15)*12)+MONTH($M15)-'Set-up'!$E$13)))-(((YEAR($I15)*12)+MONTH($I15)+'Set-up'!$E$11)))+1),0),IF(LEFT($AE15,1)="D",MaxPeriod,$AG15))) -> 60 | AC15: =IF('Set-up'!$E$9="Daily",MIN(MAX(((IF($M15="-",0,$M15-'Set-up'!$E$13)-($I15+'Set-up'!$E$11))+1),0),IF(LEFT($AE15,1)="D",MaxPeriod,$AG15)),MIN(MAX(((IF($M15="-",0,((YEAR($M15)*12)+MONTH($M15)-'Set-up'!$E$13))-(((YEAR($I15)*12)+MONTH($I15)+'Set-up'!$E$11)))+1),0),IF(LEFT($AE15,1)="D",MaxPeriod,$AG15))) -> 0 | AD15: 0 | AE15: SL | AF15: 1 | AG15: =IF('Set-up'!$E$9="Daily",(DATE(YEAR($I15)+$K15+(1-$AF15),MONTH($I15),DAY($I15))+'Set-up'!$E$11)-($I15+'Set-up'!$E$11),$K15*12) -> 60 | AH15: =ROUNDDOWN(MIN(MAX(((IF($M15="-",((YEAR($I$2)*12)+MONTH($I$2)),MIN(((YEAR($I$2)*12)+MONTH($I$2)),((YEAR($M15)*12)+MONTH($M15)-'Set-up'!$E$13)))-(((YEAR($I15)*12)+MONTH($I15)+'Set-up'!$E$11)))),0),IF(LEFT($AE15,1)="D",MaxPeriod,$AG15))/12,0) -> 5 | AI15: =ROUNDDOWN(MIN(MAX(((IF($M15="-",((YEAR($H$2)*12)+MONTH($H$2)-1),MIN(((YEAR($H$2)*12)+MONTH($H$2)-1),((YEAR($M15)*12)+MONTH($M15)-'Set-up'!$E$13)))-(((YEAR($I15)*12)+MONTH($I15)+'Set-up'!$E$11)))),0),IF(LEFT($AE15,1)="D",MaxPeriod,$AG15))/12,0) -> 4 | AJ15: =ROUNDDOWN(MIN(MAX(((IF($M15="-",((YEAR($J$2)*12)+MONTH($J$2)-1),MIN(((YEAR($J$2)*12)+MONTH($J$2)-1),((YEAR($M15)*12)+MONTH($M15)-'Set-up'!$E$13)))-(((YEAR($I15)*12)+MONTH($I15)+'Set-up'!$E$11)))),0),IF(LEFT($AE15,1)="D",MaxPeriod,$AG15))/12,0) -> 5 | AK15: =ROUNDDOWN(MIN(MAX(((IF($M15="-",0,((YEAR($M15)*12)+MONTH($M15)-'Set-up'!$E$13))-(((YEAR($I15)*12)+MONTH($I15)+'Set-up'!$E$11)))),0),IF(LEFT($AE15,1)="D",MaxPeriod,$AG15))/12,0) -> 0 | AL15: =IF('Set-up'!$E$9="Daily",MIN(MAX(((IF($M15="-",$I$2,MIN($I$2,$M15-'Set-up'!$E$13))-((DATE(YEAR($I15)+$AH15,MONTH($I15),DAY($I15))+'Set-up'!$E$11)))+1),0),IF(LEFT($AE15,1)="D",MaxPeriod,$AG15)),0) -> 0 | AM15: =IF('Set-up'!$E$9="Daily",MIN(MAX(((IF($M15="-",$H$2-1,MIN($H$2-1,$M15-'Set-up'!$E$13))-(DATE(YEAR($I15)+$AI15,MONTH($I15),DAY($I15))+'Set-up'!$E$11))+1),0),IF(LEFT($AE15,1)="D",MaxPeriod,$AG15)),0) -> 0 | AN15: =IF('Set-up'!$E$9="Daily",MIN(MAX(((IF($M15="-",$J$2-1,MIN($J$2-1,$M15-'Set-up'!$E$13))-(DATE(YEAR($I15)+$AJ15,MONTH($I15),DAY($I15))+'Set-up'!$E$11))+1),0),IF(LEFT($AE15,1)="D",MaxPeriod,$AG15)),0) -> 0 | AO15: =IF('Set-up'!$E$9="Daily",MIN(MAX(((IF($M15="-",0,$M15-'Set-up'!$E$13)-(DATE(YEAR($I15)+$AK15,MONTH($I15),DAY($I15))+'Set-up'!$E$11))+1),0),IF(LEFT($AE15,1)="D",MaxPeriod,$AG15)),0) -> 0 | AP15: =IF('Set-up'!$E$9="Daily",DATE(YEAR($I15)+$AH15+1,MONTH($I15),DAY($I15))-DATE(YEAR($I15)+$AH15,MONTH($I15),DAY($I15)),0) -> 0 | AQ15: =IF('Set-up'!$E$9="Daily",DATE(YEAR($I15)+$AI15+1,MONTH($I15),DAY($I15))-DATE(YEAR($I15)+$AI15,MONTH($I15),DAY($I15)),0) -> 0 | AR15: =IF('Set-up'!$E$9="Daily",DATE(YEAR($I15)+$AJ15+1,MONTH($I15),DAY($I15))-DATE(YEAR($I15)+$AJ15,MONTH($I15),DAY($I15)),0) -> 0 | AS15: =IF('Set-up'!$E$9="Daily",DATE(YEAR($I15)+$AK15+1,MONTH($I15),DAY($I15))-DATE(YEAR($I15)+$AK15,MONTH($I15),DAY($I15)),0) -> 0
A16: PP-00011 | B16: 19837364 | C16: Aquino T7M | D16: Owned | E16: PPM01 | F16: SL | G16: =IF(COUNTIF(AssetCode,$A16)>1,"E1",IF(ISNA(VLOOKUP($E16,CatAll,1,0))=TRUE,"E2",IF($I16="Add!","E10","-"))) -> - | H16: PM | I16: =IF(SUMIFS(TransIDDate,TransAsset,$A16,TransType,"ACQ")=0,"Add!",SUMIFS(TransIDDate,TransAsset,$A16,TransType,"ACQ")) -> 2015-07-20 | J16: 660450 | K16: 5 | L16: 0 | M16: =IF(SUMIFS(TransIDDate,TransAsset,$A16,TransType,"DIS")=0,"-",IF(SUMIFS(TransIDDate,TransAsset,$A16,TransType,"DIS")<=$I$2,SUMIFS(TransIDDate,TransAsset,$A16,TransType,"DIS"),"-")) -> 2021-01-21 | N16: =IF($M16<=$I$2,SUMIFS(TransProceeds,TransAsset,$A16,TransType,"DIS"),0) -> 150000 | O16: =IF(AND($M16<>"-",$M16<$H$2),0,SUMIFS(TransAmount,TransAsset,$A16,TransIDDate,"<"&$H$2,TransType,"ACQ")) -> 660450 | P16: 0 | Q16: -660450 | R16: 0 | S16: =IF(AND($M16<>"-",$M16<$H$2),0,IF($K16=0,0,IF(LEFT($AE16,1)="D",(($J16-$L16)*(1-((1-$AD16)^$AI16)))+(($J16-$L16)*(((1-$AD16)^$AI16)-((1-$AD16)^($AI16+1)))*IF('Set-up'!$E$9="Monthly",($AA16-($AI16*12))/12,$AM16/$AQ16)),($J16-$L16)/$AG16*$AA16))) -> 616420 | T16: =IF($K16=0,0,IF(LEFT($AE16,1)="D",((($J16-$L16)*(1-((1-$AD16)^$AH16)))+(($J16-$L16)*(((1-$AD16)^$AH16)-((1-$AD16)^($AH16+1)))*IF('Set-up'!$E$9="Monthly",($Z16-($AH16*12))/12,$AL16/$AP16)))-(($J16-$L16)*(1-((1-$AD16)^$AI16)))-(($J16-$L16)*(((1-$AD16)^$AI16)-((1-$AD16)^($AI16+1)))*IF('Set-up'!$E$9="Monthly",($AA16-($AI16*12))/12,$AM16/$AQ16)),(($J16-$L16)/$AG16*$Z16)-(($J16-$L16)/$AG16*$AA16))) -> 44030 | U16: =-IF(AND($M16>=$H$2,$M16<=$I$2),IF(LEFT($AE16,1)="D",(($J16-$L16)*(1-((1-$AD16)^$AK16)))+(($J16-$L16)*(((1-$AD16)^$AK16)-((1-$AD16)^($AK16+1)))*IF('Set-up'!$E$9="Monthly",($AC16-($AK16*12))/12,$AO16/$AS16)),IF($K16=0,0,($J16-$L16)/$AG16*$AC16)),0) -> -660450 | V16: 0 | W16: 0 | X16: 150000 | Y16: =IF($K16=0,0,IF(LEFT($AE16,1)="D",((($J16-$L16)*(1-((1-$AD16)^$AH16)))+(($J16-$L16)*(((1-$AD16)^$AH16)-((1-$AD16)^($AH16+1)))*IF('Set-up'!$E$9="Monthly",($Z16-($AH16*12))/12,$AL16/$AP16)))-(($J16-$L16)*(1-((1-$AD16)^$AJ16)))-(($J16-$L16)*(((1-$AD16)^$AJ16)-((1-$AD16)^($AJ16+1)))*IF('Set-up'!$E$9="Monthly",($AB16-($AJ16*12))/12,$AN16/$AR16)),(($J16-$L16)/$AG16*$Z16)-(($J16-$L16)/$AG16*$AB16))) -> 0 | Z16: =IF('Set-up'!$E$9="Daily",MIN(MAX(((IF($M16="-",$I$2,MIN($I$2,$M16-'Set-up'!$E$13))-(($I16+'Set-up'!$E$11)))+1),0),IF(LEFT($AE16,1)="D",MaxPeriod,$AG16)),MIN(MAX(((IF($M16="-",((YEAR($I$2)*12)+MONTH($I$2)),MIN(((YEAR($I$2)*12)+MONTH($I$2)),((YEAR($M16)*12)+MONTH($M16)-'Set-up'!$E$13)))-(((YEAR($I16)*12)+MONTH($I16)+'Set-up'!$E$11)))+1),0),IF(LEFT($AE16,1)="D",MaxPeriod,$AG16))) -> 60 | AA16: =IF('Set-up'!$E$9="Daily",MIN(MAX(((IF($M16="-",$H$2-1,MIN($H$2-1,$M16-'Set-up'!$E$13))-($I16+'Set-up'!$E$11))+1),0),IF(LEFT($AE16,1)="D",MaxPeriod,$AG16)),MIN(MAX(((IF($M16="-",((YEAR($H$2)*12)+MONTH($H$2)-1),MIN(((YEAR($H$2)*12)+MONTH($H$2)-1),((YEAR($M16)*12)+MONTH($M16)-'Set-up'!$E$13)))-(((YEAR($I16)*12)+MONTH($I16)+'Set-up'!$E$11)))+1),0),IF(LEFT($AE16,1)="D",MaxPeriod,$AG16))) -> 56 | AB16: =IF('Set-up'!$E$9="Daily",MIN(MAX(((IF($M16="-",$J$2-1,MIN($J$2-1,$M16-'Set-up'!$E$13))-($I16+'Set-up'!$E$11))+1),0),IF(LEFT($AE16,1)="D",MaxPeriod,$AG16)),MIN(MAX(((IF($M16="-",((YEAR($J$2)*12)+MONTH($J$2)-1),MIN(((YEAR($J$2)*12)+MONTH($J$2)-1),((YEAR($M16)*12)+MONTH($M16)-'Set-up'!$E$13)))-(((YEAR($I16)*12)+MONTH($I16)+'Set-up'!$E$11)))+1),0),IF(LEFT($AE16,1)="D",MaxPeriod,$AG16))) -> 60 | AC16: =IF('Set-up'!$E$9="Daily",MIN(MAX(((IF($M16="-",0,$M16-'Set-up'!$E$13)-($I16+'Set-up'!$E$11))+1),0),IF(LEFT($AE16,1)="D",MaxPeriod,$AG16)),MIN(MAX(((IF($M16="-",0,((YEAR($M16)*12)+MONTH($M16)-'Set-up'!$E$13))-(((YEAR($I16)*12)+MONTH($I16)+'Set-up'!$E$11)))+1),0),IF(LEFT($AE16,1)="D",MaxPeriod,$AG16))) -> 60 | AD16: 0 | AE16: SL | AF16: 1 | AG16: =IF('Set-up'!$E$9="Daily",(DATE(YEAR($I16)+$K16+(1-$AF16),MONTH($I16),DAY($I16))+'Set-up'!$E$11)-($I16+'Set-up'!$E$11),$K16*12) -> 60 | AH16: =ROUNDDOWN(MIN(MAX(((IF($M16="-",((YEAR($I$2)*12)+MONTH($I$2)),MIN(((YEAR($I$2)*12)+MONTH($I$2)),((YEAR($M16)*12)+MONTH($M16)-'Set-up'!$E$13)))-(((YEAR($I16)*12)+MONTH($I16)+'Set-up'!$E$11)))),0),IF(LEFT($AE16,1)="D",MaxPeriod,$AG16))/12,0) -> 5 | AI16: =ROUNDDOWN(MIN(MAX(((IF($M16="-",((YEAR($H$2)*12)+MONTH($H$2)-1),MIN(((YEAR($H$2)*12)+MONTH($H$2)-1),((YEAR($M16)*12)+MONTH($M16)-'Set-up'!$E$13)))-(((YEAR($I16)*12)+MONTH($I16)+'Set-up'!$E$11)))),0),IF(LEFT($AE16,1)="D",MaxPeriod,$AG16))/12,0) -> 4 | AJ16: =ROUNDDOWN(MIN(MAX(((IF($M16="-",((YEAR($J$2)*12)+MONTH($J$2)-1),MIN(((YEAR($J$2)*12)+MONTH($J$2)-1),((YEAR($M16)*12)+MONTH($M16)-'Set-up'!$E$13)))-(((YEAR($I16)*12)+MONTH($I16)+'Set-up'!$E$11)))),0),IF(LEFT($AE16,1)="D",MaxPeriod,$AG16))/12,0) -> 5 | AK16: =ROUNDDOWN(MIN(MAX(((IF($M16="-",0,((YEAR($M16)*12)+MONTH($M16)-'Set-up'!$E$13))-(((YEAR($I16)*12)+MONTH($I16)+'Set-up'!$E$11)))),0),IF(LEFT($AE16,1)="D",MaxPeriod,$AG16))/12,0) -> 5 | AL16: =IF('Set-up'!$E$9="Daily",MIN(MAX(((IF($M16="-",$I$2,MIN($I$2,$M16-'Set-up'!$E$13))-((DATE(YEAR($I16)+$AH16,MONTH($I16),DAY($I16))+'Set-up'!$E$11)))+1),0),IF(LEFT($AE16,1)="D",MaxPeriod,$AG16)),0) -> 0 | AM16: =IF('Set-up'!$E$9="Daily",MIN(MAX(((IF($M16="-",$H$2-1,MIN($H$2-1,$M16-'Set-up'!$E$13))-(DATE(YEAR($I16)+$AI16,MONTH($I16),DAY($I16))+'Set-up'!$E$11))+1),0),IF(LEFT($AE16,1)="D",MaxPeriod,$AG16)),0) -> 0 | AN16: =IF('Set-up'!$E$9="Daily",MIN(MAX(((IF($M16="-",$J$2-1,MIN($J$2-1,$M16-'Set-up'!$E$13))-(DATE(YEAR($I16)+$AJ16,MONTH($I16),DAY($I16))+'Set-up'!$E$11))+1),0),IF(LEFT($AE16,1)="D",MaxPeriod,$AG16)),0) -> 0 | AO16: =IF('Set-up'!$E$9="Daily",MIN(MAX(((IF($M16="-",0,$M16-'Set-up'!$E$13)-(DATE(YEAR($I16)+$AK16,MONTH($I16),DAY($I16))+'Set-up'!$E$11))+1),0),IF(LEFT($AE16,1)="D",MaxPeriod,$AG16)),0) -> 0 | AP16: =IF('Set-up'!$E$9="Daily",DATE(YEAR($I16)+$AH16+1,MONTH($I16),DAY($I16))-DATE(YEAR($I16)+$AH16,MONTH($I16),DAY($I16)),0) -> 0 | AQ16: =IF('Set-up'!$E$9="Daily",DATE(YEAR($I16)+$AI16+1,MONTH($I16),DAY($I16))-DATE(YEAR($I16)+$AI16,MONTH($I16),DAY($I16)),0) -> 0 | AR16: =IF('Set-up'!$E$9="Daily",DATE(YEAR($I16)+$AJ16+1,MONTH($I16),DAY($I16))-DATE(YEAR($I16)+$AJ16,MONTH($I16),DAY($I16)),0) -> 0 | AS16: =IF('Set-up'!$E$9="Daily",DATE(YEAR($I16)+$AK16+1,MONTH($I16),DAY($I16))-DATE(YEAR($I16)+$AK16,MONTH($I16),DAY($I16)),0) -> 0
A17: PP-00012 | B17: 13565135 | C17: Briquetting Press | D17: Owned | E17: PPM01 | F17: SL | G17: =IF(COUNTIF(AssetCode,$A17)>1,"E1",IF(ISNA(VLOOKUP($E17,CatAll,1,0))=TRUE,"E2",IF($I17="Add!","E10","-"))) -> - | H17: PM | I17: =IF(SUMIFS(TransIDDate,TransAsset,$A17,TransType,"ACQ")=0,"Add!",SUMIFS(TransIDDate,TransAsset,$A17,TransType,"ACQ")) -> 2015-07-20 | J17: 354600 | K17: 5 | L17: 0 | M17: =IF(SUMIFS(TransIDDate,TransAsset,$A17,TransType,"DIS")=0,"-",IF(SUMIFS(TransIDDate,TransAsset,$A17,TransType,"DIS")<=$I$2,SUMIFS(TransIDDate,TransAsset,$A17,TransType,"DIS"),"-")) -> - | N17: =IF($M17<=$I$2,SUMIFS(TransProceeds,TransAsset,$A17,TransType,"DIS"),0) -> 0 | O17: =IF(AND($M17<>"-",$M17<$H$2),0,SUMIFS(TransAmount,TransAsset,$A17,TransIDDate,"<"&$H$2,TransType,"ACQ")) -> 354600 | P17: 0 | Q17: 0 | R17: 354600 | S17: =IF(AND($M17<>"-",$M17<$H$2),0,IF($K17=0,0,IF(LEFT($AE17,1)="D",(($J17-$L17)*(1-((1-$AD17)^$AI17)))+(($J17-$L17)*(((1-$AD17)^$AI17)-((1-$AD17)^($AI17+1)))*IF('Set-up'!$E$9="Monthly",($AA17-($AI17*12))/12,$AM17/$AQ17)),($J17-$L17)/$AG17*$AA17))) -> 330960 | T17: =IF($K17=0,0,IF(LEFT($AE17,1)="D",((($J17-$L17)*(1-((1-$AD17)^$AH17)))+(($J17-$L17)*(((1-$AD17)^$AH17)-((1-$AD17)^($AH17+1)))*IF('Set-up'!$E$9="Monthly",($Z17-($AH17*12))/12,$AL17/$AP17)))-(($J17-$L17)*(1-((1-$AD17)^$AI17)))-(($J17-$L17)*(((1-$AD17)^$AI17)-((1-$AD17)^($AI17+1)))*IF('Set-up'!$E$9="Monthly",($AA17-($AI17*12))/12,$AM17/$AQ17)),(($J17-$L17)/$AG17*$Z17)-(($J17-$L17)/$AG17*$AA17))) -> 23640 | U17: =-IF(AND($M17>=$H$2,$M17<=$I$2),IF(LEFT($AE17,1)="D",(($J17-$L17)*(1-((1-$AD17)^$AK17)))+(($J17-$L17)*(((1-$AD17)^$AK17)-((1-$AD17)^($AK17+1)))*IF('Set-up'!$E$9="Monthly",($AC17-($AK17*12))/12,$AO17/$AS17)),IF($K17=0,0,($J17-$L17)/$AG17*$AC17)),0) -> 0 | V17: 354600 | W17: 0 | X17: 0 | Y17: =IF($K17=0,0,IF(LEFT($AE17,1)="D",((($J17-$L17)*(1-((1-$AD17)^$AH17)))+(($J17-$L17)*(((1-$AD17)^$AH17)-((1-$AD17)^($AH17+1)))*IF('Set-up'!$E$9="Monthly",($Z17-($AH17*12))/12,$AL17/$AP17)))-(($J17-$L17)*(1-((1-$AD17)^$AJ17)))-(($J17-$L17)*(((1-$AD17)^$AJ17)-((1-$AD17)^($AJ17+1)))*IF('Set-up'!$E$9="Monthly",($AB17-($AJ17*12))/12,$AN17/$AR17)),(($J17-$L17)/$AG17*$Z17)-(($J17-$L17)/$AG17*$AB17))) -> 0 | Z17: =IF('Set-up'!$E$9="Daily",MIN(MAX(((IF($M17="-",$I$2,MIN($I$2,$M17-'Set-up'!$E$13))-(($I17+'Set-up'!$E$11)))+1),0),IF(LEFT($AE17,1)="D",MaxPeriod,$AG17)),MIN(MAX(((IF($M17="-",((YEAR($I$2)*12)+MONTH($I$2)),MIN(((YEAR($I$2)*12)+MONTH($I$2)),((YEAR($M17)*12)+MONTH($M17)-'Set-up'!$E$13)))-(((YEAR($I17)*12)+MONTH($I17)+'Set-up'!$E$11)))+1),0),IF(LEFT($AE17,1)="D",MaxPeriod,$AG17))) -> 60 | AA17: =IF('Set-up'!$E$9="Daily",MIN(MAX(((IF($M17="-",$H$2-1,MIN($H$2-1,$M17-'Set-up'!$E$13))-($I17+'Set-up'!$E$11))+1),0),IF(LEFT($AE17,1)="D",MaxPeriod,$AG17)),MIN(MAX(((IF($M17="-",((YEAR($H$2)*12)+MONTH($H$2)-1),MIN(((YEAR($H$2)*12)+MONTH($H$2)-1),((YEAR($M17)*12)+MONTH($M17)-'Set-up'!$E$13)))-(((YEAR($I17)*12)+MONTH($I17)+'Set-up'!$E$11)))+1),0),IF(LEFT($AE17,1)="D",MaxPeriod,$AG17))) -> 56 | AB17: =IF('Set-up'!$E$9="Daily",MIN(MAX(((IF($M17="-",$J$2-1,MIN($J$2-1,$M17-'Set-up'!$E$13))-($I17+'Set-up'!$E$11))+1),0),IF(LEFT($AE17,1)="D",MaxPeriod,$AG17)),MIN(MAX(((IF($M17="-",((YEAR($J$2)*12)+MONTH($J$2)-1),MIN(((YEAR($J$2)*12)+MONTH($J$2)-1),((YEAR($M17)*12)+MONTH($M17)-'Set-up'!$E$13)))-(((YEAR($I17)*12)+MONTH($I17)+'Set-up'!$E$11)))+1),0),IF(LEFT($AE17,1)="D",MaxPeriod,$AG17))) -> 60 | AC17: =IF('Set-up'!$E$9="Daily",MIN(MAX(((IF($M17="-",0,$M17-'Set-up'!$E$13)-($I17+'Set-up'!$E$11))+1),0),IF(LEFT($AE17,1)="D",MaxPeriod,$AG17)),MIN(MAX(((IF($M17="-",0,((YEAR($M17)*12)+MONTH($M17)-'Set-up'!$E$13))-(((YEAR($I17)*12)+MONTH($I17)+'Set-up'!$E$11)))+1),0),IF(LEFT($AE17,1)="D",MaxPeriod,$AG17))) -> 0 | AD17: 0 | AE17: SL | AF17: 1 | AG17: =IF('Set-up'!$E$9="Daily",(DATE(YEAR($I17)+$K17+(1-$AF17),MONTH($I17),DAY($I17))+'Set-up'!$E$11)-($I17+'Set-up'!$E$11),$K17*12) -> 60 | AH17: =ROUNDDOWN(MIN(MAX(((IF($M17="-",((YEAR($I$2)*12)+MONTH($I$2)),MIN(((YEAR($I$2)*12)+MONTH($I$2)),((YEAR($M17)*12)+MONTH($M17)-'Set-up'!$E$13)))-(((YEAR($I17)*12)+MONTH($I17)+'Set-up'!$E$11)))),0),IF(LEFT($AE17,1)="D",MaxPeriod,$AG17))/12,0) -> 5 | AI17: =ROUNDDOWN(MIN(MAX(((IF($M17="-",((YEAR($H$2)*12)+MONTH($H$2)-1),MIN(((YEAR($H$2)*12)+MONTH($H$2)-1),((YEAR($M17)*12)+MONTH($M17)-'Set-up'!$E$13)))-(((YEAR($I17)*12)+MONTH($I17)+'Set-up'!$E$11)))),0),IF(LEFT($AE17,1)="D",MaxPeriod,$AG17))/12,0) -> 4 | AJ17: =ROUNDDOWN(MIN(MAX(((IF($M17="-",((YEAR($J$2)*12)+MONTH($J$2)-1),MIN(((YEAR($J$2)*12)+MONTH($J$2)-1),((YEAR($M17)*12)+MONTH($M17)-'Set-up'!$E$13)))-(((YEAR($I17)*12)+MONTH($I17)+'Set-up'!$E$11)))),0),IF(LEFT($AE17,1)="D",MaxPeriod,$AG17))/12,0) -> 5 | AK17: =ROUNDDOWN(MIN(MAX(((IF($M17="-",0,((YEAR($M17)*12)+MONTH($M17)-'Set-up'!$E$13))-(((YEAR($I17)*12)+MONTH($I17)+'Set-up'!$E$11)))),0),IF(LEFT($AE17,1)="D",MaxPeriod,$AG17))/12,0) -> 0 | AL17: =IF('Set-up'!$E$9="Daily",MIN(MAX(((IF($M17="-",$I$2,MIN($I$2,$M17-'Set-up'!$E$13))-((DATE(YEAR($I17)+$AH17,MONTH($I17),DAY($I17))+'Set-up'!$E$11)))+1),0),IF(LEFT($AE17,1)="D",MaxPeriod,$AG17)),0) -> 0 | AM17: =IF('Set-up'!$E$9="Daily",MIN(MAX(((IF($M17="-",$H$2-1,MIN($H$2-1,$M17-'Set-up'!$E$13))-(DATE(YEAR($I17)+$AI17,MONTH($I17),DAY($I17))+'Set-up'!$E$11))+1),0),IF(LEFT($AE17,1)="D",MaxPeriod,$AG17)),0) -> 0 | AN17: =IF('Set-up'!$E$9="Daily",MIN(MAX(((IF($M17="-",$J$2-1,MIN($J$2-1,$M17-'Set-up'!$E$13))-(DATE(YEAR($I17)+$AJ17,MONTH($I17),DAY($I17))+'Set-up'!$E$11))+1),0),IF(LEFT($AE17,1)="D",MaxPeriod,$AG17)),0) -> 0 | AO17: =IF('Set-up'!$E$9="Daily",MIN(MAX(((IF($M17="-",0,$M17-'Set-up'!$E$13)-(DATE(YEAR($I17)+$AK17,MONTH($I17),DAY($I17))+'Set-up'!$E$11))+1),0),IF(LEFT($AE17,1)="D",MaxPeriod,$AG17)),0) -> 0 | AP17: =IF('Set-up'!$E$9="Daily",DATE(YEAR($I17)+$AH17+1,MONTH($I17),DAY($I17))-DATE(YEAR($I17)+$AH17,MONTH($I17),DAY($I17)),0) -> 0 | AQ17: =IF('Set-up'!$E$9="Daily",DATE(YEAR($I17)+$AI17+1,MONTH($I17),DAY($I17))-DATE(YEAR($I17)+$AI17,MONTH($I17),DAY($I17)),0) -> 0 | AR17: =IF('Set-up'!$E$9="Daily",DATE(YEAR($I17)+$AJ17+1,MONTH($I17),DAY($I17))-DATE(YEAR($I17)+$AJ17,MONTH($I17),DAY($I17)),0) -> 0 | AS17: =IF('Set-up'!$E$9="Daily",DATE(YEAR($I17)+$AK17+1,MONTH($I17),DAY($I17))-DATE(YEAR($I17)+$AK17,MONTH($I17),DAY($I17)),0) -> 0
A18: PP-00013 | B18: 65645278 | C18: Starrag -Triple Copy Mill | D18: Owned | E18: PPM01 | F18: SL | G18: =IF(COUNTIF(AssetCode,$A18)>1,"E1",IF(ISNA(VLOOKUP($E18,CatAll,1,0))=TRUE,"E2",IF($I18="Add!","E10","-"))) -> - | H18: PM | I18: =IF(SUMIFS(TransIDDate,TransAsset,$A18,TransType,"ACQ")=0,"Add!",SUMIFS(TransIDDate,TransAsset,$A18,TransType,"ACQ")) -> 2016-09-10 | J18: 12500 | K18: 5 | L18: 0 | M18: =IF(SUMIFS(TransIDDate,TransAsset,$A18,TransType,"DIS")=0,"-",IF(SUMIFS(TransIDDate,TransAsset,$A18,TransType,"DIS")<=$I$2,SUMIFS(TransIDDate,TransAsset,$A18,TransType,"DIS"),"-")) -> - | N18: =IF($M18<=$I$2,SUMIFS(TransProceeds,TransAsset,$A18,TransType,"DIS"),0) -> 0 | O18: =IF(AND($M18<>"-",$M18<$H$2),0,SUMIFS(TransAmount,TransAsset,$A18,TransIDDate,"<"&$H$2,TransType,"ACQ")) -> 12500 | P18: 0 | Q18: 0 | R18: 12500 | S18: =IF(AND($M18<>"-",$M18<$H$2),0,IF($K18=0,0,IF(LEFT($AE18,1)="D",(($J18-$L18)*(1-((1-$AD18)^$AI18)))+(($J18-$L18)*(((1-$AD18)^$AI18)-((1-$AD18)^($AI18+1)))*IF('Set-up'!$E$9="Monthly",($AA18-($AI18*12))/12,$AM18/$AQ18)),($J18-$L18)/$AG18*$AA18))) -> 8750 | T18: =IF($K18=0,0,IF(LEFT($AE18,1)="D",((($J18-$L18)*(1-((1-$AD18)^$AH18)))+(($J18-$L18)*(((1-$AD18)^$AH18)-((1-$AD18)^($AH18+1)))*IF('Set-up'!$E$9="Monthly",($Z18-($AH18*12))/12,$AL18/$AP18)))-(($J18-$L18)*(1-((1-$AD18)^$AI18)))-(($J18-$L18)*(((1-$AD18)^$AI18)-((1-$AD18)^($AI18+1)))*IF('Set-up'!$E$9="Monthly",($AA18-($AI18*12))/12,$AM18/$AQ18)),(($J18-$L18)/$AG18*$Z18)-(($J18-$L18)/$AG18*$AA18))) -> 2500 | U18: =-IF(AND($M18>=$H$2,$M18<=$I$2),IF(LEFT($AE18,1)="D",(($J18-$L18)*(1-((1-$AD18)^$AK18)))+(($J18-$L18)*(((1-$AD18)^$AK18)-((1-$AD18)^($AK18+1)))*IF('Set-up'!$E$9="Monthly",($AC18-($AK18*12))/12,$AO18/$AS18)),IF($K18=0,0,($J18-$L18)/$AG18*$AC18)),0) -> 0 | V18: 11250 | W18: 1250 | X18: 0 | Y18: =IF($K18=0,0,IF(LEFT($AE18,1)="D",((($J18-$L18)*(1-((1-$AD18)^$AH18)))+(($J18-$L18)*(((1-$AD18)^$AH18)-((1-$AD18)^($AH18+1)))*IF('Set-up'!$E$9="Monthly",($Z18-($AH18*12))/12,$AL18/$AP18)))-(($J18-$L18)*(1-((1-$AD18)^$AJ18)))-(($J18-$L18)*(((1-$AD18)^$AJ18)-((1-$AD18)^($AJ18+1)))*IF('Set-up'!$E$9="Monthly",($AB18-($AJ18*12))/12,$AN18/$AR18)),(($J18-$L18)/$AG18*$Z18)-(($J18-$L18)/$AG18*$AB18))) -> 208.3333333 | Z18: =IF('Set-up'!$E$9="Daily",MIN(MAX(((IF($M18="-",$I$2,MIN($I$2,$M18-'Set-up'!$E$13))-(($I18+'Set-up'!$E$11)))+1),0),IF(LEFT($AE18,1)="D",MaxPeriod,$AG18)),MIN(MAX(((IF($M18="-",((YEAR($I$2)*12)+MONTH($I$2)),MIN(((YEAR($I$2)*12)+MONTH($I$2)),((YEAR($M18)*12)+MONTH($M18)-'Set-up'!$E$13)))-(((YEAR($I18)*12)+MONTH($I18)+'Set-up'!$E$11)))+1),0),IF(LEFT($AE18,1)="D",MaxPeriod,$AG18))) -> 54 | AA18: =IF('Set-up'!$E$9="Daily",MIN(MAX(((IF($M18="-",$H$2-1,MIN($H$2-1,$M18-'Set-up'!$E$13))-($I18+'Set-up'!$E$11))+1),0),IF(LEFT($AE18,1)="D",MaxPeriod,$AG18)),MIN(MAX(((IF($M18="-",((YEAR($H$2)*12)+MONTH($H$2)-1),MIN(((YEAR($H$2)*12)+MONTH($H$2)-1),((YEAR($M18)*12)+MONTH($M18)-'Set-up'!$E$13)))-(((YEAR($I18)*12)+MONTH($I18)+'Set-up'!$E$11)))+1),0),IF(LEFT($AE18,1)="D",MaxPeriod,$AG18))) -> 42 | AB18: =IF('Set-up'!$E$9="Daily",MIN(MAX(((IF($M18="-",$J$2-1,MIN($J$2-1,$M18-'Set-up'!$E$13))-($I18+'Set-up'!$E$11))+1),0),IF(LEFT($AE18,1)="D",MaxPeriod,$AG18)),MIN(MAX(((IF($M18="-",((YEAR($J$2)*12)+MONTH($J$2)-1),MIN(((YEAR($J$2)*12)+MONTH($J$2)-1),((YEAR($M18)*12)+MONTH($M18)-'Set-up'!$E$13)))-(((YEAR($I18)*12)+MONTH($I18)+'Set-up'!$E$11)))+1),0),IF(LEFT($AE18,1)="D",MaxPeriod,$AG18))) -> 53 | AC18: =IF('Set-up'!$E$9="Daily",MIN(MAX(((IF($M18="-",0,$M18-'Set-up'!$E$13)-($I18+'Set-up'!$E$11))+1),0),IF(LEFT($AE18,1)="D",MaxPeriod,$AG18)),MIN(MAX(((IF($M18="-",0,((YEAR($M18)*12)+MONTH($M18)-'Set-up'!$E$13))-(((YEAR($I18)*12)+MONTH($I18)+'Set-up'!$E$11)))+1),0),IF(LEFT($AE18,1)="D",MaxPeriod,$AG18))) -> 0 | AD18: 0 | AE18: SL | AF18: 1 | AG18: =IF('Set-up'!$E$9="Daily",(DATE(YEAR($I18)+$K18+(1-$AF18),MONTH($I18),DAY($I18))+'Set-up'!$E$11)-($I18+'Set-up'!$E$11),$K18*12) -> 60 | AH18: =ROUNDDOWN(MIN(MAX(((IF($M18="-",((YEAR($I$2)*12)+MONTH($I$2)),MIN(((YEAR($I$2)*12)+MONTH($I$2)),((YEAR($M18)*12)+MONTH($M18)-'Set-up'!$E$13)))-(((YEAR($I18)*12)+MONTH($I18)+'Set-up'!$E$11)))),0),IF(LEFT($AE18,1)="D",MaxPeriod,$AG18))/12,0) -> 4 | AI18: =ROUNDDOWN(MIN(MAX(((IF($M18="-",((YEAR($H$2)*12)+MONTH($H$2)-1),MIN(((YEAR($H$2)*12)+MONTH($H$2)-1),((YEAR($M18)*12)+MONTH($M18)-'Set-up'!$E$13)))-(((YEAR($I18)*12)+MONTH($I18)+'Set-up'!$E$11)))),0),IF(LEFT($AE18,1)="D",MaxPeriod,$AG18))/12,0) -> 3 | AJ18: =ROUNDDOWN(MIN(MAX(((IF($M18="-",((YEAR($J$2)*12)+MONTH($J$2)-1),MIN(((YEAR($J$2)*12)+MONTH($J$2)-1),((YEAR($M18)*12)+MONTH($M18)-'Set-up'!$E$13)))-(((YEAR($I18)*12)+MONTH($I18)+'Set-up'!$E$11)))),0),IF(LEFT($AE18,1)="D",MaxPeriod,$AG18))/12,0) -> 4 | AK18: =ROUNDDOWN(MIN(MAX(((IF($M18="-",0,((YEAR($M18)*12)+MONTH($M18)-'Set-up'!$E$13))-(((YEAR($I18)*12)+MONTH($I18)+'Set-up'!$E$11)))),0),IF(LEFT($AE18,1)="D",MaxPeriod,$AG18))/12,0) -> 0 | AL18: =IF('Set-up'!$E$9="Daily",MIN(MAX(((IF($M18="-",$I$2,MIN($I$2,$M18-'Set-up'!$E$13))-((DATE(YEAR($I18)+$AH18,MONTH($I18),DAY($I18))+'Set-up'!$E$11)))+1),0),IF(LEFT($AE18,1)="D",MaxPeriod,$AG18)),0) -> 0 | AM18: =IF('Set-up'!$E$9="Daily",MIN(MAX(((IF($M18="-",$H$2-1,MIN($H$2-1,$M18-'Set-up'!$E$13))-(DATE(YEAR($I18)+$AI18,MONTH($I18),DAY($I18))+'Set-up'!$E$11))+1),0),IF(LEFT($AE18,1)="D",MaxPeriod,$AG18)),0) -> 0 | AN18: =IF('Set-up'!$E$9="Daily",MIN(MAX(((IF($M18="-",$J$2-1,MIN($J$2-1,$M18-'Set-up'!$E$13))-(DATE(YEAR($I18)+$AJ18,MONTH($I18),DAY($I18))+'Set-up'!$E$11))+1),0),IF(LEFT($AE18,1)="D",MaxPeriod,$AG18)),0) -> 0 | AO18: =IF('Set-up'!$E$9="Daily",MIN(MAX(((IF($M18="-",0,$M18-'Set-up'!$E$13)-(DATE(YEAR($I18)+$AK18,MONTH($I18),DAY($I18))+'Set-up'!$E$11))+1),0),IF(LEFT($AE18,1)="D",MaxPeriod,$AG18)),0) -> 0 | AP18: =IF('Set-up'!$E$9="Daily",DATE(YEAR($I18)+$AH18+1,MONTH($I18),DAY($I18))-DATE(YEAR($I18)+$AH18,MONTH($I18),DAY($I18)),0) -> 0 | AQ18: =IF('Set-up'!$E$9="Daily",DATE(YEAR($I18)+$AI18+1,MONTH($I18),DAY($I18))-DATE(YEAR($I18)+$AI18,MONTH($I18),DAY($I18)),0) -> 0 | AR18: =IF('Set-up'!$E$9="Daily",DATE(YEAR($I18)+$AJ18+1,MONTH($I18),DAY($I18))-DATE(YEAR($I18)+$AJ18,MONTH($I18),DAY($I18)),0) -> 0 | AS18: =IF('Set-up'!$E$9="Daily",DATE(YEAR($I18)+$AK18+1,MONTH($I18),DAY($I18))-DATE(YEAR($I18)+$AK18,MONTH($I18),DAY($I18)),0) -> 0
A19: PP-00014 | B19: 98290098 | C19: Churchill - RH8 Shaver | D19: Owned | E19: PPM01 | F19: SL | G19: =IF(COUNTIF(AssetCode,$A19)>1,"E1",IF(ISNA(VLOOKUP($E19,CatAll,1,0))=TRUE,"E2",IF($I19="Add!","E10","-"))) -> - | H19: PM | I19: =IF(SUMIFS(TransIDDate,TransAsset,$A19,TransType,"ACQ")=0,"Add!",SUMIFS(TransIDDate,TransAsset,$A19,TransType,"ACQ")) -> 2017-03-17 | J19: 70000 | K19: 5 | L19: 0 | M19: =IF(SUMIFS(TransIDDate,TransAsset,$A19,TransType,"DIS")=0,"-",IF(SUMIFS(TransIDDate,TransAsset,$A19,TransType,"DIS")<=$I$2,SUMIFS(TransIDDate,TransAsset,$A19,TransType,"DIS"),"-")) -> - | N19: =IF($M19<=$I$2,SUMIFS(TransProceeds,TransAsset,$A19,TransType,"DIS"),0) -> 0 | O19: =IF(AND($M19<>"-",$M19<$H$2),0,SUMIFS(TransAmount,TransAsset,$A19,TransIDDate,"<"&$H$2,TransType,"ACQ")) -> 70000 | P19: 0 | Q19: 0 | R19: 70000 | S19: =IF(AND($M19<>"-",$M19<$H$2),0,IF($K19=0,0,IF(LEFT($AE19,1)="D",(($J19-$L19)*(1-((1-$AD19)^$AI19)))+(($J19-$L19)*(((1-$AD19)^$AI19)-((1-$AD19)^($AI19+1)))*IF('Set-up'!$E$9="Monthly",($AA19-($AI19*12))/12,$AM19/$AQ19)),($J19-$L19)/$AG19*$AA19))) -> 42000 | T19: =IF($K19=0,0,IF(LEFT($AE19,1)="D",((($J19-$L19)*(1-((1-$AD19)^$AH19)))+(($J19-$L19)*(((1-$AD19)^$AH19)-((1-$AD19)^($AH19+1)))*IF('Set-up'!$E$9="Monthly",($Z19-($AH19*12))/12,$AL19/$AP19)))-(($J19-$L19)*(1-((1-$AD19)^$AI19)))-(($J19-$L19)*(((1-$AD19)^$AI19)-((1-$AD19)^($AI19+1)))*IF('Set-up'!$E$9="Monthly",($AA19-($AI19*12))/12,$AM19/$AQ19)),(($J19-$L19)/$AG19*$Z19)-(($J19-$L19)/$AG19*$AA19))) -> 14000 | U19: =-IF(AND($M19>=$H$2,$M19<=$I$2),IF(LEFT($AE19,1)="D",(($J19-$L19)*(1-((1-$AD19)^$AK19)))+(($J19-$L19)*(((1-$AD19)^$AK19)-((1-$AD19)^($AK19+1)))*IF('Set-up'!$E$9="Monthly",($AC19-($AK19*12))/12,$AO19/$AS19)),IF($K19=0,0,($J19-$L19)/$AG19*$AC19)),0) -> 0 | V19: 56000 | W19: 14000 | X19: 0 | Y19: =IF($K19=0,0,IF(LEFT($AE19,1)="D",((($J19-$L19)*(1-((1-$AD19)^$AH19)))+(($J19-$L19)*(((1-$AD19)^$AH19)-((1-$AD19)^($AH19+1)))*IF('Set-up'!$E$9="Monthly",($Z19-($AH19*12))/12,$AL19/$AP19)))-(($J19-$L19)*(1-((1-$AD19)^$AJ19)))-(($J19-$L19)*(((1-$AD19)^$AJ19)-((1-$AD19)^($AJ19+1)))*IF('Set-up'!$E$9="Monthly",($AB19-($AJ19*12))/12,$AN19/$AR19)),(($J19-$L19)/$AG19*$Z19)-(($J19-$L19)/$AG19*$AB19))) -> 1166.666667 | Z19: =IF('Set-up'!$E$9="Daily",MIN(MAX(((IF($M19="-",$I$2,MIN($I$2,$M19-'Set-up'!$E$13))-(($I19+'Set-up'!$E$11)))+1),0),IF(LEFT($AE19,1)="D",MaxPeriod,$AG19)),MIN(MAX(((IF($M19="-",((YEAR($I$2)*12)+MONTH($I$2)),MIN(((YEAR($I$2)*12)+MONTH($I$2)),((YEAR($M19)*12)+MONTH($M19)-'Set-up'!$E$13)))-(((YEAR($I19)*12)+MONTH($I19)+'Set-up'!$E$11)))+1),0),IF(LEFT($AE19,1)="D",MaxPeriod,$AG19))) -> 48 | AA19: =IF('Set-up'!$E$9="Daily",MIN(MAX(((IF($M19="-",$H$2-1,MIN($H$2-1,$M19-'Set-up'!$E$13))-($I19+'Set-up'!$E$11))+1),0),IF(LEFT($AE19,1)="D",MaxPeriod,$AG19)),MIN(MAX(((IF($M19="-",((YEAR($H$2)*12)+MONTH($H$2)-1),MIN(((YEAR($H$2)*12)+MONTH($H$2)-1),((YEAR($M19)*12)+MONTH($M19)-'Set-up'!$E$13)))-(((YEAR($I19)*12)+MONTH($I19)+'Set-up'!$E$11)))+1),0),IF(LEFT($AE19,1)="D",MaxPeriod,$AG19))) -> 36 | AB19: =IF('Set-up'!$E$9="Daily",MIN(MAX(((IF($M19="-",$J$2-1,MIN($J$2-1,$M19-'Set-up'!$E$13))-($I19+'Set-up'!$E$11))+1),0),IF(LEFT($AE19,1)="D",MaxPeriod,$AG19)),MIN(MAX(((IF($M19="-",((YEAR($J$2)*12)+MONTH($J$2)-1),MIN(((YEAR($J$2)*12)+MONTH($J$2)-1),((YEAR($M19)*12)+MONTH($M19)-'Set-up'!$E$13)))-(((YEAR($I19)*12)+MONTH($I19)+'Set-up'!$E$11)))+1),0),IF(LEFT($AE19,1)="D",MaxPeriod,$AG19))) -> 47 | AC19: =IF('Set-up'!$E$9="Daily",MIN(MAX(((IF($M19="-",0,$M19-'Set-up'!$E$13)-($I19+'Set-up'!$E$11))+1),0),IF(LEFT($AE19,1)="D",MaxPeriod,$AG19)),MIN(MAX(((IF($M19="-",0,((YEAR($M19)*12)+MONTH($M19)-'Set-up'!$E$13))-(((YEAR($I19)*12)+MONTH($I19)+'Set-up'!$E$11)))+1),0),IF(LEFT($AE19,1)="D",MaxPeriod,$AG19))) -> 0 | AD19: 0 | AE19: SL | AF19: 1 | AG19: =IF('Set-up'!$E$9="Daily",(DATE(YEAR($I19)+$K19+(1-$AF19),MONTH($I19),DAY($I19))+'Set-up'!$E$11)-($I19+'Set-up'!$E$11),$K19*12) -> 60 | AH19: =ROUNDDOWN(MIN(MAX(((IF($M19="-",((YEAR($I$2)*12)+MONTH($I$2)),MIN(((YEAR($I$2)*12)+MONTH($I$2)),((YEAR($M19)*12)+MONTH($M19)-'Set-up'!$E$13)))-(((YEAR($I19)*12)+MONTH($I19)+'Set-up'!$E$11)))),0),IF(LEFT($AE19,1)="D",MaxPeriod,$AG19))/12,0) -> 3 | AI19: =ROUNDDOWN(MIN(MAX(((IF($M19="-",((YEAR($H$2)*12)+MONTH($H$2)-1),MIN(((YEAR($H$2)*12)+MONTH($H$2)-1),((YEAR($M19)*12)+MONTH($M19)-'Set-up'!$E$13)))-(((YEAR($I19)*12)+MONTH($I19)+'Set-up'!$E$11)))),0),IF(LEFT($AE19,1)="D",MaxPeriod,$AG19))/12,0) -> 2 | AJ19: =ROUNDDOWN(MIN(MAX(((IF($M19="-",((YEAR($J$2)*12)+MONTH($J$2)-1),MIN(((YEAR($J$2)*12)+MONTH($J$2)-1),((YEAR($M19)*12)+MONTH($M19)-'Set-up'!$E$13)))-(((YEAR($I19)*12)+MONTH($I19)+'Set-up'!$E$11)))),0),IF(LEFT($AE19,1)="D",MaxPeriod,$AG19))/12,0) -> 3 | AK19: =ROUNDDOWN(MIN(MAX(((IF($M19="-",0,((YEAR($M19)*12)+MONTH($M19)-'Set-up'!$E$13))-(((YEAR($I19)*12)+MONTH($I19)+'Set-up'!$E$11)))),0),IF(LEFT($AE19,1)="D",MaxPeriod,$AG19))/12,0) -> 0 | AL19: =IF('Set-up'!$E$9="Daily",MIN(MAX(((IF($M19="-",$I$2,MIN($I$2,$M19-'Set-up'!$E$13))-((DATE(YEAR($I19)+$AH19,MONTH($I19),DAY($I19))+'Set-up'!$E$11)))+1),0),IF(LEFT($AE19,1)="D",MaxPeriod,$AG19)),0) -> 0 | AM19: =IF('Set-up'!$E$9="Daily",MIN(MAX(((IF($M19="-",$H$2-1,MIN($H$2-1,$M19-'Set-up'!$E$13))-(DATE(YEAR($I19)+$AI19,MONTH($I19),DAY($I19))+'Set-up'!$E$11))+1),0),IF(LEFT($AE19,1)="D",MaxPeriod,$AG19)),0) -> 0 | AN19: =IF('Set-up'!$E$9="Daily",MIN(MAX(((IF($M19="-",$J$2-1,MIN($J$2-1,$M19-'Set-up'!$E$13))-(DATE(YEAR($I19)+$AJ19,MONTH($I19),DAY($I19))+'Set-up'!$E$11))+1),0),IF(LEFT($AE19,1)="D",MaxPeriod,$AG19)),0) -> 0 | AO19: =IF('Set-up'!$E$9="Daily",MIN(MAX(((IF($M19="-",0,$M19-'Set-up'!$E$13)-(DATE(YEAR($I19)+$AK19,MONTH($I19),DAY($I19))+'Set-up'!$E$11))+1),0),IF(LEFT($AE19,1)="D",MaxPeriod,$AG19)),0) -> 0 | AP19: =IF('Set-up'!$E$9="Daily",DATE(YEAR($I19)+$AH19+1,MONTH($I19),DAY($I19))-DATE(YEAR($I19)+$AH19,MONTH($I19),DAY($I19)),0) -> 0 | AQ19: =IF('Set-up'!$E$9="Daily",DATE(YEAR($I19)+$AI19+1,MONTH($I19),DAY($I19))-DATE(YEAR($I19)+$AI19,MONTH($I19),DAY($I19)),0) -> 0 | AR19: =IF('Set-up'!$E$9="Daily",DATE(YEAR($I19)+$AJ19+1,MONTH($I19),DAY($I19))-DATE(YEAR($I19)+$AJ19,MONTH($I19),DAY($I19)),0) -> 0 | AS19: =IF('Set-up'!$E$9="Daily",DATE(YEAR($I19)+$AK19+1,MONTH($I19),DAY($I19))-DATE(YEAR($I19)+$AK19,MONTH($I19),DAY($I19)),0) -> 0
A20: PP-00015 | B20: 64267464 | C20: Sandmill | D20: Owned | E20: PPM01 | F20: SL | G20: =IF(COUNTIF(AssetCode,$A20)>1,"E1",IF(ISNA(VLOOKUP($E20,CatAll,1,0))=TRUE,"E2",IF($I20="Add!","E10","-"))) -> - | H20: PM | I20: =IF(SUMIFS(TransIDDate,TransAsset,$A20,TransType,"ACQ")=0,"Add!",SUMIFS(TransIDDate,TransAsset,$A20,TransType,"ACQ")) -> 2018-06-12 | J20: 15000 | K20: 5 | L20: 0 | M20: =IF(SUMIFS(TransIDDate,TransAsset,$A20,TransType,"DIS")=0,"-",IF(SUMIFS(TransIDDate,TransAsset,$A20,TransType,"DIS")<=$I$2,SUMIFS(TransIDDate,TransAsset,$A20,TransType,"DIS"),"-")) -> - | N20: =IF($M20<=$I$2,SUMIFS(TransProceeds,TransAsset,$A20,TransType,"DIS"),0) -> 0 | O20: =IF(AND($M20<>"-",$M20<$H$2),0,SUMIFS(TransAmount,TransAsset,$A20,TransIDDate,"<"&$H$2,TransType,"ACQ")) -> 15000 | P20: 0 | Q20: 0 | R20: 15000 | S20: =IF(AND($M20<>"-",$M20<$H$2),0,IF($K20=0,0,IF(LEFT($AE20,1)="D",(($J20-$L20)*(1-((1-$AD20)^$AI20)))+(($J20-$L20)*(((1-$AD20)^$AI20)-((1-$AD20)^($AI20+1)))*IF('Set-up'!$E$9="Monthly",($AA20-($AI20*12))/12,$AM20/$AQ20)),($J20-$L20)/$AG20*$AA20))) -> 5250 | T20: =IF($K20=0,0,IF(LEFT($AE20,1)="D",((($J20-$L20)*(1-((1-$AD20)^$AH20)))+(($J20-$L20)*(((1-$AD20)^$AH20)-((1-$AD20)^($AH20+1)))*IF('Set-up'!$E$9="Monthly",($Z20-($AH20*12))/12,$AL20/$AP20)))-(($J20-$L20)*(1-((1-$AD20)^$AI20)))-(($J20-$L20)*(((1-$AD20)^$AI20)-((1-$AD20)^($AI20+1)))*IF('Set-up'!$E$9="Monthly",($AA20-($AI20*12))/12,$AM20/$AQ20)),(($J20-$L20)/$AG20*$Z20)-(($J20-$L20)/$AG20*$AA20))) -> 3000 | U20: =-IF(AND($M20>=$H$2,$M20<=$I$2),IF(LEFT($AE20,1)="D",(($J20-$L20)*(1-((1-$AD20)^$AK20)))+(($J20-$L20)*(((1-$AD20)^$AK20)-((1-$AD20)^($AK20+1)))*IF('Set-up'!$E$9="Monthly",($AC20-($AK20*12))/12,$AO20/$AS20)),IF($K20=0,0,($J20-$L20)/$AG20*$AC20)),0) -> 0 | V20: 8250 | W20: 6750 | X20: 0 | Y20: =IF($K20=0,0,IF(LEFT($AE20,1)="D",((($J20-$L20)*(1-((1-$AD20)^$AH20)))+(($J20-$L20)*(((1-$AD20)^$AH20)-((1-$AD20)^($AH20+1)))*IF('Set-up'!$E$9="Monthly",($Z20-($AH20*12))/12,$AL20/$AP20)))-(($J20-$L20)*(1-((1-$AD20)^$AJ20)))-(($J20-$L20)*(((1-$AD20)^$AJ20)-((1-$AD20)^($AJ20+1)))*IF('Set-up'!$E$9="Monthly",($AB20-($AJ20*12))/12,$AN20/$AR20)),(($J20-$L20)/$AG20*$Z20)-(($J20-$L20)/$AG20*$AB20))) -> 250 | Z20: =IF('Set-up'!$E$9="Daily",MIN(MAX(((IF($M20="-",$I$2,MIN($I$2,$M20-'Set-up'!$E$13))-(($I20+'Set-up'!$E$11)))+1),0),IF(LEFT($AE20,1)="D",MaxPeriod,$AG20)),MIN(MAX(((IF($M20="-",((YEAR($I$2)*12)+MONTH($I$2)),MIN(((YEAR($I$2)*12)+MONTH($I$2)),((YEAR($M20)*12)+MONTH($M20)-'Set-up'!$E$13)))-(((YEAR($I20)*12)+MONTH($I20)+'Set-up'!$E$11)))+1),0),IF(LEFT($AE20,1)="D",MaxPeriod,$AG20))) -> 33 | AA20: =IF('Set-up'!$E$9="Daily",MIN(MAX(((IF($M20="-",$H$2-1,MIN($H$2-1,$M20-'Set-up'!$E$13))-($I20+'Set-up'!$E$11))+1),0),IF(LEFT($AE20,1)="D",MaxPeriod,$AG20)),MIN(MAX(((IF($M20="-",((YEAR($H$2)*12)+MONTH($H$2)-1),MIN(((YEAR($H$2)*12)+MONTH($H$2)-1),((YEAR($M20)*12)+MONTH($M20)-'Set-up'!$E$13)))-(((YEAR($I20)*12)+MONTH($I20)+'Set-up'!$E$11)))+1),0),IF(LEFT($AE20,1)="D",MaxPeriod,$AG20))) -> 21 | AB20: =IF('Set-up'!$E$9="Daily",MIN(MAX(((IF($M20="-",$J$2-1,MIN($J$2-1,$M20-'Set-up'!$E$13))-($I20+'Set-up'!$E$11))+1),0),IF(LEFT($AE20,1)="D",MaxPeriod,$AG20)),MIN(MAX(((IF($M20="-",((YEAR($J$2)*12)+MONTH($J$2)-1),MIN(((YEAR($J$2)*12)+MONTH($J$2)-1),((YEAR($M20)*12)+MONTH($M20)-'Set-up'!$E$13)))-(((YEAR($I20)*12)+MONTH($I20)+'Set-up'!$E$11)))+1),0),IF(LEFT($AE20,1)="D",MaxPeriod,$AG20))) -> 32 | AC20: =IF('Set-up'!$E$9="Daily",MIN(MAX(((IF($M20="-",0,$M20-'Set-up'!$E$13)-($I20+'Set-up'!$E$11))+1),0),IF(LEFT($AE20,1)="D",MaxPeriod,$AG20)),MIN(MAX(((IF($M20="-",0,((YEAR($M20)*12)+MONTH($M20)-'Set-up'!$E$13))-(((YEAR($I20)*12)+MONTH($I20)+'Set-up'!$E$11)))+1),0),IF(LEFT($AE20,1)="D",MaxPeriod,$AG20))) -> 0 | AD20: 0 | AE20: SL | AF20: 1 | AG20: =IF('Set-up'!$E$9="Daily",(DATE(YEAR($I20)+$K20+(1-$AF20),MONTH($I20),DAY($I20))+'Set-up'!$E$11)-($I20+'Set-up'!$E$11),$K20*12) -> 60 | AH20: =ROUNDDOWN(MIN(MAX(((IF($M20="-",((YEAR($I$2)*12)+MONTH($I$2)),MIN(((YEAR($I$2)*12)+MONTH($I$2)),((YEAR($M20)*12)+MONTH($M20)-'Set-up'!$E$13)))-(((YEAR($I20)*12)+MONTH($I20)+'Set-up'!$E$11)))),0),IF(LEFT($AE20,1)="D",MaxPeriod,$AG20))/12,0) -> 2 | AI20: =ROUNDDOWN(MIN(MAX(((IF($M20="-",((YEAR($H$2)*12)+MONTH($H$2)-1),MIN(((YEAR($H$2)*12)+MONTH($H$2)-1),((YEAR($M20)*12)+MONTH($M20)-'Set-up'!$E$13)))-(((YEAR($I20)*12)+MONTH($I20)+'Set-up'!$E$11)))),0),IF(LEFT($AE20,1)="D",MaxPeriod,$AG20))/12,0) -> 1 | AJ20: =ROUNDDOWN(MIN(MAX(((IF($M20="-",((YEAR($J$2)*12)+MONTH($J$2)-1),MIN(((YEAR($J$2)*12)+MONTH($J$2)-1),((YEAR($M20)*12)+MONTH($M20)-'Set-up'!$E$13)))-(((YEAR($I20)*12)+MONTH($I20)+'Set-up'!$E$11)))),0),IF(LEFT($AE20,1)="D",MaxPeriod,$AG20))/12,0) -> 2 | AK20: =ROUNDDOWN(MIN(MAX(((IF($M20="-",0,((YEAR($M20)*12)+MONTH($M20)-'Set-up'!$E$13))-(((YEAR($I20)*12)+MONTH($I20)+'Set-up'!$E$11)))),0),IF(LEFT($AE20,1)="D",MaxPeriod,$AG20))/12,0) -> 0 | AL20: =IF('Set-up'!$E$9="Daily",MIN(MAX(((IF($M20="-",$I$2,MIN($I$2,$M20-'Set-up'!$E$13))-((DATE(YEAR($I20)+$AH20,MONTH($I20),DAY($I20))+'Set-up'!$E$11)))+1),0),IF(LEFT($AE20,1)="D",MaxPeriod,$AG20)),0) -> 0 | AM20: =IF('Set-up'!$E$9="Daily",MIN(MAX(((IF($M20="-",$H$2-1,MIN($H$2-1,$M20-'Set-up'!$E$13))-(DATE(YEAR($I20)+$AI20,MONTH($I20),DAY($I20))+'Set-up'!$E$11))+1),0),IF(LEFT($AE20,1)="D",MaxPeriod,$AG20)),0) -> 0 | AN20: =IF('Set-up'!$E$9="Daily",MIN(MAX(((IF($M20="-",$J$2-1,MIN($J$2-1,$M20-'Set-up'!$E$13))-(DATE(YEAR($I20)+$AJ20,MONTH($I20),DAY($I20))+'Set-up'!$E$11))+1),0),IF(LEFT($AE20,1)="D",MaxPeriod,$AG20)),0) -> 0 | AO20: =IF('Set-up'!$E$9="Daily",MIN(MAX(((IF($M20="-",0,$M20-'Set-up'!$E$13)-(DATE(YEAR($I20)+$AK20,MONTH($I20),DAY($I20))+'Set-up'!$E$11))+1),0),IF(LEFT($AE20,1)="D",MaxPeriod,$AG20)),0) -> 0 | AP20: =IF('Set-up'!$E$9="Daily",DATE(YEAR($I20)+$AH20+1,MONTH($I20),DAY($I20))-DATE(YEAR($I20)+$AH20,MONTH($I20),DAY($I20)),0) -> 0 | AQ20: =IF('Set-up'!$E$9="Daily",DATE(YEAR($I20)+$AI20+1,MONTH($I20),DAY($I20))-DATE(YEAR($I20)+$AI20,MONTH($I20),DAY($I20)),0) -> 0 | AR20: =IF('Set-up'!$E$9="Daily",DATE(YEAR($I20)+$AJ20+1,MONTH($I20),DAY($I20))-DATE(YEAR($I20)+$AJ20,MONTH($I20),DAY($I20)),0) -> 0 | AS20: =IF('Set-up'!$E$9="Daily",DATE(YEAR($I20)+$AK20+1,MONTH($I20),DAY($I20))-DATE(YEAR($I20)+$AK20,MONTH($I20),DAY($I20)),0) -> 0
A21: PP-00016 | B21: 92849829 | C21: Collet Chuck | D21: Owned | E21: PPM01 | F21: SL | G21: =IF(COUNTIF(AssetCode,$A21)>1,"E1",IF(ISNA(VLOOKUP($E21,CatAll,1,0))=TRUE,"E2",IF($I21="Add!","E10","-"))) -> - | H21: PM | I21: =IF(SUMIFS(TransIDDate,TransAsset,$A21,TransType,"ACQ")=0,"Add!",SUMIFS(TransIDDate,TransAsset,$A21,TransType,"ACQ")) -> 2020-08-15 | J21: 3420 | K21: 5 | L21: 0 | M21: =IF(SUMIFS(TransIDDate,TransAsset,$A21,TransType,"DIS")=0,"-",IF(SUMIFS(TransIDDate,TransAsset,$A21,TransType,"DIS")<=$I$2,SUMIFS(TransIDDate,TransAsset,$A21,TransType,"DIS"),"-")) -> - | N21: =IF($M21<=$I$2,SUMIFS(TransProceeds,TransAsset,$A21,TransType,"DIS"),0) -> 0 | O21: =IF(AND($M21<>"-",$M21<$H$2),0,SUMIFS(TransAmount,TransAsset,$A21,TransIDDate,"<"&$H$2,TransType,"ACQ")) -> 0 | P21: 3420 | Q21: 0 | R21: 3420 | S21: =IF(AND($M21<>"-",$M21<$H$2),0,IF($K21=0,0,IF(LEFT($AE21,1)="D",(($J21-$L21)*(1-((1-$AD21)^$AI21)))+(($J21-$L21)*(((1-$AD21)^$AI21)-((1-$AD21)^($AI21+1)))*IF('Set-up'!$E$9="Monthly",($AA21-($AI21*12))/12,$AM21/$AQ21)),($J21-$L21)/$AG21*$AA21))) -> 0 | T21: =IF($K21=0,0,IF(LEFT($AE21,1)="D",((($J21-$L21)*(1-((1-$AD21)^$AH21)))+(($J21-$L21)*(((1-$AD21)^$AH21)-((1-$AD21)^($AH21+1)))*IF('Set-up'!$E$9="Monthly",($Z21-($AH21*12))/12,$AL21/$AP21)))-(($J21-$L21)*(1-((1-$AD21)^$AI21)))-(($J21-$L21)*(((1-$AD21)^$AI21)-((1-$AD21)^($AI21+1)))*IF('Set-up'!$E$9="Monthly",($AA21-($AI21*12))/12,$AM21/$AQ21)),(($J21-$L21)/$AG21*$Z21)-(($J21-$L21)/$AG21*$AA21))) -> 399 | U21: =-IF(AND($M21>=$H$2,$M21<=$I$2),IF(LEFT($AE21,1)="D",(($J21-$L21)*(1-((1-$AD21)^$AK21)))+(($J21-$L21)*(((1-$AD21)^$AK21)-((1-$AD21)^($AK21+1)))*IF('Set-up'!$E$9="Monthly",($AC21-($AK21*12))/12,$AO21/$AS21)),IF($K21=0,0,($J21-$L21)/$AG21*$AC21)),0) -> 0 | V21: 399 | W21: 3021 | X21: 0 | Y21: =IF($K21=0,0,IF(LEFT($AE21,1)="D",((($J21-$L21)*(1-((1-$AD21)^$AH21)))+(($J21-$L21)*(((1-$AD21)^$AH21)-((1-$AD21)^($AH21+1)))*IF('Set-up'!$E$9="Monthly",($Z21-($AH21*12))/12,$AL21/$AP21)))-(($J21-$L21)*(1-((1-$AD21)^$AJ21)))-(($J21-$L21)*(((1-$AD21)^$AJ21)-((1-$AD21)^($AJ21+1)))*IF('Set-up'!$E$9="Monthly",($AB21-($AJ21*12))/12,$AN21/$AR21)),(($J21-$L21)/$AG21*$Z21)-(($J21-$L21)/$AG21*$AB21))) -> 57 | Z21: =IF('Set-up'!$E$9="Daily",MIN(MAX(((IF($M21="-",$I$2,MIN($I$2,$M21-'Set-up'!$E$13))-(($I21+'Set-up'!$E$11)))+1),0),IF(LEFT($AE21,1)="D",MaxPeriod,$AG21)),MIN(MAX(((IF($M21="-",((YEAR($I$2)*12)+MONTH($I$2)),MIN(((YEAR($I$2)*12)+MONTH($I$2)),((YEAR($M21)*12)+MONTH($M21)-'Set-up'!$E$13)))-(((YEAR($I21)*12)+MONTH($I21)+'Set-up'!$E$11)))+1),0),IF(LEFT($AE21,1)="D",MaxPeriod,$AG21))) -> 7 | AA21: =IF('Set-up'!$E$9="Daily",MIN(MAX(((IF($M21="-",$H$2-1,MIN($H$2-1,$M21-'Set-up'!$E$13))-($I21+'Set-up'!$E$11))+1),0),IF(LEFT($AE21,1)="D",MaxPeriod,$AG21)),MIN(MAX(((IF($M21="-",((YEAR($H$2)*12)+MONTH($H$2)-1),MIN(((YEAR($H$2)*12)+MONTH($H$2)-1),((YEAR($M21)*12)+MONTH($M21)-'Set-up'!$E$13)))-(((YEAR($I21)*12)+MONTH($I21)+'Set-up'!$E$11)))+1),0),IF(LEFT($AE21,1)="D",MaxPeriod,$AG21))) -> 0 | AB21: =IF('Set-up'!$E$9="Daily",MIN(MAX(((IF($M21="-",$J$2-1,MIN($J$2-1,$M21-'Set-up'!$E$13))-($I21+'Set-up'!$E$11))+1),0),IF(LEFT($AE21,1)="D",MaxPeriod,$AG21)),MIN(MAX(((IF($M21="-",((YEAR($J$2)*12)+MONTH($J$2)-1),MIN(((YEAR($J$2)*12)+MONTH($J$2)-1),((YEAR($M21)*12)+MONTH($M21)-'Set-up'!$E$13)))-(((YEAR($I21)*12)+MONTH($I21)+'Set-up'!$E$11)))+1),0),IF(LEFT($AE21,1)="D",MaxPeriod,$AG21))) -> 6 | AC21: =IF('Set-up'!$E$9="Daily",MIN(MAX(((IF($M21="-",0,$M21-'Set-up'!$E$13)-($I21+'Set-up'!$E$11))+1),0),IF(LEFT($AE21,1)="D",MaxPeriod,$AG21)),MIN(MAX(((IF($M21="-",0,((YEAR($M21)*12)+MONTH($M21)-'Set-up'!$E$13))-(((YEAR($I21)*12)+MONTH($I21)+'Set-up'!$E$11)))+1),0),IF(LEFT($AE21,1)="D",MaxPeriod,$AG21))) -> 0 | AD21: 0 | AE21: SL | AF21: 1 | AG21: =IF('Set-up'!$E$9="Daily",(DATE(YEAR($I21)+$K21+(1-$AF21),MONTH($I21),DAY($I21))+'Set-up'!$E$11)-($I21+'Set-up'!$E$11),$K21*12) -> 60 | AH21: =ROUNDDOWN(MIN(MAX(((IF($M21="-",((YEAR($I$2)*12)+MONTH($I$2)),MIN(((YEAR($I$2)*12)+MONTH($I$2)),((YEAR($M21)*12)+MONTH($M21)-'Set-up'!$E$13)))-(((YEAR($I21)*12)+MONTH($I21)+'Set-up'!$E$11)))),0),IF(LEFT($AE21,1)="D",MaxPeriod,$AG21))/12,0) -> 0 | AI21: =ROUNDDOWN(MIN(MAX(((IF($M21="-",((YEAR($H$2)*12)+MONTH($H$2)-1),MIN(((YEAR($H$2)*12)+MONTH($H$2)-1),((YEAR($M21)*12)+MONTH($M21)-'Set-up'!$E$13)))-(((YEAR($I21)*12)+MONTH($I21)+'Set-up'!$E$11)))),0),IF(LEFT($AE21,1)="D",MaxPeriod,$AG21))/12,0) -> 0 | AJ21: =ROUNDDOWN(MIN(MAX(((IF($M21="-",((YEAR($J$2)*12)+MONTH($J$2)-1),MIN(((YEAR($J$2)*12)+MONTH($J$2)-1),((YEAR($M21)*12)+MONTH($M21)-'Set-up'!$E$13)))-(((YEAR($I21)*12)+MONTH($I21)+'Set-up'!$E$11)))),0),IF(LEFT($AE21,1)="D",MaxPeriod,$AG21))/12,0) -> 0 | AK21: =ROUNDDOWN(MIN(MAX(((IF($M21="-",0,((YEAR($M21)*12)+MONTH($M21)-'Set-up'!$E$13))-(((YEAR($I21)*12)+MONTH($I21)+'Set-up'!$E$11)))),0),IF(LEFT($AE21,1)="D",MaxPeriod,$AG21))/12,0) -> 0 | AL21: =IF('Set-up'!$E$9="Daily",MIN(MAX(((IF($M21="-",$I$2,MIN($I$2,$M21-'Set-up'!$E$13))-((DATE(YEAR($I21)+$AH21,MONTH($I21),DAY($I21))+'Set-up'!$E$11)))+1),0),IF(LEFT($AE21,1)="D",MaxPeriod,$AG21)),0) -> 0 | AM21: =IF('Set-up'!$E$9="Daily",MIN(MAX(((IF($M21="-",$H$2-1,MIN($H$2-1,$M21-'Set-up'!$E$13))-(DATE(YEAR($I21)+$AI21,MONTH($I21),DAY($I21))+'Set-up'!$E$11))+1),0),IF(LEFT($AE21,1)="D",MaxPeriod,$AG21)),0) -> 0 | AN21: =IF('Set-up'!$E$9="Daily",MIN(MAX(((IF($M21="-",$J$2-1,MIN($J$2-1,$M21-'Set-up'!$E$13))-(DATE(YEAR($I21)+$AJ21,MONTH($I21),DAY($I21))+'Set-up'!$E$11))+1),0),IF(LEFT($AE21,1)="D",MaxPeriod,$AG21)),0) -> 0 | AO21: =IF('Set-up'!$E$9="Daily",MIN(MAX(((IF($M21="-",0,$M21-'Set-up'!$E$13)-(DATE(YEAR($I21)+$AK21,MONTH($I21),DAY($I21))+'Set-up'!$E$11))+1),0),IF(LEFT($AE21,1)="D",MaxPeriod,$AG21)),0) -> 0 | AP21: =IF('Set-up'!$E$9="Daily",DATE(YEAR($I21)+$AH21+1,MONTH($I21),DAY($I21))-DATE(YEAR($I21)+$AH21,MONTH($I21),DAY($I21)),0) -> 0 | AQ21: =IF('Set-up'!$E$9="Daily",DATE(YEAR($I21)+$AI21+1,MONTH($I21),DAY($I21))-DATE(YEAR($I21)+$AI21,MONTH($I21),DAY($I21)),0) -> 0 | AR21: =IF('Set-up'!$E$9="Daily",DATE(YEAR($I21)+$AJ21+1,MONTH($I21),DAY($I21))-DATE(YEAR($I21)+$AJ21,MONTH($I21),DAY($I21)),0) -> 0 | AS21: =IF('Set-up'!$E$9="Daily",DATE(YEAR($I21)+$AK21+1,MONTH($I21),DAY($I21))-DATE(YEAR($I21)+$AK21,MONTH($I21),DAY($I21)),0) -> 0
A22: PP-00017 | B22: 902942 | C22: Toyota FG 1.8 Ton Forklift | D22: Leased | E22: PPM01 | F22: SL | G22: =IF(COUNTIF(AssetCode,$A22)>1,"E1",IF(ISNA(VLOOKUP($E22,CatAll,1,0))=TRUE,"E2",IF($I22="Add!","E10","-"))) -> - | H22: PM | I22: =IF(SUMIFS(TransIDDate,TransAsset,$A22,TransType,"ACQ")=0,"Add!",SUMIFS(TransIDDate,TransAsset,$A22,TransType,"ACQ")) -> 2021-01-20 | J22: 65000 | K22: 5 | L22: 5000 | M22: =IF(SUMIFS(TransIDDate,TransAsset,$A22,TransType,"DIS")=0,"-",IF(SUMIFS(TransIDDate,TransAsset,$A22,TransType,"DIS")<=$I$2,SUMIFS(TransIDDate,TransAsset,$A22,TransType,"DIS"),"-")) -> - | N22: =IF($M22<=$I$2,SUMIFS(TransProceeds,TransAsset,$A22,TransType,"DIS"),0) -> 0 | O22: =IF(AND($M22<>"-",$M22<$H$2),0,SUMIFS(TransAmount,TransAsset,$A22,TransIDDate,"<"&$H$2,TransType,"ACQ")) -> 0 | P22: 65000 | Q22: 0 | R22: 65000 | S22: =IF(AND($M22<>"-",$M22<$H$2),0,IF($K22=0,0,IF(LEFT($AE22,1)="D",(($J22-$L22)*(1-((1-$AD22)^$AI22)))+(($J22-$L22)*(((1-$AD22)^$AI22)-((1-$AD22)^($AI22+1)))*IF('Set-up'!$E$9="Monthly",($AA22-($AI22*12))/12,$AM22/$AQ22)),($J22-$L22)/$AG22*$AA22))) -> 0 | T22: =IF($K22=0,0,IF(LEFT($AE22,1)="D",((($J22-$L22)*(1-((1-$AD22)^$AH22)))+(($J22-$L22)*(((1-$AD22)^$AH22)-((1-$AD22)^($AH22+1)))*IF('Set-up'!$E$9="Monthly",($Z22-($AH22*12))/12,$AL22/$AP22)))-(($J22-$L22)*(1-((1-$AD22)^$AI22)))-(($J22-$L22)*(((1-$AD22)^$AI22)-((1-$AD22)^($AI22+1)))*IF('Set-up'!$E$9="Monthly",($AA22-($AI22*12))/12,$AM22/$AQ22)),(($J22-$L22)/$AG22*$Z22)-(($J22-$L22)/$AG22*$AA22))) -> 2000 | U22: =-IF(AND($M22>=$H$2,$M22<=$I$2),IF(LEFT($AE22,1)="D",(($J22-$L22)*(1-((1-$AD22)^$AK22)))+(($J22-$L22)*(((1-$AD22)^$AK22)-((1-$AD22)^($AK22+1)))*IF('Set-up'!$E$9="Monthly",($AC22-($AK22*12))/12,$AO22/$AS22)),IF($K22=0,0,($J22-$L22)/$AG22*$AC22)),0) -> 0 | V22: 2000 | W22: 63000 | X22: 0 | Y22: =IF($K22=0,0,IF(LEFT($AE22,1)="D",((($J22-$L22)*(1-((1-$AD22)^$AH22)))+(($J22-$L22)*(((1-$AD22)^$AH22)-((1-$AD22)^($AH22+1)))*IF('Set-up'!$E$9="Monthly",($Z22-($AH22*12))/12,$AL22/$AP22)))-(($J22-$L22)*(1-((1-$AD22)^$AJ22)))-(($J22-$L22)*(((1-$AD22)^$AJ22)-((1-$AD22)^($AJ22+1)))*IF('Set-up'!$E$9="Monthly",($AB22-($AJ22*12))/12,$AN22/$AR22)),(($J22-$L22)/$AG22*$Z22)-(($J22-$L22)/$AG22*$AB22))) -> 1000 | Z22: =IF('Set-up'!$E$9="Daily",MIN(MAX(((IF($M22="-",$I$2,MIN($I$2,$M22-'Set-up'!$E$13))-(($I22+'Set-up'!$E$11)))+1),0),IF(LEFT($AE22,1)="D",MaxPeriod,$AG22)),MIN(MAX(((IF($M22="-",((YEAR($I$2)*12)+MONTH($I$2)),MIN(((YEAR($I$2)*12)+MONTH($I$2)),((YEAR($M22)*12)+MONTH($M22)-'Set-up'!$E$13)))-(((YEAR($I22)*12)+MONTH($I22)+'Set-up'!$E$11)))+1),0),IF(LEFT($AE22,1)="D",MaxPeriod,$AG22))) -> 2 | AA22: =IF('Set-up'!$E$9="Daily",MIN(MAX(((IF($M22="-",$H$2-1,MIN($H$2-1,$M22-'Set-up'!$E$13))-($I22+'Set-up'!$E$11))+1),0),IF(LEFT($AE22,1)="D",MaxPeriod,$AG22)),MIN(MAX(((IF($M22="-",((YEAR($H$2)*12)+MONTH($H$2)-1),MIN(((YEAR($H$2)*12)+MONTH($H$2)-1),((YEAR($M22)*12)+MONTH($M22)-'Set-up'!$E$13)))-(((YEAR($I22)*12)+MONTH($I22)+'Set-up'!$E$11)))+1),0),IF(LEFT($AE22,1)="D",MaxPeriod,$AG22))) -> 0 | AB22: =IF('Set-up'!$E$9="Daily",MIN(MAX(((IF($M22="-",$J$2-1,MIN($J$2-1,$M22-'Set-up'!$E$13))-($I22+'Set-up'!$E$11))+1),0),IF(LEFT($AE22,1)="D",MaxPeriod,$AG22)),MIN(MAX(((IF($M22="-",((YEAR($J$2)*12)+MONTH($J$2)-1),MIN(((YEAR($J$2)*12)+MONTH($J$2)-1),((YEAR($M22)*12)+MONTH($M22)-'Set-up'!$E$13)))-(((YEAR($I22)*12)+MONTH($I22)+'Set-up'!$E$11)))+1),0),IF(LEFT($AE22,1)="D",MaxPeriod,$AG22))) -> 1 | AC22: =IF('Set-up'!$E$9="Daily",MIN(MAX(((IF($M22="-",0,$M22-'Set-up'!$E$13)-($I22+'Set-up'!$E$11))+1),0),IF(LEFT($AE22,1)="D",MaxPeriod,$AG22)),MIN(MAX(((IF($M22="-",0,((YEAR($M22)*12)+MONTH($M22)-'Set-up'!$E$13))-(((YEAR($I22)*12)+MONTH($I22)+'Set-up'!$E$11)))+1),0),IF(LEFT($AE22,1)="D",MaxPeriod,$AG22))) -> 0 | AD22: 0 | AE22: SL | AF22: 1 | AG22: =IF('Set-up'!$E$9="Daily",(DATE(YEAR($I22)+$K22+(1-$AF22),MONTH($I22),DAY($I22))+'Set-up'!$E$11)-($I22+'Set-up'!$E$11),$K22*12) -> 60 | AH22: =ROUNDDOWN(MIN(MAX(((IF($M22="-",((YEAR($I$2)*12)+MONTH($I$2)),MIN(((YEAR($I$2)*12)+MONTH($I$2)),((YEAR($M22)*12)+MONTH($M22)-'Set-up'!$E$13)))-(((YEAR($I22)*12)+MONTH($I22)+'Set-up'!$E$11)))),0),IF(LEFT($AE22,1)="D",MaxPeriod,$AG22))/12,0) -> 0 | AI22: =ROUNDDOWN(MIN(MAX(((IF($M22="-",((YEAR($H$2)*12)+MONTH($H$2)-1),MIN(((YEAR($H$2)*12)+MONTH($H$2)-1),((YEAR($M22)*12)+MONTH($M22)-'Set-up'!$E$13)))-(((YEAR($I22)*12)+MONTH($I22)+'Set-up'!$E$11)))),0),IF(LEFT($AE22,1)="D",MaxPeriod,$AG22))/12,0) -> 0 | AJ22: =ROUNDDOWN(MIN(MAX(((IF($M22="-",((YEAR($J$2)*12)+MONTH($J$2)-1),MIN(((YEAR($J$2)*12)+MONTH($J$2)-1),((YEAR($M22)*12)+MONTH($M22)-'Set-up'!$E$13)))-(((YEAR($I22)*12)+MONTH($I22)+'Set-up'!$E$11)))),0),IF(LEFT($AE22,1)="D",MaxPeriod,$AG22))/12,0) -> 0 | AK22: =ROUNDDOWN(MIN(MAX(((IF($M22="-",0,((YEAR($M22)*12)+MONTH($M22)-'Set-up'!$E$13))-(((YEAR($I22)*12)+MONTH($I22)+'Set-up'!$E$11)))),0),IF(LEFT($AE22,1)="D",MaxPeriod,$AG22))/12,0) -> 0 | AL22: =IF('Set-up'!$E$9="Daily",MIN(MAX(((IF($M22="-",$I$2,MIN($I$2,$M22-'Set-up'!$E$13))-((DATE(YEAR($I22)+$AH22,MONTH($I22),DAY($I22))+'Set-up'!$E$11)))+1),0),IF(LEFT($AE22,1)="D",MaxPeriod,$AG22)),0) -> 0 | AM22: =IF('Set-up'!$E$9="Daily",MIN(MAX(((IF($M22="-",$H$2-1,MIN($H$2-1,$M22-'Set-up'!$E$13))-(DATE(YEAR($I22)+$AI22,MONTH($I22),DAY($I22))+'Set-up'!$E$11))+1),0),IF(LEFT($AE22,1)="D",MaxPeriod,$AG22)),0) -> 0 | AN22: =IF('Set-up'!$E$9="Daily",MIN(MAX(((IF($M22="-",$J$2-1,MIN($J$2-1,$M22-'Set-up'!$E$13))-(DATE(YEAR($I22)+$AJ22,MONTH($I22),DAY($I22))+'Set-up'!$E$11))+1),0),IF(LEFT($AE22,1)="D",MaxPeriod,$AG22)),0) -> 0 | AO22: =IF('Set-up'!$E$9="Daily",MIN(MAX(((IF($M22="-",0,$M22-'Set-up'!$E$13)-(DATE(YEAR($I22)+$AK22,MONTH($I22),DAY($I22))+'Set-up'!$E$11))+1),0),IF(LEFT($AE22,1)="D",MaxPeriod,$AG22)),0) -> 0 | AP22: =IF('Set-up'!$E$9="Daily",DATE(YEAR($I22)+$AH22+1,MONTH($I22),DAY($I22))-DATE(YEAR($I22)+$AH22,MONTH($I22),DAY($I22)),0) -> 0 | AQ22: =IF('Set-up'!$E$9="Daily",DATE(YEAR($I22)+$AI22+1,MONTH($I22),DAY($I22))-DATE(YEAR($I22)+$AI22,MONTH($I22),DAY($I22)),0) -> 0 | AR22: =IF('Set-up'!$E$9="Daily",DATE(YEAR($I22)+$AJ22+1,MONTH($I22),DAY($I22))-DATE(YEAR($I22)+$AJ22,MONTH($I22),DAY($I22)),0) -> 0 | AS22: =IF('Set-up'!$E$9="Daily",DATE(YEAR($I22)+$AK22+1,MONTH($I22),DAY($I22))-DATE(YEAR($I22)+$AK22,MONTH($I22),DAY($I22)),0) -> 0
A23: PQ-00001 | B23: 783642 | C23: Hydrovane 170 Air Compressor | D23: Owned | E23: EQP01 | F23: SL | G23: =IF(COUNTIF(AssetCode,$A23)>1,"E1",IF(ISNA(VLOOKUP($E23,CatAll,1,0))=TRUE,"E2",IF($I23="Add!","E10","-"))) -> - | H23: PM | I23: =IF(SUMIFS(TransIDDate,TransAsset,$A23,TransType,"ACQ")=0,"Add!",SUMIFS(TransIDDate,TransAsset,$A23,TransType,"ACQ")) -> 2015-07-20 | J23: 15000 | K23: 5 | L23: 0 | M23: =IF(SUMIFS(TransIDDate,TransAsset,$A23,TransType,"DIS")=0,"-",IF(SUMIFS(TransIDDate,TransAsset,$A23,TransType,"DIS")<=$I$2,SUMIFS(TransIDDate,TransAsset,$A23,TransType,"DIS"),"-")) -> - | N23: =IF($M23<=$I$2,SUMIFS(TransProceeds,TransAsset,$A23,TransType,"DIS"),0) -> 0 | O23: =IF(AND($M23<>"-",$M23<$H$2),0,SUMIFS(TransAmount,TransAsset,$A23,TransIDDate,"<"&$H$2,TransType,"ACQ")) -> 15000 | P23: 0 | Q23: 0 | R23: 15000 | S23: =IF(AND($M23<>"-",$M23<$H$2),0,IF($K23=0,0,IF(LEFT($AE23,1)="D",(($J23-$L23)*(1-((1-$AD23)^$AI23)))+(($J23-$L23)*(((1-$AD23)^$AI23)-((1-$AD23)^($AI23+1)))*IF('Set-up'!$E$9="Monthly",($AA23-($AI23*12))/12,$AM23/$AQ23)),($J23-$L23)/$AG23*$AA23))) -> 14000 | T23: =IF($K23=0,0,IF(LEFT($AE23,1)="D",((($J23-$L23)*(1-((1-$AD23)^$AH23)))+(($J23-$L23)*(((1-$AD23)^$AH23)-((1-$AD23)^($AH23+1)))*IF('Set-up'!$E$9="Monthly",($Z23-($AH23*12))/12,$AL23/$AP23)))-(($J23-$L23)*(1-((1-$AD23)^$AI23)))-(($J23-$L23)*(((1-$AD23)^$AI23)-((1-$AD23)^($AI23+1)))*IF('Set-up'!$E$9="Monthly",($AA23-($AI23*12))/12,$AM23/$AQ23)),(($J23-$L23)/$AG23*$Z23)-(($J23-$L23)/$AG23*$AA23))) -> 1000 | U23: =-IF(AND($M23>=$H$2,$M23<=$I$2),IF(LEFT($AE23,1)="D",(($J23-$L23)*(1-((1-$AD23)^$AK23)))+(($J23-$L23)*(((1-$AD23)^$AK23)-((1-$AD23)^($AK23+1)))*IF('Set-up'!$E$9="Monthly",($AC23-($AK23*12))/12,$AO23/$AS23)),IF($K23=0,0,($J23-$L23)/$AG23*$AC23)),0) -> 0 | V23: 15000 | W23: 0 | X23: 0 | Y23: =IF($K23=0,0,IF(LEFT($AE23,1)="D",((($J23-$L23)*(1-((1-$AD23)^$AH23)))+(($J23-$L23)*(((1-$AD23)^$AH23)-((1-$AD23)^($AH23+1)))*IF('Set-up'!$E$9="Monthly",($Z23-($AH23*12))/12,$AL23/$AP23)))-(($J23-$L23)*(1-((1-$AD23)^$AJ23)))-(($J23-$L23)*(((1-$AD23)^$AJ23)-((1-$AD23)^($AJ23+1)))*IF('Set-up'!$E$9="Monthly",($AB23-($AJ23*12))/12,$AN23/$AR23)),(($J23-$L23)/$AG23*$Z23)-(($J23-$L23)/$AG23*$AB23))) -> 0 | Z23: =IF('Set-up'!$E$9="Daily",MIN(MAX(((IF($M23="-",$I$2,MIN($I$2,$M23-'Set-up'!$E$13))-(($I23+'Set-up'!$E$11)))+1),0),IF(LEFT($AE23,1)="D",MaxPeriod,$AG23)),MIN(MAX(((IF($M23="-",((YEAR($I$2)*12)+MONTH($I$2)),MIN(((YEAR($I$2)*12)+MONTH($I$2)),((YEAR($M23)*12)+MONTH($M23)-'Set-up'!$E$13)))-(((YEAR($I23)*12)+MONTH($I23)+'Set-up'!$E$11)))+1),0),IF(LEFT($AE23,1)="D",MaxPeriod,$AG23))) -> 60 | AA23: =IF('Set-up'!$E$9="Daily",MIN(MAX(((IF($M23="-",$H$2-1,MIN($H$2-1,$M23-'Set-up'!$E$13))-($I23+'Set-up'!$E$11))+1),0),IF(LEFT($AE23,1)="D",MaxPeriod,$AG23)),MIN(MAX(((IF($M23="-",((YEAR($H$2)*12)+MONTH($H$2)-1),MIN(((YEAR($H$2)*12)+MONTH($H$2)-1),((YEAR($M23)*12)+MONTH($M23)-'Set-up'!$E$13)))-(((YEAR($I23)*12)+MONTH($I23)+'Set-up'!$E$11)))+1),0),IF(LEFT($AE23,1)="D",MaxPeriod,$AG23))) -> 56 | AB23: =IF('Set-up'!$E$9="Daily",MIN(MAX(((IF($M23="-",$J$2-1,MIN($J$2-1,$M23-'Set-up'!$E$13))-($I23+'Set-up'!$E$11))+1),0),IF(LEFT($AE23,1)="D",MaxPeriod,$AG23)),MIN(MAX(((IF($M23="-",((YEAR($J$2)*12)+MONTH($J$2)-1),MIN(((YEAR($J$2)*12)+MONTH($J$2)-1),((YEAR($M23)*12)+MONTH($M23)-'Set-up'!$E$13)))-(((YEAR($I23)*12)+MONTH($I23)+'Set-up'!$E$11)))+1),0),IF(LEFT($AE23,1)="D",MaxPeriod,$AG23))) -> 60 | AC23: =IF('Set-up'!$E$9="Daily",MIN(MAX(((IF($M23="-",0,$M23-'Set-up'!$E$13)-($I23+'Set-up'!$E$11))+1),0),IF(LEFT($AE23,1)="D",MaxPeriod,$AG23)),MIN(MAX(((IF($M23="-",0,((YEAR($M23)*12)+MONTH($M23)-'Set-up'!$E$13))-(((YEAR($I23)*12)+MONTH($I23)+'Set-up'!$E$11)))+1),0),IF(LEFT($AE23,1)="D",MaxPeriod,$AG23))) -> 0 | AD23: 0 | AE23: SL | AF23: 1 | AG23: =IF('Set-up'!$E$9="Daily",(DATE(YEAR($I23)+$K23+(1-$AF23),MONTH($I23),DAY($I23))+'Set-up'!$E$11)-($I23+'Set-up'!$E$11),$K23*12) -> 60 | AH23: =ROUNDDOWN(MIN(MAX(((IF($M23="-",((YEAR($I$2)*12)+MONTH($I$2)),MIN(((YEAR($I$2)*12)+MONTH($I$2)),((YEAR($M23)*12)+MONTH($M23)-'Set-up'!$E$13)))-(((YEAR($I23)*12)+MONTH($I23)+'Set-up'!$E$11)))),0),IF(LEFT($AE23,1)="D",MaxPeriod,$AG23))/12,0) -> 5 | AI23: =ROUNDDOWN(MIN(MAX(((IF($M23="-",((YEAR($H$2)*12)+MONTH($H$2)-1),MIN(((YEAR($H$2)*12)+MONTH($H$2)-1),((YEAR($M23)*12)+MONTH($M23)-'Set-up'!$E$13)))-(((YEAR($I23)*12)+MONTH($I23)+'Set-up'!$E$11)))),0),IF(LEFT($AE23,1)="D",MaxPeriod,$AG23))/12,0) -> 4 | AJ23: =ROUNDDOWN(MIN(MAX(((IF($M23="-",((YEAR($J$2)*12)+MONTH($J$2)-1),MIN(((YEAR($J$2)*12)+MONTH($J$2)-1),((YEAR($M23)*12)+MONTH($M23)-'Set-up'!$E$13)))-(((YEAR($I23)*12)+MONTH($I23)+'Set-up'!$E$11)))),0),IF(LEFT($AE23,1)="D",MaxPeriod,$AG23))/12,0) -> 5 | AK23: =ROUNDDOWN(MIN(MAX(((IF($M23="-",0,((YEAR($M23)*12)+MONTH($M23)-'Set-up'!$E$13))-(((YEAR($I23)*12)+MONTH($I23)+'Set-up'!$E$11)))),0),IF(LEFT($AE23,1)="D",MaxPeriod,$AG23))/12,0) -> 0 | AL23: =IF('Set-up'!$E$9="Daily",MIN(MAX(((IF($M23="-",$I$2,MIN($I$2,$M23-'Set-up'!$E$13))-((DATE(YEAR($I23)+$AH23,MONTH($I23),DAY($I23))+'Set-up'!$E$11)))+1),0),IF(LEFT($AE23,1)="D",MaxPeriod,$AG23)),0) -> 0 | AM23: =IF('Set-up'!$E$9="Daily",MIN(MAX(((IF($M23="-",$H$2-1,MIN($H$2-1,$M23-'Set-up'!$E$13))-(DATE(YEAR($I23)+$AI23,MONTH($I23),DAY($I23))+'Set-up'!$E$11))+1),0),IF(LEFT($AE23,1)="D",MaxPeriod,$AG23)),0) -> 0 | AN23: =IF('Set-up'!$E$9="Daily",MIN(MAX(((IF($M23="-",$J$2-1,MIN($J$2-1,$M23-'Set-up'!$E$13))-(DATE(YEAR($I23)+$AJ23,MONTH($I23),DAY($I23))+'Set-up'!$E$11))+1),0),IF(LEFT($AE23,1)="D",MaxPeriod,$AG23)),0) -> 0 | AO23: =IF('Set-up'!$E$9="Daily",MIN(MAX(((IF($M23="-",0,$M23-'Set-up'!$E$13)-(DATE(YEAR($I23)+$AK23,MONTH($I23),DAY($I23))+'Set-up'!$E$11))+1),0),IF(LEFT($AE23,1)="D",MaxPeriod,$AG23)),0) -> 0 | AP23: =IF('Set-up'!$E$9="Daily",DATE(YEAR($I23)+$AH23+1,MONTH($I23),DAY($I23))-DATE(YEAR($I23)+$AH23,MONTH($I23),DAY($I23)),0) -> 0 | AQ23: =IF('Set-up'!$E$9="Daily",DATE(YEAR($I23)+$AI23+1,MONTH($I23),DAY($I23))-DATE(YEAR($I23)+$AI23,MONTH($I23),DAY($I23)),0) -> 0 | AR23: =IF('Set-up'!$E$9="Daily",DATE(YEAR($I23)+$AJ23+1,MONTH($I23),DAY($I23))-DATE(YEAR($I23)+$AJ23,MONTH($I23),DAY($I23)),0) -> 0 | AS23: =IF('Set-up'!$E$9="Daily",DATE(YEAR($I23)+$AK23+1,MONTH($I23),DAY($I23))-DATE(YEAR($I23)+$AK23,MONTH($I23),DAY($I23)),0) -> 0
A24: PQ-00002 | B24: 998239 | C24: Kraft Vertical Bandsaw | D24: Owned | E24: EQP01 | F24: SL | G24: =IF(COUNTIF(AssetCode,$A24)>1,"E1",IF(ISNA(VLOOKUP($E24,CatAll,1,0))=TRUE,"E2",IF($I24="Add!","E10","-"))) -> - | H24: PM | I24: =IF(SUMIFS(TransIDDate,TransAsset,$A24,TransType,"ACQ")=0,"Add!",SUMIFS(TransIDDate,TransAsset,$A24,TransType,"ACQ")) -> 2015-07-20 | J24: 1500 | K24: 5 | L24: 0 | M24: =IF(SUMIFS(TransIDDate,TransAsset,$A24,TransType,"DIS")=0,"-",IF(SUMIFS(TransIDDate,TransAsset,$A24,TransType,"DIS")<=$I$2,SUMIFS(TransIDDate,TransAsset,$A24,TransType,"DIS"),"-")) -> - | N24: =IF($M24<=$I$2,SUMIFS(TransProceeds,TransAsset,$A24,TransType,"DIS"),0) -> 0 | O24: =IF(AND($M24<>"-",$M24<$H$2),0,SUMIFS(TransAmount,TransAsset,$A24,TransIDDate,"<"&$H$2,TransType,"ACQ")) -> 1500 | P24: 0 | Q24: 0 | R24: 1500 | S24: =IF(AND($M24<>"-",$M24<$H$2),0,IF($K24=0,0,IF(LEFT($AE24,1)="D",(($J24-$L24)*(1-((1-$AD24)^$AI24)))+(($J24-$L24)*(((1-$AD24)^$AI24)-((1-$AD24)^($AI24+1)))*IF('Set-up'!$E$9="Monthly",($AA24-($AI24*12))/12,$AM24/$AQ24)),($J24-$L24)/$AG24*$AA24))) -> 1400 | T24: =IF($K24=0,0,IF(LEFT($AE24,1)="D",((($J24-$L24)*(1-((1-$AD24)^$AH24)))+(($J24-$L24)*(((1-$AD24)^$AH24)-((1-$AD24)^($AH24+1)))*IF('Set-up'!$E$9="Monthly",($Z24-($AH24*12))/12,$AL24/$AP24)))-(($J24-$L24)*(1-((1-$AD24)^$AI24)))-(($J24-$L24)*(((1-$AD24)^$AI24)-((1-$AD24)^($AI24+1)))*IF('Set-up'!$E$9="Monthly",($AA24-($AI24*12))/12,$AM24/$AQ24)),(($J24-$L24)/$AG24*$Z24)-(($J24-$L24)/$AG24*$AA24))) -> 100 | U24: =-IF(AND($M24>=$H$2,$M24<=$I$2),IF(LEFT($AE24,1)="D",(($J24-$L24)*(1-((1-$AD24)^$AK24)))+(($J24-$L24)*(((1-$AD24)^$AK24)-((1-$AD24)^($AK24+1)))*IF('Set-up'!$E$9="Monthly",($AC24-($AK24*12))/12,$AO24/$AS24)),IF($K24=0,0,($J24-$L24)/$AG24*$AC24)),0) -> 0 | V24: 1500 | W24: 0 | X24: 0 | Y24: =IF($K24=0,0,IF(LEFT($AE24,1)="D",((($J24-$L24)*(1-((1-$AD24)^$AH24)))+(($J24-$L24)*(((1-$AD24)^$AH24)-((1-$AD24)^($AH24+1)))*IF('Set-up'!$E$9="Monthly",($Z24-($AH24*12))/12,$AL24/$AP24)))-(($J24-$L24)*(1-((1-$AD24)^$AJ24)))-(($J24-$L24)*(((1-$AD24)^$AJ24)-((1-$AD24)^($AJ24+1)))*IF('Set-up'!$E$9="Monthly",($AB24-($AJ24*12))/12,$AN24/$AR24)),(($J24-$L24)/$AG24*$Z24)-(($J24-$L24)/$AG24*$AB24))) -> 0 | Z24: =IF('Set-up'!$E$9="Daily",MIN(MAX(((IF($M24="-",$I$2,MIN($I$2,$M24-'Set-up'!$E$13))-(($I24+'Set-up'!$E$11)))+1),0),IF(LEFT($AE24,1)="D",MaxPeriod,$AG24)),MIN(MAX(((IF($M24="-",((YEAR($I$2)*12)+MONTH($I$2)),MIN(((YEAR($I$2)*12)+MONTH($I$2)),((YEAR($M24)*12)+MONTH($M24)-'Set-up'!$E$13)))-(((YEAR($I24)*12)+MONTH($I24)+'Set-up'!$E$11)))+1),0),IF(LEFT($AE24,1)="D",MaxPeriod,$AG24))) -> 60 | AA24: =IF('Set-up'!$E$9="Daily",MIN(MAX(((IF($M24="-",$H$2-1,MIN($H$2-1,$M24-'Set-up'!$E$13))-($I24+'Set-up'!$E$11))+1),0),IF(LEFT($AE24,1)="D",MaxPeriod,$AG24)),MIN(MAX(((IF($M24="-",((YEAR($H$2)*12)+MONTH($H$2)-1),MIN(((YEAR($H$2)*12)+MONTH($H$2)-1),((YEAR($M24)*12)+MONTH($M24)-'Set-up'!$E$13)))-(((YEAR($I24)*12)+MONTH($I24)+'Set-up'!$E$11)))+1),0),IF(LEFT($AE24,1)="D",MaxPeriod,$AG24))) -> 56 | AB24: =IF('Set-up'!$E$9="Daily",MIN(MAX(((IF($M24="-",$J$2-1,MIN($J$2-1,$M24-'Set-up'!$E$13))-($I24+'Set-up'!$E$11))+1),0),IF(LEFT($AE24,1)="D",MaxPeriod,$AG24)),MIN(MAX(((IF($M24="-",((YEAR($J$2)*12)+MONTH($J$2)-1),MIN(((YEAR($J$2)*12)+MONTH($J$2)-1),((YEAR($M24)*12)+MONTH($M24)-'Set-up'!$E$13)))-(((YEAR($I24)*12)+MONTH($I24)+'Set-up'!$E$11)))+1),0),IF(LEFT($AE24,1)="D",MaxPeriod,$AG24))) -> 60 | AC24: =IF('Set-up'!$E$9="Daily",MIN(MAX(((IF($M24="-",0,$M24-'Set-up'!$E$13)-($I24+'Set-up'!$E$11))+1),0),IF(LEFT($AE24,1)="D",MaxPeriod,$AG24)),MIN(MAX(((IF($M24="-",0,((YEAR($M24)*12)+MONTH($M24)-'Set-up'!$E$13))-(((YEAR($I24)*12)+MONTH($I24)+'Set-up'!$E$11)))+1),0),IF(LEFT($AE24,1)="D",MaxPeriod,$AG24))) -> 0 | AD24: 0 | AE24: SL | AF24: 1 | AG24: =IF('Set-up'!$E$9="Daily",(DATE(YEAR($I24)+$K24+(1-$AF24),MONTH($I24),DAY($I24))+'Set-up'!$E$11)-($I24+'Set-up'!$E$11),$K24*12) -> 60 | AH24: =ROUNDDOWN(MIN(MAX(((IF($M24="-",((YEAR($I$2)*12)+MONTH($I$2)),MIN(((YEAR($I$2)*12)+MONTH($I$2)),((YEAR($M24)*12)+MONTH($M24)-'Set-up'!$E$13)))-(((YEAR($I24)*12)+MONTH($I24)+'Set-up'!$E$11)))),0),IF(LEFT($AE24,1)="D",MaxPeriod,$AG24))/12,0) -> 5 | AI24: =ROUNDDOWN(MIN(MAX(((IF($M24="-",((YEAR($H$2)*12)+MONTH($H$2)-1),MIN(((YEAR($H$2)*12)+MONTH($H$2)-1),((YEAR($M24)*12)+MONTH($M24)-'Set-up'!$E$13)))-(((YEAR($I24)*12)+MONTH($I24)+'Set-up'!$E$11)))),0),IF(LEFT($AE24,1)="D",MaxPeriod,$AG24))/12,0) -> 4 | AJ24: =ROUNDDOWN(MIN(MAX(((IF($M24="-",((YEAR($J$2)*12)+MONTH($J$2)-1),MIN(((YEAR($J$2)*12)+MONTH($J$2)-1),((YEAR($M24)*12)+MONTH($M24)-'Set-up'!$E$13)))-(((YEAR($I24)*12)+MONTH($I24)+'Set-up'!$E$11)))),0),IF(LEFT($AE24,1)="D",MaxPeriod,$AG24))/12,0) -> 5 | AK24: =ROUNDDOWN(MIN(MAX(((IF($M24="-",0,((YEAR($M24)*12)+MONTH($M24)-'Set-up'!$E$13))-(((YEAR($I24)*12)+MONTH($I24)+'Set-up'!$E$11)))),0),IF(LEFT($AE24,1)="D",MaxPeriod,$AG24))/12,0) -> 0 | AL24: =IF('Set-up'!$E$9="Daily",MIN(MAX(((IF($M24="-",$I$2,MIN($I$2,$M24-'Set-up'!$E$13))-((DATE(YEAR($I24)+$AH24,MONTH($I24),DAY($I24))+'Set-up'!$E$11)))+1),0),IF(LEFT($AE24,1)="D",MaxPeriod,$AG24)),0) -> 0 | AM24: =IF('Set-up'!$E$9="Daily",MIN(MAX(((IF($M24="-",$H$2-1,MIN($H$2-1,$M24-'Set-up'!$E$13))-(DATE(YEAR($I24)+$AI24,MONTH($I24),DAY($I24))+'Set-up'!$E$11))+1),0),IF(LEFT($AE24,1)="D",MaxPeriod,$AG24)),0) -> 0 | AN24: =IF('Set-up'!$E$9="Daily",MIN(MAX(((IF($M24="-",$J$2-1,MIN($J$2-1,$M24-'Set-up'!$E$13))-(DATE(YEAR($I24)+$AJ24,MONTH($I24),DAY($I24))+'Set-up'!$E$11))+1),0),IF(LEFT($AE24,1)="D",MaxPeriod,$AG24)),0) -> 0 | AO24: =IF('Set-up'!$E$9="Daily",MIN(MAX(((IF($M24="-",0,$M24-'Set-up'!$E$13)-(DATE(YEAR($I24)+$AK24,MONTH($I24),DAY($I24))+'Set-up'!$E$11))+1),0),IF(LEFT($AE24,1)="D",MaxPeriod,$AG24)),0) -> 0 | AP24: =IF('Set-up'!$E$9="Daily",DATE(YEAR($I24)+$AH24+1,MONTH($I24),DAY($I24))-DATE(YEAR($I24)+$AH24,MONTH($I24),DAY($I24)),0) -> 0 | AQ24: =IF('Set-up'!$E$9="Daily",DATE(YEAR($I24)+$AI24+1,MONTH($I24),DAY($I24))-DATE(YEAR($I24)+$AI24,MONTH($I24),DAY($I24)),0) -> 0 | AR24: =IF('Set-up'!$E$9="Daily",DATE(YEAR($I24)+$AJ24+1,MONTH($I24),DAY($I24))-DATE(YEAR($I24)+$AJ24,MONTH($I24),DAY($I24)),0) -> 0 | AS24: =IF('Set-up'!$E$9="Daily",DATE(YEAR($I24)+$AK24+1,MONTH($I24),DAY($I24))-DATE(YEAR($I24)+$AK24,MONTH($I24),DAY($I24)),0) -> 0
A25: PQ-00003 | B25: 367627 | C25: Surface Grinder | D25: Owned | E25: EQP01 | F25: SL | G25: =IF(COUNTIF(AssetCode,$A25)>1,"E1",IF(ISNA(VLOOKUP($E25,CatAll,1,0))=TRUE,"E2",IF($I25="Add!","E10","-"))) -> - | H25: PM | I25: =IF(SUMIFS(TransIDDate,TransAsset,$A25,TransType,"ACQ")=0,"Add!",SUMIFS(TransIDDate,TransAsset,$A25,TransType,"ACQ")) -> 2015-07-20 | J25: 42200 | K25: 5 | L25: 0 | M25: =IF(SUMIFS(TransIDDate,TransAsset,$A25,TransType,"DIS")=0,"-",IF(SUMIFS(TransIDDate,TransAsset,$A25,TransType,"DIS")<=$I$2,SUMIFS(TransIDDate,TransAsset,$A25,TransType,"DIS"),"-")) -> - | N25: =IF($M25<=$I$2,SUMIFS(TransProceeds,TransAsset,$A25,TransType,"DIS"),0) -> 0 | O25: =IF(AND($M25<>"-",$M25<$H$2),0,SUMIFS(TransAmount,TransAsset,$A25,TransIDDate,"<"&$H$2,TransType,"ACQ")) -> 42200 | P25: 0 | Q25: 0 | R25: 42200 | S25: =IF(AND($M25<>"-",$M25<$H$2),0,IF($K25=0,0,IF(LEFT($AE25,1)="D",(($J25-$L25)*(1-((1-$AD25)^$AI25)))+(($J25-$L25)*(((1-$AD25)^$AI25)-((1-$AD25)^($AI25+1)))*IF('Set-up'!$E$9="Monthly",($AA25-($AI25*12))/12,$AM25/$AQ25)),($J25-$L25)/$AG25*$AA25))) -> 39386.66667 | T25: =IF($K25=0,0,IF(LEFT($AE25,1)="D",((($J25-$L25)*(1-((1-$AD25)^$AH25)))+(($J25-$L25)*(((1-$AD25)^$AH25)-((1-$AD25)^($AH25+1)))*IF('Set-up'!$E$9="Monthly",($Z25-($AH25*12))/12,$AL25/$AP25)))-(($J25-$L25)*(1-((1-$AD25)^$AI25)))-(($J25-$L25)*(((1-$AD25)^$AI25)-((1-$AD25)^($AI25+1)))*IF('Set-up'!$E$9="Monthly",($AA25-($AI25*12))/12,$AM25/$AQ25)),(($J25-$L25)/$AG25*$Z25)-(($J25-$L25)/$AG25*$AA25))) -> 2813.333333 | U25: =-IF(AND($M25>=$H$2,$M25<=$I$2),IF(LEFT($AE25,1)="D",(($J25-$L25)*(1-((1-$AD25)^$AK25)))+(($J25-$L25)*(((1-$AD25)^$AK25)-((1-$AD25)^($AK25+1)))*IF('Set-up'!$E$9="Monthly",($AC25-($AK25*12))/12,$AO25/$AS25)),IF($K25=0,0,($J25-$L25)/$AG25*$AC25)),0) -> 0 | V25: 42200 | W25: 0 | X25: 0 | Y25: =IF($K25=0,0,IF(LEFT($AE25,1)="D",((($J25-$L25)*(1-((1-$AD25)^$AH25)))+(($J25-$L25)*(((1-$AD25)^$AH25)-((1-$AD25)^($AH25+1)))*IF('Set-up'!$E$9="Monthly",($Z25-($AH25*12))/12,$AL25/$AP25)))-(($J25-$L25)*(1-((1-$AD25)^$AJ25)))-(($J25-$L25)*(((1-$AD25)^$AJ25)-((1-$AD25)^($AJ25+1)))*IF('Set-up'!$E$9="Monthly",($AB25-($AJ25*12))/12,$AN25/$AR25)),(($J25-$L25)/$AG25*$Z25)-(($J25-$L25)/$AG25*$AB25))) -> 0 | Z25: =IF('Set-up'!$E$9="Daily",MIN(MAX(((IF($M25="-",$I$2,MIN($I$2,$M25-'Set-up'!$E$13))-(($I25+'Set-up'!$E$11)))+1),0),IF(LEFT($AE25,1)="D",MaxPeriod,$AG25)),MIN(MAX(((IF($M25="-",((YEAR($I$2)*12)+MONTH($I$2)),MIN(((YEAR($I$2)*12)+MONTH($I$2)),((YEAR($M25)*12)+MONTH($M25)-'Set-up'!$E$13)))-(((YEAR($I25)*12)+MONTH($I25)+'Set-up'!$E$11)))+1),0),IF(LEFT($AE25,1)="D",MaxPeriod,$AG25))) -> 60 | AA25: =IF('Set-up'!$E$9="Daily",MIN(MAX(((IF($M25="-",$H$2-1,MIN($H$2-1,$M25-'Set-up'!$E$13))-($I25+'Set-up'!$E$11))+1),0),IF(LEFT($AE25,1)="D",MaxPeriod,$AG25)),MIN(MAX(((IF($M25="-",((YEAR($H$2)*12)+MONTH($H$2)-1),MIN(((YEAR($H$2)*12)+MONTH($H$2)-1),((YEAR($M25)*12)+MONTH($M25)-'Set-up'!$E$13)))-(((YEAR($I25)*12)+MONTH($I25)+'Set-up'!$E$11)))+1),0),IF(LEFT($AE25,1)="D",MaxPeriod,$AG25))) -> 56 | AB25: =IF('Set-up'!$E$9="Daily",MIN(MAX(((IF($M25="-",$J$2-1,MIN($J$2-1,$M25-'Set-up'!$E$13))-($I25+'Set-up'!$E$11))+1),0),IF(LEFT($AE25,1)="D",MaxPeriod,$AG25)),MIN(MAX(((IF($M25="-",((YEAR($J$2)*12)+MONTH($J$2)-1),MIN(((YEAR($J$2)*12)+MONTH($J$2)-1),((YEAR($M25)*12)+MONTH($M25)-'Set-up'!$E$13)))-(((YEAR($I25)*12)+MONTH($I25)+'Set-up'!$E$11)))+1),0),IF(LEFT($AE25,1)="D",MaxPeriod,$AG25))) -> 60 | AC25: =IF('Set-up'!$E$9="Daily",MIN(MAX(((IF($M25="-",0,$M25-'Set-up'!$E$13)-($I25+'Set-up'!$E$11))+1),0),IF(LEFT($AE25,1)="D",MaxPeriod,$AG25)),MIN(MAX(((IF($M25="-",0,((YEAR($M25)*12)+MONTH($M25)-'Set-up'!$E$13))-(((YEAR($I25)*12)+MONTH($I25)+'Set-up'!$E$11)))+1),0),IF(LEFT($AE25,1)="D",MaxPeriod,$AG25))) -> 0 | AD25: 0 | AE25: SL | AF25: 1 | AG25: =IF('Set-up'!$E$9="Daily",(DATE(YEAR($I25)+$K25+(1-$AF25),MONTH($I25),DAY($I25))+'Set-up'!$E$11)-($I25+'Set-up'!$E$11),$K25*12) -> 60 | AH25: =ROUNDDOWN(MIN(MAX(((IF($M25="-",((YEAR($I$2)*12)+MONTH($I$2)),MIN(((YEAR($I$2)*12)+MONTH($I$2)),((YEAR($M25)*12)+MONTH($M25)-'Set-up'!$E$13)))-(((YEAR($I25)*12)+MONTH($I25)+'Set-up'!$E$11)))),0),IF(LEFT($AE25,1)="D",MaxPeriod,$AG25))/12,0) -> 5 | AI25: =ROUNDDOWN(MIN(MAX(((IF($M25="-",((YEAR($H$2)*12)+MONTH($H$2)-1),MIN(((YEAR($H$2)*12)+MONTH($H$2)-1),((YEAR($M25)*12)+MONTH($M25)-'Set-up'!$E$13)))-(((YEAR($I25)*12)+MONTH($I25)+'Set-up'!$E$11)))),0),IF(LEFT($AE25,1)="D",MaxPeriod,$AG25))/12,0) -> 4 | AJ25: =ROUNDDOWN(MIN(MAX(((IF($M25="-",((YEAR($J$2)*12)+MONTH($J$2)-1),MIN(((YEAR($J$2)*12)+MONTH($J$2)-1),((YEAR($M25)*12)+MONTH($M25)-'Set-up'!$E$13)))-(((YEAR($I25)*12)+MONTH($I25)+'Set-up'!$E$11)))),0),IF(LEFT($AE25,1)="D",MaxPeriod,$AG25))/12,0) -> 5 | AK25: =ROUNDDOWN(MIN(MAX(((IF($M25="-",0,((YEAR($M25)*12)+MONTH($M25)-'Set-up'!$E$13))-(((YEAR($I25)*12)+MONTH($I25)+'Set-up'!$E$11)))),0),IF(LEFT($AE25,1)="D",MaxPeriod,$AG25))/12,0) -> 0 | AL25: =IF('Set-up'!$E$9="Daily",MIN(MAX(((IF($M25="-",$I$2,MIN($I$2,$M25-'Set-up'!$E$13))-((DATE(YEAR($I25)+$AH25,MONTH($I25),DAY($I25))+'Set-up'!$E$11)))+1),0),IF(LEFT($AE25,1)="D",MaxPeriod,$AG25)),0) -> 0 | AM25: =IF('Set-up'!$E$9="Daily",MIN(MAX(((IF($M25="-",$H$2-1,MIN($H$2-1,$M25-'Set-up'!$E$13))-(DATE(YEAR($I25)+$AI25,MONTH($I25),DAY($I25))+'Set-up'!$E$11))+1),0),IF(LEFT($AE25,1)="D",MaxPeriod,$AG25)),0) -> 0 | AN25: =IF('Set-up'!$E$9="Daily",MIN(MAX(((IF($M25="-",$J$2-1,MIN($J$2-1,$M25-'Set-up'!$E$13))-(DATE(YEAR($I25)+$AJ25,MONTH($I25),DAY($I25))+'Set-up'!$E$11))+1),0),IF(LEFT($AE25,1)="D",MaxPeriod,$AG25)),0) -> 0 | AO25: =IF('Set-up'!$E$9="Daily",MIN(MAX(((IF($M25="-",0,$M25-'Set-up'!$E$13)-(DATE(YEAR($I25)+$AK25,MONTH($I25),DAY($I25))+'Set-up'!$E$11))+1),0),IF(LEFT($AE25,1)="D",MaxPeriod,$AG25)),0) -> 0 | AP25: =IF('Set-up'!$E$9="Daily",DATE(YEAR($I25)+$AH25+1,MONTH($I25),DAY($I25))-DATE(YEAR($I25)+$AH25,MONTH($I25),DAY($I25)),0) -> 0 | AQ25: =IF('Set-up'!$E$9="Daily",DATE(YEAR($I25)+$AI25+1,MONTH($I25),DAY($I25))-DATE(YEAR($I25)+$AI25,MONTH($I25),DAY($I25)),0) -> 0 | AR25: =IF('Set-up'!$E$9="Daily",DATE(YEAR($I25)+$AJ25+1,MONTH($I25),DAY($I25))-DATE(YEAR($I25)+$AJ25,MONTH($I25),DAY($I25)),0) -> 0 | AS25: =IF('Set-up'!$E$9="Daily",DATE(YEAR($I25)+$AK25+1,MONTH($I25),DAY($I25))-DATE(YEAR($I25)+$AK25,MONTH($I25),DAY($I25)),0) -> 0
A26: PQ-00004 | B26: 636489 | C26: IM4 Engraver | D26: Owned | E26: EQP01 | F26: SL | G26: =IF(COUNTIF(AssetCode,$A26)>1,"E1",IF(ISNA(VLOOKUP($E26,CatAll,1,0))=TRUE,"E2",IF($I26="Add!","E10","-"))) -> - | H26: PM | I26: =IF(SUMIFS(TransIDDate,TransAsset,$A26,TransType,"ACQ")=0,"Add!",SUMIFS(TransIDDate,TransAsset,$A26,TransType,"ACQ")) -> 2015-07-20 | J26: 36900 | K26: 5 | L26: 0 | M26: =IF(SUMIFS(TransIDDate,TransAsset,$A26,TransType,"DIS")=0,"-",IF(SUMIFS(TransIDDate,TransAsset,$A26,TransType,"DIS")<=$I$2,SUMIFS(TransIDDate,TransAsset,$A26,TransType,"DIS"),"-")) -> - | N26: =IF($M26<=$I$2,SUMIFS(TransProceeds,TransAsset,$A26,TransType,"DIS"),0) -> 0 | O26: =IF(AND($M26<>"-",$M26<$H$2),0,SUMIFS(TransAmount,TransAsset,$A26,TransIDDate,"<"&$H$2,TransType,"ACQ")) -> 36900 | P26: 0 | Q26: 0 | R26: 36900 | S26: =IF(AND($M26<>"-",$M26<$H$2),0,IF($K26=0,0,IF(LEFT($AE26,1)="D",(($J26-$L26)*(1-((1-$AD26)^$AI26)))+(($J26-$L26)*(((1-$AD26)^$AI26)-((1-$AD26)^($AI26+1)))*IF('Set-up'!$E$9="Monthly",($AA26-($AI26*12))/12,$AM26/$AQ26)),($J26-$L26)/$AG26*$AA26))) -> 34440 | T26: =IF($K26=0,0,IF(LEFT($AE26,1)="D",((($J26-$L26)*(1-((1-$AD26)^$AH26)))+(($J26-$L26)*(((1-$AD26)^$AH26)-((1-$AD26)^($AH26+1)))*IF('Set-up'!$E$9="Monthly",($Z26-($AH26*12))/12,$AL26/$AP26)))-(($J26-$L26)*(1-((1-$AD26)^$AI26)))-(($J26-$L26)*(((1-$AD26)^$AI26)-((1-$AD26)^($AI26+1)))*IF('Set-up'!$E$9="Monthly",($AA26-($AI26*12))/12,$AM26/$AQ26)),(($J26-$L26)/$AG26*$Z26)-(($J26-$L26)/$AG26*$AA26))) -> 2460 | U26: =-IF(AND($M26>=$H$2,$M26<=$I$2),IF(LEFT($AE26,1)="D",(($J26-$L26)*(1-((1-$AD26)^$AK26)))+(($J26-$L26)*(((1-$AD26)^$AK26)-((1-$AD26)^($AK26+1)))*IF('Set-up'!$E$9="Monthly",($AC26-($AK26*12))/12,$AO26/$AS26)),IF($K26=0,0,($J26-$L26)/$AG26*$AC26)),0) -> 0 | V26: 36900 | W26: 0 | X26: 0 | Y26: =IF($K26=0,0,IF(LEFT($AE26,1)="D",((($J26-$L26)*(1-((1-$AD26)^$AH26)))+(($J26-$L26)*(((1-$AD26)^$AH26)-((1-$AD26)^($AH26+1)))*IF('Set-up'!$E$9="Monthly",($Z26-($AH26*12))/12,$AL26/$AP26)))-(($J26-$L26)*(1-((1-$AD26)^$AJ26)))-(($J26-$L26)*(((1-$AD26)^$AJ26)-((1-$AD26)^($AJ26+1)))*IF('Set-up'!$E$9="Monthly",($AB26-($AJ26*12))/12,$AN26/$AR26)),(($J26-$L26)/$AG26*$Z26)-(($J26-$L26)/$AG26*$AB26))) -> 0 | Z26: =IF('Set-up'!$E$9="Daily",MIN(MAX(((IF($M26="-",$I$2,MIN($I$2,$M26-'Set-up'!$E$13))-(($I26+'Set-up'!$E$11)))+1),0),IF(LEFT($AE26,1)="D",MaxPeriod,$AG26)),MIN(MAX(((IF($M26="-",((YEAR($I$2)*12)+MONTH($I$2)),MIN(((YEAR($I$2)*12)+MONTH($I$2)),((YEAR($M26)*12)+MONTH($M26)-'Set-up'!$E$13)))-(((YEAR($I26)*12)+MONTH($I26)+'Set-up'!$E$11)))+1),0),IF(LEFT($AE26,1)="D",MaxPeriod,$AG26))) -> 60 | AA26: =IF('Set-up'!$E$9="Daily",MIN(MAX(((IF($M26="-",$H$2-1,MIN($H$2-1,$M26-'Set-up'!$E$13))-($I26+'Set-up'!$E$11))+1),0),IF(LEFT($AE26,1)="D",MaxPeriod,$AG26)),MIN(MAX(((IF($M26="-",((YEAR($H$2)*12)+MONTH($H$2)-1),MIN(((YEAR($H$2)*12)+MONTH($H$2)-1),((YEAR($M26)*12)+MONTH($M26)-'Set-up'!$E$13)))-(((YEAR($I26)*12)+MONTH($I26)+'Set-up'!$E$11)))+1),0),IF(LEFT($AE26,1)="D",MaxPeriod,$AG26))) -> 56 | AB26: =IF('Set-up'!$E$9="Daily",MIN(MAX(((IF($M26="-",$J$2-1,MIN($J$2-1,$M26-'Set-up'!$E$13))-($I26+'Set-up'!$E$11))+1),0),IF(LEFT($AE26,1)="D",MaxPeriod,$AG26)),MIN(MAX(((IF($M26="-",((YEAR($J$2)*12)+MONTH($J$2)-1),MIN(((YEAR($J$2)*12)+MONTH($J$2)-1),((YEAR($M26)*12)+MONTH($M26)-'Set-up'!$E$13)))-(((YEAR($I26)*12)+MONTH($I26)+'Set-up'!$E$11)))+1),0),IF(LEFT($AE26,1)="D",MaxPeriod,$AG26))) -> 60 | AC26: =IF('Set-up'!$E$9="Daily",MIN(MAX(((IF($M26="-",0,$M26-'Set-up'!$E$13)-($I26+'Set-up'!$E$11))+1),0),IF(LEFT($AE26,1)="D",MaxPeriod,$AG26)),MIN(MAX(((IF($M26="-",0,((YEAR($M26)*12)+MONTH($M26)-'Set-up'!$E$13))-(((YEAR($I26)*12)+MONTH($I26)+'Set-up'!$E$11)))+1),0),IF(LEFT($AE26,1)="D",MaxPeriod,$AG26))) -> 0 | AD26: 0 | AE26: SL | AF26: 1 | AG26: =IF('Set-up'!$E$9="Daily",(DATE(YEAR($I26)+$K26+(1-$AF26),MONTH($I26),DAY($I26))+'Set-up'!$E$11)-($I26+'Set-up'!$E$11),$K26*12) -> 60 | AH26: =ROUNDDOWN(MIN(MAX(((IF($M26="-",((YEAR($I$2)*12)+MONTH($I$2)),MIN(((YEAR($I$2)*12)+MONTH($I$2)),((YEAR($M26)*12)+MONTH($M26)-'Set-up'!$E$13)))-(((YEAR($I26)*12)+MONTH($I26)+'Set-up'!$E$11)))),0),IF(LEFT($AE26,1)="D",MaxPeriod,$AG26))/12,0) -> 5 | AI26: =ROUNDDOWN(MIN(MAX(((IF($M26="-",((YEAR($H$2)*12)+MONTH($H$2)-1),MIN(((YEAR($H$2)*12)+MONTH($H$2)-1),((YEAR($M26)*12)+MONTH($M26)-'Set-up'!$E$13)))-(((YEAR($I26)*12)+MONTH($I26)+'Set-up'!$E$11)))),0),IF(LEFT($AE26,1)="D",MaxPeriod,$AG26))/12,0) -> 4 | AJ26: =ROUNDDOWN(MIN(MAX(((IF($M26="-",((YEAR($J$2)*12)+MONTH($J$2)-1),MIN(((YEAR($J$2)*12)+MONTH($J$2)-1),((YEAR($M26)*12)+MONTH($M26)-'Set-up'!$E$13)))-(((YEAR($I26)*12)+MONTH($I26)+'Set-up'!$E$11)))),0),IF(LEFT($AE26,1)="D",MaxPeriod,$AG26))/12,0) -> 5 | AK26: =ROUNDDOWN(MIN(MAX(((IF($M26="-",0,((YEAR($M26)*12)+MONTH($M26)-'Set-up'!$E$13))-(((YEAR($I26)*12)+MONTH($I26)+'Set-up'!$E$11)))),0),IF(LEFT($AE26,1)="D",MaxPeriod,$AG26))/12,0) -> 0 | AL26: =IF('Set-up'!$E$9="Daily",MIN(MAX(((IF($M26="-",$I$2,MIN($I$2,$M26-'Set-up'!$E$13))-((DATE(YEAR($I26)+$AH26,MONTH($I26),DAY($I26))+'Set-up'!$E$11)))+1),0),IF(LEFT($AE26,1)="D",MaxPeriod,$AG26)),0) -> 0 | AM26: =IF('Set-up'!$E$9="Daily",MIN(MAX(((IF($M26="-",$H$2-1,MIN($H$2-1,$M26-'Set-up'!$E$13))-(DATE(YEAR($I26)+$AI26,MONTH($I26),DAY($I26))+'Set-up'!$E$11))+1),0),IF(LEFT($AE26,1)="D",MaxPeriod,$AG26)),0) -> 0 | AN26: =IF('Set-up'!$E$9="Daily",MIN(MAX(((IF($M26="-",$J$2-1,MIN($J$2-1,$M26-'Set-up'!$E$13))-(DATE(YEAR($I26)+$AJ26,MONTH($I26),DAY($I26))+'Set-up'!$E$11))+1),0),IF(LEFT($AE26,1)="D",MaxPeriod,$AG26)),0) -> 0 | AO26: =IF('Set-up'!$E$9="Daily",MIN(MAX(((IF($M26="-",0,$M26-'Set-up'!$E$13)-(DATE(YEAR($I26)+$AK26,MONTH($I26),DAY($I26))+'Set-up'!$E$11))+1),0),IF(LEFT($AE26,1)="D",MaxPeriod,$AG26)),0) -> 0 | AP26: =IF('Set-up'!$E$9="Daily",DATE(YEAR($I26)+$AH26+1,MONTH($I26),DAY($I26))-DATE(YEAR($I26)+$AH26,MONTH($I26),DAY($I26)),0) -> 0 | AQ26: =IF('Set-up'!$E$9="Daily",DATE(YEAR($I26)+$AI26+1,MONTH($I26),DAY($I26))-DATE(YEAR($I26)+$AI26,MONTH($I26),DAY($I26)),0) -> 0 | AR26: =IF('Set-up'!$E$9="Daily",DATE(YEAR($I26)+$AJ26+1,MONTH($I26),DAY($I26))-DATE(YEAR($I26)+$AJ26,MONTH($I26),DAY($I26)),0) -> 0 | AS26: =IF('Set-up'!$E$9="Daily",DATE(YEAR($I26)+$AK26+1,MONTH($I26),DAY($I26))-DATE(YEAR($I26)+$AK26,MONTH($I26),DAY($I26)),0) -> 0
A27: PQ-00005 | B27: 226563 | C27: Yun Shuen 4Hkv Std Milling Machine | D27: Owned | E27: EQP01 | F27: SL | G27: =IF(COUNTIF(AssetCode,$A27)>1,"E1",IF(ISNA(VLOOKUP($E27,CatAll,1,0))=TRUE,"E2",IF($I27="Add!","E10","-"))) -> - | H27: PM | I27: =IF(SUMIFS(TransIDDate,TransAsset,$A27,TransType,"ACQ")=0,"Add!",SUMIFS(TransIDDate,TransAsset,$A27,TransType,"ACQ")) -> 2015-07-20 | J27: 49950 | K27: 5 | L27: 0 | M27: =IF(SUMIFS(TransIDDate,TransAsset,$A27,TransType,"DIS")=0,"-",IF(SUMIFS(TransIDDate,TransAsset,$A27,TransType,"DIS")<=$I$2,SUMIFS(TransIDDate,TransAsset,$A27,TransType,"DIS"),"-")) -> - | N27: =IF($M27<=$I$2,SUMIFS(TransProceeds,TransAsset,$A27,TransType,"DIS"),0) -> 0 | O27: =IF(AND($M27<>"-",$M27<$H$2),0,SUMIFS(TransAmount,TransAsset,$A27,TransIDDate,"<"&$H$2,TransType,"ACQ")) -> 49950 | P27: 0 | Q27: 0 | R27: 49950 | S27: =IF(AND($M27<>"-",$M27<$H$2),0,IF($K27=0,0,IF(LEFT($AE27,1)="D",(($J27-$L27)*(1-((1-$AD27)^$AI27)))+(($J27-$L27)*(((1-$AD27)^$AI27)-((1-$AD27)^($AI27+1)))*IF('Set-up'!$E$9="Monthly",($AA27-($AI27*12))/12,$AM27/$AQ27)),($J27-$L27)/$AG27*$AA27))) -> 46620 | T27: =IF($K27=0,0,IF(LEFT($AE27,1)="D",((($J27-$L27)*(1-((1-$AD27)^$AH27)))+(($J27-$L27)*(((1-$AD27)^$AH27)-((1-$AD27)^($AH27+1)))*IF('Set-up'!$E$9="Monthly",($Z27-($AH27*12))/12,$AL27/$AP27)))-(($J27-$L27)*(1-((1-$AD27)^$AI27)))-(($J27-$L27)*(((1-$AD27)^$AI27)-((1-$AD27)^($AI27+1)))*IF('Set-up'!$E$9="Monthly",($AA27-($AI27*12))/12,$AM27/$AQ27)),(($J27-$L27)/$AG27*$Z27)-(($J27-$L27)/$AG27*$AA27))) -> 3330 | U27: =-IF(AND($M27>=$H$2,$M27<=$I$2),IF(LEFT($AE27,1)="D",(($J27-$L27)*(1-((1-$AD27)^$AK27)))+(($J27-$L27)*(((1-$AD27)^$AK27)-((1-$AD27)^($AK27+1)))*IF('Set-up'!$E$9="Monthly",($AC27-($AK27*12))/12,$AO27/$AS27)),IF($K27=0,0,($J27-$L27)/$AG27*$AC27)),0) -> 0 | V27: 49950 | W27: 0 | X27: 0 | Y27: =IF($K27=0,0,IF(LEFT($AE27,1)="D",((($J27-$L27)*(1-((1-$AD27)^$AH27)))+(($J27-$L27)*(((1-$AD27)^$AH27)-((1-$AD27)^($AH27+1)))*IF('Set-up'!$E$9="Monthly",($Z27-($AH27*12))/12,$AL27/$AP27)))-(($J27-$L27)*(1-((1-$AD27)^$AJ27)))-(($J27-$L27)*(((1-$AD27)^$AJ27)-((1-$AD27)^($AJ27+1)))*IF('Set-up'!$E$9="Monthly",($AB27-($AJ27*12))/12,$AN27/$AR27)),(($J27-$L27)/$AG27*$Z27)-(($J27-$L27)/$AG27*$AB27))) -> 0 | Z27: =IF('Set-up'!$E$9="Daily",MIN(MAX(((IF($M27="-",$I$2,MIN($I$2,$M27-'Set-up'!$E$13))-(($I27+'Set-up'!$E$11)))+1),0),IF(LEFT($AE27,1)="D",MaxPeriod,$AG27)),MIN(MAX(((IF($M27="-",((YEAR($I$2)*12)+MONTH($I$2)),MIN(((YEAR($I$2)*12)+MONTH($I$2)),((YEAR($M27)*12)+MONTH($M27)-'Set-up'!$E$13)))-(((YEAR($I27)*12)+MONTH($I27)+'Set-up'!$E$11)))+1),0),IF(LEFT($AE27,1)="D",MaxPeriod,$AG27))) -> 60 | AA27: =IF('Set-up'!$E$9="Daily",MIN(MAX(((IF($M27="-",$H$2-1,MIN($H$2-1,$M27-'Set-up'!$E$13))-($I27+'Set-up'!$E$11))+1),0),IF(LEFT($AE27,1)="D",MaxPeriod,$AG27)),MIN(MAX(((IF($M27="-",((YEAR($H$2)*12)+MONTH($H$2)-1),MIN(((YEAR($H$2)*12)+MONTH($H$2)-1),((YEAR($M27)*12)+MONTH($M27)-'Set-up'!$E$13)))-(((YEAR($I27)*12)+MONTH($I27)+'Set-up'!$E$11)))+1),0),IF(LEFT($AE27,1)="D",MaxPeriod,$AG27))) -> 56 | AB27: =IF('Set-up'!$E$9="Daily",MIN(MAX(((IF($M27="-",$J$2-1,MIN($J$2-1,$M27-'Set-up'!$E$13))-($I27+'Set-up'!$E$11))+1),0),IF(LEFT($AE27,1)="D",MaxPeriod,$AG27)),MIN(MAX(((IF($M27="-",((YEAR($J$2)*12)+MONTH($J$2)-1),MIN(((YEAR($J$2)*12)+MONTH($J$2)-1),((YEAR($M27)*12)+MONTH($M27)-'Set-up'!$E$13)))-(((YEAR($I27)*12)+MONTH($I27)+'Set-up'!$E$11)))+1),0),IF(LEFT($AE27,1)="D",MaxPeriod,$AG27))) -> 60 | AC27: =IF('Set-up'!$E$9="Daily",MIN(MAX(((IF($M27="-",0,$M27-'Set-up'!$E$13)-($I27+'Set-up'!$E$11))+1),0),IF(LEFT($AE27,1)="D",MaxPeriod,$AG27)),MIN(MAX(((IF($M27="-",0,((YEAR($M27)*12)+MONTH($M27)-'Set-up'!$E$13))-(((YEAR($I27)*12)+MONTH($I27)+'Set-up'!$E$11)))+1),0),IF(LEFT($AE27,1)="D",MaxPeriod,$AG27))) -> 0 | AD27: 0 | AE27: SL | AF27: 1 | AG27: =IF('Set-up'!$E$9="Daily",(DATE(YEAR($I27)+$K27+(1-$AF27),MONTH($I27),DAY($I27))+'Set-up'!$E$11)-($I27+'Set-up'!$E$11),$K27*12) -> 60 | AH27: =ROUNDDOWN(MIN(MAX(((IF($M27="-",((YEAR($I$2)*12)+MONTH($I$2)),MIN(((YEAR($I$2)*12)+MONTH($I$2)),((YEAR($M27)*12)+MONTH($M27)-'Set-up'!$E$13)))-(((YEAR($I27)*12)+MONTH($I27)+'Set-up'!$E$11)))),0),IF(LEFT($AE27,1)="D",MaxPeriod,$AG27))/12,0) -> 5 | AI27: =ROUNDDOWN(MIN(MAX(((IF($M27="-",((YEAR($H$2)*12)+MONTH($H$2)-1),MIN(((YEAR($H$2)*12)+MONTH($H$2)-1),((YEAR($M27)*12)+MONTH($M27)-'Set-up'!$E$13)))-(((YEAR($I27)*12)+MONTH($I27)+'Set-up'!$E$11)))),0),IF(LEFT($AE27,1)="D",MaxPeriod,$AG27))/12,0) -> 4 | AJ27: =ROUNDDOWN(MIN(MAX(((IF($M27="-",((YEAR($J$2)*12)+MONTH($J$2)-1),MIN(((YEAR($J$2)*12)+MONTH($J$2)-1),((YEAR($M27)*12)+MONTH($M27)-'Set-up'!$E$13)))-(((YEAR($I27)*12)+MONTH($I27)+'Set-up'!$E$11)))),0),IF(LEFT($AE27,1)="D",MaxPeriod,$AG27))/12,0) -> 5 | AK27: =ROUNDDOWN(MIN(MAX(((IF($M27="-",0,((YEAR($M27)*12)+MONTH($M27)-'Set-up'!$E$13))-(((YEAR($I27)*12)+MONTH($I27)+'Set-up'!$E$11)))),0),IF(LEFT($AE27,1)="D",MaxPeriod,$AG27))/12,0) -> 0 | AL27: =IF('Set-up'!$E$9="Daily",MIN(MAX(((IF($M27="-",$I$2,MIN($I$2,$M27-'Set-up'!$E$13))-((DATE(YEAR($I27)+$AH27,MONTH($I27),DAY($I27))+'Set-up'!$E$11)))+1),0),IF(LEFT($AE27,1)="D",MaxPeriod,$AG27)),0) -> 0 | AM27: =IF('Set-up'!$E$9="Daily",MIN(MAX(((IF($M27="-",$H$2-1,MIN($H$2-1,$M27-'Set-up'!$E$13))-(DATE(YEAR($I27)+$AI27,MONTH($I27),DAY($I27))+'Set-up'!$E$11))+1),0),IF(LEFT($AE27,1)="D",MaxPeriod,$AG27)),0) -> 0 | AN27: =IF('Set-up'!$E$9="Daily",MIN(MAX(((IF($M27="-",$J$2-1,MIN($J$2-1,$M27-'Set-up'!$E$13))-(DATE(YEAR($I27)+$AJ27,MONTH($I27),DAY($I27))+'Set-up'!$E$11))+1),0),IF(LEFT($AE27,1)="D",MaxPeriod,$AG27)),0) -> 0 | AO27: =IF('Set-up'!$E$9="Daily",MIN(MAX(((IF($M27="-",0,$M27-'Set-up'!$E$13)-(DATE(YEAR($I27)+$AK27,MONTH($I27),DAY($I27))+'Set-up'!$E$11))+1),0),IF(LEFT($AE27,1)="D",MaxPeriod,$AG27)),0) -> 0 | AP27: =IF('Set-up'!$E$9="Daily",DATE(YEAR($I27)+$AH27+1,MONTH($I27),DAY($I27))-DATE(YEAR($I27)+$AH27,MONTH($I27),DAY($I27)),0) -> 0 | AQ27: =IF('Set-up'!$E$9="Daily",DATE(YEAR($I27)+$AI27+1,MONTH($I27),DAY($I27))-DATE(YEAR($I27)+$AI27,MONTH($I27),DAY($I27)),0) -> 0 | AR27: =IF('Set-up'!$E$9="Daily",DATE(YEAR($I27)+$AJ27+1,MONTH($I27),DAY($I27))-DATE(YEAR($I27)+$AJ27,MONTH($I27),DAY($I27)),0) -> 0 | AS27: =IF('Set-up'!$E$9="Daily",DATE(YEAR($I27)+$AK27+1,MONTH($I27),DAY($I27))-DATE(YEAR($I27)+$AK27,MONTH($I27),DAY($I27)),0) -> 0
A28: PQ-00006 | B28: 287484 | C28: 37KV Compressor | D28: Owned | E28: EQP01 | F28: SL | G28: =IF(COUNTIF(AssetCode,$A28)>1,"E1",IF(ISNA(VLOOKUP($E28,CatAll,1,0))=TRUE,"E2",IF($I28="Add!","E10","-"))) -> - | H28: PM | I28: =IF(SUMIFS(TransIDDate,TransAsset,$A28,TransType,"ACQ")=0,"Add!",SUMIFS(TransIDDate,TransAsset,$A28,TransType,"ACQ")) -> 2015-07-20 | J28: 113130 | K28: 5 | L28: 0 | M28: =IF(SUMIFS(TransIDDate,TransAsset,$A28,TransType,"DIS")=0,"-",IF(SUMIFS(TransIDDate,TransAsset,$A28,TransType,"DIS")<=$I$2,SUMIFS(TransIDDate,TransAsset,$A28,TransType,"DIS"),"-")) -> - | N28: =IF($M28<=$I$2,SUMIFS(TransProceeds,TransAsset,$A28,TransType,"DIS"),0) -> 0 | O28: =IF(AND($M28<>"-",$M28<$H$2),0,SUMIFS(TransAmount,TransAsset,$A28,TransIDDate,"<"&$H$2,TransType,"ACQ")) -> 113130 | P28: 0 | Q28: 0 | R28: 113130 | S28: =IF(AND($M28<>"-",$M28<$H$2),0,IF($K28=0,0,IF(LEFT($AE28,1)="D",(($J28-$L28)*(1-((1-$AD28)^$AI28)))+(($J28-$L28)*(((1-$AD28)^$AI28)-((1-$AD28)^($AI28+1)))*IF('Set-up'!$E$9="Monthly",($AA28-($AI28*12))/12,$AM28/$AQ28)),($J28-$L28)/$AG28*$AA28))) -> 105588 | T28: =IF($K28=0,0,IF(LEFT($AE28,1)="D",((($J28-$L28)*(1-((1-$AD28)^$AH28)))+(($J28-$L28)*(((1-$AD28)^$AH28)-((1-$AD28)^($AH28+1)))*IF('Set-up'!$E$9="Monthly",($Z28-($AH28*12))/12,$AL28/$AP28)))-(($J28-$L28)*(1-((1-$AD28)^$AI28)))-(($J28-$L28)*(((1-$AD28)^$AI28)-((1-$AD28)^($AI28+1)))*IF('Set-up'!$E$9="Monthly",($AA28-($AI28*12))/12,$AM28/$AQ28)),(($J28-$L28)/$AG28*$Z28)-(($J28-$L28)/$AG28*$AA28))) -> 7542 | U28: =-IF(AND($M28>=$H$2,$M28<=$I$2),IF(LEFT($AE28,1)="D",(($J28-$L28)*(1-((1-$AD28)^$AK28)))+(($J28-$L28)*(((1-$AD28)^$AK28)-((1-$AD28)^($AK28+1)))*IF('Set-up'!$E$9="Monthly",($AC28-($AK28*12))/12,$AO28/$AS28)),IF($K28=0,0,($J28-$L28)/$AG28*$AC28)),0) -> 0 | V28: 113130 | W28: 0 | X28: 0 | Y28: =IF($K28=0,0,IF(LEFT($AE28,1)="D",((($J28-$L28)*(1-((1-$AD28)^$AH28)))+(($J28-$L28)*(((1-$AD28)^$AH28)-((1-$AD28)^($AH28+1)))*IF('Set-up'!$E$9="Monthly",($Z28-($AH28*12))/12,$AL28/$AP28)))-(($J28-$L28)*(1-((1-$AD28)^$AJ28)))-(($J28-$L28)*(((1-$AD28)^$AJ28)-((1-$AD28)^($AJ28+1)))*IF('Set-up'!$E$9="Monthly",($AB28-($AJ28*12))/12,$AN28/$AR28)),(($J28-$L28)/$AG28*$Z28)-(($J28-$L28)/$AG28*$AB28))) -> 0 | Z28: =IF('Set-up'!$E$9="Daily",MIN(MAX(((IF($M28="-",$I$2,MIN($I$2,$M28-'Set-up'!$E$13))-(($I28+'Set-up'!$E$11)))+1),0),IF(LEFT($AE28,1)="D",MaxPeriod,$AG28)),MIN(MAX(((IF($M28="-",((YEAR($I$2)*12)+MONTH($I$2)),MIN(((YEAR($I$2)*12)+MONTH($I$2)),((YEAR($M28)*12)+MONTH($M28)-'Set-up'!$E$13)))-(((YEAR($I28)*12)+MONTH($I28)+'Set-up'!$E$11)))+1),0),IF(LEFT($AE28,1)="D",MaxPeriod,$AG28))) -> 60 | AA28: =IF('Set-up'!$E$9="Daily",MIN(MAX(((IF($M28="-",$H$2-1,MIN($H$2-1,$M28-'Set-up'!$E$13))-($I28+'Set-up'!$E$11))+1),0),IF(LEFT($AE28,1)="D",MaxPeriod,$AG28)),MIN(MAX(((IF($M28="-",((YEAR($H$2)*12)+MONTH($H$2)-1),MIN(((YEAR($H$2)*12)+MONTH($H$2)-1),((YEAR($M28)*12)+MONTH($M28)-'Set-up'!$E$13)))-(((YEAR($I28)*12)+MONTH($I28)+'Set-up'!$E$11)))+1),0),IF(LEFT($AE28,1)="D",MaxPeriod,$AG28))) -> 56 | AB28: =IF('Set-up'!$E$9="Daily",MIN(MAX(((IF($M28="-",$J$2-1,MIN($J$2-1,$M28-'Set-up'!$E$13))-($I28+'Set-up'!$E$11))+1),0),IF(LEFT($AE28,1)="D",MaxPeriod,$AG28)),MIN(MAX(((IF($M28="-",((YEAR($J$2)*12)+MONTH($J$2)-1),MIN(((YEAR($J$2)*12)+MONTH($J$2)-1),((YEAR($M28)*12)+MONTH($M28)-'Set-up'!$E$13)))-(((YEAR($I28)*12)+MONTH($I28)+'Set-up'!$E$11)))+1),0),IF(LEFT($AE28,1)="D",MaxPeriod,$AG28))) -> 60 | AC28: =IF('Set-up'!$E$9="Daily",MIN(MAX(((IF($M28="-",0,$M28-'Set-up'!$E$13)-($I28+'Set-up'!$E$11))+1),0),IF(LEFT($AE28,1)="D",MaxPeriod,$AG28)),MIN(MAX(((IF($M28="-",0,((YEAR($M28)*12)+MONTH($M28)-'Set-up'!$E$13))-(((YEAR($I28)*12)+MONTH($I28)+'Set-up'!$E$11)))+1),0),IF(LEFT($AE28,1)="D",MaxPeriod,$AG28))) -> 0 | AD28: 0 | AE28: SL | AF28: 1 | AG28: =IF('Set-up'!$E$9="Daily",(DATE(YEAR($I28)+$K28+(1-$AF28),MONTH($I28),DAY($I28))+'Set-up'!$E$11)-($I28+'Set-up'!$E$11),$K28*12) -> 60 | AH28: =ROUNDDOWN(MIN(MAX(((IF($M28="-",((YEAR($I$2)*12)+MONTH($I$2)),MIN(((YEAR($I$2)*12)+MONTH($I$2)),((YEAR($M28)*12)+MONTH($M28)-'Set-up'!$E$13)))-(((YEAR($I28)*12)+MONTH($I28)+'Set-up'!$E$11)))),0),IF(LEFT($AE28,1)="D",MaxPeriod,$AG28))/12,0) -> 5 | AI28: =ROUNDDOWN(MIN(MAX(((IF($M28="-",((YEAR($H$2)*12)+MONTH($H$2)-1),MIN(((YEAR($H$2)*12)+MONTH($H$2)-1),((YEAR($M28)*12)+MONTH($M28)-'Set-up'!$E$13)))-(((YEAR($I28)*12)+MONTH($I28)+'Set-up'!$E$11)))),0),IF(LEFT($AE28,1)="D",MaxPeriod,$AG28))/12,0) -> 4 | AJ28: =ROUNDDOWN(MIN(MAX(((IF($M28="-",((YEAR($J$2)*12)+MONTH($J$2)-1),MIN(((YEAR($J$2)*12)+MONTH($J$2)-1),((YEAR($M28)*12)+MONTH($M28)-'Set-up'!$E$13)))-(((YEAR($I28)*12)+MONTH($I28)+'Set-up'!$E$11)))),0),IF(LEFT($AE28,1)="D",MaxPeriod,$AG28))/12,0) -> 5 | AK28: =ROUNDDOWN(MIN(MAX(((IF($M28="-",0,((YEAR($M28)*12)+MONTH($M28)-'Set-up'!$E$13))-(((YEAR($I28)*12)+MONTH($I28)+'Set-up'!$E$11)))),0),IF(LEFT($AE28,1)="D",MaxPeriod,$AG28))/12,0) -> 0 | AL28: =IF('Set-up'!$E$9="Daily",MIN(MAX(((IF($M28="-",$I$2,MIN($I$2,$M28-'Set-up'!$E$13))-((DATE(YEAR($I28)+$AH28,MONTH($I28),DAY($I28))+'Set-up'!$E$11)))+1),0),IF(LEFT($AE28,1)="D",MaxPeriod,$AG28)),0) -> 0 | AM28: =IF('Set-up'!$E$9="Daily",MIN(MAX(((IF($M28="-",$H$2-1,MIN($H$2-1,$M28-'Set-up'!$E$13))-(DATE(YEAR($I28)+$AI28,MONTH($I28),DAY($I28))+'Set-up'!$E$11))+1),0),IF(LEFT($AE28,1)="D",MaxPeriod,$AG28)),0) -> 0 | AN28: =IF('Set-up'!$E$9="Daily",MIN(MAX(((IF($M28="-",$J$2-1,MIN($J$2-1,$M28-'Set-up'!$E$13))-(DATE(YEAR($I28)+$AJ28,MONTH($I28),DAY($I28))+'Set-up'!$E$11))+1),0),IF(LEFT($AE28,1)="D",MaxPeriod,$AG28)),0) -> 0 | AO28: =IF('Set-up'!$E$9="Daily",MIN(MAX(((IF($M28="-",0,$M28-'Set-up'!$E$13)-(DATE(YEAR($I28)+$AK28,MONTH($I28),DAY($I28))+'Set-up'!$E$11))+1),0),IF(LEFT($AE28,1)="D",MaxPeriod,$AG28)),0) -> 0 | AP28: =IF('Set-up'!$E$9="Daily",DATE(YEAR($I28)+$AH28+1,MONTH($I28),DAY($I28))-DATE(YEAR($I28)+$AH28,MONTH($I28),DAY($I28)),0) -> 0 | AQ28: =IF('Set-up'!$E$9="Daily",DATE(YEAR($I28)+$AI28+1,MONTH($I28),DAY($I28))-DATE(YEAR($I28)+$AI28,MONTH($I28),DAY($I28)),0) -> 0 | AR28: =IF('Set-up'!$E$9="Daily",DATE(YEAR($I28)+$AJ28+1,MONTH($I28),DAY($I28))-DATE(YEAR($I28)+$AJ28,MONTH($I28),DAY($I28)),0) -> 0 | AS28: =IF('Set-up'!$E$9="Daily",DATE(YEAR($I28)+$AK28+1,MONTH($I28),DAY($I28))-DATE(YEAR($I28)+$AK28,MONTH($I28),DAY($I28)),0) -> 0
A29: PQ-00007 | B29: 878347 | C29: Pollard 8 Spindle | D29: Owned | E29: EQP01 | F29: SL | G29: =IF(COUNTIF(AssetCode,$A29)>1,"E1",IF(ISNA(VLOOKUP($E29,CatAll,1,0))=TRUE,"E2",IF($I29="Add!","E10","-"))) -> - | H29: PM | I29: =IF(SUMIFS(TransIDDate,TransAsset,$A29,TransType,"ACQ")=0,"Add!",SUMIFS(TransIDDate,TransAsset,$A29,TransType,"ACQ")) -> 2016-10-12 | J29: 6890 | K29: 5 | L29: 0 | M29: =IF(SUMIFS(TransIDDate,TransAsset,$A29,TransType,"DIS")=0,"-",IF(SUMIFS(TransIDDate,TransAsset,$A29,TransType,"DIS")<=$I$2,SUMIFS(TransIDDate,TransAsset,$A29,TransType,"DIS"),"-")) -> - | N29: =IF($M29<=$I$2,SUMIFS(TransProceeds,TransAsset,$A29,TransType,"DIS"),0) -> 0 | O29: =IF(AND($M29<>"-",$M29<$H$2),0,SUMIFS(TransAmount,TransAsset,$A29,TransIDDate,"<"&$H$2,TransType,"ACQ")) -> 6890 | P29: 0 | Q29: 0 | R29: 6890 | S29: =IF(AND($M29<>"-",$M29<$H$2),0,IF($K29=0,0,IF(LEFT($AE29,1)="D",(($J29-$L29)*(1-((1-$AD29)^$AI29)))+(($J29-$L29)*(((1-$AD29)^$AI29)-((1-$AD29)^($AI29+1)))*IF('Set-up'!$E$9="Monthly",($AA29-($AI29*12))/12,$AM29/$AQ29)),($J29-$L29)/$AG29*$AA29))) -> 4708.166667 | T29: =IF($K29=0,0,IF(LEFT($AE29,1)="D",((($J29-$L29)*(1-((1-$AD29)^$AH29)))+(($J29-$L29)*(((1-$AD29)^$AH29)-((1-$AD29)^($AH29+1)))*IF('Set-up'!$E$9="Monthly",($Z29-($AH29*12))/12,$AL29/$AP29)))-(($J29-$L29)*(1-((1-$AD29)^$AI29)))-(($J29-$L29)*(((1-$AD29)^$AI29)-((1-$AD29)^($AI29+1)))*IF('Set-up'!$E$9="Monthly",($AA29-($AI29*12))/12,$AM29/$AQ29)),(($J29-$L29)/$AG29*$Z29)-(($J29-$L29)/$AG29*$AA29))) -> 1378 | U29: =-IF(AND($M29>=$H$2,$M29<=$I$2),IF(LEFT($AE29,1)="D",(($J29-$L29)*(1-((1-$AD29)^$AK29)))+(($J29-$L29)*(((1-$AD29)^$AK29)-((1-$AD29)^($AK29+1)))*IF('Set-up'!$E$9="Monthly",($AC29-($AK29*12))/12,$AO29/$AS29)),IF($K29=0,0,($J29-$L29)/$AG29*$AC29)),0) -> 0 | V29: 6086.166667 | W29: 803.8333333 | X29: 0 | Y29: =IF($K29=0,0,IF(LEFT($AE29,1)="D",((($J29-$L29)*(1-((1-$AD29)^$AH29)))+(($J29-$L29)*(((1-$AD29)^$AH29)-((1-$AD29)^($AH29+1)))*IF('Set-up'!$E$9="Monthly",($Z29-($AH29*12))/12,$AL29/$AP29)))-(($J29-$L29)*(1-((1-$AD29)^$AJ29)))-(($J29-$L29)*(((1-$AD29)^$AJ29)-((1-$AD29)^($AJ29+1)))*IF('Set-up'!$E$9="Monthly",($AB29-($AJ29*12))/12,$AN29/$AR29)),(($J29-$L29)/$AG29*$Z29)-(($J29-$L29)/$AG29*$AB29))) -> 114.8333333 | Z29: =IF('Set-up'!$E$9="Daily",MIN(MAX(((IF($M29="-",$I$2,MIN($I$2,$M29-'Set-up'!$E$13))-(($I29+'Set-up'!$E$11)))+1),0),IF(LEFT($AE29,1)="D",MaxPeriod,$AG29)),MIN(MAX(((IF($M29="-",((YEAR($I$2)*12)+MONTH($I$2)),MIN(((YEAR($I$2)*12)+MONTH($I$2)),((YEAR($M29)*12)+MONTH($M29)-'Set-up'!$E$13)))-(((YEAR($I29)*12)+MONTH($I29)+'Set-up'!$E$11)))+1),0),IF(LEFT($AE29,1)="D",MaxPeriod,$AG29))) -> 53 | AA29: =IF('Set-up'!$E$9="Daily",MIN(MAX(((IF($M29="-",$H$2-1,MIN($H$2-1,$M29-'Set-up'!$E$13))-($I29+'Set-up'!$E$11))+1),0),IF(LEFT($AE29,1)="D",MaxPeriod,$AG29)),MIN(MAX(((IF($M29="-",((YEAR($H$2)*12)+MONTH($H$2)-1),MIN(((YEAR($H$2)*12)+MONTH($H$2)-1),((YEAR($M29)*12)+MONTH($M29)-'Set-up'!$E$13)))-(((YEAR($I29)*12)+MONTH($I29)+'Set-up'!$E$11)))+1),0),IF(LEFT($AE29,1)="D",MaxPeriod,$AG29))) -> 41 | AB29: =IF('Set-up'!$E$9="Daily",MIN(MAX(((IF($M29="-",$J$2-1,MIN($J$2-1,$M29-'Set-up'!$E$13))-($I29+'Set-up'!$E$11))+1),0),IF(LEFT($AE29,1)="D",MaxPeriod,$AG29)),MIN(MAX(((IF($M29="-",((YEAR($J$2)*12)+MONTH($J$2)-1),MIN(((YEAR($J$2)*12)+MONTH($J$2)-1),((YEAR($M29)*12)+MONTH($M29)-'Set-up'!$E$13)))-(((YEAR($I29)*12)+MONTH($I29)+'Set-up'!$E$11)))+1),0),IF(LEFT($AE29,1)="D",MaxPeriod,$AG29))) -> 52 | AC29: =IF('Set-up'!$E$9="Daily",MIN(MAX(((IF($M29="-",0,$M29-'Set-up'!$E$13)-($I29+'Set-up'!$E$11))+1),0),IF(LEFT($AE29,1)="D",MaxPeriod,$AG29)),MIN(MAX(((IF($M29="-",0,((YEAR($M29)*12)+MONTH($M29)-'Set-up'!$E$13))-(((YEAR($I29)*12)+MONTH($I29)+'Set-up'!$E$11)))+1),0),IF(LEFT($AE29,1)="D",MaxPeriod,$AG29))) -> 0 | AD29: 0 | AE29: SL | AF29: 1 | AG29: =IF('Set-up'!$E$9="Daily",(DATE(YEAR($I29)+$K29+(1-$AF29),MONTH($I29),DAY($I29))+'Set-up'!$E$11)-($I29+'Set-up'!$E$11),$K29*12) -> 60 | AH29: =ROUNDDOWN(MIN(MAX(((IF($M29="-",((YEAR($I$2)*12)+MONTH($I$2)),MIN(((YEAR($I$2)*12)+MONTH($I$2)),((YEAR($M29)*12)+MONTH($M29)-'Set-up'!$E$13)))-(((YEAR($I29)*12)+MONTH($I29)+'Set-up'!$E$11)))),0),IF(LEFT($AE29,1)="D",MaxPeriod,$AG29))/12,0) -> 4 | AI29: =ROUNDDOWN(MIN(MAX(((IF($M29="-",((YEAR($H$2)*12)+MONTH($H$2)-1),MIN(((YEAR($H$2)*12)+MONTH($H$2)-1),((YEAR($M29)*12)+MONTH($M29)-'Set-up'!$E$13)))-(((YEAR($I29)*12)+MONTH($I29)+'Set-up'!$E$11)))),0),IF(LEFT($AE29,1)="D",MaxPeriod,$AG29))/12,0) -> 3 | AJ29: =ROUNDDOWN(MIN(MAX(((IF($M29="-",((YEAR($J$2)*12)+MONTH($J$2)-1),MIN(((YEAR($J$2)*12)+MONTH($J$2)-1),((YEAR($M29)*12)+MONTH($M29)-'Set-up'!$E$13)))-(((YEAR($I29)*12)+MONTH($I29)+'Set-up'!$E$11)))),0),IF(LEFT($AE29,1)="D",MaxPeriod,$AG29))/12,0) -> 4 | AK29: =ROUNDDOWN(MIN(MAX(((IF($M29="-",0,((YEAR($M29)*12)+MONTH($M29)-'Set-up'!$E$13))-(((YEAR($I29)*12)+MONTH($I29)+'Set-up'!$E$11)))),0),IF(LEFT($AE29,1)="D",MaxPeriod,$AG29))/12,0) -> 0 | AL29: =IF('Set-up'!$E$9="Daily",MIN(MAX(((IF($M29="-",$I$2,MIN($I$2,$M29-'Set-up'!$E$13))-((DATE(YEAR($I29)+$AH29,MONTH($I29),DAY($I29))+'Set-up'!$E$11)))+1),0),IF(LEFT($AE29,1)="D",MaxPeriod,$AG29)),0) -> 0 | AM29: =IF('Set-up'!$E$9="Daily",MIN(MAX(((IF($M29="-",$H$2-1,MIN($H$2-1,$M29-'Set-up'!$E$13))-(DATE(YEAR($I29)+$AI29,MONTH($I29),DAY($I29))+'Set-up'!$E$11))+1),0),IF(LEFT($AE29,1)="D",MaxPeriod,$AG29)),0) -> 0 | AN29: =IF('Set-up'!$E$9="Daily",MIN(MAX(((IF($M29="-",$J$2-1,MIN($J$2-1,$M29-'Set-up'!$E$13))-(DATE(YEAR($I29)+$AJ29,MONTH($I29),DAY($I29))+'Set-up'!$E$11))+1),0),IF(LEFT($AE29,1)="D",MaxPeriod,$AG29)),0) -> 0 | AO29: =IF('Set-up'!$E$9="Daily",MIN(MAX(((IF($M29="-",0,$M29-'Set-up'!$E$13)-(DATE(YEAR($I29)+$AK29,MONTH($I29),DAY($I29))+'Set-up'!$E$11))+1),0),IF(LEFT($AE29,1)="D",MaxPeriod,$AG29)),0) -> 0 | AP29: =IF('Set-up'!$E$9="Daily",DATE(YEAR($I29)+$AH29+1,MONTH($I29),DAY($I29))-DATE(YEAR($I29)+$AH29,MONTH($I29),DAY($I29)),0) -> 0 | AQ29: =IF('Set-up'!$E$9="Daily",DATE(YEAR($I29)+$AI29+1,MONTH($I29),DAY($I29))-DATE(YEAR($I29)+$AI29,MONTH($I29),DAY($I29)),0) -> 0 | AR29: =IF('Set-up'!$E$9="Daily",DATE(YEAR($I29)+$AJ29+1,MONTH($I29),DAY($I29))-DATE(YEAR($I29)+$AJ29,MONTH($I29),DAY($I29)),0) -> 0 | AS29: =IF('Set-up'!$E$9="Daily",DATE(YEAR($I29)+$AK29+1,MONTH($I29),DAY($I29))-DATE(YEAR($I29)+$AK29,MONTH($I29),DAY($I29)),0) -> 0
A30: PQ-00008 | B30: 2-09847 | C30: Centre Bore | D30: Owned | E30: EQP01 | F30: SL | G30: =IF(COUNTIF(AssetCode,$A30)>1,"E1",IF(ISNA(VLOOKUP($E30,CatAll,1,0))=TRUE,"E2",IF($I30="Add!","E10","-"))) -> - | H30: PM | I30: =IF(SUMIFS(TransIDDate,TransAsset,$A30,TransType,"ACQ")=0,"Add!",SUMIFS(TransIDDate,TransAsset,$A30,TransType,"ACQ")) -> 2017-11-23 | J30: 19100 | K30: 5 | L30: 0 | M30: =IF(SUMIFS(TransIDDate,TransAsset,$A30,TransType,"DIS")=0,"-",IF(SUMIFS(TransIDDate,TransAsset,$A30,TransType,"DIS")<=$I$2,SUMIFS(TransIDDate,TransAsset,$A30,TransType,"DIS"),"-")) -> - | N30: =IF($M30<=$I$2,SUMIFS(TransProceeds,TransAsset,$A30,TransType,"DIS"),0) -> 0 | O30: =IF(AND($M30<>"-",$M30<$H$2),0,SUMIFS(TransAmount,TransAsset,$A30,TransIDDate,"<"&$H$2,TransType,"ACQ")) -> 19100 | P30: 0 | Q30: 0 | R30: 19100 | S30: =IF(AND($M30<>"-",$M30<$H$2),0,IF($K30=0,0,IF(LEFT($AE30,1)="D",(($J30-$L30)*(1-((1-$AD30)^$AI30)))+(($J30-$L30)*(((1-$AD30)^$AI30)-((1-$AD30)^($AI30+1)))*IF('Set-up'!$E$9="Monthly",($AA30-($AI30*12))/12,$AM30/$AQ30)),($J30-$L30)/$AG30*$AA30))) -> 8913.333333 | T30: =IF($K30=0,0,IF(LEFT($AE30,1)="D",((($J30-$L30)*(1-((1-$AD30)^$AH30)))+(($J30-$L30)*(((1-$AD30)^$AH30)-((1-$AD30)^($AH30+1)))*IF('Set-up'!$E$9="Monthly",($Z30-($AH30*12))/12,$AL30/$AP30)))-(($J30-$L30)*(1-((1-$AD30)^$AI30)))-(($J30-$L30)*(((1-$AD30)^$AI30)-((1-$AD30)^($AI30+1)))*IF('Set-up'!$E$9="Monthly",($AA30-($AI30*12))/12,$AM30/$AQ30)),(($J30-$L30)/$AG30*$Z30)-(($J30-$L30)/$AG30*$AA30))) -> 3820 | U30: =-IF(AND($M30>=$H$2,$M30<=$I$2),IF(LEFT($AE30,1)="D",(($J30-$L30)*(1-((1-$AD30)^$AK30)))+(($J30-$L30)*(((1-$AD30)^$AK30)-((1-$AD30)^($AK30+1)))*IF('Set-up'!$E$9="Monthly",($AC30-($AK30*12))/12,$AO30/$AS30)),IF($K30=0,0,($J30-$L30)/$AG30*$AC30)),0) -> 0 | V30: 12733.33333 | W30: 6366.666667 | X30: 0 | Y30: =IF($K30=0,0,IF(LEFT($AE30,1)="D",((($J30-$L30)*(1-((1-$AD30)^$AH30)))+(($J30-$L30)*(((1-$AD30)^$AH30)-((1-$AD30)^($AH30+1)))*IF('Set-up'!$E$9="Monthly",($Z30-($AH30*12))/12,$AL30/$AP30)))-(($J30-$L30)*(1-((1-$AD30)^$AJ30)))-(($J30-$L30)*(((1-$AD30)^$AJ30)-((1-$AD30)^($AJ30+1)))*IF('Set-up'!$E$9="Monthly",($AB30-($AJ30*12))/12,$AN30/$AR30)),(($J30-$L30)/$AG30*$Z30)-(($J30-$L30)/$AG30*$AB30))) -> 318.3333333 | Z30: =IF('Set-up'!$E$9="Daily",MIN(MAX(((IF($M30="-",$I$2,MIN($I$2,$M30-'Set-up'!$E$13))-(($I30+'Set-up'!$E$11)))+1),0),IF(LEFT($AE30,1)="D",MaxPeriod,$AG30)),MIN(MAX(((IF($M30="-",((YEAR($I$2)*12)+MONTH($I$2)),MIN(((YEAR($I$2)*12)+MONTH($I$2)),((YEAR($M30)*12)+MONTH($M30)-'Set-up'!$E$13)))-(((YEAR($I30)*12)+MONTH($I30)+'Set-up'!$E$11)))+1),0),IF(LEFT($AE30,1)="D",MaxPeriod,$AG30))) -> 40 | AA30: =IF('Set-up'!$E$9="Daily",MIN(MAX(((IF($M30="-",$H$2-1,MIN($H$2-1,$M30-'Set-up'!$E$13))-($I30+'Set-up'!$E$11))+1),0),IF(LEFT($AE30,1)="D",MaxPeriod,$AG30)),MIN(MAX(((IF($M30="-",((YEAR($H$2)*12)+MONTH($H$2)-1),MIN(((YEAR($H$2)*12)+MONTH($H$2)-1),((YEAR($M30)*12)+MONTH($M30)-'Set-up'!$E$13)))-(((YEAR($I30)*12)+MONTH($I30)+'Set-up'!$E$11)))+1),0),IF(LEFT($AE30,1)="D",MaxPeriod,$AG30))) -> 28 | AB30: =IF('Set-up'!$E$9="Daily",MIN(MAX(((IF($M30="-",$J$2-1,MIN($J$2-1,$M30-'Set-up'!$E$13))-($I30+'Set-up'!$E$11))+1),0),IF(LEFT($AE30,1)="D",MaxPeriod,$AG30)),MIN(MAX(((IF($M30="-",((YEAR($J$2)*12)+MONTH($J$2)-1),MIN(((YEAR($J$2)*12)+MONTH($J$2)-1),((YEAR($M30)*12)+MONTH($M30)-'Set-up'!$E$13)))-(((YEAR($I30)*12)+MONTH($I30)+'Set-up'!$E$11)))+1),0),IF(LEFT($AE30,1)="D",MaxPeriod,$AG30))) -> 39 | AC30: =IF('Set-up'!$E$9="Daily",MIN(MAX(((IF($M30="-",0,$M30-'Set-up'!$E$13)-($I30+'Set-up'!$E$11))+1),0),IF(LEFT($AE30,1)="D",MaxPeriod,$AG30)),MIN(MAX(((IF($M30="-",0,((YEAR($M30)*12)+MONTH($M30)-'Set-up'!$E$13))-(((YEAR($I30)*12)+MONTH($I30)+'Set-up'!$E$11)))+1),0),IF(LEFT($AE30,1)="D",MaxPeriod,$AG30))) -> 0 | AD30: 0 | AE30: SL | AF30: 1 | AG30: =IF('Set-up'!$E$9="Daily",(DATE(YEAR($I30)+$K30+(1-$AF30),MONTH($I30),DAY($I30))+'Set-up'!$E$11)-($I30+'Set-up'!$E$11),$K30*12) -> 60 | AH30: =ROUNDDOWN(MIN(MAX(((IF($M30="-",((YEAR($I$2)*12)+MONTH($I$2)),MIN(((YEAR($I$2)*12)+MONTH($I$2)),((YEAR($M30)*12)+MONTH($M30)-'Set-up'!$E$13)))-(((YEAR($I30)*12)+MONTH($I30)+'Set-up'!$E$11)))),0),IF(LEFT($AE30,1)="D",MaxPeriod,$AG30))/12,0) -> 3 | AI30: =ROUNDDOWN(MIN(MAX(((IF($M30="-",((YEAR($H$2)*12)+MONTH($H$2)-1),MIN(((YEAR($H$2)*12)+MONTH($H$2)-1),((YEAR($M30)*12)+MONTH($M30)-'Set-up'!$E$13)))-(((YEAR($I30)*12)+MONTH($I30)+'Set-up'!$E$11)))),0),IF(LEFT($AE30,1)="D",MaxPeriod,$AG30))/12,0) -> 2 | AJ30: =ROUNDDOWN(MIN(MAX(((IF($M30="-",((YEAR($J$2)*12)+MONTH($J$2)-1),MIN(((YEAR($J$2)*12)+MONTH($J$2)-1),((YEAR($M30)*12)+MONTH($M30)-'Set-up'!$E$13)))-(((YEAR($I30)*12)+MONTH($I30)+'Set-up'!$E$11)))),0),IF(LEFT($AE30,1)="D",MaxPeriod,$AG30))/12,0) -> 3 | AK30: =ROUNDDOWN(MIN(MAX(((IF($M30="-",0,((YEAR($M30)*12)+MONTH($M30)-'Set-up'!$E$13))-(((YEAR($I30)*12)+MONTH($I30)+'Set-up'!$E$11)))),0),IF(LEFT($AE30,1)="D",MaxPeriod,$AG30))/12,0) -> 0 | AL30: =IF('Set-up'!$E$9="Daily",MIN(MAX(((IF($M30="-",$I$2,MIN($I$2,$M30-'Set-up'!$E$13))-((DATE(YEAR($I30)+$AH30,MONTH($I30),DAY($I30))+'Set-up'!$E$11)))+1),0),IF(LEFT($AE30,1)="D",MaxPeriod,$AG30)),0) -> 0 | AM30: =IF('Set-up'!$E$9="Daily",MIN(MAX(((IF($M30="-",$H$2-1,MIN($H$2-1,$M30-'Set-up'!$E$13))-(DATE(YEAR($I30)+$AI30,MONTH($I30),DAY($I30))+'Set-up'!$E$11))+1),0),IF(LEFT($AE30,1)="D",MaxPeriod,$AG30)),0) -> 0 | AN30: =IF('Set-up'!$E$9="Daily",MIN(MAX(((IF($M30="-",$J$2-1,MIN($J$2-1,$M30-'Set-up'!$E$13))-(DATE(YEAR($I30)+$AJ30,MONTH($I30),DAY($I30))+'Set-up'!$E$11))+1),0),IF(LEFT($AE30,1)="D",MaxPeriod,$AG30)),0) -> 0 | AO30: =IF('Set-up'!$E$9="Daily",MIN(MAX(((IF($M30="-",0,$M30-'Set-up'!$E$13)-(DATE(YEAR($I30)+$AK30,MONTH($I30),DAY($I30))+'Set-up'!$E$11))+1),0),IF(LEFT($AE30,1)="D",MaxPeriod,$AG30)),0) -> 0 | AP30: =IF('Set-up'!$E$9="Daily",DATE(YEAR($I30)+$AH30+1,MONTH($I30),DAY($I30))-DATE(YEAR($I30)+$AH30,MONTH($I30),DAY($I30)),0) -> 0 | AQ30: =IF('Set-up'!$E$9="Daily",DATE(YEAR($I30)+$AI30+1,MONTH($I30),DAY($I30))-DATE(YEAR($I30)+$AI30,MONTH($I30),DAY($I30)),0) -> 0 | AR30: =IF('Set-up'!$E$9="Daily",DATE(YEAR($I30)+$AJ30+1,MONTH($I30),DAY($I30))-DATE(YEAR($I30)+$AJ30,MONTH($I30),DAY($I30)),0) -> 0 | AS30: =IF('Set-up'!$E$9="Daily",DATE(YEAR($I30)+$AK30+1,MONTH($I30),DAY($I30))-DATE(YEAR($I30)+$AK30,MONTH($I30),DAY($I30)),0) -> 0
A31: PQ-00009 | B31: 187381 | C31: IM4 Engraver | D31: Owned | E31: EQP01 | F31: SL | G31: =IF(COUNTIF(AssetCode,$A31)>1,"E1",IF(ISNA(VLOOKUP($E31,CatAll,1,0))=TRUE,"E2",IF($I31="Add!","E10","-"))) -> - | H31: PM | I31: =IF(SUMIFS(TransIDDate,TransAsset,$A31,TransType,"ACQ")=0,"Add!",SUMIFS(TransIDDate,TransAsset,$A31,TransType,"ACQ")) -> 2018-02-20 | J31: 36900 | K31: 5 | L31: 0 | M31: =IF(SUMIFS(TransIDDate,TransAsset,$A31,TransType,"DIS")=0,"-",IF(SUMIFS(TransIDDate,TransAsset,$A31,TransType,"DIS")<=$I$2,SUMIFS(TransIDDate,TransAsset,$A31,TransType,"DIS"),"-")) -> - | N31: =IF($M31<=$I$2,SUMIFS(TransProceeds,TransAsset,$A31,TransType,"DIS"),0) -> 0 | O31: =IF(AND($M31<>"-",$M31<$H$2),0,SUMIFS(TransAmount,TransAsset,$A31,TransIDDate,"<"&$H$2,TransType,"ACQ")) -> 36900 | P31: 0 | Q31: 0 | R31: 36900 | S31: =IF(AND($M31<>"-",$M31<$H$2),0,IF($K31=0,0,IF(LEFT($AE31,1)="D",(($J31-$L31)*(1-((1-$AD31)^$AI31)))+(($J31-$L31)*(((1-$AD31)^$AI31)-((1-$AD31)^($AI31+1)))*IF('Set-up'!$E$9="Monthly",($AA31-($AI31*12))/12,$AM31/$AQ31)),($J31-$L31)/$AG31*$AA31))) -> 15375 | T31: =IF($K31=0,0,IF(LEFT($AE31,1)="D",((($J31-$L31)*(1-((1-$AD31)^$AH31)))+(($J31-$L31)*(((1-$AD31)^$AH31)-((1-$AD31)^($AH31+1)))*IF('Set-up'!$E$9="Monthly",($Z31-($AH31*12))/12,$AL31/$AP31)))-(($J31-$L31)*(1-((1-$AD31)^$AI31)))-(($J31-$L31)*(((1-$AD31)^$AI31)-((1-$AD31)^($AI31+1)))*IF('Set-up'!$E$9="Monthly",($AA31-($AI31*12))/12,$AM31/$AQ31)),(($J31-$L31)/$AG31*$Z31)-(($J31-$L31)/$AG31*$AA31))) -> 7380 | U31: =-IF(AND($M31>=$H$2,$M31<=$I$2),IF(LEFT($AE31,1)="D",(($J31-$L31)*(1-((1-$AD31)^$AK31)))+(($J31-$L31)*(((1-$AD31)^$AK31)-((1-$AD31)^($AK31+1)))*IF('Set-up'!$E$9="Monthly",($AC31-($AK31*12))/12,$AO31/$AS31)),IF($K31=0,0,($J31-$L31)/$AG31*$AC31)),0) -> 0 | V31: 22755 | W31: 14145 | X31: 0 | Y31: =IF($K31=0,0,IF(LEFT($AE31,1)="D",((($J31-$L31)*(1-((1-$AD31)^$AH31)))+(($J31-$L31)*(((1-$AD31)^$AH31)-((1-$AD31)^($AH31+1)))*IF('Set-up'!$E$9="Monthly",($Z31-($AH31*12))/12,$AL31/$AP31)))-(($J31-$L31)*(1-((1-$AD31)^$AJ31)))-(($J31-$L31)*(((1-$AD31)^$AJ31)-((1-$AD31)^($AJ31+1)))*IF('Set-up'!$E$9="Monthly",($AB31-($AJ31*12))/12,$AN31/$AR31)),(($J31-$L31)/$AG31*$Z31)-(($J31-$L31)/$AG31*$AB31))) -> 615 | Z31: =IF('Set-up'!$E$9="Daily",MIN(MAX(((IF($M31="-",$I$2,MIN($I$2,$M31-'Set-up'!$E$13))-(($I31+'Set-up'!$E$11)))+1),0),IF(LEFT($AE31,1)="D",MaxPeriod,$AG31)),MIN(MAX(((IF($M31="-",((YEAR($I$2)*12)+MONTH($I$2)),MIN(((YEAR($I$2)*12)+MONTH($I$2)),((YEAR($M31)*12)+MONTH($M31)-'Set-up'!$E$13)))-(((YEAR($I31)*12)+MONTH($I31)+'Set-up'!$E$11)))+1),0),IF(LEFT($AE31,1)="D",MaxPeriod,$AG31))) -> 37 | AA31: =IF('Set-up'!$E$9="Daily",MIN(MAX(((IF($M31="-",$H$2-1,MIN($H$2-1,$M31-'Set-up'!$E$13))-($I31+'Set-up'!$E$11))+1),0),IF(LEFT($AE31,1)="D",MaxPeriod,$AG31)),MIN(MAX(((IF($M31="-",((YEAR($H$2)*12)+MONTH($H$2)-1),MIN(((YEAR($H$2)*12)+MONTH($H$2)-1),((YEAR($M31)*12)+MONTH($M31)-'Set-up'!$E$13)))-(((YEAR($I31)*12)+MONTH($I31)+'Set-up'!$E$11)))+1),0),IF(LEFT($AE31,1)="D",MaxPeriod,$AG31))) -> 25 | AB31: =IF('Set-up'!$E$9="Daily",MIN(MAX(((IF($M31="-",$J$2-1,MIN($J$2-1,$M31-'Set-up'!$E$13))-($I31+'Set-up'!$E$11))+1),0),IF(LEFT($AE31,1)="D",MaxPeriod,$AG31)),MIN(MAX(((IF($M31="-",((YEAR($J$2)*12)+MONTH($J$2)-1),MIN(((YEAR($J$2)*12)+MONTH($J$2)-1),((YEAR($M31)*12)+MONTH($M31)-'Set-up'!$E$13)))-(((YEAR($I31)*12)+MONTH($I31)+'Set-up'!$E$11)))+1),0),IF(LEFT($AE31,1)="D",MaxPeriod,$AG31))) -> 36 | AC31: =IF('Set-up'!$E$9="Daily",MIN(MAX(((IF($M31="-",0,$M31-'Set-up'!$E$13)-($I31+'Set-up'!$E$11))+1),0),IF(LEFT($AE31,1)="D",MaxPeriod,$AG31)),MIN(MAX(((IF($M31="-",0,((YEAR($M31)*12)+MONTH($M31)-'Set-up'!$E$13))-(((YEAR($I31)*12)+MONTH($I31)+'Set-up'!$E$11)))+1),0),IF(LEFT($AE31,1)="D",MaxPeriod,$AG31))) -> 0 | AD31: 0 | AE31: SL | AF31: 1 | AG31: =IF('Set-up'!$E$9="Daily",(DATE(YEAR($I31)+$K31+(1-$AF31),MONTH($I31),DAY($I31))+'Set-up'!$E$11)-($I31+'Set-up'!$E$11),$K31*12) -> 60 | AH31: =ROUNDDOWN(MIN(MAX(((IF($M31="-",((YEAR($I$2)*12)+MONTH($I$2)),MIN(((YEAR($I$2)*12)+MONTH($I$2)),((YEAR($M31)*12)+MONTH($M31)-'Set-up'!$E$13)))-(((YEAR($I31)*12)+MONTH($I31)+'Set-up'!$E$11)))),0),IF(LEFT($AE31,1)="D",MaxPeriod,$AG31))/12,0) -> 3 | AI31: =ROUNDDOWN(MIN(MAX(((IF($M31="-",((YEAR($H$2)*12)+MONTH($H$2)-1),MIN(((YEAR($H$2)*12)+MONTH($H$2)-1),((YEAR($M31)*12)+MONTH($M31)-'Set-up'!$E$13)))-(((YEAR($I31)*12)+MONTH($I31)+'Set-up'!$E$11)))),0),IF(LEFT($AE31,1)="D",MaxPeriod,$AG31))/12,0) -> 2 | AJ31: =ROUNDDOWN(MIN(MAX(((IF($M31="-",((YEAR($J$2)*12)+MONTH($J$2)-1),MIN(((YEAR($J$2)*12)+MONTH($J$2)-1),((YEAR($M31)*12)+MONTH($M31)-'Set-up'!$E$13)))-(((YEAR($I31)*12)+MONTH($I31)+'Set-up'!$E$11)))),0),IF(LEFT($AE31,1)="D",MaxPeriod,$AG31))/12,0) -> 2 | AK31: =ROUNDDOWN(MIN(MAX(((IF($M31="-",0,((YEAR($M31)*12)+MONTH($M31)-'Set-up'!$E$13))-(((YEAR($I31)*12)+MONTH($I31)+'Set-up'!$E$11)))),0),IF(LEFT($AE31,1)="D",MaxPeriod,$AG31))/12,0) -> 0 | AL31: =IF('Set-up'!$E$9="Daily",MIN(MAX(((IF($M31="-",$I$2,MIN($I$2,$M31-'Set-up'!$E$13))-((DATE(YEAR($I31)+$AH31,MONTH($I31),DAY($I31))+'Set-up'!$E$11)))+1),0),IF(LEFT($AE31,1)="D",MaxPeriod,$AG31)),0) -> 0 | AM31: =IF('Set-up'!$E$9="Daily",MIN(MAX(((IF($M31="-",$H$2-1,MIN($H$2-1,$M31-'Set-up'!$E$13))-(DATE(YEAR($I31)+$AI31,MONTH($I31),DAY($I31))+'Set-up'!$E$11))+1),0),IF(LEFT($AE31,1)="D",MaxPeriod,$AG31)),0) -> 0 | AN31: =IF('Set-up'!$E$9="Daily",MIN(MAX(((IF($M31="-",$J$2-1,MIN($J$2-1,$M31-'Set-up'!$E$13))-(DATE(YEAR($I31)+$AJ31,MONTH($I31),DAY($I31))+'Set-up'!$E$11))+1),0),IF(LEFT($AE31,1)="D",MaxPeriod,$AG31)),0) -> 0 | AO31: =IF('Set-up'!$E$9="Daily",MIN(MAX(((IF($M31="-",0,$M31-'Set-up'!$E$13)-(DATE(YEAR($I31)+$AK31,MONTH($I31),DAY($I31))+'Set-up'!$E$11))+1),0),IF(LEFT($AE31,1)="D",MaxPeriod,$AG31)),0) -> 0 | AP31: =IF('Set-up'!$E$9="Daily",DATE(YEAR($I31)+$AH31+1,MONTH($I31),DAY($I31))-DATE(YEAR($I31)+$AH31,MONTH($I31),DAY($I31)),0) -> 0 | AQ31: =IF('Set-up'!$E$9="Daily",DATE(YEAR($I31)+$AI31+1,MONTH($I31),DAY($I31))-DATE(YEAR($I31)+$AI31,MONTH($I31),DAY($I31)),0) -> 0 | AR31: =IF('Set-up'!$E$9="Daily",DATE(YEAR($I31)+$AJ31+1,MONTH($I31),DAY($I31))-DATE(YEAR($I31)+$AJ31,MONTH($I31),DAY($I31)),0) -> 0 | AS31: =IF('Set-up'!$E$9="Daily",DATE(YEAR($I31)+$AK31+1,MONTH($I31),DAY($I31))-DATE(YEAR($I31)+$AK31,MONTH($I31),DAY($I31)),0) -> 0
A32: PQ-00010 | B32: 535624 | C32: RH8 Hobbing Machine (ex CME) | D32: Owned | E32: EQP01 | F32: SL | G32: =IF(COUNTIF(AssetCode,$A32)>1,"E1",IF(ISNA(VLOOKUP($E32,CatAll,1,0))=TRUE,"E2",IF($I32="Add!","E10","-"))) -> - | H32: PM | I32: =IF(SUMIFS(TransIDDate,TransAsset,$A32,TransType,"ACQ")=0,"Add!",SUMIFS(TransIDDate,TransAsset,$A32,TransType,"ACQ")) -> 2018-08-15 | J32: 40000 | K32: 5 | L32: 0 | M32: =IF(SUMIFS(TransIDDate,TransAsset,$A32,TransType,"DIS")=0,"-",IF(SUMIFS(TransIDDate,TransAsset,$A32,TransType,"DIS")<=$I$2,SUMIFS(TransIDDate,TransAsset,$A32,TransType,"DIS"),"-")) -> - | N32: =IF($M32<=$I$2,SUMIFS(TransProceeds,TransAsset,$A32,TransType,"DIS"),0) -> 0 | O32: =IF(AND($M32<>"-",$M32<$H$2),0,SUMIFS(TransAmount,TransAsset,$A32,TransIDDate,"<"&$H$2,TransType,"ACQ")) -> 40000 | P32: 0 | Q32: 0 | R32: 40000 | S32: =IF(AND($M32<>"-",$M32<$H$2),0,IF($K32=0,0,IF(LEFT($AE32,1)="D",(($J32-$L32)*(1-((1-$AD32)^$AI32)))+(($J32-$L32)*(((1-$AD32)^$AI32)-((1-$AD32)^($AI32+1)))*IF('Set-up'!$E$9="Monthly",($AA32-($AI32*12))/12,$AM32/$AQ32)),($J32-$L32)/$AG32*$AA32))) -> 12666.66667 | T32: =IF($K32=0,0,IF(LEFT($AE32,1)="D",((($J32-$L32)*(1-((1-$AD32)^$AH32)))+(($J32-$L32)*(((1-$AD32)^$AH32)-((1-$AD32)^($AH32+1)))*IF('Set-up'!$E$9="Monthly",($Z32-($AH32*12))/12,$AL32/$AP32)))-(($J32-$L32)*(1-((1-$AD32)^$AI32)))-(($J32-$L32)*(((1-$AD32)^$AI32)-((1-$AD32)^($AI32+1)))*IF('Set-up'!$E$9="Monthly",($AA32-($AI32*12))/12,$AM32/$AQ32)),(($J32-$L32)/$AG32*$Z32)-(($J32-$L32)/$AG32*$AA32))) -> 8000 | U32: =-IF(AND($M32>=$H$2,$M32<=$I$2),IF(LEFT($AE32,1)="D",(($J32-$L32)*(1-((1-$AD32)^$AK32)))+(($J32-$L32)*(((1-$AD32)^$AK32)-((1-$AD32)^($AK32+1)))*IF('Set-up'!$E$9="Monthly",($AC32-($AK32*12))/12,$AO32/$AS32)),IF($K32=0,0,($J32-$L32)/$AG32*$AC32)),0) -> 0 | V32: 20666.66667 | W32: 19333.33333 | X32: 0 | Y32: =IF($K32=0,0,IF(LEFT($AE32,1)="D",((($J32-$L32)*(1-((1-$AD32)^$AH32)))+(($J32-$L32)*(((1-$AD32)^$AH32)-((1-$AD32)^($AH32+1)))*IF('Set-up'!$E$9="Monthly",($Z32-($AH32*12))/12,$AL32/$AP32)))-(($J32-$L32)*(1-((1-$AD32)^$AJ32)))-(($J32-$L32)*(((1-$AD32)^$AJ32)-((1-$AD32)^($AJ32+1)))*IF('Set-up'!$E$9="Monthly",($AB32-($AJ32*12))/12,$AN32/$AR32)),(($J32-$L32)/$AG32*$Z32)-(($J32-$L32)/$AG32*$AB32))) -> 666.6666667 | Z32: =IF('Set-up'!$E$9="Daily",MIN(MAX(((IF($M32="-",$I$2,MIN($I$2,$M32-'Set-up'!$E$13))-(($I32+'Set-up'!$E$11)))+1),0),IF(LEFT($AE32,1)="D",MaxPeriod,$AG32)),MIN(MAX(((IF($M32="-",((YEAR($I$2)*12)+MONTH($I$2)),MIN(((YEAR($I$2)*12)+MONTH($I$2)),((YEAR($M32)*12)+MONTH($M32)-'Set-up'!$E$13)))-(((YEAR($I32)*12)+MONTH($I32)+'Set-up'!$E$11)))+1),0),IF(LEFT($AE32,1)="D",MaxPeriod,$AG32))) -> 31 | AA32: =IF('Set-up'!$E$9="Daily",MIN(MAX(((IF($M32="-",$H$2-1,MIN($H$2-1,$M32-'Set-up'!$E$13))-($I32+'Set-up'!$E$11))+1),0),IF(LEFT($AE32,1)="D",MaxPeriod,$AG32)),MIN(MAX(((IF($M32="-",((YEAR($H$2)*12)+MONTH($H$2)-1),MIN(((YEAR($H$2)*12)+MONTH($H$2)-1),((YEAR($M32)*12)+MONTH($M32)-'Set-up'!$E$13)))-(((YEAR($I32)*12)+MONTH($I32)+'Set-up'!$E$11)))+1),0),IF(LEFT($AE32,1)="D",MaxPeriod,$AG32))) -> 19 | AB32: =IF('Set-up'!$E$9="Daily",MIN(MAX(((IF($M32="-",$J$2-1,MIN($J$2-1,$M32-'Set-up'!$E$13))-($I32+'Set-up'!$E$11))+1),0),IF(LEFT($AE32,1)="D",MaxPeriod,$AG32)),MIN(MAX(((IF($M32="-",((YEAR($J$2)*12)+MONTH($J$2)-1),MIN(((YEAR($J$2)*12)+MONTH($J$2)-1),((YEAR($M32)*12)+MONTH($M32)-'Set-up'!$E$13)))-(((YEAR($I32)*12)+MONTH($I32)+'Set-up'!$E$11)))+1),0),IF(LEFT($AE32,1)="D",MaxPeriod,$AG32))) -> 30 | AC32: =IF('Set-up'!$E$9="Daily",MIN(MAX(((IF($M32="-",0,$M32-'Set-up'!$E$13)-($I32+'Set-up'!$E$11))+1),0),IF(LEFT($AE32,1)="D",MaxPeriod,$AG32)),MIN(MAX(((IF($M32="-",0,((YEAR($M32)*12)+MONTH($M32)-'Set-up'!$E$13))-(((YEAR($I32)*12)+MONTH($I32)+'Set-up'!$E$11)))+1),0),IF(LEFT($AE32,1)="D",MaxPeriod,$AG32))) -> 0 | AD32: 0 | AE32: SL | AF32: 1 | AG32: =IF('Set-up'!$E$9="Daily",(DATE(YEAR($I32)+$K32+(1-$AF32),MONTH($I32),DAY($I32))+'Set-up'!$E$11)-($I32+'Set-up'!$E$11),$K32*12) -> 60 | AH32: =ROUNDDOWN(MIN(MAX(((IF($M32="-",((YEAR($I$2)*12)+MONTH($I$2)),MIN(((YEAR($I$2)*12)+MONTH($I$2)),((YEAR($M32)*12)+MONTH($M32)-'Set-up'!$E$13)))-(((YEAR($I32)*12)+MONTH($I32)+'Set-up'!$E$11)))),0),IF(LEFT($AE32,1)="D",MaxPeriod,$AG32))/12,0) -> 2 | AI32: =ROUNDDOWN(MIN(MAX(((IF($M32="-",((YEAR($H$2)*12)+MONTH($H$2)-1),MIN(((YEAR($H$2)*12)+MONTH($H$2)-1),((YEAR($M32)*12)+MONTH($M32)-'Set-up'!$E$13)))-(((YEAR($I32)*12)+MONTH($I32)+'Set-up'!$E$11)))),0),IF(LEFT($AE32,1)="D",MaxPeriod,$AG32))/12,0) -> 1 | AJ32: =ROUNDDOWN(MIN(MAX(((IF($M32="-",((YEAR($J$2)*12)+MONTH($J$2)-1),MIN(((YEAR($J$2)*12)+MONTH($J$2)-1),((YEAR($M32)*12)+MONTH($M32)-'Set-up'!$E$13)))-(((YEAR($I32)*12)+MONTH($I32)+'Set-up'!$E$11)))),0),IF(LEFT($AE32,1)="D",MaxPeriod,$AG32))/12,0) -> 2 | AK32: =ROUNDDOWN(MIN(MAX(((IF($M32="-",0,((YEAR($M32)*12)+MONTH($M32)-'Set-up'!$E$13))-(((YEAR($I32)*12)+MONTH($I32)+'Set-up'!$E$11)))),0),IF(LEFT($AE32,1)="D",MaxPeriod,$AG32))/12,0) -> 0 | AL32: =IF('Set-up'!$E$9="Daily",MIN(MAX(((IF($M32="-",$I$2,MIN($I$2,$M32-'Set-up'!$E$13))-((DATE(YEAR($I32)+$AH32,MONTH($I32),DAY($I32))+'Set-up'!$E$11)))+1),0),IF(LEFT($AE32,1)="D",MaxPeriod,$AG32)),0) -> 0 | AM32: =IF('Set-up'!$E$9="Daily",MIN(MAX(((IF($M32="-",$H$2-1,MIN($H$2-1,$M32-'Set-up'!$E$13))-(DATE(YEAR($I32)+$AI32,MONTH($I32),DAY($I32))+'Set-up'!$E$11))+1),0),IF(LEFT($AE32,1)="D",MaxPeriod,$AG32)),0) -> 0 | AN32: =IF('Set-up'!$E$9="Daily",MIN(MAX(((IF($M32="-",$J$2-1,MIN($J$2-1,$M32-'Set-up'!$E$13))-(DATE(YEAR($I32)+$AJ32,MONTH($I32),DAY($I32))+'Set-up'!$E$11))+1),0),IF(LEFT($AE32,1)="D",MaxPeriod,$AG32)),0) -> 0 | AO32: =IF('Set-up'!$E$9="Daily",MIN(MAX(((IF($M32="-",0,$M32-'Set-up'!$E$13)-(DATE(YEAR($I32)+$AK32,MONTH($I32),DAY($I32))+'Set-up'!$E$11))+1),0),IF(LEFT($AE32,1)="D",MaxPeriod,$AG32)),0) -> 0 | AP32: =IF('Set-up'!$E$9="Daily",DATE(YEAR($I32)+$AH32+1,MONTH($I32),DAY($I32))-DATE(YEAR($I32)+$AH32,MONTH($I32),DAY($I32)),0) -> 0 | AQ32: =IF('Set-up'!$E$9="Daily",DATE(YEAR($I32)+$AI32+1,MONTH($I32),DAY($I32))-DATE(YEAR($I32)+$AI32,MONTH($I32),DAY($I32)),0) -> 0 | AR32: =IF('Set-up'!$E$9="Daily",DATE(YEAR($I32)+$AJ32+1,MONTH($I32),DAY($I32))-DATE(YEAR($I32)+$AJ32,MONTH($I32),DAY($I32)),0) -> 0 | AS32: =IF('Set-up'!$E$9="Daily",DATE(YEAR($I32)+$AK32+1,MONTH($I32),DAY($I32))-DATE(YEAR($I32)+$AK32,MONTH($I32),DAY($I32)),0) -> 0
A33: PQ-00011 | B33: 892946 | C33: ST Drill Sharp Slib8n 4-30 | D33: Owned | E33: EQP01 | F33: SL | G33: =IF(COUNTIF(AssetCode,$A33)>1,"E1",IF(ISNA(VLOOKUP($E33,CatAll,1,0))=TRUE,"E2",IF($I33="Add!","E10","-"))) -> - | H33: PM | I33: =IF(SUMIFS(TransIDDate,TransAsset,$A33,TransType,"ACQ")=0,"Add!",SUMIFS(TransIDDate,TransAsset,$A33,TransType,"ACQ")) -> 2020-12-20 | J33: 18999 | K33: 5 | L33: 0 | M33: =IF(SUMIFS(TransIDDate,TransAsset,$A33,TransType,"DIS")=0,"-",IF(SUMIFS(TransIDDate,TransAsset,$A33,TransType,"DIS")<=$I$2,SUMIFS(TransIDDate,TransAsset,$A33,TransType,"DIS"),"-")) -> - | N33: =IF($M33<=$I$2,SUMIFS(TransProceeds,TransAsset,$A33,TransType,"DIS"),0) -> 0 | O33: =IF(AND($M33<>"-",$M33<$H$2),0,SUMIFS(TransAmount,TransAsset,$A33,TransIDDate,"<"&$H$2,TransType,"ACQ")) -> 0 | P33: 18999 | Q33: 0 | R33: 18999 | S33: =IF(AND($M33<>"-",$M33<$H$2),0,IF($K33=0,0,IF(LEFT($AE33,1)="D",(($J33-$L33)*(1-((1-$AD33)^$AI33)))+(($J33-$L33)*(((1-$AD33)^$AI33)-((1-$AD33)^($AI33+1)))*IF('Set-up'!$E$9="Monthly",($AA33-($AI33*12))/12,$AM33/$AQ33)),($J33-$L33)/$AG33*$AA33))) -> 0 | T33: =IF($K33=0,0,IF(LEFT($AE33,1)="D",((($J33-$L33)*(1-((1-$AD33)^$AH33)))+(($J33-$L33)*(((1-$AD33)^$AH33)-((1-$AD33)^($AH33+1)))*IF('Set-up'!$E$9="Monthly",($Z33-($AH33*12))/12,$AL33/$AP33)))-(($J33-$L33)*(1-((1-$AD33)^$AI33)))-(($J33-$L33)*(((1-$AD33)^$AI33)-((1-$AD33)^($AI33+1)))*IF('Set-up'!$E$9="Monthly",($AA33-($AI33*12))/12,$AM33/$AQ33)),(($J33-$L33)/$AG33*$Z33)-(($J33-$L33)/$AG33*$AA33))) -> 949.95 | U33: =-IF(AND($M33>=$H$2,$M33<=$I$2),IF(LEFT($AE33,1)="D",(($J33-$L33)*(1-((1-$AD33)^$AK33)))+(($J33-$L33)*(((1-$AD33)^$AK33)-((1-$AD33)^($AK33+1)))*IF('Set-up'!$E$9="Monthly",($AC33-($AK33*12))/12,$AO33/$AS33)),IF($K33=0,0,($J33-$L33)/$AG33*$AC33)),0) -> 0 | V33: 949.95 | W33: 18049.05 | X33: 0 | Y33: =IF($K33=0,0,IF(LEFT($AE33,1)="D",((($J33-$L33)*(1-((1-$AD33)^$AH33)))+(($J33-$L33)*(((1-$AD33)^$AH33)-((1-$AD33)^($AH33+1)))*IF('Set-up'!$E$9="Monthly",($Z33-($AH33*12))/12,$AL33/$AP33)))-(($J33-$L33)*(1-((1-$AD33)^$AJ33)))-(($J33-$L33)*(((1-$AD33)^$AJ33)-((1-$AD33)^($AJ33+1)))*IF('Set-up'!$E$9="Monthly",($AB33-($AJ33*12))/12,$AN33/$AR33)),(($J33-$L33)/$AG33*$Z33)-(($J33-$L33)/$AG33*$AB33))) -> 316.65 | Z33: =IF('Set-up'!$E$9="Daily",MIN(MAX(((IF($M33="-",$I$2,MIN($I$2,$M33-'Set-up'!$E$13))-(($I33+'Set-up'!$E$11)))+1),0),IF(LEFT($AE33,1)="D",MaxPeriod,$AG33)),MIN(MAX(((IF($M33="-",((YEAR($I$2)*12)+MONTH($I$2)),MIN(((YEAR($I$2)*12)+MONTH($I$2)),((YEAR($M33)*12)+MONTH($M33)-'Set-up'!$E$13)))-(((YEAR($I33)*12)+MONTH($I33)+'Set-up'!$E$11)))+1),0),IF(LEFT($AE33,1)="D",MaxPeriod,$AG33))) -> 3 | AA33: =IF('Set-up'!$E$9="Daily",MIN(MAX(((IF($M33="-",$H$2-1,MIN($H$2-1,$M33-'Set-up'!$E$13))-($I33+'Set-up'!$E$11))+1),0),IF(LEFT($AE33,1)="D",MaxPeriod,$AG33)),MIN(MAX(((IF($M33="-",((YEAR($H$2)*12)+MONTH($H$2)-1),MIN(((YEAR($H$2)*12)+MONTH($H$2)-1),((YEAR($M33)*12)+MONTH($M33)-'Set-up'!$E$13)))-(((YEAR($I33)*12)+MONTH($I33)+'Set-up'!$E$11)))+1),0),IF(LEFT($AE33,1)="D",MaxPeriod,$AG33))) -> 0 | AB33: =IF('Set-up'!$E$9="Daily",MIN(MAX(((IF($M33="-",$J$2-1,MIN($J$2-1,$M33-'Set-up'!$E$13))-($I33+'Set-up'!$E$11))+1),0),IF(LEFT($AE33,1)="D",MaxPeriod,$AG33)),MIN(MAX(((IF($M33="-",((YEAR($J$2)*12)+MONTH($J$2)-1),MIN(((YEAR($J$2)*12)+MONTH($J$2)-1),((YEAR($M33)*12)+MONTH($M33)-'Set-up'!$E$13)))-(((YEAR($I33)*12)+MONTH($I33)+'Set-up'!$E$11)))+1),0),IF(LEFT($AE33,1)="D",MaxPeriod,$AG33))) -> 2 | AC33: =IF('Set-up'!$E$9="Daily",MIN(MAX(((IF($M33="-",0,$M33-'Set-up'!$E$13)-($I33+'Set-up'!$E$11))+1),0),IF(LEFT($AE33,1)="D",MaxPeriod,$AG33)),MIN(MAX(((IF($M33="-",0,((YEAR($M33)*12)+MONTH($M33)-'Set-up'!$E$13))-(((YEAR($I33)*12)+MONTH($I33)+'Set-up'!$E$11)))+1),0),IF(LEFT($AE33,1)="D",MaxPeriod,$AG33))) -> 0 | AD33: 0 | AE33: SL | AF33: 1 | AG33: =IF('Set-up'!$E$9="Daily",(DATE(YEAR($I33)+$K33+(1-$AF33),MONTH($I33),DAY($I33))+'Set-up'!$E$11)-($I33+'Set-up'!$E$11),$K33*12) -> 60 | AH33: =ROUNDDOWN(MIN(MAX(((IF($M33="-",((YEAR($I$2)*12)+MONTH($I$2)),MIN(((YEAR($I$2)*12)+MONTH($I$2)),((YEAR($M33)*12)+MONTH($M33)-'Set-up'!$E$13)))-(((YEAR($I33)*12)+MONTH($I33)+'Set-up'!$E$11)))),0),IF(LEFT($AE33,1)="D",MaxPeriod,$AG33))/12,0) -> 0 | AI33: =ROUNDDOWN(MIN(MAX(((IF($M33="-",((YEAR($H$2)*12)+MONTH($H$2)-1),MIN(((YEAR($H$2)*12)+MONTH($H$2)-1),((YEAR($M33)*12)+MONTH($M33)-'Set-up'!$E$13)))-(((YEAR($I33)*12)+MONTH($I33)+'Set-up'!$E$11)))),0),IF(LEFT($AE33,1)="D",MaxPeriod,$AG33))/12,0) -> 0 | AJ33: =ROUNDDOWN(MIN(MAX(((IF($M33="-",((YEAR($J$2)*12)+MONTH($J$2)-1),MIN(((YEAR($J$2)*12)+MONTH($J$2)-1),((YEAR($M33)*12)+MONTH($M33)-'Set-up'!$E$13)))-(((YEAR($I33)*12)+MONTH($I33)+'Set-up'!$E$11)))),0),IF(LEFT($AE33,1)="D",MaxPeriod,$AG33))/12,0) -> 0 | AK33: =ROUNDDOWN(MIN(MAX(((IF($M33="-",0,((YEAR($M33)*12)+MONTH($M33)-'Set-up'!$E$13))-(((YEAR($I33)*12)+MONTH($I33)+'Set-up'!$E$11)))),0),IF(LEFT($AE33,1)="D",MaxPeriod,$AG33))/12,0) -> 0 | AL33: =IF('Set-up'!$E$9="Daily",MIN(MAX(((IF($M33="-",$I$2,MIN($I$2,$M33-'Set-up'!$E$13))-((DATE(YEAR($I33)+$AH33,MONTH($I33),DAY($I33))+'Set-up'!$E$11)))+1),0),IF(LEFT($AE33,1)="D",MaxPeriod,$AG33)),0) -> 0 | AM33: =IF('Set-up'!$E$9="Daily",MIN(MAX(((IF($M33="-",$H$2-1,MIN($H$2-1,$M33-'Set-up'!$E$13))-(DATE(YEAR($I33)+$AI33,MONTH($I33),DAY($I33))+'Set-up'!$E$11))+1),0),IF(LEFT($AE33,1)="D",MaxPeriod,$AG33)),0) -> 0 | AN33: =IF('Set-up'!$E$9="Daily",MIN(MAX(((IF($M33="-",$J$2-1,MIN($J$2-1,$M33-'Set-up'!$E$13))-(DATE(YEAR($I33)+$AJ33,MONTH($I33),DAY($I33))+'Set-up'!$E$11))+1),0),IF(LEFT($AE33,1)="D",MaxPeriod,$AG33)),0) -> 0 | AO33: =IF('Set-up'!$E$9="Daily",MIN(MAX(((IF($M33="-",0,$M33-'Set-up'!$E$13)-(DATE(YEAR($I33)+$AK33,MONTH($I33),DAY($I33))+'Set-up'!$E$11))+1),0),IF(LEFT($AE33,1)="D",MaxPeriod,$AG33)),0) -> 0 | AP33: =IF('Set-up'!$E$9="Daily",DATE(YEAR($I33)+$AH33+1,MONTH($I33),DAY($I33))-DATE(YEAR($I33)+$AH33,MONTH($I33),DAY($I33)),0) -> 0 | AQ33: =IF('Set-up'!$E$9="Daily",DATE(YEAR($I33)+$AI33+1,MONTH($I33),DAY($I33))-DATE(YEAR($I33)+$AI33,MONTH($I33),DAY($I33)),0) -> 0 | AR33: =IF('Set-up'!$E$9="Daily",DATE(YEAR($I33)+$AJ33+1,MONTH($I33),DAY($I33))-DATE(YEAR($I33)+$AJ33,MONTH($I33),DAY($I33)),0) -> 0 | AS33: =IF('Set-up'!$E$9="Daily",DATE(YEAR($I33)+$AK33+1,MONTH($I33),DAY($I33))-DATE(YEAR($I33)+$AK33,MONTH($I33),DAY($I33)),0) -> 0
A34: FF-00001 | B34: FF-01 | C34: Office Chairs (5) | D34: Owned | E34: FFX01 | F34: DV | G34: =IF(COUNTIF(AssetCode,$A34)>1,"E1",IF(ISNA(VLOOKUP($E34,CatAll,1,0))=TRUE,"E2",IF($I34="Add!","E10","-"))) -> - | H34: FF | I34: =IF(SUMIFS(TransIDDate,TransAsset,$A34,TransType,"ACQ")=0,"Add!",SUMIFS(TransIDDate,TransAsset,$A34,TransType,"ACQ")) -> 2015-07-20 | J34: 3600 | K34: 6 | L34: 0 | M34: =IF(SUMIFS(TransIDDate,TransAsset,$A34,TransType,"DIS")=0,"-",IF(SUMIFS(TransIDDate,TransAsset,$A34,TransType,"DIS")<=$I$2,SUMIFS(TransIDDate,TransAsset,$A34,TransType,"DIS"),"-")) -> - | N34: =IF($M34<=$I$2,SUMIFS(TransProceeds,TransAsset,$A34,TransType,"DIS"),0) -> 0 | O34: =IF(AND($M34<>"-",$M34<$H$2),0,SUMIFS(TransAmount,TransAsset,$A34,TransIDDate,"<"&$H$2,TransType,"ACQ")) -> 3600 | P34: 0 | Q34: 0 | R34: 3600 | S34: =IF(AND($M34<>"-",$M34<$H$2),0,IF($K34=0,0,IF(LEFT($AE34,1)="D",(($J34-$L34)*(1-((1-$AD34)^$AI34)))+(($J34-$L34)*(((1-$AD34)^$AI34)-((1-$AD34)^($AI34+1)))*IF('Set-up'!$E$9="Monthly",($AA34-($AI34*12))/12,$AM34/$AQ34)),($J34-$L34)/$AG34*$AA34))) -> 2056.790123 | T34: =IF($K34=0,0,IF(LEFT($AE34,1)="D",((($J34-$L34)*(1-((1-$AD34)^$AH34)))+(($J34-$L34)*(((1-$AD34)^$AH34)-((1-$AD34)^($AH34+1)))*IF('Set-up'!$E$9="Monthly",($Z34-($AH34*12))/12,$AL34/$AP34)))-(($J34-$L34)*(1-((1-$AD34)^$AI34)))-(($J34-$L34)*(((1-$AD34)^$AI34)-((1-$AD34)^($AI34+1)))*IF('Set-up'!$E$9="Monthly",($AA34-($AI34*12))/12,$AM34/$AQ34)),(($J34-$L34)/$AG34*$Z34)-(($J34-$L34)/$AG34*$AA34))) -> 257.2016461 | U34: =-IF(AND($M34>=$H$2,$M34<=$I$2),IF(LEFT($AE34,1)="D",(($J34-$L34)*(1-((1-$AD34)^$AK34)))+(($J34-$L34)*(((1-$AD34)^$AK34)-((1-$AD34)^($AK34+1)))*IF('Set-up'!$E$9="Monthly",($AC34-($AK34*12))/12,$AO34/$AS34)),IF($K34=0,0,($J34-$L34)/$AG34*$AC34)),0) -> 0 | V34: 2313.99177 | W34: 1286.00823 | X34: 0 | Y34: =IF($K34=0,0,IF(LEFT($AE34,1)="D",((($J34-$L34)*(1-((1-$AD34)^$AH34)))+(($J34-$L34)*(((1-$AD34)^$AH34)-((1-$AD34)^($AH34+1)))*IF('Set-up'!$E$9="Monthly",($Z34-($AH34*12))/12,$AL34/$AP34)))-(($J34-$L34)*(1-((1-$AD34)^$AJ34)))-(($J34-$L34)*(((1-$AD34)^$AJ34)-((1-$AD34)^($AJ34+1)))*IF('Set-up'!$E$9="Monthly",($AB34-($AJ34*12))/12,$AN34/$AR34)),(($J34-$L34)/$AG34*$Z34)-(($J34-$L34)/$AG34*$AB34))) -> 20.0938786 | Z34: =IF('Set-up'!$E$9="Daily",MIN(MAX(((IF($M34="-",$I$2,MIN($I$2,$M34-'Set-up'!$E$13))-(($I34+'Set-up'!$E$11)))+1),0),IF(LEFT($AE34,1)="D",MaxPeriod,$AG34)),MIN(MAX(((IF($M34="-",((YEAR($I$2)*12)+MONTH($I$2)),MIN(((YEAR($I$2)*12)+MONTH($I$2)),((YEAR($M34)*12)+MONTH($M34)-'Set-up'!$E$13)))-(((YEAR($I34)*12)+MONTH($I34)+'Set-up'!$E$11)))+1),0),IF(LEFT($AE34,1)="D",MaxPeriod,$AG34))) -> 68 | AA34: =IF('Set-up'!$E$9="Daily",MIN(MAX(((IF($M34="-",$H$2-1,MIN($H$2-1,$M34-'Set-up'!$E$13))-($I34+'Set-up'!$E$11))+1),0),IF(LEFT($AE34,1)="D",MaxPeriod,$AG34)),MIN(MAX(((IF($M34="-",((YEAR($H$2)*12)+MONTH($H$2)-1),MIN(((YEAR($H$2)*12)+MONTH($H$2)-1),((YEAR($M34)*12)+MONTH($M34)-'Set-up'!$E$13)))-(((YEAR($I34)*12)+MONTH($I34)+'Set-up'!$E$11)))+1),0),IF(LEFT($AE34,1)="D",MaxPeriod,$AG34))) -> 56 | AB34: =IF('Set-up'!$E$9="Daily",MIN(MAX(((IF($M34="-",$J$2-1,MIN($J$2-1,$M34-'Set-up'!$E$13))-($I34+'Set-up'!$E$11))+1),0),IF(LEFT($AE34,1)="D",MaxPeriod,$AG34)),MIN(MAX(((IF($M34="-",((YEAR($J$2)*12)+MONTH($J$2)-1),MIN(((YEAR($J$2)*12)+MONTH($J$2)-1),((YEAR($M34)*12)+MONTH($M34)-'Set-up'!$E$13)))-(((YEAR($I34)*12)+MONTH($I34)+'Set-up'!$E$11)))+1),0),IF(LEFT($AE34,1)="D",MaxPeriod,$AG34))) -> 67 | AC34: =IF('Set-up'!$E$9="Daily",MIN(MAX(((IF($M34="-",0,$M34-'Set-up'!$E$13)-($I34+'Set-up'!$E$11))+1),0),IF(LEFT($AE34,1)="D",MaxPeriod,$AG34)),MIN(MAX(((IF($M34="-",0,((YEAR($M34)*12)+MONTH($M34)-'Set-up'!$E$13))-(((YEAR($I34)*12)+MONTH($I34)+'Set-up'!$E$11)))+1),0),IF(LEFT($AE34,1)="D",MaxPeriod,$AG34))) -> 0 | AD34: 0.1666666667 | AE34: DV | AF34: 1 | AG34: =IF('Set-up'!$E$9="Daily",(DATE(YEAR($I34)+$K34+(1-$AF34),MONTH($I34),DAY($I34))+'Set-up'!$E$11)-($I34+'Set-up'!$E$11),$K34*12) -> 72 | AH34: =ROUNDDOWN(MIN(MAX(((IF($M34="-",((YEAR($I$2)*12)+MONTH($I$2)),MIN(((YEAR($I$2)*12)+MONTH($I$2)),((YEAR($M34)*12)+MONTH($M34)-'Set-up'!$E$13)))-(((YEAR($I34)*12)+MONTH($I34)+'Set-up'!$E$11)))),0),IF(LEFT($AE34,1)="D",MaxPeriod,$AG34))/12,0) -> 5 | AI34: =ROUNDDOWN(MIN(MAX(((IF($M34="-",((YEAR($H$2)*12)+MONTH($H$2)-1),MIN(((YEAR($H$2)*12)+MONTH($H$2)-1),((YEAR($M34)*12)+MONTH($M34)-'Set-up'!$E$13)))-(((YEAR($I34)*12)+MONTH($I34)+'Set-up'!$E$11)))),0),IF(LEFT($AE34,1)="D",MaxPeriod,$AG34))/12,0) -> 4 | AJ34: =ROUNDDOWN(MIN(MAX(((IF($M34="-",((YEAR($J$2)*12)+MONTH($J$2)-1),MIN(((YEAR($J$2)*12)+MONTH($J$2)-1),((YEAR($M34)*12)+MONTH($M34)-'Set-up'!$E$13)))-(((YEAR($I34)*12)+MONTH($I34)+'Set-up'!$E$11)))),0),IF(LEFT($AE34,1)="D",MaxPeriod,$AG34))/12,0) -> 5 | AK34: =ROUNDDOWN(MIN(MAX(((IF($M34="-",0,((YEAR($M34)*12)+MONTH($M34)-'Set-up'!$E$13))-(((YEAR($I34)*12)+MONTH($I34)+'Set-up'!$E$11)))),0),IF(LEFT($AE34,1)="D",MaxPeriod,$AG34))/12,0) -> 0 | AL34: =IF('Set-up'!$E$9="Daily",MIN(MAX(((IF($M34="-",$I$2,MIN($I$2,$M34-'Set-up'!$E$13))-((DATE(YEAR($I34)+$AH34,MONTH($I34),DAY($I34))+'Set-up'!$E$11)))+1),0),IF(LEFT($AE34,1)="D",MaxPeriod,$AG34)),0) -> 0 | AM34: =IF('Set-up'!$E$9="Daily",MIN(MAX(((IF($M34="-",$H$2-1,MIN($H$2-1,$M34-'Set-up'!$E$13))-(DATE(YEAR($I34)+$AI34,MONTH($I34),DAY($I34))+'Set-up'!$E$11))+1),0),IF(LEFT($AE34,1)="D",MaxPeriod,$AG34)),0) -> 0 | AN34: =IF('Set-up'!$E$9="Daily",MIN(MAX(((IF($M34="-",$J$2-1,MIN($J$2-1,$M34-'Set-up'!$E$13))-(DATE(YEAR($I34)+$AJ34,MONTH($I34),DAY($I34))+'Set-up'!$E$11))+1),0),IF(LEFT($AE34,1)="D",MaxPeriod,$AG34)),0) -> 0 | AO34: =IF('Set-up'!$E$9="Daily",MIN(MAX(((IF($M34="-",0,$M34-'Set-up'!$E$13)-(DATE(YEAR($I34)+$AK34,MONTH($I34),DAY($I34))+'Set-up'!$E$11))+1),0),IF(LEFT($AE34,1)="D",MaxPeriod,$AG34)),0) -> 0 | AP34: =IF('Set-up'!$E$9="Daily",DATE(YEAR($I34)+$AH34+1,MONTH($I34),DAY($I34))-DATE(YEAR($I34)+$AH34,MONTH($I34),DAY($I34)),0) -> 0 | AQ34: =IF('Set-up'!$E$9="Daily",DATE(YEAR($I34)+$AI34+1,MONTH($I34),DAY($I34))-DATE(YEAR($I34)+$AI34,MONTH($I34),DAY($I34)),0) -> 0 | AR34: =IF('Set-up'!$E$9="Daily",DATE(YEAR($I34)+$AJ34+1,MONTH($I34),DAY($I34))-DATE(YEAR($I34)+$AJ34,MONTH($I34),DAY($I34)),0) -> 0 | AS34: =IF('Set-up'!$E$9="Daily",DATE(YEAR($I34)+$AK34+1,MONTH($I34),DAY($I34))-DATE(YEAR($I34)+$AK34,MONTH($I34),DAY($I34)),0) -> 0
A35: FF-00002 | B35: FF-02 | C35: Office Desks (5) | D35: Owned | E35: FFX01 | F35: DV | G35: =IF(COUNTIF(AssetCode,$A35)>1,"E1",IF(ISNA(VLOOKUP($E35,CatAll,1,0))=TRUE,"E2",IF($I35="Add!","E10","-"))) -> - | H35: FF | I35: =IF(SUMIFS(TransIDDate,TransAsset,$A35,TransType,"ACQ")=0,"Add!",SUMIFS(TransIDDate,TransAsset,$A35,TransType,"ACQ")) -> 2015-07-20 | J35: 12400 | K35: 6 | L35: 0 | M35: =IF(SUMIFS(TransIDDate,TransAsset,$A35,TransType,"DIS")=0,"-",IF(SUMIFS(TransIDDate,TransAsset,$A35,TransType,"DIS")<=$I$2,SUMIFS(TransIDDate,TransAsset,$A35,TransType,"DIS"),"-")) -> - | N35: =IF($M35<=$I$2,SUMIFS(TransProceeds,TransAsset,$A35,TransType,"DIS"),0) -> 0 | O35: =IF(AND($M35<>"-",$M35<$H$2),0,SUMIFS(TransAmount,TransAsset,$A35,TransIDDate,"<"&$H$2,TransType,"ACQ")) -> 12400 | P35: 0 | Q35: 0 | R35: 12400 | S35: =IF(AND($M35<>"-",$M35<$H$2),0,IF($K35=0,0,IF(LEFT($AE35,1)="D",(($J35-$L35)*(1-((1-$AD35)^$AI35)))+(($J35-$L35)*(((1-$AD35)^$AI35)-((1-$AD35)^($AI35+1)))*IF('Set-up'!$E$9="Monthly",($AA35-($AI35*12))/12,$AM35/$AQ35)),($J35-$L35)/$AG35*$AA35))) -> 7084.499314 | T35: =IF($K35=0,0,IF(LEFT($AE35,1)="D",((($J35-$L35)*(1-((1-$AD35)^$AH35)))+(($J35-$L35)*(((1-$AD35)^$AH35)-((1-$AD35)^($AH35+1)))*IF('Set-up'!$E$9="Monthly",($Z35-($AH35*12))/12,$AL35/$AP35)))-(($J35-$L35)*(1-((1-$AD35)^$AI35)))-(($J35-$L35)*(((1-$AD35)^$AI35)-((1-$AD35)^($AI35+1)))*IF('Set-up'!$E$9="Monthly",($AA35-($AI35*12))/12,$AM35/$AQ35)),(($J35-$L35)/$AG35*$Z35)-(($J35-$L35)/$AG35*$AA35))) -> 885.916781 | U35: =-IF(AND($M35>=$H$2,$M35<=$I$2),IF(LEFT($AE35,1)="D",(($J35-$L35)*(1-((1-$AD35)^$AK35)))+(($J35-$L35)*(((1-$AD35)^$AK35)-((1-$AD35)^($AK35+1)))*IF('Set-up'!$E$9="Monthly",($AC35-($AK35*12))/12,$AO35/$AS35)),IF($K35=0,0,($J35-$L35)/$AG35*$AC35)),0) -> 0 | V35: 7970.416095 | W35: 4429.583905 | X35: 0 | Y35: =IF($K35=0,0,IF(LEFT($AE35,1)="D",((($J35-$L35)*(1-((1-$AD35)^$AH35)))+(($J35-$L35)*(((1-$AD35)^$AH35)-((1-$AD35)^($AH35+1)))*IF('Set-up'!$E$9="Monthly",($Z35-($AH35*12))/12,$AL35/$AP35)))-(($J35-$L35)*(1-((1-$AD35)^$AJ35)))-(($J35-$L35)*(((1-$AD35)^$AJ35)-((1-$AD35)^($AJ35+1)))*IF('Set-up'!$E$9="Monthly",($AB35-($AJ35*12))/12,$AN35/$AR35)),(($J35-$L35)/$AG35*$Z35)-(($J35-$L35)/$AG35*$AB35))) -> 69.21224851 | Z35: =IF('Set-up'!$E$9="Daily",MIN(MAX(((IF($M35="-",$I$2,MIN($I$2,$M35-'Set-up'!$E$13))-(($I35+'Set-up'!$E$11)))+1),0),IF(LEFT($AE35,1)="D",MaxPeriod,$AG35)),MIN(MAX(((IF($M35="-",((YEAR($I$2)*12)+MONTH($I$2)),MIN(((YEAR($I$2)*12)+MONTH($I$2)),((YEAR($M35)*12)+MONTH($M35)-'Set-up'!$E$13)))-(((YEAR($I35)*12)+MONTH($I35)+'Set-up'!$E$11)))+1),0),IF(LEFT($AE35,1)="D",MaxPeriod,$AG35))) -> 68 | AA35: =IF('Set-up'!$E$9="Daily",MIN(MAX(((IF($M35="-",$H$2-1,MIN($H$2-1,$M35-'Set-up'!$E$13))-($I35+'Set-up'!$E$11))+1),0),IF(LEFT($AE35,1)="D",MaxPeriod,$AG35)),MIN(MAX(((IF($M35="-",((YEAR($H$2)*12)+MONTH($H$2)-1),MIN(((YEAR($H$2)*12)+MONTH($H$2)-1),((YEAR($M35)*12)+MONTH($M35)-'Set-up'!$E$13)))-(((YEAR($I35)*12)+MONTH($I35)+'Set-up'!$E$11)))+1),0),IF(LEFT($AE35,1)="D",MaxPeriod,$AG35))) -> 56 | AB35: =IF('Set-up'!$E$9="Daily",MIN(MAX(((IF($M35="-",$J$2-1,MIN($J$2-1,$M35-'Set-up'!$E$13))-($I35+'Set-up'!$E$11))+1),0),IF(LEFT($AE35,1)="D",MaxPeriod,$AG35)),MIN(MAX(((IF($M35="-",((YEAR($J$2)*12)+MONTH($J$2)-1),MIN(((YEAR($J$2)*12)+MONTH($J$2)-1),((YEAR($M35)*12)+MONTH($M35)-'Set-up'!$E$13)))-(((YEAR($I35)*12)+MONTH($I35)+'Set-up'!$E$11)))+1),0),IF(LEFT($AE35,1)="D",MaxPeriod,$AG35))) -> 67 | AC35: =IF('Set-up'!$E$9="Daily",MIN(MAX(((IF($M35="-",0,$M35-'Set-up'!$E$13)-($I35+'Set-up'!$E$11))+1),0),IF(LEFT($AE35,1)="D",MaxPeriod,$AG35)),MIN(MAX(((IF($M35="-",0,((YEAR($M35)*12)+MONTH($M35)-'Set-up'!$E$13))-(((YEAR($I35)*12)+MONTH($I35)+'Set-up'!$E$11)))+1),0),IF(LEFT($AE35,1)="D",MaxPeriod,$AG35))) -> 0 | AD35: 0.1666666667 | AE35: DV | AF35: 1 | AG35: =IF('Set-up'!$E$9="Daily",(DATE(YEAR($I35)+$K35+(1-$AF35),MONTH($I35),DAY($I35))+'Set-up'!$E$11)-($I35+'Set-up'!$E$11),$K35*12) -> 72 | AH35: =ROUNDDOWN(MIN(MAX(((IF($M35="-",((YEAR($I$2)*12)+MONTH($I$2)),MIN(((YEAR($I$2)*12)+MONTH($I$2)),((YEAR($M35)*12)+MONTH($M35)-'Set-up'!$E$13)))-(((YEAR($I35)*12)+MONTH($I35)+'Set-up'!$E$11)))),0),IF(LEFT($AE35,1)="D",MaxPeriod,$AG35))/12,0) -> 5 | AI35: =ROUNDDOWN(MIN(MAX(((IF($M35="-",((YEAR($H$2)*12)+MONTH($H$2)-1),MIN(((YEAR($H$2)*12)+MONTH($H$2)-1),((YEAR($M35)*12)+MONTH($M35)-'Set-up'!$E$13)))-(((YEAR($I35)*12)+MONTH($I35)+'Set-up'!$E$11)))),0),IF(LEFT($AE35,1)="D",MaxPeriod,$AG35))/12,0) -> 4 | AJ35: =ROUNDDOWN(MIN(MAX(((IF($M35="-",((YEAR($J$2)*12)+MONTH($J$2)-1),MIN(((YEAR($J$2)*12)+MONTH($J$2)-1),((YEAR($M35)*12)+MONTH($M35)-'Set-up'!$E$13)))-(((YEAR($I35)*12)+MONTH($I35)+'Set-up'!$E$11)))),0),IF(LEFT($AE35,1)="D",MaxPeriod,$AG35))/12,0) -> 5 | AK35: =ROUNDDOWN(MIN(MAX(((IF($M35="-",0,((YEAR($M35)*12)+MONTH($M35)-'Set-up'!$E$13))-(((YEAR($I35)*12)+MONTH($I35)+'Set-up'!$E$11)))),0),IF(LEFT($AE35,1)="D",MaxPeriod,$AG35))/12,0) -> 0 | AL35: =IF('Set-up'!$E$9="Daily",MIN(MAX(((IF($M35="-",$I$2,MIN($I$2,$M35-'Set-up'!$E$13))-((DATE(YEAR($I35)+$AH35,MONTH($I35),DAY($I35))+'Set-up'!$E$11)))+1),0),IF(LEFT($AE35,1)="D",MaxPeriod,$AG35)),0) -> 0 | AM35: =IF('Set-up'!$E$9="Daily",MIN(MAX(((IF($M35="-",$H$2-1,MIN($H$2-1,$M35-'Set-up'!$E$13))-(DATE(YEAR($I35)+$AI35,MONTH($I35),DAY($I35))+'Set-up'!$E$11))+1),0),IF(LEFT($AE35,1)="D",MaxPeriod,$AG35)),0) -> 0 | AN35: =IF('Set-up'!$E$9="Daily",MIN(MAX(((IF($M35="-",$J$2-1,MIN($J$2-1,$M35-'Set-up'!$E$13))-(DATE(YEAR($I35)+$AJ35,MONTH($I35),DAY($I35))+'Set-up'!$E$11))+1),0),IF(LEFT($AE35,1)="D",MaxPeriod,$AG35)),0) -> 0 | AO35: =IF('Set-up'!$E$9="Daily",MIN(MAX(((IF($M35="-",0,$M35-'Set-up'!$E$13)-(DATE(YEAR($I35)+$AK35,MONTH($I35),DAY($I35))+'Set-up'!$E$11))+1),0),IF(LEFT($AE35,1)="D",MaxPeriod,$AG35)),0) -> 0 | AP35: =IF('Set-up'!$E$9="Daily",DATE(YEAR($I35)+$AH35+1,MONTH($I35),DAY($I35))-DATE(YEAR($I35)+$AH35,MONTH($I35),DAY($I35)),0) -> 0 | AQ35: =IF('Set-up'!$E$9="Daily",DATE(YEAR($I35)+$AI35+1,MONTH($I35),DAY($I35))-DATE(YEAR($I35)+$AI35,MONTH($I35),DAY($I35)),0) -> 0 | AR35: =IF('Set-up'!$E$9="Daily",DATE(YEAR($I35)+$AJ35+1,MONTH($I35),DAY($I35))-DATE(YEAR($I35)+$AJ35,MONTH($I35),DAY($I35)),0) -> 0 | AS35: =IF('Set-up'!$E$9="Daily",DATE(YEAR($I35)+$AK35+1,MONTH($I35),DAY($I35))-DATE(YEAR($I35)+$AK35,MONTH($I35),DAY($I35)),0) -> 0
A36: FF-00003 | B36: FF-03 | C36: Air conditioner Panasonic | D36: Owned | E36: FFX01 | F36: DV | G36: =IF(COUNTIF(AssetCode,$A36)>1,"E1",IF(ISNA(VLOOKUP($E36,CatAll,1,0))=TRUE,"E2",IF($I36="Add!","E10","-"))) -> - | H36: FF | I36: =IF(SUMIFS(TransIDDate,TransAsset,$A36,TransType,"ACQ")=0,"Add!",SUMIFS(TransIDDate,TransAsset,$A36,TransType,"ACQ")) -> 2015-07-20 | J36: 5100 | K36: 6 | L36: 0 | M36: =IF(SUMIFS(TransIDDate,TransAsset,$A36,TransType,"DIS")=0,"-",IF(SUMIFS(TransIDDate,TransAsset,$A36,TransType,"DIS")<=$I$2,SUMIFS(TransIDDate,TransAsset,$A36,TransType,"DIS"),"-")) -> - | N36: =IF($M36<=$I$2,SUMIFS(TransProceeds,TransAsset,$A36,TransType,"DIS"),0) -> 0 | O36: =IF(AND($M36<>"-",$M36<$H$2),0,SUMIFS(TransAmount,TransAsset,$A36,TransIDDate,"<"&$H$2,TransType,"ACQ")) -> 5100 | P36: 0 | Q36: 0 | R36: 5100 | S36: =IF(AND($M36<>"-",$M36<$H$2),0,IF($K36=0,0,IF(LEFT($AE36,1)="D",(($J36-$L36)*(1-((1-$AD36)^$AI36)))+(($J36-$L36)*(((1-$AD36)^$AI36)-((1-$AD36)^($AI36+1)))*IF('Set-up'!$E$9="Monthly",($AA36-($AI36*12))/12,$AM36/$AQ36)),($J36-$L36)/$AG36*$AA36))) -> 2913.786008 | T36: =IF($K36=0,0,IF(LEFT($AE36,1)="D",((($J36-$L36)*(1-((1-$AD36)^$AH36)))+(($J36-$L36)*(((1-$AD36)^$AH36)-((1-$AD36)^($AH36+1)))*IF('Set-up'!$E$9="Monthly",($Z36-($AH36*12))/12,$AL36/$AP36)))-(($J36-$L36)*(1-((1-$AD36)^$AI36)))-(($J36-$L36)*(((1-$AD36)^$AI36)-((1-$AD36)^($AI36+1)))*IF('Set-up'!$E$9="Monthly",($AA36-($AI36*12))/12,$AM36/$AQ36)),(($J36-$L36)/$AG36*$Z36)-(($J36-$L36)/$AG36*$AA36))) -> 364.3689986 | U36: =-IF(AND($M36>=$H$2,$M36<=$I$2),IF(LEFT($AE36,1)="D",(($J36-$L36)*(1-((1-$AD36)^$AK36)))+(($J36-$L36)*(((1-$AD36)^$AK36)-((1-$AD36)^($AK36+1)))*IF('Set-up'!$E$9="Monthly",($AC36-($AK36*12))/12,$AO36/$AS36)),IF($K36=0,0,($J36-$L36)/$AG36*$AC36)),0) -> 0 | V36: 3278.155007 | W36: 1821.844993 | X36: 0 | Y36: =IF($K36=0,0,IF(LEFT($AE36,1)="D",((($J36-$L36)*(1-((1-$AD36)^$AH36)))+(($J36-$L36)*(((1-$AD36)^$AH36)-((1-$AD36)^($AH36+1)))*IF('Set-up'!$E$9="Monthly",($Z36-($AH36*12))/12,$AL36/$AP36)))-(($J36-$L36)*(1-((1-$AD36)^$AJ36)))-(($J36-$L36)*(((1-$AD36)^$AJ36)-((1-$AD36)^($AJ36+1)))*IF('Set-up'!$E$9="Monthly",($AB36-($AJ36*12))/12,$AN36/$AR36)),(($J36-$L36)/$AG36*$Z36)-(($J36-$L36)/$AG36*$AB36))) -> 28.46632802 | Z36: =IF('Set-up'!$E$9="Daily",MIN(MAX(((IF($M36="-",$I$2,MIN($I$2,$M36-'Set-up'!$E$13))-(($I36+'Set-up'!$E$11)))+1),0),IF(LEFT($AE36,1)="D",MaxPeriod,$AG36)),MIN(MAX(((IF($M36="-",((YEAR($I$2)*12)+MONTH($I$2)),MIN(((YEAR($I$2)*12)+MONTH($I$2)),((YEAR($M36)*12)+MONTH($M36)-'Set-up'!$E$13)))-(((YEAR($I36)*12)+MONTH($I36)+'Set-up'!$E$11)))+1),0),IF(LEFT($AE36,1)="D",MaxPeriod,$AG36))) -> 68 | AA36: =IF('Set-up'!$E$9="Daily",MIN(MAX(((IF($M36="-",$H$2-1,MIN($H$2-1,$M36-'Set-up'!$E$13))-($I36+'Set-up'!$E$11))+1),0),IF(LEFT($AE36,1)="D",MaxPeriod,$AG36)),MIN(MAX(((IF($M36="-",((YEAR($H$2)*12)+MONTH($H$2)-1),MIN(((YEAR($H$2)*12)+MONTH($H$2)-1),((YEAR($M36)*12)+MONTH($M36)-'Set-up'!$E$13)))-(((YEAR($I36)*12)+MONTH($I36)+'Set-up'!$E$11)))+1),0),IF(LEFT($AE36,1)="D",MaxPeriod,$AG36))) -> 56 | AB36: =IF('Set-up'!$E$9="Daily",MIN(MAX(((IF($M36="-",$J$2-1,MIN($J$2-1,$M36-'Set-up'!$E$13))-($I36+'Set-up'!$E$11))+1),0),IF(LEFT($AE36,1)="D",MaxPeriod,$AG36)),MIN(MAX(((IF($M36="-",((YEAR($J$2)*12)+MONTH($J$2)-1),MIN(((YEAR($J$2)*12)+MONTH($J$2)-1),((YEAR($M36)*12)+MONTH($M36)-'Set-up'!$E$13)))-(((YEAR($I36)*12)+MONTH($I36)+'Set-up'!$E$11)))+1),0),IF(LEFT($AE36,1)="D",MaxPeriod,$AG36))) -> 67 | AC36: =IF('Set-up'!$E$9="Daily",MIN(MAX(((IF($M36="-",0,$M36-'Set-up'!$E$13)-($I36+'Set-up'!$E$11))+1),0),IF(LEFT($AE36,1)="D",MaxPeriod,$AG36)),MIN(MAX(((IF($M36="-",0,((YEAR($M36)*12)+MONTH($M36)-'Set-up'!$E$13))-(((YEAR($I36)*12)+MONTH($I36)+'Set-up'!$E$11)))+1),0),IF(LEFT($AE36,1)="D",MaxPeriod,$AG36))) -> 0 | AD36: 0.1666666667 | AE36: DV | AF36: 1 | AG36: =IF('Set-up'!$E$9="Daily",(DATE(YEAR($I36)+$K36+(1-$AF36),MONTH($I36),DAY($I36))+'Set-up'!$E$11)-($I36+'Set-up'!$E$11),$K36*12) -> 72 | AH36: =ROUNDDOWN(MIN(MAX(((IF($M36="-",((YEAR($I$2)*12)+MONTH($I$2)),MIN(((YEAR($I$2)*12)+MONTH($I$2)),((YEAR($M36)*12)+MONTH($M36)-'Set-up'!$E$13)))-(((YEAR($I36)*12)+MONTH($I36)+'Set-up'!$E$11)))),0),IF(LEFT($AE36,1)="D",MaxPeriod,$AG36))/12,0) -> 5 | AI36: =ROUNDDOWN(MIN(MAX(((IF($M36="-",((YEAR($H$2)*12)+MONTH($H$2)-1),MIN(((YEAR($H$2)*12)+MONTH($H$2)-1),((YEAR($M36)*12)+MONTH($M36)-'Set-up'!$E$13)))-(((YEAR($I36)*12)+MONTH($I36)+'Set-up'!$E$11)))),0),IF(LEFT($AE36,1)="D",MaxPeriod,$AG36))/12,0) -> 4 | AJ36: =ROUNDDOWN(MIN(MAX(((IF($M36="-",((YEAR($J$2)*12)+MONTH($J$2)-1),MIN(((YEAR($J$2)*12)+MONTH($J$2)-1),((YEAR($M36)*12)+MONTH($M36)-'Set-up'!$E$13)))-(((YEAR($I36)*12)+MONTH($I36)+'Set-up'!$E$11)))),0),IF(LEFT($AE36,1)="D",MaxPeriod,$AG36))/12,0) -> 5 | AK36: =ROUNDDOWN(MIN(MAX(((IF($M36="-",0,((YEAR($M36)*12)+MONTH($M36)-'Set-up'!$E$13))-(((YEAR($I36)*12)+MONTH($I36)+'Set-up'!$E$11)))),0),IF(LEFT($AE36,1)="D",MaxPeriod,$AG36))/12,0) -> 0 | AL36: =IF('Set-up'!$E$9="Daily",MIN(MAX(((IF($M36="-",$I$2,MIN($I$2,$M36-'Set-up'!$E$13))-((DATE(YEAR($I36)+$AH36,MONTH($I36),DAY($I36))+'Set-up'!$E$11)))+1),0),IF(LEFT($AE36,1)="D",MaxPeriod,$AG36)),0) -> 0 | AM36: =IF('Set-up'!$E$9="Daily",MIN(MAX(((IF($M36="-",$H$2-1,MIN($H$2-1,$M36-'Set-up'!$E$13))-(DATE(YEAR($I36)+$AI36,MONTH($I36),DAY($I36))+'Set-up'!$E$11))+1),0),IF(LEFT($AE36,1)="D",MaxPeriod,$AG36)),0) -> 0 | AN36: =IF('Set-up'!$E$9="Daily",MIN(MAX(((IF($M36="-",$J$2-1,MIN($J$2-1,$M36-'Set-up'!$E$13))-(DATE(YEAR($I36)+$AJ36,MONTH($I36),DAY($I36))+'Set-up'!$E$11))+1),0),IF(LEFT($AE36,1)="D",MaxPeriod,$AG36)),0) -> 0 | AO36: =IF('Set-up'!$E$9="Daily",MIN(MAX(((IF($M36="-",0,$M36-'Set-up'!$E$13)-(DATE(YEAR($I36)+$AK36,MONTH($I36),DAY($I36))+'Set-up'!$E$11))+1),0),IF(LEFT($AE36,1)="D",MaxPeriod,$AG36)),0) -> 0 | AP36: =IF('Set-up'!$E$9="Daily",DATE(YEAR($I36)+$AH36+1,MONTH($I36),DAY($I36))-DATE(YEAR($I36)+$AH36,MONTH($I36),DAY($I36)),0) -> 0 | AQ36: =IF('Set-up'!$E$9="Daily",DATE(YEAR($I36)+$AI36+1,MONTH($I36),DAY($I36))-DATE(YEAR($I36)+$AI36,MONTH($I36),DAY($I36)),0) -> 0 | AR36: =IF('Set-up'!$E$9="Daily",DATE(YEAR($I36)+$AJ36+1,MONTH($I36),DAY($I36))-DATE(YEAR($I36)+$AJ36,MONTH($I36),DAY($I36)),0) -> 0 | AS36: =IF('Set-up'!$E$9="Daily",DATE(YEAR($I36)+$AK36+1,MONTH($I36),DAY($I36))-DATE(YEAR($I36)+$AK36,MONTH($I36),DAY($I36)),0) -> 0
A37: CH-00001 | B37: CH-01 | C37: Dell Desktops (5) | D37: Owned | E37: CHW01 | F37: SL | G37: =IF(COUNTIF(AssetCode,$A37)>1,"E1",IF(ISNA(VLOOKUP($E37,CatAll,1,0))=TRUE,"E2",IF($I37="Add!","E10","-"))) -> - | H37: CE | I37: =IF(SUMIFS(TransIDDate,TransAsset,$A37,TransType,"ACQ")=0,"Add!",SUMIFS(TransIDDate,TransAsset,$A37,TransType,"ACQ")) -> 2015-07-20 | J37: 8200 | K37: 3 | L37: 0 | M37: =IF(SUMIFS(TransIDDate,TransAsset,$A37,TransType,"DIS")=0,"-",IF(SUMIFS(TransIDDate,TransAsset,$A37,TransType,"DIS")<=$I$2,SUMIFS(TransIDDate,TransAsset,$A37,TransType,"DIS"),"-")) -> - | N37: =IF($M37<=$I$2,SUMIFS(TransProceeds,TransAsset,$A37,TransType,"DIS"),0) -> 0 | O37: =IF(AND($M37<>"-",$M37<$H$2),0,SUMIFS(TransAmount,TransAsset,$A37,TransIDDate,"<"&$H$2,TransType,"ACQ")) -> 8200 | P37: 0 | Q37: 0 | R37: 8200 | S37: =IF(AND($M37<>"-",$M37<$H$2),0,IF($K37=0,0,IF(LEFT($AE37,1)="D",(($J37-$L37)*(1-((1-$AD37)^$AI37)))+(($J37-$L37)*(((1-$AD37)^$AI37)-((1-$AD37)^($AI37+1)))*IF('Set-up'!$E$9="Monthly",($AA37-($AI37*12))/12,$AM37/$AQ37)),($J37-$L37)/$AG37*$AA37))) -> 8200 | T37: =IF($K37=0,0,IF(LEFT($AE37,1)="D",((($J37-$L37)*(1-((1-$AD37)^$AH37)))+(($J37-$L37)*(((1-$AD37)^$AH37)-((1-$AD37)^($AH37+1)))*IF('Set-up'!$E$9="Monthly",($Z37-($AH37*12))/12,$AL37/$AP37)))-(($J37-$L37)*(1-((1-$AD37)^$AI37)))-(($J37-$L37)*(((1-$AD37)^$AI37)-((1-$AD37)^($AI37+1)))*IF('Set-up'!$E$9="Monthly",($AA37-($AI37*12))/12,$AM37/$AQ37)),(($J37-$L37)/$AG37*$Z37)-(($J37-$L37)/$AG37*$AA37))) -> 0 | U37: =-IF(AND($M37>=$H$2,$M37<=$I$2),IF(LEFT($AE37,1)="D",(($J37-$L37)*(1-((1-$AD37)^$AK37)))+(($J37-$L37)*(((1-$AD37)^$AK37)-((1-$AD37)^($AK37+1)))*IF('Set-up'!$E$9="Monthly",($AC37-($AK37*12))/12,$AO37/$AS37)),IF($K37=0,0,($J37-$L37)/$AG37*$AC37)),0) -> 0 | V37: 8200 | W37: 0 | X37: 0 | Y37: =IF($K37=0,0,IF(LEFT($AE37,1)="D",((($J37-$L37)*(1-((1-$AD37)^$AH37)))+(($J37-$L37)*(((1-$AD37)^$AH37)-((1-$AD37)^($AH37+1)))*IF('Set-up'!$E$9="Monthly",($Z37-($AH37*12))/12,$AL37/$AP37)))-(($J37-$L37)*(1-((1-$AD37)^$AJ37)))-(($J37-$L37)*(((1-$AD37)^$AJ37)-((1-$AD37)^($AJ37+1)))*IF('Set-up'!$E$9="Monthly",($AB37-($AJ37*12))/12,$AN37/$AR37)),(($J37-$L37)/$AG37*$Z37)-(($J37-$L37)/$AG37*$AB37))) -> 0 | Z37: =IF('Set-up'!$E$9="Daily",MIN(MAX(((IF($M37="-",$I$2,MIN($I$2,$M37-'Set-up'!$E$13))-(($I37+'Set-up'!$E$11)))+1),0),IF(LEFT($AE37,1)="D",MaxPeriod,$AG37)),MIN(MAX(((IF($M37="-",((YEAR($I$2)*12)+MONTH($I$2)),MIN(((YEAR($I$2)*12)+MONTH($I$2)),((YEAR($M37)*12)+MONTH($M37)-'Set-up'!$E$13)))-(((YEAR($I37)*12)+MONTH($I37)+'Set-up'!$E$11)))+1),0),IF(LEFT($AE37,1)="D",MaxPeriod,$AG37))) -> 36 | AA37: =IF('Set-up'!$E$9="Daily",MIN(MAX(((IF($M37="-",$H$2-1,MIN($H$2-1,$M37-'Set-up'!$E$13))-($I37+'Set-up'!$E$11))+1),0),IF(LEFT($AE37,1)="D",MaxPeriod,$AG37)),MIN(MAX(((IF($M37="-",((YEAR($H$2)*12)+MONTH($H$2)-1),MIN(((YEAR($H$2)*12)+MONTH($H$2)-1),((YEAR($M37)*12)+MONTH($M37)-'Set-up'!$E$13)))-(((YEAR($I37)*12)+MONTH($I37)+'Set-up'!$E$11)))+1),0),IF(LEFT($AE37,1)="D",MaxPeriod,$AG37))) -> 36 | AB37: =IF('Set-up'!$E$9="Daily",MIN(MAX(((IF($M37="-",$J$2-1,MIN($J$2-1,$M37-'Set-up'!$E$13))-($I37+'Set-up'!$E$11))+1),0),IF(LEFT($AE37,1)="D",MaxPeriod,$AG37)),MIN(MAX(((IF($M37="-",((YEAR($J$2)*12)+MONTH($J$2)-1),MIN(((YEAR($J$2)*12)+MONTH($J$2)-1),((YEAR($M37)*12)+MONTH($M37)-'Set-up'!$E$13)))-(((YEAR($I37)*12)+MONTH($I37)+'Set-up'!$E$11)))+1),0),IF(LEFT($AE37,1)="D",MaxPeriod,$AG37))) -> 36 | AC37: =IF('Set-up'!$E$9="Daily",MIN(MAX(((IF($M37="-",0,$M37-'Set-up'!$E$13)-($I37+'Set-up'!$E$11))+1),0),IF(LEFT($AE37,1)="D",MaxPeriod,$AG37)),MIN(MAX(((IF($M37="-",0,((YEAR($M37)*12)+MONTH($M37)-'Set-up'!$E$13))-(((YEAR($I37)*12)+MONTH($I37)+'Set-up'!$E$11)))+1),0),IF(LEFT($AE37,1)="D",MaxPeriod,$AG37))) -> 0 | AD37: 0 | AE37: SL | AF37: 1 | AG37: =IF('Set-up'!$E$9="Daily",(DATE(YEAR($I37)+$K37+(1-$AF37),MONTH($I37),DAY($I37))+'Set-up'!$E$11)-($I37+'Set-up'!$E$11),$K37*12) -> 36 | AH37: =ROUNDDOWN(MIN(MAX(((IF($M37="-",((YEAR($I$2)*12)+MONTH($I$2)),MIN(((YEAR($I$2)*12)+MONTH($I$2)),((YEAR($M37)*12)+MONTH($M37)-'Set-up'!$E$13)))-(((YEAR($I37)*12)+MONTH($I37)+'Set-up'!$E$11)))),0),IF(LEFT($AE37,1)="D",MaxPeriod,$AG37))/12,0) -> 3 | AI37: =ROUNDDOWN(MIN(MAX(((IF($M37="-",((YEAR($H$2)*12)+MONTH($H$2)-1),MIN(((YEAR($H$2)*12)+MONTH($H$2)-1),((YEAR($M37)*12)+MONTH($M37)-'Set-up'!$E$13)))-(((YEAR($I37)*12)+MONTH($I37)+'Set-up'!$E$11)))),0),IF(LEFT($AE37,1)="D",MaxPeriod,$AG37))/12,0) -> 3 | AJ37: =ROUNDDOWN(MIN(MAX(((IF($M37="-",((YEAR($J$2)*12)+MONTH($J$2)-1),MIN(((YEAR($J$2)*12)+MONTH($J$2)-1),((YEAR($M37)*12)+MONTH($M37)-'Set-up'!$E$13)))-(((YEAR($I37)*12)+MONTH($I37)+'Set-up'!$E$11)))),0),IF(LEFT($AE37,1)="D",MaxPeriod,$AG37))/12,0) -> 3 | AK37: =ROUNDDOWN(MIN(MAX(((IF($M37="-",0,((YEAR($M37)*12)+MONTH($M37)-'Set-up'!$E$13))-(((YEAR($I37)*12)+MONTH($I37)+'Set-up'!$E$11)))),0),IF(LEFT($AE37,1)="D",MaxPeriod,$AG37))/12,0) -> 0 | AL37: =IF('Set-up'!$E$9="Daily",MIN(MAX(((IF($M37="-",$I$2,MIN($I$2,$M37-'Set-up'!$E$13))-((DATE(YEAR($I37)+$AH37,MONTH($I37),DAY($I37))+'Set-up'!$E$11)))+1),0),IF(LEFT($AE37,1)="D",MaxPeriod,$AG37)),0) -> 0 | AM37: =IF('Set-up'!$E$9="Daily",MIN(MAX(((IF($M37="-",$H$2-1,MIN($H$2-1,$M37-'Set-up'!$E$13))-(DATE(YEAR($I37)+$AI37,MONTH($I37),DAY($I37))+'Set-up'!$E$11))+1),0),IF(LEFT($AE37,1)="D",MaxPeriod,$AG37)),0) -> 0 | AN37: =IF('Set-up'!$E$9="Daily",MIN(MAX(((IF($M37="-",$J$2-1,MIN($J$2-1,$M37-'Set-up'!$E$13))-(DATE(YEAR($I37)+$AJ37,MONTH($I37),DAY($I37))+'Set-up'!$E$11))+1),0),IF(LEFT($AE37,1)="D",MaxPeriod,$AG37)),0) -> 0 | AO37: =IF('Set-up'!$E$9="Daily",MIN(MAX(((IF($M37="-",0,$M37-'Set-up'!$E$13)-(DATE(YEAR($I37)+$AK37,MONTH($I37),DAY($I37))+'Set-up'!$E$11))+1),0),IF(LEFT($AE37,1)="D",MaxPeriod,$AG37)),0) -> 0 | AP37: =IF('Set-up'!$E$9="Daily",DATE(YEAR($I37)+$AH37+1,MONTH($I37),DAY($I37))-DATE(YEAR($I37)+$AH37,MONTH($I37),DAY($I37)),0) -> 0 | AQ37: =IF('Set-up'!$E$9="Daily",DATE(YEAR($I37)+$AI37+1,MONTH($I37),DAY($I37))-DATE(YEAR($I37)+$AI37,MONTH($I37),DAY($I37)),0) -> 0 | AR37: =IF('Set-up'!$E$9="Daily",DATE(YEAR($I37)+$AJ37+1,MONTH($I37),DAY($I37))-DATE(YEAR($I37)+$AJ37,MONTH($I37),DAY($I37)),0) -> 0 | AS37: =IF('Set-up'!$E$9="Daily",DATE(YEAR($I37)+$AK37+1,MONTH($I37),DAY($I37))-DATE(YEAR($I37)+$AK37,MONTH($I37),DAY($I37)),0) -> 0
A38: CH-00002 | B38: CH-02 | C38: Dell Laptop | D38: Owned | E38: CHW01 | F38: SL | G38: =IF(COUNTIF(AssetCode,$A38)>1,"E1",IF(ISNA(VLOOKUP($E38,CatAll,1,0))=TRUE,"E2",IF($I38="Add!","E10","-"))) -> - | H38: CE | I38: =IF(SUMIFS(TransIDDate,TransAsset,$A38,TransType,"ACQ")=0,"Add!",SUMIFS(TransIDDate,TransAsset,$A38,TransType,"ACQ")) -> 2015-07-20 | J38: 6600 | K38: 3 | L38: 0 | M38: =IF(SUMIFS(TransIDDate,TransAsset,$A38,TransType,"DIS")=0,"-",IF(SUMIFS(TransIDDate,TransAsset,$A38,TransType,"DIS")<=$I$2,SUMIFS(TransIDDate,TransAsset,$A38,TransType,"DIS"),"-")) -> - | N38: =IF($M38<=$I$2,SUMIFS(TransProceeds,TransAsset,$A38,TransType,"DIS"),0) -> 0 | O38: =IF(AND($M38<>"-",$M38<$H$2),0,SUMIFS(TransAmount,TransAsset,$A38,TransIDDate,"<"&$H$2,TransType,"ACQ")) -> 6600 | P38: 0 | Q38: 0 | R38: 6600 | S38: =IF(AND($M38<>"-",$M38<$H$2),0,IF($K38=0,0,IF(LEFT($AE38,1)="D",(($J38-$L38)*(1-((1-$AD38)^$AI38)))+(($J38-$L38)*(((1-$AD38)^$AI38)-((1-$AD38)^($AI38+1)))*IF('Set-up'!$E$9="Monthly",($AA38-($AI38*12))/12,$AM38/$AQ38)),($J38-$L38)/$AG38*$AA38))) -> 6600 | T38: =IF($K38=0,0,IF(LEFT($AE38,1)="D",((($J38-$L38)*(1-((1-$AD38)^$AH38)))+(($J38-$L38)*(((1-$AD38)^$AH38)-((1-$AD38)^($AH38+1)))*IF('Set-up'!$E$9="Monthly",($Z38-($AH38*12))/12,$AL38/$AP38)))-(($J38-$L38)*(1-((1-$AD38)^$AI38)))-(($J38-$L38)*(((1-$AD38)^$AI38)-((1-$AD38)^($AI38+1)))*IF('Set-up'!$E$9="Monthly",($AA38-($AI38*12))/12,$AM38/$AQ38)),(($J38-$L38)/$AG38*$Z38)-(($J38-$L38)/$AG38*$AA38))) -> 0 | U38: =-IF(AND($M38>=$H$2,$M38<=$I$2),IF(LEFT($AE38,1)="D",(($J38-$L38)*(1-((1-$AD38)^$AK38)))+(($J38-$L38)*(((1-$AD38)^$AK38)-((1-$AD38)^($AK38+1)))*IF('Set-up'!$E$9="Monthly",($AC38-($AK38*12))/12,$AO38/$AS38)),IF($K38=0,0,($J38-$L38)/$AG38*$AC38)),0) -> 0 | V38: 6600 | W38: 0 | X38: 0 | Y38: =IF($K38=0,0,IF(LEFT($AE38,1)="D",((($J38-$L38)*(1-((1-$AD38)^$AH38)))+(($J38-$L38)*(((1-$AD38)^$AH38)-((1-$AD38)^($AH38+1)))*IF('Set-up'!$E$9="Monthly",($Z38-($AH38*12))/12,$AL38/$AP38)))-(($J38-$L38)*(1-((1-$AD38)^$AJ38)))-(($J38-$L38)*(((1-$AD38)^$AJ38)-((1-$AD38)^($AJ38+1)))*IF('Set-up'!$E$9="Monthly",($AB38-($AJ38*12))/12,$AN38/$AR38)),(($J38-$L38)/$AG38*$Z38)-(($J38-$L38)/$AG38*$AB38))) -> 0 | Z38: =IF('Set-up'!$E$9="Daily",MIN(MAX(((IF($M38="-",$I$2,MIN($I$2,$M38-'Set-up'!$E$13))-(($I38+'Set-up'!$E$11)))+1),0),IF(LEFT($AE38,1)="D",MaxPeriod,$AG38)),MIN(MAX(((IF($M38="-",((YEAR($I$2)*12)+MONTH($I$2)),MIN(((YEAR($I$2)*12)+MONTH($I$2)),((YEAR($M38)*12)+MONTH($M38)-'Set-up'!$E$13)))-(((YEAR($I38)*12)+MONTH($I38)+'Set-up'!$E$11)))+1),0),IF(LEFT($AE38,1)="D",MaxPeriod,$AG38))) -> 36 | AA38: =IF('Set-up'!$E$9="Daily",MIN(MAX(((IF($M38="-",$H$2-1,MIN($H$2-1,$M38-'Set-up'!$E$13))-($I38+'Set-up'!$E$11))+1),0),IF(LEFT($AE38,1)="D",MaxPeriod,$AG38)),MIN(MAX(((IF($M38="-",((YEAR($H$2)*12)+MONTH($H$2)-1),MIN(((YEAR($H$2)*12)+MONTH($H$2)-1),((YEAR($M38)*12)+MONTH($M38)-'Set-up'!$E$13)))-(((YEAR($I38)*12)+MONTH($I38)+'Set-up'!$E$11)))+1),0),IF(LEFT($AE38,1)="D",MaxPeriod,$AG38))) -> 36 | AB38: =IF('Set-up'!$E$9="Daily",MIN(MAX(((IF($M38="-",$J$2-1,MIN($J$2-1,$M38-'Set-up'!$E$13))-($I38+'Set-up'!$E$11))+1),0),IF(LEFT($AE38,1)="D",MaxPeriod,$AG38)),MIN(MAX(((IF($M38="-",((YEAR($J$2)*12)+MONTH($J$2)-1),MIN(((YEAR($J$2)*12)+MONTH($J$2)-1),((YEAR($M38)*12)+MONTH($M38)-'Set-up'!$E$13)))-(((YEAR($I38)*12)+MONTH($I38)+'Set-up'!$E$11)))+1),0),IF(LEFT($AE38,1)="D",MaxPeriod,$AG38))) -> 36 | AC38: =IF('Set-up'!$E$9="Daily",MIN(MAX(((IF($M38="-",0,$M38-'Set-up'!$E$13)-($I38+'Set-up'!$E$11))+1),0),IF(LEFT($AE38,1)="D",MaxPeriod,$AG38)),MIN(MAX(((IF($M38="-",0,((YEAR($M38)*12)+MONTH($M38)-'Set-up'!$E$13))-(((YEAR($I38)*12)+MONTH($I38)+'Set-up'!$E$11)))+1),0),IF(LEFT($AE38,1)="D",MaxPeriod,$AG38))) -> 0 | AD38: 0 | AE38: SL | AF38: 1 | AG38: =IF('Set-up'!$E$9="Daily",(DATE(YEAR($I38)+$K38+(1-$AF38),MONTH($I38),DAY($I38))+'Set-up'!$E$11)-($I38+'Set-up'!$E$11),$K38*12) -> 36 | AH38: =ROUNDDOWN(MIN(MAX(((IF($M38="-",((YEAR($I$2)*12)+MONTH($I$2)),MIN(((YEAR($I$2)*12)+MONTH($I$2)),((YEAR($M38)*12)+MONTH($M38)-'Set-up'!$E$13)))-(((YEAR($I38)*12)+MONTH($I38)+'Set-up'!$E$11)))),0),IF(LEFT($AE38,1)="D",MaxPeriod,$AG38))/12,0) -> 3 | AI38: =ROUNDDOWN(MIN(MAX(((IF($M38="-",((YEAR($H$2)*12)+MONTH($H$2)-1),MIN(((YEAR($H$2)*12)+MONTH($H$2)-1),((YEAR($M38)*12)+MONTH($M38)-'Set-up'!$E$13)))-(((YEAR($I38)*12)+MONTH($I38)+'Set-up'!$E$11)))),0),IF(LEFT($AE38,1)="D",MaxPeriod,$AG38))/12,0) -> 3 | AJ38: =ROUNDDOWN(MIN(MAX(((IF($M38="-",((YEAR($J$2)*12)+MONTH($J$2)-1),MIN(((YEAR($J$2)*12)+MONTH($J$2)-1),((YEAR($M38)*12)+MONTH($M38)-'Set-up'!$E$13)))-(((YEAR($I38)*12)+MONTH($I38)+'Set-up'!$E$11)))),0),IF(LEFT($AE38,1)="D",MaxPeriod,$AG38))/12,0) -> 3 | AK38: =ROUNDDOWN(MIN(MAX(((IF($M38="-",0,((YEAR($M38)*12)+MONTH($M38)-'Set-up'!$E$13))-(((YEAR($I38)*12)+MONTH($I38)+'Set-up'!$E$11)))),0),IF(LEFT($AE38,1)="D",MaxPeriod,$AG38))/12,0) -> 0 | AL38: =IF('Set-up'!$E$9="Daily",MIN(MAX(((IF($M38="-",$I$2,MIN($I$2,$M38-'Set-up'!$E$13))-((DATE(YEAR($I38)+$AH38,MONTH($I38),DAY($I38))+'Set-up'!$E$11)))+1),0),IF(LEFT($AE38,1)="D",MaxPeriod,$AG38)),0) -> 0 | AM38: =IF('Set-up'!$E$9="Daily",MIN(MAX(((IF($M38="-",$H$2-1,MIN($H$2-1,$M38-'Set-up'!$E$13))-(DATE(YEAR($I38)+$AI38,MONTH($I38),DAY($I38))+'Set-up'!$E$11))+1),0),IF(LEFT($AE38,1)="D",MaxPeriod,$AG38)),0) -> 0 | AN38: =IF('Set-up'!$E$9="Daily",MIN(MAX(((IF($M38="-",$J$2-1,MIN($J$2-1,$M38-'Set-up'!$E$13))-(DATE(YEAR($I38)+$AJ38,MONTH($I38),DAY($I38))+'Set-up'!$E$11))+1),0),IF(LEFT($AE38,1)="D",MaxPeriod,$AG38)),0) -> 0 | AO38: =IF('Set-up'!$E$9="Daily",MIN(MAX(((IF($M38="-",0,$M38-'Set-up'!$E$13)-(DATE(YEAR($I38)+$AK38,MONTH($I38),DAY($I38))+'Set-up'!$E$11))+1),0),IF(LEFT($AE38,1)="D",MaxPeriod,$AG38)),0) -> 0 | AP38: =IF('Set-up'!$E$9="Daily",DATE(YEAR($I38)+$AH38+1,MONTH($I38),DAY($I38))-DATE(YEAR($I38)+$AH38,MONTH($I38),DAY($I38)),0) -> 0 | AQ38: =IF('Set-up'!$E$9="Daily",DATE(YEAR($I38)+$AI38+1,MONTH($I38),DAY($I38))-DATE(YEAR($I38)+$AI38,MONTH($I38),DAY($I38)),0) -> 0 | AR38: =IF('Set-up'!$E$9="Daily",DATE(YEAR($I38)+$AJ38+1,MONTH($I38),DAY($I38))-DATE(YEAR($I38)+$AJ38,MONTH($I38),DAY($I38)),0) -> 0 | AS38: =IF('Set-up'!$E$9="Daily",DATE(YEAR($I38)+$AK38+1,MONTH($I38),DAY($I38))-DATE(YEAR($I38)+$AK38,MONTH($I38),DAY($I38)),0) -> 0
A39: CH-00003 | B39: CH-03 | C39: HP Laser Printer | D39: Owned | E39: CHW01 | F39: SL | G39: =IF(COUNTIF(AssetCode,$A39)>1,"E1",IF(ISNA(VLOOKUP($E39,CatAll,1,0))=TRUE,"E2",IF($I39="Add!","E10","-"))) -> - | H39: CE | I39: =IF(SUMIFS(TransIDDate,TransAsset,$A39,TransType,"ACQ")=0,"Add!",SUMIFS(TransIDDate,TransAsset,$A39,TransType,"ACQ")) -> 2015-07-20 | J39: 2100 | K39: 3 | L39: 0 | M39: =IF(SUMIFS(TransIDDate,TransAsset,$A39,TransType,"DIS")=0,"-",IF(SUMIFS(TransIDDate,TransAsset,$A39,TransType,"DIS")<=$I$2,SUMIFS(TransIDDate,TransAsset,$A39,TransType,"DIS"),"-")) -> - | N39: =IF($M39<=$I$2,SUMIFS(TransProceeds,TransAsset,$A39,TransType,"DIS"),0) -> 0 | O39: =IF(AND($M39<>"-",$M39<$H$2),0,SUMIFS(TransAmount,TransAsset,$A39,TransIDDate,"<"&$H$2,TransType,"ACQ")) -> 2100 | P39: 0 | Q39: 0 | R39: 2100 | S39: =IF(AND($M39<>"-",$M39<$H$2),0,IF($K39=0,0,IF(LEFT($AE39,1)="D",(($J39-$L39)*(1-((1-$AD39)^$AI39)))+(($J39-$L39)*(((1-$AD39)^$AI39)-((1-$AD39)^($AI39+1)))*IF('Set-up'!$E$9="Monthly",($AA39-($AI39*12))/12,$AM39/$AQ39)),($J39-$L39)/$AG39*$AA39))) -> 2100 | T39: =IF($K39=0,0,IF(LEFT($AE39,1)="D",((($J39-$L39)*(1-((1-$AD39)^$AH39)))+(($J39-$L39)*(((1-$AD39)^$AH39)-((1-$AD39)^($AH39+1)))*IF('Set-up'!$E$9="Monthly",($Z39-($AH39*12))/12,$AL39/$AP39)))-(($J39-$L39)*(1-((1-$AD39)^$AI39)))-(($J39-$L39)*(((1-$AD39)^$AI39)-((1-$AD39)^($AI39+1)))*IF('Set-up'!$E$9="Monthly",($AA39-($AI39*12))/12,$AM39/$AQ39)),(($J39-$L39)/$AG39*$Z39)-(($J39-$L39)/$AG39*$AA39))) -> 0 | U39: =-IF(AND($M39>=$H$2,$M39<=$I$2),IF(LEFT($AE39,1)="D",(($J39-$L39)*(1-((1-$AD39)^$AK39)))+(($J39-$L39)*(((1-$AD39)^$AK39)-((1-$AD39)^($AK39+1)))*IF('Set-up'!$E$9="Monthly",($AC39-($AK39*12))/12,$AO39/$AS39)),IF($K39=0,0,($J39-$L39)/$AG39*$AC39)),0) -> 0 | V39: 2100 | W39: 0 | X39: 0 | Y39: =IF($K39=0,0,IF(LEFT($AE39,1)="D",((($J39-$L39)*(1-((1-$AD39)^$AH39)))+(($J39-$L39)*(((1-$AD39)^$AH39)-((1-$AD39)^($AH39+1)))*IF('Set-up'!$E$9="Monthly",($Z39-($AH39*12))/12,$AL39/$AP39)))-(($J39-$L39)*(1-((1-$AD39)^$AJ39)))-(($J39-$L39)*(((1-$AD39)^$AJ39)-((1-$AD39)^($AJ39+1)))*IF('Set-up'!$E$9="Monthly",($AB39-($AJ39*12))/12,$AN39/$AR39)),(($J39-$L39)/$AG39*$Z39)-(($J39-$L39)/$AG39*$AB39))) -> 0 | Z39: =IF('Set-up'!$E$9="Daily",MIN(MAX(((IF($M39="-",$I$2,MIN($I$2,$M39-'Set-up'!$E$13))-(($I39+'Set-up'!$E$11)))+1),0),IF(LEFT($AE39,1)="D",MaxPeriod,$AG39)),MIN(MAX(((IF($M39="-",((YEAR($I$2)*12)+MONTH($I$2)),MIN(((YEAR($I$2)*12)+MONTH($I$2)),((YEAR($M39)*12)+MONTH($M39)-'Set-up'!$E$13)))-(((YEAR($I39)*12)+MONTH($I39)+'Set-up'!$E$11)))+1),0),IF(LEFT($AE39,1)="D",MaxPeriod,$AG39))) -> 36 | AA39: =IF('Set-up'!$E$9="Daily",MIN(MAX(((IF($M39="-",$H$2-1,MIN($H$2-1,$M39-'Set-up'!$E$13))-($I39+'Set-up'!$E$11))+1),0),IF(LEFT($AE39,1)="D",MaxPeriod,$AG39)),MIN(MAX(((IF($M39="-",((YEAR($H$2)*12)+MONTH($H$2)-1),MIN(((YEAR($H$2)*12)+MONTH($H$2)-1),((YEAR($M39)*12)+MONTH($M39)-'Set-up'!$E$13)))-(((YEAR($I39)*12)+MONTH($I39)+'Set-up'!$E$11)))+1),0),IF(LEFT($AE39,1)="D",MaxPeriod,$AG39))) -> 36 | AB39: =IF('Set-up'!$E$9="Daily",MIN(MAX(((IF($M39="-",$J$2-1,MIN($J$2-1,$M39-'Set-up'!$E$13))-($I39+'Set-up'!$E$11))+1),0),IF(LEFT($AE39,1)="D",MaxPeriod,$AG39)),MIN(MAX(((IF($M39="-",((YEAR($J$2)*12)+MONTH($J$2)-1),MIN(((YEAR($J$2)*12)+MONTH($J$2)-1),((YEAR($M39)*12)+MONTH($M39)-'Set-up'!$E$13)))-(((YEAR($I39)*12)+MONTH($I39)+'Set-up'!$E$11)))+1),0),IF(LEFT($AE39,1)="D",MaxPeriod,$AG39))) -> 36 | AC39: =IF('Set-up'!$E$9="Daily",MIN(MAX(((IF($M39="-",0,$M39-'Set-up'!$E$13)-($I39+'Set-up'!$E$11))+1),0),IF(LEFT($AE39,1)="D",MaxPeriod,$AG39)),MIN(MAX(((IF($M39="-",0,((YEAR($M39)*12)+MONTH($M39)-'Set-up'!$E$13))-(((YEAR($I39)*12)+MONTH($I39)+'Set-up'!$E$11)))+1),0),IF(LEFT($AE39,1)="D",MaxPeriod,$AG39))) -> 0 | AD39: 0 | AE39: SL | AF39: 1 | AG39: =IF('Set-up'!$E$9="Daily",(DATE(YEAR($I39)+$K39+(1-$AF39),MONTH($I39),DAY($I39))+'Set-up'!$E$11)-($I39+'Set-up'!$E$11),$K39*12) -> 36 | AH39: =ROUNDDOWN(MIN(MAX(((IF($M39="-",((YEAR($I$2)*12)+MONTH($I$2)),MIN(((YEAR($I$2)*12)+MONTH($I$2)),((YEAR($M39)*12)+MONTH($M39)-'Set-up'!$E$13)))-(((YEAR($I39)*12)+MONTH($I39)+'Set-up'!$E$11)))),0),IF(LEFT($AE39,1)="D",MaxPeriod,$AG39))/12,0) -> 3 | AI39: =ROUNDDOWN(MIN(MAX(((IF($M39="-",((YEAR($H$2)*12)+MONTH($H$2)-1),MIN(((YEAR($H$2)*12)+MONTH($H$2)-1),((YEAR($M39)*12)+MONTH($M39)-'Set-up'!$E$13)))-(((YEAR($I39)*12)+MONTH($I39)+'Set-up'!$E$11)))),0),IF(LEFT($AE39,1)="D",MaxPeriod,$AG39))/12,0) -> 3 | AJ39: =ROUNDDOWN(MIN(MAX(((IF($M39="-",((YEAR($J$2)*12)+MONTH($J$2)-1),MIN(((YEAR($J$2)*12)+MONTH($J$2)-1),((YEAR($M39)*12)+MONTH($M39)-'Set-up'!$E$13)))-(((YEAR($I39)*12)+MONTH($I39)+'Set-up'!$E$11)))),0),IF(LEFT($AE39,1)="D",MaxPeriod,$AG39))/12,0) -> 3 | AK39: =ROUNDDOWN(MIN(MAX(((IF($M39="-",0,((YEAR($M39)*12)+MONTH($M39)-'Set-up'!$E$13))-(((YEAR($I39)*12)+MONTH($I39)+'Set-up'!$E$11)))),0),IF(LEFT($AE39,1)="D",MaxPeriod,$AG39))/12,0) -> 0 | AL39: =IF('Set-up'!$E$9="Daily",MIN(MAX(((IF($M39="-",$I$2,MIN($I$2,$M39-'Set-up'!$E$13))-((DATE(YEAR($I39)+$AH39,MONTH($I39),DAY($I39))+'Set-up'!$E$11)))+1),0),IF(LEFT($AE39,1)="D",MaxPeriod,$AG39)),0) -> 0 | AM39: =IF('Set-up'!$E$9="Daily",MIN(MAX(((IF($M39="-",$H$2-1,MIN($H$2-1,$M39-'Set-up'!$E$13))-(DATE(YEAR($I39)+$AI39,MONTH($I39),DAY($I39))+'Set-up'!$E$11))+1),0),IF(LEFT($AE39,1)="D",MaxPeriod,$AG39)),0) -> 0 | AN39: =IF('Set-up'!$E$9="Daily",MIN(MAX(((IF($M39="-",$J$2-1,MIN($J$2-1,$M39-'Set-up'!$E$13))-(DATE(YEAR($I39)+$AJ39,MONTH($I39),DAY($I39))+'Set-up'!$E$11))+1),0),IF(LEFT($AE39,1)="D",MaxPeriod,$AG39)),0) -> 0 | AO39: =IF('Set-up'!$E$9="Daily",MIN(MAX(((IF($M39="-",0,$M39-'Set-up'!$E$13)-(DATE(YEAR($I39)+$AK39,MONTH($I39),DAY($I39))+'Set-up'!$E$11))+1),0),IF(LEFT($AE39,1)="D",MaxPeriod,$AG39)),0) -> 0 | AP39: =IF('Set-up'!$E$9="Daily",DATE(YEAR($I39)+$AH39+1,MONTH($I39),DAY($I39))-DATE(YEAR($I39)+$AH39,MONTH($I39),DAY($I39)),0) -> 0 | AQ39: =IF('Set-up'!$E$9="Daily",DATE(YEAR($I39)+$AI39+1,MONTH($I39),DAY($I39))-DATE(YEAR($I39)+$AI39,MONTH($I39),DAY($I39)),0) -> 0 | AR39: =IF('Set-up'!$E$9="Daily",DATE(YEAR($I39)+$AJ39+1,MONTH($I39),DAY($I39))-DATE(YEAR($I39)+$AJ39,MONTH($I39),DAY($I39)),0) -> 0 | AS39: =IF('Set-up'!$E$9="Daily",DATE(YEAR($I39)+$AK39+1,MONTH($I39),DAY($I39))-DATE(YEAR($I39)+$AK39,MONTH($I39),DAY($I39)),0) -> 0
A40: OE-00001 | B40: OE-01 | C40: Nashua Copier | D40: Owned | E40: OFE01 | F40: SL | G40: =IF(COUNTIF(AssetCode,$A40)>1,"E1",IF(ISNA(VLOOKUP($E40,CatAll,1,0))=TRUE,"E2",IF($I40="Add!","E10","-"))) -> - | H40: OE | I40: =IF(SUMIFS(TransIDDate,TransAsset,$A40,TransType,"ACQ")=0,"Add!",SUMIFS(TransIDDate,TransAsset,$A40,TransType,"ACQ")) -> 2015-07-20 | J40: 3400 | K40: 4 | L40: 0 | M40: =IF(SUMIFS(TransIDDate,TransAsset,$A40,TransType,"DIS")=0,"-",IF(SUMIFS(TransIDDate,TransAsset,$A40,TransType,"DIS")<=$I$2,SUMIFS(TransIDDate,TransAsset,$A40,TransType,"DIS"),"-")) -> - | N40: =IF($M40<=$I$2,SUMIFS(TransProceeds,TransAsset,$A40,TransType,"DIS"),0) -> 0 | O40: =IF(AND($M40<>"-",$M40<$H$2),0,SUMIFS(TransAmount,TransAsset,$A40,TransIDDate,"<"&$H$2,TransType,"ACQ")) -> 3400 | P40: 0 | Q40: 0 | R40: 3400 | S40: =IF(AND($M40<>"-",$M40<$H$2),0,IF($K40=0,0,IF(LEFT($AE40,1)="D",(($J40-$L40)*(1-((1-$AD40)^$AI40)))+(($J40-$L40)*(((1-$AD40)^$AI40)-((1-$AD40)^($AI40+1)))*IF('Set-up'!$E$9="Monthly",($AA40-($AI40*12))/12,$AM40/$AQ40)),($J40-$L40)/$AG40*$AA40))) -> 3400 | T40: =IF($K40=0,0,IF(LEFT($AE40,1)="D",((($J40-$L40)*(1-((1-$AD40)^$AH40)))+(($J40-$L40)*(((1-$AD40)^$AH40)-((1-$AD40)^($AH40+1)))*IF('Set-up'!$E$9="Monthly",($Z40-($AH40*12))/12,$AL40/$AP40)))-(($J40-$L40)*(1-((1-$AD40)^$AI40)))-(($J40-$L40)*(((1-$AD40)^$AI40)-((1-$AD40)^($AI40+1)))*IF('Set-up'!$E$9="Monthly",($AA40-($AI40*12))/12,$AM40/$AQ40)),(($J40-$L40)/$AG40*$Z40)-(($J40-$L40)/$AG40*$AA40))) -> 0 | U40: =-IF(AND($M40>=$H$2,$M40<=$I$2),IF(LEFT($AE40,1)="D",(($J40-$L40)*(1-((1-$AD40)^$AK40)))+(($J40-$L40)*(((1-$AD40)^$AK40)-((1-$AD40)^($AK40+1)))*IF('Set-up'!$E$9="Monthly",($AC40-($AK40*12))/12,$AO40/$AS40)),IF($K40=0,0,($J40-$L40)/$AG40*$AC40)),0) -> 0 | V40: 3400 | W40: 0 | X40: 0 | Y40: =IF($K40=0,0,IF(LEFT($AE40,1)="D",((($J40-$L40)*(1-((1-$AD40)^$AH40)))+(($J40-$L40)*(((1-$AD40)^$AH40)-((1-$AD40)^($AH40+1)))*IF('Set-up'!$E$9="Monthly",($Z40-($AH40*12))/12,$AL40/$AP40)))-(($J40-$L40)*(1-((1-$AD40)^$AJ40)))-(($J40-$L40)*(((1-$AD40)^$AJ40)-((1-$AD40)^($AJ40+1)))*IF('Set-up'!$E$9="Monthly",($AB40-($AJ40*12))/12,$AN40/$AR40)),(($J40-$L40)/$AG40*$Z40)-(($J40-$L40)/$AG40*$AB40))) -> 0 | Z40: =IF('Set-up'!$E$9="Daily",MIN(MAX(((IF($M40="-",$I$2,MIN($I$2,$M40-'Set-up'!$E$13))-(($I40+'Set-up'!$E$11)))+1),0),IF(LEFT($AE40,1)="D",MaxPeriod,$AG40)),MIN(MAX(((IF($M40="-",((YEAR($I$2)*12)+MONTH($I$2)),MIN(((YEAR($I$2)*12)+MONTH($I$2)),((YEAR($M40)*12)+MONTH($M40)-'Set-up'!$E$13)))-(((YEAR($I40)*12)+MONTH($I40)+'Set-up'!$E$11)))+1),0),IF(LEFT($AE40,1)="D",MaxPeriod,$AG40))) -> 48 | AA40: =IF('Set-up'!$E$9="Daily",MIN(MAX(((IF($M40="-",$H$2-1,MIN($H$2-1,$M40-'Set-up'!$E$13))-($I40+'Set-up'!$E$11))+1),0),IF(LEFT($AE40,1)="D",MaxPeriod,$AG40)),MIN(MAX(((IF($M40="-",((YEAR($H$2)*12)+MONTH($H$2)-1),MIN(((YEAR($H$2)*12)+MONTH($H$2)-1),((YEAR($M40)*12)+MONTH($M40)-'Set-up'!$E$13)))-(((YEAR($I40)*12)+MONTH($I40)+'Set-up'!$E$11)))+1),0),IF(LEFT($AE40,1)="D",MaxPeriod,$AG40))) -> 48 | AB40: =IF('Set-up'!$E$9="Daily",MIN(MAX(((IF($M40="-",$J$2-1,MIN($J$2-1,$M40-'Set-up'!$E$13))-($I40+'Set-up'!$E$11))+1),0),IF(LEFT($AE40,1)="D",MaxPeriod,$AG40)),MIN(MAX(((IF($M40="-",((YEAR($J$2)*12)+MONTH($J$2)-1),MIN(((YEAR($J$2)*12)+MONTH($J$2)-1),((YEAR($M40)*12)+MONTH($M40)-'Set-up'!$E$13)))-(((YEAR($I40)*12)+MONTH($I40)+'Set-up'!$E$11)))+1),0),IF(LEFT($AE40,1)="D",MaxPeriod,$AG40))) -> 48 | AC40: =IF('Set-up'!$E$9="Daily",MIN(MAX(((IF($M40="-",0,$M40-'Set-up'!$E$13)-($I40+'Set-up'!$E$11))+1),0),IF(LEFT($AE40,1)="D",MaxPeriod,$AG40)),MIN(MAX(((IF($M40="-",0,((YEAR($M40)*12)+MONTH($M40)-'Set-up'!$E$13))-(((YEAR($I40)*12)+MONTH($I40)+'Set-up'!$E$11)))+1),0),IF(LEFT($AE40,1)="D",MaxPeriod,$AG40))) -> 0 | AD40: 0 | AE40: SL | AF40: 1 | AG40: =IF('Set-up'!$E$9="Daily",(DATE(YEAR($I40)+$K40+(1-$AF40),MONTH($I40),DAY($I40))+'Set-up'!$E$11)-($I40+'Set-up'!$E$11),$K40*12) -> 48 | AH40: =ROUNDDOWN(MIN(MAX(((IF($M40="-",((YEAR($I$2)*12)+MONTH($I$2)),MIN(((YEAR($I$2)*12)+MONTH($I$2)),((YEAR($M40)*12)+MONTH($M40)-'Set-up'!$E$13)))-(((YEAR($I40)*12)+MONTH($I40)+'Set-up'!$E$11)))),0),IF(LEFT($AE40,1)="D",MaxPeriod,$AG40))/12,0) -> 4 | AI40: =ROUNDDOWN(MIN(MAX(((IF($M40="-",((YEAR($H$2)*12)+MONTH($H$2)-1),MIN(((YEAR($H$2)*12)+MONTH($H$2)-1),((YEAR($M40)*12)+MONTH($M40)-'Set-up'!$E$13)))-(((YEAR($I40)*12)+MONTH($I40)+'Set-up'!$E$11)))),0),IF(LEFT($AE40,1)="D",MaxPeriod,$AG40))/12,0) -> 4 | AJ40: =ROUNDDOWN(MIN(MAX(((IF($M40="-",((YEAR($J$2)*12)+MONTH($J$2)-1),MIN(((YEAR($J$2)*12)+MONTH($J$2)-1),((YEAR($M40)*12)+MONTH($M40)-'Set-up'!$E$13)))-(((YEAR($I40)*12)+MONTH($I40)+'Set-up'!$E$11)))),0),IF(LEFT($AE40,1)="D",MaxPeriod,$AG40))/12,0) -> 4 | AK40: =ROUNDDOWN(MIN(MAX(((IF($M40="-",0,((YEAR($M40)*12)+MONTH($M40)-'Set-up'!$E$13))-(((YEAR($I40)*12)+MONTH($I40)+'Set-up'!$E$11)))),0),IF(LEFT($AE40,1)="D",MaxPeriod,$AG40))/12,0) -> 0 | AL40: =IF('Set-up'!$E$9="Daily",MIN(MAX(((IF($M40="-",$I$2,MIN($I$2,$M40-'Set-up'!$E$13))-((DATE(YEAR($I40)+$AH40,MONTH($I40),DAY($I40))+'Set-up'!$E$11)))+1),0),IF(LEFT($AE40,1)="D",MaxPeriod,$AG40)),0) -> 0 | AM40: =IF('Set-up'!$E$9="Daily",MIN(MAX(((IF($M40="-",$H$2-1,MIN($H$2-1,$M40-'Set-up'!$E$13))-(DATE(YEAR($I40)+$AI40,MONTH($I40),DAY($I40))+'Set-up'!$E$11))+1),0),IF(LEFT($AE40,1)="D",MaxPeriod,$AG40)),0) -> 0 | AN40: =IF('Set-up'!$E$9="Daily",MIN(MAX(((IF($M40="-",$J$2-1,MIN($J$2-1,$M40-'Set-up'!$E$13))-(DATE(YEAR($I40)+$AJ40,MONTH($I40),DAY($I40))+'Set-up'!$E$11))+1),0),IF(LEFT($AE40,1)="D",MaxPeriod,$AG40)),0) -> 0 | AO40: =IF('Set-up'!$E$9="Daily",MIN(MAX(((IF($M40="-",0,$M40-'Set-up'!$E$13)-(DATE(YEAR($I40)+$AK40,MONTH($I40),DAY($I40))+'Set-up'!$E$11))+1),0),IF(LEFT($AE40,1)="D",MaxPeriod,$AG40)),0) -> 0 | AP40: =IF('Set-up'!$E$9="Daily",DATE(YEAR($I40)+$AH40+1,MONTH($I40),DAY($I40))-DATE(YEAR($I40)+$AH40,MONTH($I40),DAY($I40)),0) -> 0 | AQ40: =IF('Set-up'!$E$9="Daily",DATE(YEAR($I40)+$AI40+1,MONTH($I40),DAY($I40))-DATE(YEAR($I40)+$AI40,MONTH($I40),DAY($I40)),0) -> 0 | AR40: =IF('Set-up'!$E$9="Daily",DATE(YEAR($I40)+$AJ40+1,MONTH($I40),DAY($I40))-DATE(YEAR($I40)+$AJ40,MONTH($I40),DAY($I40)),0) -> 0 | AS40: =IF('Set-up'!$E$9="Daily",DATE(YEAR($I40)+$AK40+1,MONTH($I40),DAY($I40))-DATE(YEAR($I40)+$AK40,MONTH($I40),DAY($I40)),0) -> 0
A41: OE-00002 | B41: OE-02 | C41: Nashua Copier | D41: Owned | E41: OFE01 | F41: SL | G41: =IF(COUNTIF(AssetCode,$A41)>1,"E1",IF(ISNA(VLOOKUP($E41,CatAll,1,0))=TRUE,"E2",IF($I41="Add!","E10","-"))) -> - | H41: OE | I41: =IF(SUMIFS(TransIDDate,TransAsset,$A41,TransType,"ACQ")=0,"Add!",SUMIFS(TransIDDate,TransAsset,$A41,TransType,"ACQ")) -> 2018-05-30 | J41: 5150 | K41: 4 | L41: 0 | M41: =IF(SUMIFS(TransIDDate,TransAsset,$A41,TransType,"DIS")=0,"-",IF(SUMIFS(TransIDDate,TransAsset,$A41,TransType,"DIS")<=$I$2,SUMIFS(TransIDDate,TransAsset,$A41,TransType,"DIS"),"-")) -> - | N41: =IF($M41<=$I$2,SUMIFS(TransProceeds,TransAsset,$A41,TransType,"DIS"),0) -> 0 | O41: =IF(AND($M41<>"-",$M41<$H$2),0,SUMIFS(TransAmount,TransAsset,$A41,TransIDDate,"<"&$H$2,TransType,"ACQ")) -> 5150 | P41: 0 | Q41: 0 | R41: 5150 | S41: =IF(AND($M41<>"-",$M41<$H$2),0,IF($K41=0,0,IF(LEFT($AE41,1)="D",(($J41-$L41)*(1-((1-$AD41)^$AI41)))+(($J41-$L41)*(((1-$AD41)^$AI41)-((1-$AD41)^($AI41+1)))*IF('Set-up'!$E$9="Monthly",($AA41-($AI41*12))/12,$AM41/$AQ41)),($J41-$L41)/$AG41*$AA41))) -> 2360.416667 | T41: =IF($K41=0,0,IF(LEFT($AE41,1)="D",((($J41-$L41)*(1-((1-$AD41)^$AH41)))+(($J41-$L41)*(((1-$AD41)^$AH41)-((1-$AD41)^($AH41+1)))*IF('Set-up'!$E$9="Monthly",($Z41-($AH41*12))/12,$AL41/$AP41)))-(($J41-$L41)*(1-((1-$AD41)^$AI41)))-(($J41-$L41)*(((1-$AD41)^$AI41)-((1-$AD41)^($AI41+1)))*IF('Set-up'!$E$9="Monthly",($AA41-($AI41*12))/12,$AM41/$AQ41)),(($J41-$L41)/$AG41*$Z41)-(($J41-$L41)/$AG41*$AA41))) -> 1287.5 | U41: =-IF(AND($M41>=$H$2,$M41<=$I$2),IF(LEFT($AE41,1)="D",(($J41-$L41)*(1-((1-$AD41)^$AK41)))+(($J41-$L41)*(((1-$AD41)^$AK41)-((1-$AD41)^($AK41+1)))*IF('Set-up'!$E$9="Monthly",($AC41-($AK41*12))/12,$AO41/$AS41)),IF($K41=0,0,($J41-$L41)/$AG41*$AC41)),0) -> 0 | V41: 3647.916667 | W41: 1502.083333 | X41: 0 | Y41: =IF($K41=0,0,IF(LEFT($AE41,1)="D",((($J41-$L41)*(1-((1-$AD41)^$AH41)))+(($J41-$L41)*(((1-$AD41)^$AH41)-((1-$AD41)^($AH41+1)))*IF('Set-up'!$E$9="Monthly",($Z41-($AH41*12))/12,$AL41/$AP41)))-(($J41-$L41)*(1-((1-$AD41)^$AJ41)))-(($J41-$L41)*(((1-$AD41)^$AJ41)-((1-$AD41)^($AJ41+1)))*IF('Set-up'!$E$9="Monthly",($AB41-($AJ41*12))/12,$AN41/$AR41)),(($J41-$L41)/$AG41*$Z41)-(($J41-$L41)/$AG41*$AB41))) -> 107.2916667 | Z41: =IF('Set-up'!$E$9="Daily",MIN(MAX(((IF($M41="-",$I$2,MIN($I$2,$M41-'Set-up'!$E$13))-(($I41+'Set-up'!$E$11)))+1),0),IF(LEFT($AE41,1)="D",MaxPeriod,$AG41)),MIN(MAX(((IF($M41="-",((YEAR($I$2)*12)+MONTH($I$2)),MIN(((YEAR($I$2)*12)+MONTH($I$2)),((YEAR($M41)*12)+MONTH($M41)-'Set-up'!$E$13)))-(((YEAR($I41)*12)+MONTH($I41)+'Set-up'!$E$11)))+1),0),IF(LEFT($AE41,1)="D",MaxPeriod,$AG41))) -> 34 | AA41: =IF('Set-up'!$E$9="Daily",MIN(MAX(((IF($M41="-",$H$2-1,MIN($H$2-1,$M41-'Set-up'!$E$13))-($I41+'Set-up'!$E$11))+1),0),IF(LEFT($AE41,1)="D",MaxPeriod,$AG41)),MIN(MAX(((IF($M41="-",((YEAR($H$2)*12)+MONTH($H$2)-1),MIN(((YEAR($H$2)*12)+MONTH($H$2)-1),((YEAR($M41)*12)+MONTH($M41)-'Set-up'!$E$13)))-(((YEAR($I41)*12)+MONTH($I41)+'Set-up'!$E$11)))+1),0),IF(LEFT($AE41,1)="D",MaxPeriod,$AG41))) -> 22 | AB41: =IF('Set-up'!$E$9="Daily",MIN(MAX(((IF($M41="-",$J$2-1,MIN($J$2-1,$M41-'Set-up'!$E$13))-($I41+'Set-up'!$E$11))+1),0),IF(LEFT($AE41,1)="D",MaxPeriod,$AG41)),MIN(MAX(((IF($M41="-",((YEAR($J$2)*12)+MONTH($J$2)-1),MIN(((YEAR($J$2)*12)+MONTH($J$2)-1),((YEAR($M41)*12)+MONTH($M41)-'Set-up'!$E$13)))-(((YEAR($I41)*12)+MONTH($I41)+'Set-up'!$E$11)))+1),0),IF(LEFT($AE41,1)="D",MaxPeriod,$AG41))) -> 33 | AC41: =IF('Set-up'!$E$9="Daily",MIN(MAX(((IF($M41="-",0,$M41-'Set-up'!$E$13)-($I41+'Set-up'!$E$11))+1),0),IF(LEFT($AE41,1)="D",MaxPeriod,$AG41)),MIN(MAX(((IF($M41="-",0,((YEAR($M41)*12)+MONTH($M41)-'Set-up'!$E$13))-(((YEAR($I41)*12)+MONTH($I41)+'Set-up'!$E$11)))+1),0),IF(LEFT($AE41,1)="D",MaxPeriod,$AG41))) -> 0 | AD41: 0 | AE41: SL | AF41: 1 | AG41: =IF('Set-up'!$E$9="Daily",(DATE(YEAR($I41)+$K41+(1-$AF41),MONTH($I41),DAY($I41))+'Set-up'!$E$11)-($I41+'Set-up'!$E$11),$K41*12) -> 48 | AH41: =ROUNDDOWN(MIN(MAX(((IF($M41="-",((YEAR($I$2)*12)+MONTH($I$2)),MIN(((YEAR($I$2)*12)+MONTH($I$2)),((YEAR($M41)*12)+MONTH($M41)-'Set-up'!$E$13)))-(((YEAR($I41)*12)+MONTH($I41)+'Set-up'!$E$11)))),0),IF(LEFT($AE41,1)="D",MaxPeriod,$AG41))/12,0) -> 2 | AI41: =ROUNDDOWN(MIN(MAX(((IF($M41="-",((YEAR($H$2)*12)+MONTH($H$2)-1),MIN(((YEAR($H$2)*12)+MONTH($H$2)-1),((YEAR($M41)*12)+MONTH($M41)-'Set-up'!$E$13)))-(((YEAR($I41)*12)+MONTH($I41)+'Set-up'!$E$11)))),0),IF(LEFT($AE41,1)="D",MaxPeriod,$AG41))/12,0) -> 1 | AJ41: =ROUNDDOWN(MIN(MAX(((IF($M41="-",((YEAR($J$2)*12)+MONTH($J$2)-1),MIN(((YEAR($J$2)*12)+MONTH($J$2)-1),((YEAR($M41)*12)+MONTH($M41)-'Set-up'!$E$13)))-(((YEAR($I41)*12)+MONTH($I41)+'Set-up'!$E$11)))),0),IF(LEFT($AE41,1)="D",MaxPeriod,$AG41))/12,0) -> 2 | AK41: =ROUNDDOWN(MIN(MAX(((IF($M41="-",0,((YEAR($M41)*12)+MONTH($M41)-'Set-up'!$E$13))-(((YEAR($I41)*12)+MONTH($I41)+'Set-up'!$E$11)))),0),IF(LEFT($AE41,1)="D",MaxPeriod,$AG41))/12,0) -> 0 | AL41: =IF('Set-up'!$E$9="Daily",MIN(MAX(((IF($M41="-",$I$2,MIN($I$2,$M41-'Set-up'!$E$13))-((DATE(YEAR($I41)+$AH41,MONTH($I41),DAY($I41))+'Set-up'!$E$11)))+1),0),IF(LEFT($AE41,1)="D",MaxPeriod,$AG41)),0) -> 0 | AM41: =IF('Set-up'!$E$9="Daily",MIN(MAX(((IF($M41="-",$H$2-1,MIN($H$2-1,$M41-'Set-up'!$E$13))-(DATE(YEAR($I41)+$AI41,MONTH($I41),DAY($I41))+'Set-up'!$E$11))+1),0),IF(LEFT($AE41,1)="D",MaxPeriod,$AG41)),0) -> 0 | AN41: =IF('Set-up'!$E$9="Daily",MIN(MAX(((IF($M41="-",$J$2-1,MIN($J$2-1,$M41-'Set-up'!$E$13))-(DATE(YEAR($I41)+$AJ41,MONTH($I41),DAY($I41))+'Set-up'!$E$11))+1),0),IF(LEFT($AE41,1)="D",MaxPeriod,$AG41)),0) -> 0 | AO41: =IF('Set-up'!$E$9="Daily",MIN(MAX(((IF($M41="-",0,$M41-'Set-up'!$E$13)-(DATE(YEAR($I41)+$AK41,MONTH($I41),DAY($I41))+'Set-up'!$E$11))+1),0),IF(LEFT($AE41,1)="D",MaxPeriod,$AG41)),0) -> 0 | AP41: =IF('Set-up'!$E$9="Daily",DATE(YEAR($I41)+$AH41+1,MONTH($I41),DAY($I41))-DATE(YEAR($I41)+$AH41,MONTH($I41),DAY($I41)),0) -> 0 | AQ41: =IF('Set-up'!$E$9="Daily",DATE(YEAR($I41)+$AI41+1,MONTH($I41),DAY($I41))-DATE(YEAR($I41)+$AI41,MONTH($I41),DAY($I41)),0) -> 0 | AR41: =IF('Set-up'!$E$9="Daily",DATE(YEAR($I41)+$AJ41+1,MONTH($I41),DAY($I41))-DATE(YEAR($I41)+$AJ41,MONTH($I41),DAY($I41)),0) -> 0 | AS41: =IF('Set-up'!$E$9="Daily",DATE(YEAR($I41)+$AK41+1,MONTH($I41),DAY($I41))-DATE(YEAR($I41)+$AK41,MONTH($I41),DAY($I41)),0) -> 0
A42: CS-00001 | B42: CS-01 | C42: Microsoft Office 2010 | D42: Owned | E42: CSW01 | F42: SL | G42: =IF(COUNTIF(AssetCode,$A42)>1,"E1",IF(ISNA(VLOOKUP($E42,CatAll,1,0))=TRUE,"E2",IF($I42="Add!","E10","-"))) -> - | H42: CE | I42: =IF(SUMIFS(TransIDDate,TransAsset,$A42,TransType,"ACQ")=0,"Add!",SUMIFS(TransIDDate,TransAsset,$A42,TransType,"ACQ")) -> 2015-07-31 | J42: 12800 | K42: 2 | L42: 0 | M42: =IF(SUMIFS(TransIDDate,TransAsset,$A42,TransType,"DIS")=0,"-",IF(SUMIFS(TransIDDate,TransAsset,$A42,TransType,"DIS")<=$I$2,SUMIFS(TransIDDate,TransAsset,$A42,TransType,"DIS"),"-")) -> - | N42: =IF($M42<=$I$2,SUMIFS(TransProceeds,TransAsset,$A42,TransType,"DIS"),0) -> 0 | O42: =IF(AND($M42<>"-",$M42<$H$2),0,SUMIFS(TransAmount,TransAsset,$A42,TransIDDate,"<"&$H$2,TransType,"ACQ")) -> 12800 | P42: 0 | Q42: 0 | R42: 12800 | S42: =IF(AND($M42<>"-",$M42<$H$2),0,IF($K42=0,0,IF(LEFT($AE42,1)="D",(($J42-$L42)*(1-((1-$AD42)^$AI42)))+(($J42-$L42)*(((1-$AD42)^$AI42)-((1-$AD42)^($AI42+1)))*IF('Set-up'!$E$9="Monthly",($AA42-($AI42*12))/12,$AM42/$AQ42)),($J42-$L42)/$AG42*$AA42))) -> 12800 | T42: =IF($K42=0,0,IF(LEFT($AE42,1)="D",((($J42-$L42)*(1-((1-$AD42)^$AH42)))+(($J42-$L42)*(((1-$AD42)^$AH42)-((1-$AD42)^($AH42+1)))*IF('Set-up'!$E$9="Monthly",($Z42-($AH42*12))/12,$AL42/$AP42)))-(($J42-$L42)*(1-((1-$AD42)^$AI42)))-(($J42-$L42)*(((1-$AD42)^$AI42)-((1-$AD42)^($AI42+1)))*IF('Set-up'!$E$9="Monthly",($AA42-($AI42*12))/12,$AM42/$AQ42)),(($J42-$L42)/$AG42*$Z42)-(($J42-$L42)/$AG42*$AA42))) -> 0 | U42: =-IF(AND($M42>=$H$2,$M42<=$I$2),IF(LEFT($AE42,1)="D",(($J42-$L42)*(1-((1-$AD42)^$AK42)))+(($J42-$L42)*(((1-$AD42)^$AK42)-((1-$AD42)^($AK42+1)))*IF('Set-up'!$E$9="Monthly",($AC42-($AK42*12))/12,$AO42/$AS42)),IF($K42=0,0,($J42-$L42)/$AG42*$AC42)),0) -> 0 | V42: 12800 | W42: 0 | X42: 0 | Y42: =IF($K42=0,0,IF(LEFT($AE42,1)="D",((($J42-$L42)*(1-((1-$AD42)^$AH42)))+(($J42-$L42)*(((1-$AD42)^$AH42)-((1-$AD42)^($AH42+1)))*IF('Set-up'!$E$9="Monthly",($Z42-($AH42*12))/12,$AL42/$AP42)))-(($J42-$L42)*(1-((1-$AD42)^$AJ42)))-(($J42-$L42)*(((1-$AD42)^$AJ42)-((1-$AD42)^($AJ42+1)))*IF('Set-up'!$E$9="Monthly",($AB42-($AJ42*12))/12,$AN42/$AR42)),(($J42-$L42)/$AG42*$Z42)-(($J42-$L42)/$AG42*$AB42))) -> 0 | Z42: =IF('Set-up'!$E$9="Daily",MIN(MAX(((IF($M42="-",$I$2,MIN($I$2,$M42-'Set-up'!$E$13))-(($I42+'Set-up'!$E$11)))+1),0),IF(LEFT($AE42,1)="D",MaxPeriod,$AG42)),MIN(MAX(((IF($M42="-",((YEAR($I$2)*12)+MONTH($I$2)),MIN(((YEAR($I$2)*12)+MONTH($I$2)),((YEAR($M42)*12)+MONTH($M42)-'Set-up'!$E$13)))-(((YEAR($I42)*12)+MONTH($I42)+'Set-up'!$E$11)))+1),0),IF(LEFT($AE42,1)="D",MaxPeriod,$AG42))) -> 24 | AA42: =IF('Set-up'!$E$9="Daily",MIN(MAX(((IF($M42="-",$H$2-1,MIN($H$2-1,$M42-'Set-up'!$E$13))-($I42+'Set-up'!$E$11))+1),0),IF(LEFT($AE42,1)="D",MaxPeriod,$AG42)),MIN(MAX(((IF($M42="-",((YEAR($H$2)*12)+MONTH($H$2)-1),MIN(((YEAR($H$2)*12)+MONTH($H$2)-1),((YEAR($M42)*12)+MONTH($M42)-'Set-up'!$E$13)))-(((YEAR($I42)*12)+MONTH($I42)+'Set-up'!$E$11)))+1),0),IF(LEFT($AE42,1)="D",MaxPeriod,$AG42))) -> 24 | AB42: =IF('Set-up'!$E$9="Daily",MIN(MAX(((IF($M42="-",$J$2-1,MIN($J$2-1,$M42-'Set-up'!$E$13))-($I42+'Set-up'!$E$11))+1),0),IF(LEFT($AE42,1)="D",MaxPeriod,$AG42)),MIN(MAX(((IF($M42="-",((YEAR($J$2)*12)+MONTH($J$2)-1),MIN(((YEAR($J$2)*12)+MONTH($J$2)-1),((YEAR($M42)*12)+MONTH($M42)-'Set-up'!$E$13)))-(((YEAR($I42)*12)+MONTH($I42)+'Set-up'!$E$11)))+1),0),IF(LEFT($AE42,1)="D",MaxPeriod,$AG42))) -> 24 | AC42: =IF('Set-up'!$E$9="Daily",MIN(MAX(((IF($M42="-",0,$M42-'Set-up'!$E$13)-($I42+'Set-up'!$E$11))+1),0),IF(LEFT($AE42,1)="D",MaxPeriod,$AG42)),MIN(MAX(((IF($M42="-",0,((YEAR($M42)*12)+MONTH($M42)-'Set-up'!$E$13))-(((YEAR($I42)*12)+MONTH($I42)+'Set-up'!$E$11)))+1),0),IF(LEFT($AE42,1)="D",MaxPeriod,$AG42))) -> 0 | AD42: 0 | AE42: SL | AF42: 1 | AG42: =IF('Set-up'!$E$9="Daily",(DATE(YEAR($I42)+$K42+(1-$AF42),MONTH($I42),DAY($I42))+'Set-up'!$E$11)-($I42+'Set-up'!$E$11),$K42*12) -> 24 | AH42: =ROUNDDOWN(MIN(MAX(((IF($M42="-",((YEAR($I$2)*12)+MONTH($I$2)),MIN(((YEAR($I$2)*12)+MONTH($I$2)),((YEAR($M42)*12)+MONTH($M42)-'Set-up'!$E$13)))-(((YEAR($I42)*12)+MONTH($I42)+'Set-up'!$E$11)))),0),IF(LEFT($AE42,1)="D",MaxPeriod,$AG42))/12,0) -> 2 | AI42: =ROUNDDOWN(MIN(MAX(((IF($M42="-",((YEAR($H$2)*12)+MONTH($H$2)-1),MIN(((YEAR($H$2)*12)+MONTH($H$2)-1),((YEAR($M42)*12)+MONTH($M42)-'Set-up'!$E$13)))-(((YEAR($I42)*12)+MONTH($I42)+'Set-up'!$E$11)))),0),IF(LEFT($AE42,1)="D",MaxPeriod,$AG42))/12,0) -> 2 | AJ42: =ROUNDDOWN(MIN(MAX(((IF($M42="-",((YEAR($J$2)*12)+MONTH($J$2)-1),MIN(((YEAR($J$2)*12)+MONTH($J$2)-1),((YEAR($M42)*12)+MONTH($M42)-'Set-up'!$E$13)))-(((YEAR($I42)*12)+MONTH($I42)+'Set-up'!$E$11)))),0),IF(LEFT($AE42,1)="D",MaxPeriod,$AG42))/12,0) -> 2 | AK42: =ROUNDDOWN(MIN(MAX(((IF($M42="-",0,((YEAR($M42)*12)+MONTH($M42)-'Set-up'!$E$13))-(((YEAR($I42)*12)+MONTH($I42)+'Set-up'!$E$11)))),0),IF(LEFT($AE42,1)="D",MaxPeriod,$AG42))/12,0) -> 0 | AL42: =IF('Set-up'!$E$9="Daily",MIN(MAX(((IF($M42="-",$I$2,MIN($I$2,$M42-'Set-up'!$E$13))-((DATE(YEAR($I42)+$AH42,MONTH($I42),DAY($I42))+'Set-up'!$E$11)))+1),0),IF(LEFT($AE42,1)="D",MaxPeriod,$AG42)),0) -> 0 | AM42: =IF('Set-up'!$E$9="Daily",MIN(MAX(((IF($M42="-",$H$2-1,MIN($H$2-1,$M42-'Set-up'!$E$13))-(DATE(YEAR($I42)+$AI42,MONTH($I42),DAY($I42))+'Set-up'!$E$11))+1),0),IF(LEFT($AE42,1)="D",MaxPeriod,$AG42)),0) -> 0 | AN42: =IF('Set-up'!$E$9="Daily",MIN(MAX(((IF($M42="-",$J$2-1,MIN($J$2-1,$M42-'Set-up'!$E$13))-(DATE(YEAR($I42)+$AJ42,MONTH($I42),DAY($I42))+'Set-up'!$E$11))+1),0),IF(LEFT($AE42,1)="D",MaxPeriod,$AG42)),0) -> 0 | AO42: =IF('Set-up'!$E$9="Daily",MIN(MAX(((IF($M42="-",0,$M42-'Set-up'!$E$13)-(DATE(YEAR($I42)+$AK42,MONTH($I42),DAY($I42))+'Set-up'!$E$11))+1),0),IF(LEFT($AE42,1)="D",MaxPeriod,$AG42)),0) -> 0 | AP42: =IF('Set-up'!$E$9="Daily",DATE(YEAR($I42)+$AH42+1,MONTH($I42),DAY($I42))-DATE(YEAR($I42)+$AH42,MONTH($I42),DAY($I42)),0) -> 0 | AQ42: =IF('Set-up'!$E$9="Daily",DATE(YEAR($I42)+$AI42+1,MONTH($I42),DAY($I42))-DATE(YEAR($I42)+$AI42,MONTH($I42),DAY($I42)),0) -> 0 | AR42: =IF('Set-up'!$E$9="Daily",DATE(YEAR($I42)+$AJ42+1,MONTH($I42),DAY($I42))-DATE(YEAR($I42)+$AJ42,MONTH($I42),DAY($I42)),0) -> 0 | AS42: =IF('Set-up'!$E$9="Daily",DATE(YEAR($I42)+$AK42+1,MONTH($I42),DAY($I42))-DATE(YEAR($I42)+$AK42,MONTH($I42),DAY($I42)),0) -> 0
A43: MV-00001 | B43: 34543552 | C43: Colt Rodeo 3.0(1) | D43: Leased | E43: MVH01 | F43: DDV | G43: =IF(COUNTIF(AssetCode,$A43)>1,"E1",IF(ISNA(VLOOKUP($E43,CatAll,1,0))=TRUE,"E2",IF($I43="Add!","E10","-"))) -> - | H43: MV | I43: =IF(SUMIFS(TransIDDate,TransAsset,$A43,TransType,"ACQ")=0,"Add!",SUMIFS(TransIDDate,TransAsset,$A43,TransType,"ACQ")) -> 2015-07-20 | J43: 252200 | K43: 5 | L43: 0 | M43: =IF(SUMIFS(TransIDDate,TransAsset,$A43,TransType,"DIS")=0,"-",IF(SUMIFS(TransIDDate,TransAsset,$A43,TransType,"DIS")<=$I$2,SUMIFS(TransIDDate,TransAsset,$A43,TransType,"DIS"),"-")) -> 2019-07-07 | N43: =IF($M43<=$I$2,SUMIFS(TransProceeds,TransAsset,$A43,TransType,"DIS"),0) -> 30000 | O43: =IF(AND($M43<>"-",$M43<$H$2),0,SUMIFS(TransAmount,TransAsset,$A43,TransIDDate,"<"&$H$2,TransType,"ACQ")) -> 0 | P43: 0 | Q43: 0 | R43: 0 | S43: =IF(AND($M43<>"-",$M43<$H$2),0,IF($K43=0,0,IF(LEFT($AE43,1)="D",(($J43-$L43)*(1-((1-$AD43)^$AI43)))+(($J43-$L43)*(((1-$AD43)^$AI43)-((1-$AD43)^($AI43+1)))*IF('Set-up'!$E$9="Monthly",($AA43-($AI43*12))/12,$AM43/$AQ43)),($J43-$L43)/$AG43*$AA43))) -> 0 | T43: =IF($K43=0,0,IF(LEFT($AE43,1)="D",((($J43-$L43)*(1-((1-$AD43)^$AH43)))+(($J43-$L43)*(((1-$AD43)^$AH43)-((1-$AD43)^($AH43+1)))*IF('Set-up'!$E$9="Monthly",($Z43-($AH43*12))/12,$AL43/$AP43)))-(($J43-$L43)*(1-((1-$AD43)^$AI43)))-(($J43-$L43)*(((1-$AD43)^$AI43)-((1-$AD43)^($AI43+1)))*IF('Set-up'!$E$9="Monthly",($AA43-($AI43*12))/12,$AM43/$AQ43)),(($J43-$L43)/$AG43*$Z43)-(($J43-$L43)/$AG43*$AA43))) -> -1.455191523e-11 | U43: =-IF(AND($M43>=$H$2,$M43<=$I$2),IF(LEFT($AE43,1)="D",(($J43-$L43)*(1-((1-$AD43)^$AK43)))+(($J43-$L43)*(((1-$AD43)^$AK43)-((1-$AD43)^($AK43+1)))*IF('Set-up'!$E$9="Monthly",($AC43-($AK43*12))/12,$AO43/$AS43)),IF($K43=0,0,($J43-$L43)/$AG43*$AC43)),0) -> 0 | V43: 0 | W43: 0 | X43: 0 | Y43: =IF($K43=0,0,IF(LEFT($AE43,1)="D",((($J43-$L43)*(1-((1-$AD43)^$AH43)))+(($J43-$L43)*(((1-$AD43)^$AH43)-((1-$AD43)^($AH43+1)))*IF('Set-up'!$E$9="Monthly",($Z43-($AH43*12))/12,$AL43/$AP43)))-(($J43-$L43)*(1-((1-$AD43)^$AJ43)))-(($J43-$L43)*(((1-$AD43)^$AJ43)-((1-$AD43)^($AJ43+1)))*IF('Set-up'!$E$9="Monthly",($AB43-($AJ43*12))/12,$AN43/$AR43)),(($J43-$L43)/$AG43*$Z43)-(($J43-$L43)/$AG43*$AB43))) -> -1.455191523e-11 | Z43: =IF('Set-up'!$E$9="Daily",MIN(MAX(((IF($M43="-",$I$2,MIN($I$2,$M43-'Set-up'!$E$13))-(($I43+'Set-up'!$E$11)))+1),0),IF(LEFT($AE43,1)="D",MaxPeriod,$AG43)),MIN(MAX(((IF($M43="-",((YEAR($I$2)*12)+MONTH($I$2)),MIN(((YEAR($I$2)*12)+MONTH($I$2)),((YEAR($M43)*12)+MONTH($M43)-'Set-up'!$E$13)))-(((YEAR($I43)*12)+MONTH($I43)+'Set-up'!$E$11)))+1),0),IF(LEFT($AE43,1)="D",MaxPeriod,$AG43))) -> 48 | AA43: =IF('Set-up'!$E$9="Daily",MIN(MAX(((IF($M43="-",$H$2-1,MIN($H$2-1,$M43-'Set-up'!$E$13))-($I43+'Set-up'!$E$11))+1),0),IF(LEFT($AE43,1)="D",MaxPeriod,$AG43)),MIN(MAX(((IF($M43="-",((YEAR($H$2)*12)+MONTH($H$2)-1),MIN(((YEAR($H$2)*12)+MONTH($H$2)-1),((YEAR($M43)*12)+MONTH($M43)-'Set-up'!$E$13)))-(((YEAR($I43)*12)+MONTH($I43)+'Set-up'!$E$11)))+1),0),IF(LEFT($AE43,1)="D",MaxPeriod,$AG43))) -> 48 | AB43: =IF('Set-up'!$E$9="Daily",MIN(MAX(((IF($M43="-",$J$2-1,MIN($J$2-1,$M43-'Set-up'!$E$13))-($I43+'Set-up'!$E$11))+1),0),IF(LEFT($AE43,1)="D",MaxPeriod,$AG43)),MIN(MAX(((IF($M43="-",((YEAR($J$2)*12)+MONTH($J$2)-1),MIN(((YEAR($J$2)*12)+MONTH($J$2)-1),((YEAR($M43)*12)+MONTH($M43)-'Set-up'!$E$13)))-(((YEAR($I43)*12)+MONTH($I43)+'Set-up'!$E$11)))+1),0),IF(LEFT($AE43,1)="D",MaxPeriod,$AG43))) -> 48 | AC43: =IF('Set-up'!$E$9="Daily",MIN(MAX(((IF($M43="-",0,$M43-'Set-up'!$E$13)-($I43+'Set-up'!$E$11))+1),0),IF(LEFT($AE43,1)="D",MaxPeriod,$AG43)),MIN(MAX(((IF($M43="-",0,((YEAR($M43)*12)+MONTH($M43)-'Set-up'!$E$13))-(((YEAR($I43)*12)+MONTH($I43)+'Set-up'!$E$11)))+1),0),IF(LEFT($AE43,1)="D",MaxPeriod,$AG43))) -> 48 | AD43: 0.4 | AE43: DDV | AF43: 1 | AG43: =IF('Set-up'!$E$9="Daily",(DATE(YEAR($I43)+$K43+(1-$AF43),MONTH($I43),DAY($I43))+'Set-up'!$E$11)-($I43+'Set-up'!$E$11),$K43*12) -> 60 | AH43: =ROUNDDOWN(MIN(MAX(((IF($M43="-",((YEAR($I$2)*12)+MONTH($I$2)),MIN(((YEAR($I$2)*12)+MONTH($I$2)),((YEAR($M43)*12)+MONTH($M43)-'Set-up'!$E$13)))-(((YEAR($I43)*12)+MONTH($I43)+'Set-up'!$E$11)))),0),IF(LEFT($AE43,1)="D",MaxPeriod,$AG43))/12,0) -> 3 | AI43: =ROUNDDOWN(MIN(MAX(((IF($M43="-",((YEAR($H$2)*12)+MONTH($H$2)-1),MIN(((YEAR($H$2)*12)+MONTH($H$2)-1),((YEAR($M43)*12)+MONTH($M43)-'Set-up'!$E$13)))-(((YEAR($I43)*12)+MONTH($I43)+'Set-up'!$E$11)))),0),IF(LEFT($AE43,1)="D",MaxPeriod,$AG43))/12,0) -> 3 | AJ43: =ROUNDDOWN(MIN(MAX(((IF($M43="-",((YEAR($J$2)*12)+MONTH($J$2)-1),MIN(((YEAR($J$2)*12)+MONTH($J$2)-1),((YEAR($M43)*12)+MONTH($M43)-'Set-up'!$E$13)))-(((YEAR($I43)*12)+MONTH($I43)+'Set-up'!$E$11)))),0),IF(LEFT($AE43,1)="D",MaxPeriod,$AG43))/12,0) -> 3 | AK43: =ROUNDDOWN(MIN(MAX(((IF($M43="-",0,((YEAR($M43)*12)+MONTH($M43)-'Set-up'!$E$13))-(((YEAR($I43)*12)+MONTH($I43)+'Set-up'!$E$11)))),0),IF(LEFT($AE43,1)="D",MaxPeriod,$AG43))/12,0) -> 3 | AL43: =IF('Set-up'!$E$9="Daily",MIN(MAX(((IF($M43="-",$I$2,MIN($I$2,$M43-'Set-up'!$E$13))-((DATE(YEAR($I43)+$AH43,MONTH($I43),DAY($I43))+'Set-up'!$E$11)))+1),0),IF(LEFT($AE43,1)="D",MaxPeriod,$AG43)),0) -> 0 | AM43: =IF('Set-up'!$E$9="Daily",MIN(MAX(((IF($M43="-",$H$2-1,MIN($H$2-1,$M43-'Set-up'!$E$13))-(DATE(YEAR($I43)+$AI43,MONTH($I43),DAY($I43))+'Set-up'!$E$11))+1),0),IF(LEFT($AE43,1)="D",MaxPeriod,$AG43)),0) -> 0 | AN43: =IF('Set-up'!$E$9="Daily",MIN(MAX(((IF($M43="-",$J$2-1,MIN($J$2-1,$M43-'Set-up'!$E$13))-(DATE(YEAR($I43)+$AJ43,MONTH($I43),DAY($I43))+'Set-up'!$E$11))+1),0),IF(LEFT($AE43,1)="D",MaxPeriod,$AG43)),0) -> 0 | AO43: =IF('Set-up'!$E$9="Daily",MIN(MAX(((IF($M43="-",0,$M43-'Set-up'!$E$13)-(DATE(YEAR($I43)+$AK43,MONTH($I43),DAY($I43))+'Set-up'!$E$11))+1),0),IF(LEFT($AE43,1)="D",MaxPeriod,$AG43)),0) -> 0 | AP43: =IF('Set-up'!$E$9="Daily",DATE(YEAR($I43)+$AH43+1,MONTH($I43),DAY($I43))-DATE(YEAR($I43)+$AH43,MONTH($I43),DAY($I43)),0) -> 0 | AQ43: =IF('Set-up'!$E$9="Daily",DATE(YEAR($I43)+$AI43+1,MONTH($I43),DAY($I43))-DATE(YEAR($I43)+$AI43,MONTH($I43),DAY($I43)),0) -> 0 | AR43: =IF('Set-up'!$E$9="Daily",DATE(YEAR($I43)+$AJ43+1,MONTH($I43),DAY($I43))-DATE(YEAR($I43)+$AJ43,MONTH($I43),DAY($I43)),0) -> 0 | AS43: =IF('Set-up'!$E$9="Daily",DATE(YEAR($I43)+$AK43+1,MONTH($I43),DAY($I43))-DATE(YEAR($I43)+$AK43,MONTH($I43),DAY($I43)),0) -> 0
A44: MV-00002 | B44: 872837829 | C44: Toyota Hilux 3.0 | D44: Leased | E44: MVH01 | F44: DDV | G44: =IF(COUNTIF(AssetCode,$A44)>1,"E1",IF(ISNA(VLOOKUP($E44,CatAll,1,0))=TRUE,"E2",IF($I44="Add!","E10","-"))) -> - | H44: MV | I44: =IF(SUMIFS(TransIDDate,TransAsset,$A44,TransType,"ACQ")=0,"Add!",SUMIFS(TransIDDate,TransAsset,$A44,TransType,"ACQ")) -> 2020-06-20 | J44: 288500 | K44: 5 | L44: 22000 | M44: =IF(SUMIFS(TransIDDate,TransAsset,$A44,TransType,"DIS")=0,"-",IF(SUMIFS(TransIDDate,TransAsset,$A44,TransType,"DIS")<=$I$2,SUMIFS(TransIDDate,TransAsset,$A44,TransType,"DIS"),"-")) -> - | N44: =IF($M44<=$I$2,SUMIFS(TransProceeds,TransAsset,$A44,TransType,"DIS"),0) -> 0 | O44: =IF(AND($M44<>"-",$M44<$H$2),0,SUMIFS(TransAmount,TransAsset,$A44,TransIDDate,"<"&$H$2,TransType,"ACQ")) -> 0 | P44: 288500 | Q44: 0 | R44: 288500 | S44: =IF(AND($M44<>"-",$M44<$H$2),0,IF($K44=0,0,IF(LEFT($AE44,1)="D",(($J44-$L44)*(1-((1-$AD44)^$AI44)))+(($J44-$L44)*(((1-$AD44)^$AI44)-((1-$AD44)^($AI44+1)))*IF('Set-up'!$E$9="Monthly",($AA44-($AI44*12))/12,$AM44/$AQ44)),($J44-$L44)/$AG44*$AA44))) -> 0 | T44: =IF($K44=0,0,IF(LEFT($AE44,1)="D",((($J44-$L44)*(1-((1-$AD44)^$AH44)))+(($J44-$L44)*(((1-$AD44)^$AH44)-((1-$AD44)^($AH44+1)))*IF('Set-up'!$E$9="Monthly",($Z44-($AH44*12))/12,$AL44/$AP44)))-(($J44-$L44)*(1-((1-$AD44)^$AI44)))-(($J44-$L44)*(((1-$AD44)^$AI44)-((1-$AD44)^($AI44+1)))*IF('Set-up'!$E$9="Monthly",($AA44-($AI44*12))/12,$AM44/$AQ44)),(($J44-$L44)/$AG44*$Z44)-(($J44-$L44)/$AG44*$AA44))) -> 79950 | U44: =-IF(AND($M44>=$H$2,$M44<=$I$2),IF(LEFT($AE44,1)="D",(($J44-$L44)*(1-((1-$AD44)^$AK44)))+(($J44-$L44)*(((1-$AD44)^$AK44)-((1-$AD44)^($AK44+1)))*IF('Set-up'!$E$9="Monthly",($AC44-($AK44*12))/12,$AO44/$AS44)),IF($K44=0,0,($J44-$L44)/$AG44*$AC44)),0) -> 0 | V44: 79950 | W44: 208550 | X44: 0 | Y44: =IF($K44=0,0,IF(LEFT($AE44,1)="D",((($J44-$L44)*(1-((1-$AD44)^$AH44)))+(($J44-$L44)*(((1-$AD44)^$AH44)-((1-$AD44)^($AH44+1)))*IF('Set-up'!$E$9="Monthly",($Z44-($AH44*12))/12,$AL44/$AP44)))-(($J44-$L44)*(1-((1-$AD44)^$AJ44)))-(($J44-$L44)*(((1-$AD44)^$AJ44)-((1-$AD44)^($AJ44+1)))*IF('Set-up'!$E$9="Monthly",($AB44-($AJ44*12))/12,$AN44/$AR44)),(($J44-$L44)/$AG44*$Z44)-(($J44-$L44)/$AG44*$AB44))) -> 8883.333333 | Z44: =IF('Set-up'!$E$9="Daily",MIN(MAX(((IF($M44="-",$I$2,MIN($I$2,$M44-'Set-up'!$E$13))-(($I44+'Set-up'!$E$11)))+1),0),IF(LEFT($AE44,1)="D",MaxPeriod,$AG44)),MIN(MAX(((IF($M44="-",((YEAR($I$2)*12)+MONTH($I$2)),MIN(((YEAR($I$2)*12)+MONTH($I$2)),((YEAR($M44)*12)+MONTH($M44)-'Set-up'!$E$13)))-(((YEAR($I44)*12)+MONTH($I44)+'Set-up'!$E$11)))+1),0),IF(LEFT($AE44,1)="D",MaxPeriod,$AG44))) -> 9 | AA44: =IF('Set-up'!$E$9="Daily",MIN(MAX(((IF($M44="-",$H$2-1,MIN($H$2-1,$M44-'Set-up'!$E$13))-($I44+'Set-up'!$E$11))+1),0),IF(LEFT($AE44,1)="D",MaxPeriod,$AG44)),MIN(MAX(((IF($M44="-",((YEAR($H$2)*12)+MONTH($H$2)-1),MIN(((YEAR($H$2)*12)+MONTH($H$2)-1),((YEAR($M44)*12)+MONTH($M44)-'Set-up'!$E$13)))-(((YEAR($I44)*12)+MONTH($I44)+'Set-up'!$E$11)))+1),0),IF(LEFT($AE44,1)="D",MaxPeriod,$AG44))) -> 0 | AB44: =IF('Set-up'!$E$9="Daily",MIN(MAX(((IF($M44="-",$J$2-1,MIN($J$2-1,$M44-'Set-up'!$E$13))-($I44+'Set-up'!$E$11))+1),0),IF(LEFT($AE44,1)="D",MaxPeriod,$AG44)),MIN(MAX(((IF($M44="-",((YEAR($J$2)*12)+MONTH($J$2)-1),MIN(((YEAR($J$2)*12)+MONTH($J$2)-1),((YEAR($M44)*12)+MONTH($M44)-'Set-up'!$E$13)))-(((YEAR($I44)*12)+MONTH($I44)+'Set-up'!$E$11)))+1),0),IF(LEFT($AE44,1)="D",MaxPeriod,$AG44))) -> 8 | AC44: =IF('Set-up'!$E$9="Daily",MIN(MAX(((IF($M44="-",0,$M44-'Set-up'!$E$13)-($I44+'Set-up'!$E$11))+1),0),IF(LEFT($AE44,1)="D",MaxPeriod,$AG44)),MIN(MAX(((IF($M44="-",0,((YEAR($M44)*12)+MONTH($M44)-'Set-up'!$E$13))-(((YEAR($I44)*12)+MONTH($I44)+'Set-up'!$E$11)))+1),0),IF(LEFT($AE44,1)="D",MaxPeriod,$AG44))) -> 0 | AD44: 0.4 | AE44: DDV | AF44: 1 | AG44: =IF('Set-up'!$E$9="Daily",(DATE(YEAR($I44)+$K44+(1-$AF44),MONTH($I44),DAY($I44))+'Set-up'!$E$11)-($I44+'Set-up'!$E$11),$K44*12) -> 60 | AH44: =ROUNDDOWN(MIN(MAX(((IF($M44="-",((YEAR($I$2)*12)+MONTH($I$2)),MIN(((YEAR($I$2)*12)+MONTH($I$2)),((YEAR($M44)*12)+MONTH($M44)-'Set-up'!$E$13)))-(((YEAR($I44)*12)+MONTH($I44)+'Set-up'!$E$11)))),0),IF(LEFT($AE44,1)="D",MaxPeriod,$AG44))/12,0) -> 0 | AI44: =ROUNDDOWN(MIN(MAX(((IF($M44="-",((YEAR($H$2)*12)+MONTH($H$2)-1),MIN(((YEAR($H$2)*12)+MONTH($H$2)-1),((YEAR($M44)*12)+MONTH($M44)-'Set-up'!$E$13)))-(((YEAR($I44)*12)+MONTH($I44)+'Set-up'!$E$11)))),0),IF(LEFT($AE44,1)="D",MaxPeriod,$AG44))/12,0) -> 0 | AJ44: =ROUNDDOWN(MIN(MAX(((IF($M44="-",((YEAR($J$2)*12)+MONTH($J$2)-1),MIN(((YEAR($J$2)*12)+MONTH($J$2)-1),((YEAR($M44)*12)+MONTH($M44)-'Set-up'!$E$13)))-(((YEAR($I44)*12)+MONTH($I44)+'Set-up'!$E$11)))),0),IF(LEFT($AE44,1)="D",MaxPeriod,$AG44))/12,0) -> 0 | AK44: =ROUNDDOWN(MIN(MAX(((IF($M44="-",0,((YEAR($M44)*12)+MONTH($M44)-'Set-up'!$E$13))-(((YEAR($I44)*12)+MONTH($I44)+'Set-up'!$E$11)))),0),IF(LEFT($AE44,1)="D",MaxPeriod,$AG44))/12,0) -> 0 | AL44: =IF('Set-up'!$E$9="Daily",MIN(MAX(((IF($M44="-",$I$2,MIN($I$2,$M44-'Set-up'!$E$13))-((DATE(YEAR($I44)+$AH44,MONTH($I44),DAY($I44))+'Set-up'!$E$11)))+1),0),IF(LEFT($AE44,1)="D",MaxPeriod,$AG44)),0) -> 0 | AM44: =IF('Set-up'!$E$9="Daily",MIN(MAX(((IF($M44="-",$H$2-1,MIN($H$2-1,$M44-'Set-up'!$E$13))-(DATE(YEAR($I44)+$AI44,MONTH($I44),DAY($I44))+'Set-up'!$E$11))+1),0),IF(LEFT($AE44,1)="D",MaxPeriod,$AG44)),0) -> 0 | AN44: =IF('Set-up'!$E$9="Daily",MIN(MAX(((IF($M44="-",$J$2-1,MIN($J$2-1,$M44-'Set-up'!$E$13))-(DATE(YEAR($I44)+$AJ44,MONTH($I44),DAY($I44))+'Set-up'!$E$11))+1),0),IF(LEFT($AE44,1)="D",MaxPeriod,$AG44)),0) -> 0 | AO44: =IF('Set-up'!$E$9="Daily",MIN(MAX(((IF($M44="-",0,$M44-'Set-up'!$E$13)-(DATE(YEAR($I44)+$AK44,MONTH($I44),DAY($I44))+'Set-up'!$E$11))+1),0),IF(LEFT($AE44,1)="D",MaxPeriod,$AG44)),0) -> 0 | AP44: =IF('Set-up'!$E$9="Daily",DATE(YEAR($I44)+$AH44+1,MONTH($I44),DAY($I44))-DATE(YEAR($I44)+$AH44,MONTH($I44),DAY($I44)),0) -> 0 | AQ44: =IF('Set-up'!$E$9="Daily",DATE(YEAR($I44)+$AI44+1,MONTH($I44),DAY($I44))-DATE(YEAR($I44)+$AI44,MONTH($I44),DAY($I44)),0) -> 0 | AR44: =IF('Set-up'!$E$9="Daily",DATE(YEAR($I44)+$AJ44+1,MONTH($I44),DAY($I44))-DATE(YEAR($I44)+$AJ44,MONTH($I44),DAY($I44)),0) -> 0 | AS44: =IF('Set-up'!$E$9="Daily",DATE(YEAR($I44)+$AK44+1,MONTH($I44),DAY($I44))-DATE(YEAR($I44)+$AK44,MONTH($I44),DAY($I44)),0) -> 0

Sheet Transact (hidden)
A1: ='Set-up'!$C$5 -> Example (Pty) Ltd
A2: Asset Transactions
A3: © www.excel-skills.com
A4: Transaction Date | B4: Transaction Type | C4: Asset Number | D4: Supplier | E4: Document Number | F4: Amount | G4: Lifetime in Years | H4: Residual Value | I4: Proceeds on Sale | J4: Error Code | K4: Category | L4: Transaction Date ID | M4: Transaction Amount | N4: Historical Cost | O4: Current Lifetime | P4: Current Residual
A5: 2015-07-20 | B5: ACQ | C5: CH-00001 | D5: ABC Incorporated | E5: P/Agreement | F5: 8200 | G5: 3 | H5: 0 | I5: 0 | J5: =IF(ISNA(VLOOKUP($C5,AssetCode,1,0))=TRUE,"E3",IF(OR(ISBLANK($B5)=TRUE,COUNTIFS(TransAsset,$C5,TransIDDate,"<"&$L5,TransType,"DIS")>0),"E4",IF(COUNTIFS(TransAsset,$C5,TransType,"ACQ")>1,"E5",IF(OR($F5<0,AND(TransType="DIS",$F5<>0)=TRUE),"E6",IF(OR(AND($G5<0,TransType<>"DIS")=TRUE,AND(TransType="DIS",$G5<>0)=TRUE),"E7",IF(OR($H5<0,AND(TransType="DIS",$H5<>0)=TRUE,$H5>$F5),"E8",IF($I5<0,"E9","-"))))))) -> - | K5: =IF(ISNA(VLOOKUP($C5,AssetAll,COLUMN(Assets!$E$4),0))=TRUE,"add!",VLOOKUP($C5,AssetAll,COLUMN(Assets!$E$4),0)) -> CHW01 | L5: =IF(OR(ISBLANK($A5)=TRUE,ISNUMBER($A5)=FALSE),TODAY(),$A5) -> 2015-07-20 | M5: =IF(ISBLANK($B5)=FALSE,IF(ISNUMBER($F5)=TRUE,$F5,0),0) -> 8200 | N5: =IF(ISBLANK($B5)=FALSE,SUMIFS(TransAmount,TransAsset,$C5,TransType,"ACQ"),0) -> 8200 | O5: =IF(ISBLANK($B5)=FALSE,IF(ISNUMBER($G5)=TRUE,$G5,0),0) -> 3 | P5: =IF(ISBLANK($B5)=FALSE,IF(ISNUMBER($H5)=TRUE,$H5,0),0) -> 0
A6: 2015-07-20 | B6: ACQ | C6: CH-00002 | D6: ABC Incorporated | E6: P/Agreement | F6: 6600 | G6: 3 | H6: 0 | I6: 0 | J6: =IF(ISNA(VLOOKUP($C6,AssetCode,1,0))=TRUE,"E3",IF(OR(ISBLANK($B6)=TRUE,COUNTIFS(TransAsset,$C6,TransIDDate,"<"&$L6,TransType,"DIS")>0),"E4",IF(COUNTIFS(TransAsset,$C6,TransType,"ACQ")>1,"E5",IF(OR($F6<0,AND(TransType="DIS",$F6<>0)=TRUE),"E6",IF(OR(AND($G6<0,TransType<>"DIS")=TRUE,AND(TransType="DIS",$G6<>0)=TRUE),"E7",IF(OR($H6<0,AND(TransType="DIS",$H6<>0)=TRUE,$H6>$F6),"E8",IF($I6<0,"E9","-"))))))) -> - | K6: =IF(ISNA(VLOOKUP($C6,AssetAll,COLUMN(Assets!$E$4),0))=TRUE,"add!",VLOOKUP($C6,AssetAll,COLUMN(Assets!$E$4),0)) -> CHW01 | L6: =IF(OR(ISBLANK($A6)=TRUE,ISNUMBER($A6)=FALSE),TODAY(),$A6) -> 2015-07-20 | M6: 6600 | N6: =IF(ISBLANK($B6)=FALSE,SUMIFS(TransAmount,TransAsset,$C6,TransType,"ACQ"),0) -> 6600 | O6: 3 | P6: 0
A7: 2015-07-20 | B7: ACQ | C7: CH-00003 | D7: ABC Incorporated | E7: P/Agreement | F7: 2100 | G7: 3 | H7: 0 | I7: 0 | J7: =IF(ISNA(VLOOKUP($C7,AssetCode,1,0))=TRUE,"E3",IF(OR(ISBLANK($B7)=TRUE,COUNTIFS(TransAsset,$C7,TransIDDate,"<"&$L7,TransType,"DIS")>0),"E4",IF(COUNTIFS(TransAsset,$C7,TransType,"ACQ")>1,"E5",IF(OR($F7<0,AND(TransType="DIS",$F7<>0)=TRUE),"E6",IF(OR(AND($G7<0,TransType<>"DIS")=TRUE,AND(TransType="DIS",$G7<>0)=TRUE),"E7",IF(OR($H7<0,AND(TransType="DIS",$H7<>0)=TRUE,$H7>$F7),"E8",IF($I7<0,"E9","-"))))))) -> - | K7: =IF(ISNA(VLOOKUP($C7,AssetAll,COLUMN(Assets!$E$4),0))=TRUE,"add!",VLOOKUP($C7,AssetAll,COLUMN(Assets!$E$4),0)) -> CHW01 | L7: 2015-07-20 | M7: 2100 | N7: =IF(ISBLANK($B7)=FALSE,SUMIFS(TransAmount,TransAsset,$C7,TransType,"ACQ"),0) -> 2100 | O7: 3 | P7: 0
A8: 2015-07-20 | B8: ACQ | C8: FF-00001 | D8: ABC Incorporated | E8: P/Agreement | F8: 3600 | G8: 6 | H8: 0 | I8: 0 | J8: =IF(ISNA(VLOOKUP($C8,AssetCode,1,0))=TRUE,"E3",IF(OR(ISBLANK($B8)=TRUE,COUNTIFS(TransAsset,$C8,TransIDDate,"<"&$L8,TransType,"DIS")>0),"E4",IF(COUNTIFS(TransAsset,$C8,TransType,"ACQ")>1,"E5",IF(OR($F8<0,AND(TransType="DIS",$F8<>0)=TRUE),"E6",IF(OR(AND($G8<0,TransType<>"DIS")=TRUE,AND(TransType="DIS",$G8<>0)=TRUE),"E7",IF(OR($H8<0,AND(TransType="DIS",$H8<>0)=TRUE,$H8>$F8),"E8",IF($I8<0,"E9","-"))))))) -> - | K8: =IF(ISNA(VLOOKUP($C8,AssetAll,COLUMN(Assets!$E$4),0))=TRUE,"add!",VLOOKUP($C8,AssetAll,COLUMN(Assets!$E$4),0)) -> FFX01 | L8: 2015-07-20 | M8: 3600 | N8: =IF(ISBLANK($B8)=FALSE,SUMIFS(TransAmount,TransAsset,$C8,TransType,"ACQ"),0) -> 3600 | O8: 6 | P8: 0
